Workbook

Sheet PI vs gap
A1: Measurement | B1: Hall
A2: Type | B2: Off-axis
A4: PS type | B4: HXR
A5: PS serial no | B5: 16315
A7: Measurement date | B7: ='DF raw data'!B2 -> 5. sep 2017
C11: Nominal gap [mm] | D11: Encoder [counts] | E11: Encoder [mm] | F11: PI [T^2mm^3] | G11: x [mm] | H11: Encoder offset
C12: 10 | D12: =' 10 x=-2'!B3 -> 12561948 | E12: =(D12-$H$12)*-0.00025+10 -> 10.00125 | F12: =' 10 x=-2'!Q3 -> 708.8426199 | G12: -2 | H12: 12561953
C13: 10 | D13: ='10 x=-1'!B3 -> 12561948 | E13: =(D13-$H$12)*-0.00025+10 -> 10.00125 | F13: ='10 x=-1'!Q3 -> 709.0117692 | G13: -1
C14: 10 | D14: ='10 x=0'!B3 -> 12561949 | E14: 10.001 | F14: ='10 x=0'!Q3 -> 709.1645333 | G14: 0
C15: 10 | D15: ='10 x=1'!B3 -> 12561948 | E15: 10.00125 | F15: ='10 x=1'!Q3 -> 708.8349327 | G15: 1
C16: 10 | D16: ='10 x=2'!B3 -> 12561949 | E16: 10.001 | F16: ='10 x=2'!Q3 -> 708.6003557 | G16: 2
C17: 30 | D17: ='30 x=-2'!B3 -> 12481859 | E17: 30.0235 | F17: ='30 x=-2'!Q3 -> 68.27580246 | G17: -2
C18: 30 | D18: ='30 x=-1'!B3 -> 12481855 | E18: 30.0245 | F18: ='30 x=-1'!Q3 -> 68.40306559 | G18: -1
C19: 30 | D19: ='30 x=0'!B3 -> 12481862 | E19: 30.02275 | F19: ='30 x=0'!Q3 -> 68.44955048 | G19: 0
C20: 30 | D20: ='30 x=1'!B3 -> 12481859 | E20: 30.0235 | F20: ='30 x=1'!Q3 -> 68.48479132 | G20: 1
C21: 30 | D21: ='30 x=2'!B3 -> 12481858 | E21: 30.02375 | F21: ='30 x=2'!Q3 -> 68.4219658 | G21: 2
A41: Measuring series at 10 mm gap:
A42: Reference magnet
A43: Tref | B43: 20.74 | C43: degC
A44: Hall ref field | B44: 0.5054 | C44: T
A45: NMR ref field | B45: 0.506599 | C45: T
A47: Measuring series at larger gaps:
A48: Reference magnet
A49: Tref | B49: 20.79 | C49: degC
A50: Hall ref field | B50: 0.506705 | C50: T
A51: NMR ref field | B51: 0.5065695 | C51: T
A53: Offset from Faro | B53: 0.083

Sheet 10 x=-2
A1: dz | B1: ='DF raw data'!B7 -> 0.50013 | C1: mm | F1: T_coeff | G1: -0.0008 | H1: /degC | L1: Hallref | M1: ='PI vs gap'!B44 -> 0.5054 | N1: T | P1: IBy total | Q1: =L1203*1000 -> -9.608243161 | R1: muTm | X1: DF ref | Y1: 18
A2: Tref | B2: ='DF raw data'!B8 -> 21.66 | C2: degC | F2: Tcorr | G2: 20 | H2: degC | L2: NMRref | M2: ='PI vs gap'!B45 -> 0.506599 | N2: T | P2: JBy total | Q2: =M1203 -> -6.274191131 | R2: muTm^2
A3: Encoder | B3: ='DF raw data'!B9 -> 12561948 | P3: PI total | Q3: =N1203 -> 708.8426199 | R3: T^2mm^3
A5: z [mm] | B5: Bx | C5: By | D5: Bz | F5: Bx_corr | G5: By_corr | H5: Bz_corr | J5: Ix | K5: Jx | L5: Iy | M5: Jy | N5: PI
A6: ='PI vs gap'!B53 -> 0.083 | B6: ='DF raw data'!A11 -> -6.0467505e-06 | C6: ='DF raw data'!B11 -> -1.4652711e-05 | D6: ='DF raw data'!C11 -> -2.7826843e-06 | F6: =(1-$G$1*($B$2-$G$2))*B6 -> -6.054780585e-06 | G6: =(1-$G$1*($B$2-$G$2))*C6*$M$2/$M$1 -> -1.470697774e-05 | H6: =(1-$G$1*($B$2-$G$2))*D6 -> -2.786379705e-06 | J6: =F6*$B$1 -> -3.028177414e-06 | K6: =J6*$B$1 -> -1.51448237e-06 | L6: =G6*$B$1 -> -7.355400776e-06 | M6: =L6*$B$1 -> -3.67865659e-06 | N6: =(J6^2+L6)^2*$B$1 -> 2.705792607e-11
A7: =A6+$B$1 -> 0.58313 | B7: ='DF raw data'!A12 -> -6.1153046e-06 | C7: ='DF raw data'!B12 -> -1.246197e-05 | D7: ='DF raw data'!C12 -> -5.8547607e-07 | F7: =(1-$G$1*($B$2-$G$2))*B7 -> -6.123425725e-06 | G7: =(1-$G$1*($B$2-$G$2))*C7*$M$2/$M$1 -> -1.250812327e-05 | H7: =(1-$G$1*($B$2-$G$2))*D7 -> -5.862535822e-07 | J7: =F7*$B$1+J6 -> -6.090686321e-06 | K7: =J7*$B$1+K6 -> -4.56061732e-06 | L7: =G7*$B$1+L6 -> -1.361108846e-05 | M7: =L7*$B$1+M6 -> -1.048597026e-05 | N7: =(J7^2+L7^2)*$B$1+N6 -> 1.382659272e-10
A8: =A7+$B$1 -> 1.08326 | B8: ='DF raw data'!A13 -> -6.9379971e-06 | C8: ='DF raw data'!B13 -> 9.0515605e-06 | D8: ='DF raw data'!C13 -> -5.3876811e-06 | F8: -6.94721076e-06 | G8: 9.085083215e-06 | H8: -5.394835941e-06 | J8: =F8*$B$1+J7 -> -9.565194839e-06 | K8: =J8*$B$1+K7 -> -9.344458215e-06 | L8: =G8*$B$1+L7 -> -9.067365796e-06 | M8: =L8*$B$1+M7 -> -1.502083192e-05 | N8: =(J8^2+L8^2)*$B$1+N7 -> 2.251435469e-10
A9: 1.58339 | B9: ='DF raw data'!A14 -> -6.2444674e-06 | C9: ='DF raw data'!B14 -> -9.9307235e-06 | D9: ='DF raw data'!C14 -> -5.3108761e-06 | F9: -6.252760053e-06 | G9: -9.967502221e-06 | H9: -5.317928943e-06 | J9: -1.269238772e-05 | K9: -1.569230209e-05 | L9: -1.405241268e-05 | M9: -2.204886507e-05 | N9: 4.044736647e-10
A10: 2.08352 | B10: ='DF raw data'!A15 -> -6.4015262e-06 | C10: ='DF raw data'!B15 -> -4.8662278e-06 | D10: ='DF raw data'!C15 -> -8.7591775e-07 | F10: -6.410027427e-06 | G10: -4.884250015e-06 | H10: -8.770809688e-07 | J10: -1.589823474e-05 | K10: -2.364348623e-05 | L10: -1.649517264e-05 | M10: -3.029859577e-05 | N10: 6.669641887e-10
A11: 2.58365 | B11: ='DF raw data'!A16 -> -6.6878788e-06 | C11: ='DF raw data'!B16 -> 2.101873e-06 | D11: ='DF raw data'!C16 -> -5.988064e-06 | F11: =(1-$G$1*($B$2-$G$2))*B11 -> -6.696760303e-06 | G11: 2.109657347e-06 | H11: =(1-$G$1*($B$2-$G$2))*D11 -> -5.996016149e-06 | J11: -1.924748547e-05 | K11: -3.326973114e-05 | L11: -1.544006971e-05 | M11: -3.802063783e-05 | N11: 9.714740656e-10
A12: 3.08378 | B12: ='DF raw data'!A17 -> -6.6509024e-06 | C12: ='DF raw data'!B17 -> 1.7707067e-06 | D12: ='DF raw data'!C17 -> -1.8003573e-06 | F12: -6.659734798e-06 | G12: 1.777264563e-06 | H12: -1.802748174e-06 | J12: -2.257821864e-05 | K12: -4.456177562e-05 | L12: -1.455120639e-05 | M12: -4.529813268e-05 | N12: 1.332324644e-09
A13: 3.58391 | B13: ='DF raw data'!A18 -> -6.3187549e-06 | C13: ='DF raw data'!B18 -> -6.8500231e-06 | D13: ='DF raw data'!C18 -> 8.4050976e-07 | F13: -6.327146207e-06 | G13: -6.875392358e-06 | H13: 8.41625957e-07 | J13: -2.574261427e-05 | K13: -5.74364293e-05 | L13: -1.798979637e-05 | M13: -5.429536954e-05 | N13: 1.825610347e-09
A14: 4.08404 | B14: ='DF raw data'!A19 -> -6.9630992e-06 | C14: ='DF raw data'!B19 -> 1.0695517e-05 | D14: ='DF raw data'!C19 -> 1.0894203e-06 | F14: -6.972346196e-06 | G14: 1.073512816e-05 | H14: 1.09086705e-06 | J14: -2.922969377e-05 | K14: -7.205507604e-05 | L14: -1.262083672e-05 | M14: -6.060742861e-05 | N14: 2.332572381e-09
A15: 4.58417 | B15: ='DF raw data'!A20 -> -6.5669378e-06 | C15: ='DF raw data'!B20 -> -1.0501252e-07 | D15: ='DF raw data'!C20 -> 1.5804601e-06 | F15: -6.575658693e-06 | G15: -1.054014369e-07 | H15: 1.582558951e-06 | J15: -3.251837795e-05 | K15: -8.831849241e-05 | L15: -1.267355114e-05 | M15: -6.694585174e-05 | N15: 2.941762631e-09
A16: 5.0843 | B16: ='DF raw data'!A21 -> -6.0141106e-06 | C16: ='DF raw data'!B21 -> -1.5123042e-05 | D16: ='DF raw data'!C21 -> 1.2039002e-06 | F16: -6.022097339e-06 | G16: -1.517905062e-05 | H16: 1.205498979e-06 | J16: -3.55302095e-05 | K16: -0.0001060882161 | L16: -2.026504973e-05 | M16: -7.708101106e-05 | N16: 3.778514144e-09
A17: 5.58443 | B17: ='DF raw data'!A22 -> -6.495779e-06 | C17: ='DF raw data'!B22 -> -2.1762025e-06 | D17: ='DF raw data'!C22 -> -1.1569007e-06 | F17: -6.504405395e-06 | G17: -2.184262129e-06 | H17: -1.158437064e-06 | J17: -3.878325777e-05 | K17: -0.0001254848868 | L17: -2.135746475e-05 | M17: -8.776251991e-05 | N17: 4.758910172e-09
A18: 6.08456 | B18: ='DF raw data'!A23 -> -6.8891318e-06 | C18: ='DF raw data'!B23 -> 8.3069035e-06 | D18: ='DF raw data'!C23 -> -2.5791612e-06 | F18: -6.898280567e-06 | G18: 8.337668357e-06 | H18: -2.582586326e-06 | J18: -4.223329483e-05 | K18: -0.0001466070245 | L18: -1.718754667e-05 | M18: -9.635852763e-05 | N18: 5.798711927e-09
A19: 6.58469 | B19: ='DF raw data'!A24 -> -7.2303596e-06 | C19: ='DF raw data'!B24 -> 1.7689636e-05 | D19: ='DF raw data'!C24 -> -9.7900352e-07 | F19: -7.239961518e-06 | G19: 1.775515008e-05 | H19: -9.803036367e-07 | J19: -4.585421678e-05 | K19: -0.000169540094 | L19: -8.307663466e-06 | M19: -0.0001005134394 | N19: 6.884807472e-09
A20: 7.08482 | B20: ='DF raw data'!A25 -> -6.6662546e-06 | C20: ='DF raw data'!B25 -> 3.518069e-06 | D20: ='DF raw data'!C25 -> 6.9671423e-06 | F20: -6.675107386e-06 | G20: 3.53109827e-06 | H20: 6.976394665e-06 | J20: -4.919263824e-05 | K20: -0.0001941428081 | L20: -6.541655288e-06 | M20: -0.0001037851174 | N20: 8.11648208e-09
A21: 7.58495 | B21: ='DF raw data'!A26 -> -6.5298159e-06 | C21: ='DF raw data'!B26 -> 5.7052927e-07 | D21: ='DF raw data'!C26 -> 1.1240181e-05 | F21: -6.538487496e-06 | G21: 5.726422416e-07 | H21: 1.125510796e-05 | J21: -5.246273199e-05 | K21: -0.0002203809943 | L21: -6.255259724e-06 | M21: -0.0001069135605 | N21: 9.512578231e-09
A22: 8.08508 | B22: ='DF raw data'!A27 -> -3.3910549e-06 | C22: ='DF raw data'!B27 -> 3.9458364e-06 | D22: ='DF raw data'!C27 -> 9.2333121e-06 | F22: -3.395558221e-06 | G22: 3.960449919e-06 | H22: 9.245573938e-06 | J22: -5.416095252e-05 | K22: -0.0002474685115 | L22: -4.274519906e-06 | M22: -0.0001090513761 | N22: 1.09888021e-08
A23: 8.58521 | B23: ='DF raw data'!A28 -> 2.4511171e-06 | C23: ='DF raw data'!B28 -> 8.0764748e-06 | D23: ='DF raw data'!C28 -> 6.2258096e-06 | F23: 2.454372184e-06 | G23: 8.106386257e-06 | H23: 6.234077475e-06 | J23: -5.293344736e-05 | K23: -0.0002739421165 | L23: -2.202729469e-07 | M23: -0.0001091615412 | N23: 1.239016554e-08
A24: 9.08534 | B24: ='DF raw data'!A29 -> 5.2208848e-06 | C24: ='DF raw data'!B29 -> 2.7400552e-06 | D24: ='DF raw data'!C29 -> 6.5488621e-06 | F24: 5.227818135e-06 | G24: 2.750203073e-06 | H24: 6.557558989e-06 | J24: -5.031885868e-05 | K24: -0.0002991080873 | L24: 1.155186116e-06 | M24: -0.000108583798 | N24: 1.365715587e-08
A25: 9.58547 | B25: ='DF raw data'!A30 -> 9.1014299e-06 | C25: ='DF raw data'!B30 -> 1.3693358e-05 | D25: ='DF raw data'!C30 -> 3.8170747e-06 | F25: 9.113516599e-06 | G25: 1.374407175e-05 | H25: 3.822143775e-06 | J25: -4.576091562e-05 | K25: -0.000321994494 | L25: 8.029008719e-06 | M25: -0.0001045682498 | N25: 1.473669967e-08
A26: 10.0856 | B26: ='DF raw data'!A31 -> 9.5622745e-06 | C26: ='DF raw data'!B31 -> 1.1010271e-05 | D26: ='DF raw data'!C31 -> 9.5764026e-06 | F26: 9.574973201e-06 | G26: 1.105104786e-05 | H26: 9.589120063e-06 | J26: -4.097218427e-05 | K26: -0.0003424859125 | L26: 1.355596928e-05 | M26: -9.778850293e-05 | N26: 1.566818389e-08
A27: 10.58573 | B27: ='DF raw data'!A32 -> 8.1259568e-06 | C27: ='DF raw data'!B32 -> 9.6413942e-07 | D27: ='DF raw data'!C32 -> 1.0013659e-05 | F27: 8.136748071e-06 | G27: 9.677101381e-07 | H27: 1.002695714e-05 | J27: -3.690275246e-05 | K27: -0.0003609420861 | L27: 1.403995015e-05 | M27: -9.076670266e-05 | N27: 1.644785322e-08
A28: 11.08586 | B28: ='DF raw data'!A33 -> 7.1691679e-06 | C28: ='DF raw data'!B33 -> -4.2183051e-06 | D28: ='DF raw data'!C33 -> 5.0623112e-06 | F28: 7.178688555e-06 | G28: -4.233927715e-06 | H28: 5.069033949e-06 | J28: -3.331247495e-05 | K28: -0.0003776026542 | L28: 1.192243589e-05 | M28: -8.48039348e-05 | N28: 1.707394869e-08
A29: 11.58599 | B29: ='DF raw data'!A34 -> 3.3380854e-06 | C29: ='DF raw data'!B34 -> -2.4629373e-06 | D29: ='DF raw data'!C34 -> -2.3739792e-06 | F29: 3.342518377e-06 | G29: -2.472058859e-06 | H29: -2.377131844e-06 | J29: -3.164078124e-05 | K29: -0.0003934271581 | L29: 1.068608509e-05 | M29: -7.945950306e-05 | N29: 1.763175941e-08
A30: 12.08612 | B30: ='DF raw data'!A35 -> 2.6117848e-06 | C30: ='DF raw data'!B35 -> 1.9946827e-07 | D30: ='DF raw data'!C35 -> -1.0339807e-06 | F30: 2.61525325e-06 | G30: 2.002070065e-07 | H30: -1.035353826e-06 | J30: -3.033281463e-05 | K30: -0.0004085975087 | L30: 1.078621462e-05 | M30: -7.406499355e-05 | N30: 1.815010518e-08
A31: 12.58625 | B31: ='DF raw data'!A36 -> 6.2282702e-06 | C31: ='DF raw data'!B36 -> -1.7301374e-05 | D31: ='DF raw data'!C36 -> 7.4540587e-08 | F31: 6.236541343e-06 | G31: -1.736545014e-05 | H31: 7.46395769e-08 | J31: -2.721373321e-05 | K31: -0.0004222079131 | L31: 2.101232042e-06 | M31: -7.301410437e-05 | N31: 1.852270326e-08
A32: 13.08638 | B32: ='DF raw data'!A37 -> 5.2755563e-06 | C32: ='DF raw data'!B37 -> -5.4727875e-06 | D32: ='DF raw data'!C37 -> 1.2594739e-06 | F32: 5.282562239e-06 | G32: -5.493056126e-06 | H32: 1.261146481e-06 | J32: -2.457176536e-05 | K32: -0.0004344969901 | L32: -6.460101184e-07 | M32: -7.333719341e-05 | N32: 1.882487629e-08
A33: 13.58651 | B33: ='DF raw data'!A38 -> 2.9701694e-06 | C33: ='DF raw data'!B38 -> -1.9480419e-06 | D33: ='DF raw data'!C38 -> 7.8654321e-06 | F33: 2.974113785e-06 | G33: -1.955256529e-06 | H33: 7.875877394e-06 | J33: -2.308432183e-05 | K33: -0.000446042152 | L33: -1.623892566e-06 | M33: -7.41493508e-05 | N33: 1.909270738e-08
A34: 14.08664 | B34: ='DF raw data'!A39 -> 6.0565867e-06 | C34: ='DF raw data'!B39 -> 7.2170706e-06 | D34: ='DF raw data'!C39 -> 7.9878864e-06 | F34: 6.064629847e-06 | G34: 7.243799229e-06 | H34: 7.998494313e-06 | J34: -2.00512185e-05 | K34: -0.0004560703679 | L34: 1.998948742e-06 | M34: -7.314961656e-05 | N34: 1.929578375e-08
A35: 14.58677 | B35: ='DF raw data'!A40 -> 7.7141085e-06 | C35: ='DF raw data'!B40 -> 6.7143169e-06 | D35: ='DF raw data'!C40 -> 9.2840255e-06 | F35: 7.724352836e-06 | G35: 6.739183566e-06 | H35: 9.296354686e-06 | J35: -1.618803792e-05 | K35: -0.0004641664913 | L35: 5.369416619e-06 | M35: -7.046421023e-05 | N35: 1.944126317e-08
A36: 15.0869 | B36: ='DF raw data'!A41 -> 5.9746885e-06 | C36: ='DF raw data'!B41 -> -1.5720443e-06 | D36: ='DF raw data'!C41 -> 7.9163492e-06 | F36: 5.982622886e-06 | G36: -1.577866411e-06 | H36: 7.926862112e-06 | J36: -1.319594873e-05 | K36: -0.0004707661811 | L36: 4.580278291e-06 | M36: -6.817347565e-05 | N36: 1.953884454e-08
A37: 15.58703 | B37: ='DF raw data'!A42 -> 1.3722525e-06 | C37: ='DF raw data'!B42 -> -2.9283315e-06 | D37: ='DF raw data'!C42 -> -2.7627918e-06 | F37: 1.374074851e-06 | G37: -2.93917666e-06 | H37: -2.766460788e-06 | J37: -1.250873268e-05 | K37: -0.0004770221736 | L37: 3.110307868e-06 | M37: -6.661791737e-05 | N37: 1.962193734e-08
A38: 16.08716 | B38: ='DF raw data'!A43 -> -8.6165556e-07 | C38: ='DF raw data'!B43 -> -3.0091883e-06 | D38: ='DF raw data'!C43 -> -1.0352809e-05 | F38: -8.627998386e-07 | G38: -3.020332916e-06 | H38: -1.036655753e-05 | J38: -1.294024476e-05 | K38: -0.0004834939782 | L38: 1.599748767e-06 | M38: -6.581783502e-05 | N38: 1.970696401e-08
A39: 16.58729 | B39: ='DF raw data'!A44 -> 1.563814e-06 | C39: ='DF raw data'!B44 -> 6.0055038e-07 | D39: ='DF raw data'!C44 -> -1.5572654e-05 | F39: 1.565890745e-06 | G39: 6.027745356e-07 | H39: -1.559333448e-05 | J39: -1.215709582e-05 | K39: -0.0004895741066 | L39: 1.901214395e-06 | M39: -6.486698067e-05 | N39: 1.978268849e-08
A40: 17.08742 | B40: ='DF raw data'!A45 -> 5.5009849e-07 | C40: ='DF raw data'!B45 -> 8.0333775e-06 | D40: ='DF raw data'!C45 -> -1.0957718e-05 | F40: 5.508290208e-07 | G40: 8.063129345e-06 | H40: -1.097226985e-05 | J40: -1.188160971e-05 | K40: -0.000495516456 | L40: 5.933827274e-06 | M40: -6.189929563e-05 | N40: 1.987090289e-08
A41: 17.58755 | B41: ='DF raw data'!A46 -> -2.9571167e-06 | C41: ='DF raw data'!B46 -> -1.4093964e-06 | D41: ='DF raw data'!C46 -> -4.1105031e-06 | F41: -2.961043751e-06 | G41: -1.41461614e-06 | H41: -4.115961848e-06 | J41: -1.336251652e-05 | K41: -0.0005021994514 | L41: 5.226335304e-06 | M41: -5.928544856e-05 | N41: 1.997386537e-08
A42: 18.08768 | B42: ='DF raw data'!A47 -> -1.2664899e-06 | C42: ='DF raw data'!B47 -> 8.6300633e-06 | D42: ='DF raw data'!C47 -> -4.978881e-07 | F42: -1.268171799e-06 | G42: 8.662024988e-06 | H42: -4.985492954e-07 | J42: -1.399676728e-05 | K42: -0.0005091996546 | L42: 9.558473862e-06 | M42: -5.450496902e-05 | N42: 2.011753967e-08
A43: 18.58781 | B43: ='DF raw data'!A48 -> 3.0040753e-06 | C43: ='DF raw data'!B48 -> 1.5472477e-05 | D43: ='DF raw data'!C48 -> 3.2081791e-06 | F43: 3.008064712e-06 | G43: 1.552977976e-05 | H43: 3.212439562e-06 | J43: -1.249234387e-05 | K43: -0.0005154474506 | L43: 1.732538262e-05 | M43: -4.584002542e-05 | N43: 2.034571275e-08
A44: 19.08794 | B44: ='DF raw data'!A49 -> 6.0050002e-06 | C44: ='DF raw data'!B49 -> -1.2077833e-05 | D44: ='DF raw data'!C49 -> 1.8134072e-06 | F44: 6.01297484e-06 | G44: -1.21225636e-05 | H44: 1.815815405e-06 | J44: -9.485074767e-06 | K44: -0.000520191221 | L44: 1.126252488e-05 | M44: -4.020729885e-05 | N44: 2.045414649e-08
A45: 19.58807 | B45: ='DF raw data'!A50 -> 4.1279923e-06 | C45: ='DF raw data'!B50 -> -1.383627e-05 | D45: ='DF raw data'!C50 -> -1.308779e-06 | F45: 4.133474274e-06 | G45: -1.388751302e-05 | H45: -1.310517059e-06 | J45: -7.417800279e-06 | K45: -0.0005239010855 | L45: 4.316962992e-06 | M45: -3.804825615e-05 | N45: 2.049098604e-08
A46: 20.0882 | B46: ='DF raw data'!A51 -> -3.7572346e-07 | C46: ='DF raw data'!B51 -> 9.1703959e-07 | D46: ='DF raw data'!C51 -> -4.2974661e-06 | F46: -3.762224208e-07 | G46: 9.204358726e-07 | H46: -4.303173135e-06 | J46: -7.605960398e-06 | K46: -0.0005277050544 | L46: 4.777300584e-06 | M46: -3.56589848e-05 | N46: 2.053133314e-08
A47: 20.58833 | B47: ='DF raw data'!A52 -> -5.979312e-07 | C47: ='DF raw data'!B52 -> 6.7887208e-07 | D47: ='DF raw data'!C52 -> -3.3331542e-06 | F47: -5.987252526e-07 | G47: 6.813863023e-07 | H47: -3.337580629e-06 | J47: -7.905400859e-06 | K47: -0.0005316587826 | L47: 5.118082316e-06 | M47: -3.30992783e-05 | N47: 2.057568973e-08
A48: 21.08846 | B48: ='DF raw data'!A53 -> -9.7619375e-07 | C48: ='DF raw data'!B53 -> -4.8704974e-06 | D48: ='DF raw data'!C53 -> 2.112158e-06 | F48: -9.774901353e-07 | G48: -4.888535428e-06 | H48: 2.114962946e-06 | J48: -8.394273e-06 | K48: -0.0005358570103 | L48: 2.673179092e-06 | M48: -3.176234124e-05 | N48: 2.061450468e-08
A49: 21.58859 | B49: ='DF raw data'!A54 -> -4.3782861e-06 | C49: ='DF raw data'!B54 -> 4.5309148e-06 | D49: ='DF raw data'!C54 -> -2.7622534e-06 | F49: -4.384100464e-06 | G49: 4.547695174e-06 | H49: -2.765921673e-06 | J49: -1.058689317e-05 | K49: -0.0005411518332 | L49: 4.94761788e-06 | M49: -2.928788911e-05 | N49: 2.068280304e-08
A50: 22.08872 | B50: ='DF raw data'!A55 -> -5.2502951e-06 | C50: ='DF raw data'!B55 -> 7.3611718e-06 | D50: ='DF raw data'!C55 -> -1.2136001e-05 | F50: -5.257267492e-06 | G50: 7.388434112e-06 | H50: -1.215211761e-05 | J50: -1.321621036e-05 | K50: -0.0005477616565 | L50: 8.642795432e-06 | M50: -2.496536783e-05 | N50: 2.080751853e-08
A51: 22.58885 | B51: ='DF raw data'!A56 -> -5.0602034e-06 | C51: ='DF raw data'!B56 -> 2.8929626e-06 | D51: ='DF raw data'!C56 -> -1.4230516e-05 | F51: -5.06692335e-06 | G51: 2.90367677e-06 | H51: -1.424941413e-05 | J51: -1.575033073e-05 | K51: -0.0005556388694 | L51: 1.00950113e-05 | M51: -1.991654983e-05 | N51: 2.098255511e-08
A52: 23.08898 | B52: ='DF raw data'!A57 -> -8.0849495e-06 | C52: ='DF raw data'!B57 -> 7.4385116e-07 | D52: ='DF raw data'!C57 -> -1.1013291e-05 | F52: -8.095686313e-06 | G52: 7.466060342e-07 | H52: -1.102791665e-05 | J52: -1.979922633e-05 | K52: -0.0005655410565 | L52: 1.046841137e-05 | M52: -1.468098325e-05 | N52: 2.123341882e-08
A53: 23.58911 | B53: ='DF raw data'!A58 -> -7.4210625e-06 | C53: ='DF raw data'!B58 -> 4.7984358e-06 | D53: ='DF raw data'!C58 -> -3.7643565e-06 | F53: -7.430917671e-06 | G53: 4.816206945e-06 | H53: -3.769355565e-06 | J53: -2.351565118e-05 | K53: -0.0005773019391 | L53: 1.287714095e-05 | M53: -8.240738745e-06 | N53: 2.159291557e-08
A54: 24.08924 | B54: ='DF raw data'!A59 -> -2.7684221e-06 | C54: ='DF raw data'!B59 -> 5.695867e-06 | D54: ='DF raw data'!C59 -> -6.6039593e-06 | F54: -2.772098565e-06 | G54: 5.716961808e-06 | H54: -6.612729358e-06 | J54: -2.490206084e-05 | K54: -0.0005897562068 | L54: 1.573636506e-05 | M54: -3.705104878e-07 | N54: 2.202690128e-08
A55: 24.58937 | B55: ='DF raw data'!A60 -> 1.3841997e-06 | C55: ='DF raw data'!B60 -> 8.4248522e-06 | D55: ='DF raw data'!C60 -> -9.4928055e-06 | F55: 1.386037917e-06 | G55: 8.456053883e-06 | H55: -9.505411946e-06 | J55: -2.420886169e-05 | K55: -0.0006018637848 | L55: 1.996549129e-05 | M55: 9.61483067e-06 | N55: 2.251937421e-08
A56: 25.0895 | B56: ='DF raw data'!A61 -> 6.2415561e-06 | C56: ='DF raw data'!B61 -> 1.8088668e-06 | D56: ='DF raw data'!C61 -> -4.1258118e-06 | F56: 6.249844887e-06 | G56: 1.81556599e-06 | H56: -4.131290878e-06 | J56: -2.108312677e-05 | K56: -0.000612408089 | L56: 2.087351031e-05 | M56: 2.005429938e-05 | N56: 2.295958947e-08
A57: 25.58963 | B57: ='DF raw data'!A62 -> 8.2684637e-06 | C57: ='DF raw data'!B62 -> 4.278956e-07 | D57: ='DF raw data'!C62 -> 4.4699027e-06 | F57: 8.27944422e-06 | G57: 4.294803237e-07 | H57: 4.475838731e-06 | J57: -1.694232833e-05 | K57: -0.0006208814556 | L57: 2.10883063e-05 | M57: 3.060119401e-05 | N57: 2.332556417e-08
A58: 26.08976 | B58: ='DF raw data'!A63 -> 5.333633e-06 | C58: ='DF raw data'!B63 -> 2.3439097e-06 | D58: ='DF raw data'!C63 -> 8.5166594e-06 | F58: 5.340716065e-06 | G58: 2.352590437e-06 | H58: 8.527969524e-06 | J58: -1.427127601e-05 | K58: -0.0006280189489 | L58: 2.226490736e-05 | M58: 4.173654213e-05 | N58: 2.36753528e-08
A59: 26.58989 | B59: ='DF raw data'!A64 -> 2.4277613e-06 | C59: ='DF raw data'!B64 -> 9.9429394e-07 | D59: ='DF raw data'!C64 -> 5.6690096e-06 | F59: 2.430985367e-06 | G59: 9.979763363e-07 | H59: 5.676538045e-06 | J59: -1.30554673e-05 | K59: -0.0006345483798 | L59: 2.276402526e-05 | M59: 5.312151408e-05 | N59: 2.401976536e-08
A60: 27.09002 | B60: ='DF raw data'!A65 -> -2.7284334e-06 | C60: ='DF raw data'!B65 -> -2.0731966e-06 | D60: ='DF raw data'!C65 -> 4.003834e-06 | F60: -2.73205676e-06 | G60: -2.080874743e-06 | H60: 4.009151092e-06 | J60: -1.442185084e-05 | K60: -0.00064176118 | L60: 2.172331738e-05 | M60: 6.39859968e-05 | N60: 2.43597999e-08
A61: 27.59015 | B61: ='DF raw data'!A66 -> -7.3053893e-06 | C61: ='DF raw data'!B66 -> -2.4070286e-09 | D61: ='DF raw data'!C66 -> 7.0850856e-06 | F61: -7.315090857e-06 | G61: -2.4159431e-09 | H61: 7.094494594e-06 | J61: -1.808034723e-05 | K61: -0.0006508037041 | L61: 2.172210909e-05 | M61: 7.484987522e-05 | N61: 2.475927822e-08
A62: 28.09028 | B62: ='DF raw data'!A67 -> -9.2244954e-06 | C62: ='DF raw data'!B67 -> 2.9148448e-06 | D62: ='DF raw data'!C67 -> 2.5844258e-06 | F62: -9.23674553e-06 | G62: 2.925640012e-06 | H62: 2.587857917e-06 | J62: -2.269992077e-05 | K62: -0.0006621566155 | L62: 2.318530943e-05 | M62: 8.644554402e-05 | N62: 2.528583758e-08
A63: 28.59041 | B63: ='DF raw data'!A68 -> -5.8545779e-06 | C63: ='DF raw data'!B68 -> 3.7322195e-06 | D63: ='DF raw data'!C68 -> -3.081115e-06 | F63: -5.862352779e-06 | G63: 3.746041883e-06 | H63: -3.085206721e-06 | J63: -2.563185927e-05 | K63: -0.0006749758772 | L63: 2.505881736e-05 | M63: 9.897821035e-05 | N63: 2.592847289e-08
A64: 29.09054 | B64: ='DF raw data'!A69 -> -3.1425518e-06 | C64: ='DF raw data'!B69 -> -5.1971269e-06 | D64: ='DF raw data'!C69 -> -1.9697618e-08 | F64: -3.146725109e-06 | G64: -5.216374609e-06 | H64: -1.972377644e-08 | J64: -2.72056309e-05 | K64: -0.0006885822294 | L64: 2.244995192e-05 | M64: 0.0001102061048 | N64: 2.655070798e-08
A65: 29.59067 | B65: ='DF raw data'!A70 -> -6.5351564e-06 | C65: ='DF raw data'!B70 -> 7.1036575e-06 | D65: ='DF raw data'!C70 -> 2.5684624e-06 | F65: -6.543835088e-06 | G65: 7.1299661e-06 | H65: 2.571873318e-06 | J65: -3.047839914e-05 | K65: -0.0007038253912 | L65: 2.601586187e-05 | M65: 0.0001232174178 | N65: 2.735379567e-08
A66: 30.0908 | B66: ='DF raw data'!A71 -> -9.1966576e-06 | C66: ='DF raw data'!B71 -> -2.6564069e-06 | D66: ='DF raw data'!C71 -> 3.1535367e-06 | F66: -9.208870761e-06 | G66: -2.66624498e-06 | H66: 3.157724597e-06 | J66: -3.508403168e-05 | K66: -0.0007213719679 | L66: 2.468239277e-05 | M66: 0.0001355618229 | N66: 2.827408978e-08
A67: 30.59093 | B67: ='DF raw data'!A72 -> -8.6662112e-06 | C67: ='DF raw data'!B72 -> -8.7992612e-06 | D67: ='DF raw data'!C72 -> 1.0580754e-06 | F67: -8.677719928e-06 | G67: -8.831849518e-06 | H67: 1.059480524e-06 | J67: -3.942401974e-05 | K67: -0.0007410891029 | L67: 2.026531987e-05 | M67: 0.0001456971173 | N67: 2.925681348e-08
A68: 31.09106 | B68: ='DF raw data'!A73 -> -6.9439343e-06 | C68: ='DF raw data'!B73 -> -6.3975713e-06 | D68: ='DF raw data'!C73 -> -2.4568378e-06 | F68: -6.953155845e-06 | G68: -6.42126489e-06 | H68: -2.460100481e-06 | J68: -4.290150158e-05 | K68: -0.0007625454309 | L68: 1.705385266e-05 | M68: 0.0001542262607 | N68: 3.032277692e-08
A69: 31.59119 | B69: ='DF raw data'!A74 -> -8.8978923e-06 | C69: ='DF raw data'!B74 -> 7.1486224e-06 | D69: ='DF raw data'!C74 -> -1.9166271e-06 | F69: -8.909708701e-06 | G69: 7.175097529e-06 | H69: -1.919172381e-06 | J69: -4.735751419e-05 | K69: -0.0007862303445 | L69: 2.064233419e-05 | M69: 0.0001645501112 | N69: 3.165754393e-08
A70: 32.09132 | B70: ='DF raw data'!A75 -> -9.4971692e-06 | C70: ='DF raw data'!B75 -> 9.0994608e-06 | D70: ='DF raw data'!C75 -> 2.5464308e-06 | F70: -9.509781441e-06 | G70: 9.133160915e-06 | H70: 2.54981246e-06 | J70: -5.211364118e-05 | K70: -0.0008122939399 | L70: 2.521010195e-05 | M70: 0.0001771584395 | N70: 3.333367003e-08
A71: 32.59145 | B71: ='DF raw data'!A76 -> -9.5802025e-06 | C71: ='DF raw data'!B76 -> -7.9848214e-06 | D71: ='DF raw data'!C76 -> 5.2075247e-06 | F71: -9.592925009e-06 | G71: =(1-$G$1*($B$2-$G$2))*C71*$M$2/$M$1 -> -8.014393416e-06 | H71: 5.214440293e-06 | J71: -5.691135076e-05 | K71: -0.0008407570137 | L71: 2.120186338e-05 | M71: 0.0001877621275 | N71: 3.517835995e-08
A72: =A71+$B$1 -> 33.09158 | B72: ='DF raw data'!A77 -> -1.3707198e-05 | C72: ='DF raw data'!B77 -> -5.1853854e-06 | D72: ='DF raw data'!C77 -> 2.1538929e-06 | F72: -1.372540116e-05 | G72: -5.204589624e-06 | H72: 2.15675327e-06 | J72: =F72*$B$1+J71 -> -6.377583565e-05 | K72: =J72*$B$1+K71 -> -0.0008726532224 | L72: =G72*$B$1+L71 -> 1.859889197e-05 | M72: =L72*$B$1+M71 -> 0.0001970639913 | N72: =(J72^2+L72^2)*$B$1+N71 -> 3.738557167e-08
A73: 33.59171 | B73: ='DF raw data'!A78 -> -1.6219572e-05 | C73: ='DF raw data'!B78 -> -1.1916386e-05 | D73: ='DF raw data'!C78 -> -1.2050239e-06 | F73: -1.624111159e-05 | G73: -1.196051868e-05 | H73: -1.206624172e-06 | J73: -7.189850279e-05 | K73: -0.0009086118206 | L73: 1.261707776e-05 | M73: 0.0002033741704 | N73: 4.005055707e-08
A74: 34.09184 | B74: ='DF raw data'!A79 -> -7.5962093e-06 | C74: ='DF raw data'!B79 -> -4.0995551e-06 | D74: ='DF raw data'!C79 -> -3.7547813e-06 | F74: -7.606297066e-06 | G74: -4.114737921e-06 | H74: -3.75976765e-06 | J74: -7.570264014e-05 | K74: -0.000946472982 | L74: 1.055917388e-05 | M74: 0.00020865513 | N74: 4.297250951e-08
A75: 34.59197 | B75: ='DF raw data'!A80 -> 2.2338425e-06 | C75: ='DF raw data'!B80 -> -6.7882461e-06 | D75: ='DF raw data'!C80 -> -3.3014746e-06 | F75: =(1-$G$1*($B$2-$G$2))*B75 -> 2.236809043e-06 | G75: -6.813386565e-06 | H75: =(1-$G$1*($B$2-$G$2))*D75 -> -3.305858958e-06 | J75: -7.458394483e-05 | K75: -0.0009837746503 | L75: 7.15159486e-06 | M75: 0.0002122318572 | N75: 4.578019439e-08
A76: 35.0921 | B76: ='DF raw data'!A81 -> 4.6212731e-06 | C76: ='DF raw data'!B81 -> -2.765817e-06 | D76: ='DF raw data'!C81 -> -3.1714242e-06 | F76: 4.627410151e-06 | G76: -2.776060283e-06 | H76: -3.175635851e-06 | J76: -7.226963819e-05 | K76: -0.001019918864 | L76: 5.763203831e-06 | M76: 0.0002151142083 | N76: 4.840893525e-08
A77: 35.59223 | B77: ='DF raw data'!A82 -> 1.8167262e-06 | C77: ='DF raw data'!B82 -> 4.4460548e-06 | D77: ='DF raw data'!C82 -> -1.0305901e-06 | F77: 1.819138812e-06 | G77: 4.462520892e-06 | H77: -1.031958724e-06 | J77: -7.13598323e-05 | K77: -0.001055608057 | L77: 7.995044405e-06 | M77: 0.0002191127699 | N77: 5.098767875e-08
A78: 36.09236 | B78: ='DF raw data'!A83 -> -3.1300081e-06 | C78: ='DF raw data'!B83 -> 2.1972733e-06 | D78: ='DF raw data'!C83 -> 6.9576186e-07 | F78: -3.134164751e-06 | G78: 2.205410965e-06 | H78: 6.966858318e-07 | J78: -7.292732212e-05 | K78: -0.001092081199 | L78: 9.098036591e-06 | M78: 0.0002236629709 | N78: 5.368896519e-08
A79: 36.59249 | B79: ='DF raw data'!A84 -> -4.2057441e-06 | C79: ='DF raw data'!B84 -> 4.7446647e-06 | D79: ='DF raw data'!C84 -> 2.7367698e-06 | F79: -4.211329328e-06 | G79: 4.762236703e-06 | H79: 2.74040423e-06 | J79: -7.503353425e-05 | K79: -0.001129607721 | L79: 1.147977403e-05 | M79: 0.0002294043503 | N79: 5.657062246e-08
A80: 37.09262 | B80: ='DF raw data'!A85 -> -4.5741986e-06 | C80: ='DF raw data'!B85 -> -2.4852197e-06 | D80: ='DF raw data'!C85 -> 4.8044803e-06 | F80: -4.580273136e-06 | G80: -2.494423783e-06 | H80: 4.81086065e-06 | J80: -7.732426626e-05 | K80: -0.001168279906 | L80: 1.023223787e-05 | M80: 0.0002345217994 | N80: 5.961328377e-08
A81: 37.59275 | B81: ='DF raw data'!A86 -> -4.5480342e-06 | C81: ='DF raw data'!B86 -> -2.0439761e-06 | D81: ='DF raw data'!C86 -> -2.5264542e-06 | F81: -4.554073989e-06 | G81: -2.051546024e-06 | H81: -2.529809331e-06 | J81: -7.960189528e-05 | K81: -0.001208091202 | L81: 9.206198153e-06 | M81: 0.0002391260953 | N81: 6.282472644e-08
A82: 38.09288 | B82: ='DF raw data'!A87 -> -4.3334371e-06 | C82: ='DF raw data'!B87 -> -4.4400613e-06 | D82: ='DF raw data'!C87 -> -7.8732792e-06 | F82: -4.339191904e-06 | G82: -4.456505195e-06 | H82: -7.883734915e-06 | J82: -8.177205533e-05 | K82: -0.00124898786 | L82: 6.97736621e-06 | M82: 0.0002426156855 | N82: 6.619327837e-08
A83: 38.59301 | B83: ='DF raw data'!A88 -> -1.1852611e-06 | C83: ='DF raw data'!B88 -> 8.2924453e-07 | D83: ='DF raw data'!C88 -> 8.3173495e-07 | F83: -1.186835127e-06 | G83: 8.32315661e-07 | H83: 8.32839494e-07 | J83: -8.236562718e-05 | K83: -0.001290181381 | L83: 7.393632241e-06 | M83: 0.0002463134628 | N83: 6.961354858e-08
A84: 39.09314 | B84: ='DF raw data'!A89 -> 3.5241899e-06 | C84: ='DF raw data'!B89 -> 7.438693e-06 | D84: ='DF raw data'!C89 -> 4.8173879e-06 | F84: 3.528870024e-06 | G84: 7.466242414e-06 | H84: 4.823785391e-06 | J84: -8.060073341e-05 | K84: -0.001330492226 | L84: 1.112772406e-05 | M84: 0.0002518787714 | N84: 7.292456145e-08
A85: 39.59327 | B85: ='DF raw data'!A90 -> 8.0340469e-06 | C85: ='DF raw data'!B90 -> -9.1607153e-06 | D85: ='DF raw data'!C90 -> -3.4827985e-07 | F85: 8.044716114e-06 | G85: -9.194642273e-06 | H85: -3.487423656e-07 | J85: -7.657732954e-05 | K85: -0.001368790845 | L85: 6.52920762e-06 | M85: 0.000255144224 | N85: 7.58786883e-08
A86: 40.0934 | B86: ='DF raw data'!A91 -> 9.5574724e-06 | C86: ='DF raw data'!B91 -> -4.9967193e-06 | D86: ='DF raw data'!C91 -> 3.5539181e-06 | F86: 9.570164723e-06 | G86: -5.015224794e-06 | H86: 3.558637703e-06 | J86: -7.179100306e-05 | K86: -0.00140469568 | L86: 4.020943244e-06 | M86: 0.0002571552183 | N86: 7.846441847e-08
A87: 40.59353 | B87: ='DF raw data'!A92 -> 6.7772121e-06 | C87: ='DF raw data'!B92 -> 6.0635925e-06 | D87: ='DF raw data'!C92 -> 9.7325446e-06 | F87: 6.786212238e-06 | G87: 6.08604919e-06 | H87: 9.745469419e-06 | J87: -6.839701473e-05 | K87: -0.001438903079 | L87: 7.064759025e-06 | M87: 0.0002606885163 | N87: 8.082906434e-08
A88: 41.09366 | B88: ='DF raw data'!A93 -> 2.0752557e-06 | C88: ='DF raw data'!B93 -> 5.8067453e-06 | D88: ='DF raw data'!C93 -> 5.5804903e-06 | F88: 2.07801164e-06 | G88: 5.828250749e-06 | H88: 5.587901191e-06 | J88: -6.735773877e-05 | K88: -0.001472590705 | L88: 9.979642072e-06 | M88: 0.0002656796347 | N88: 8.314799622e-08
A89: 41.59379 | B89: ='DF raw data'!A94 -> 1.4768372e-06 | C89: ='DF raw data'!B94 -> 4.6058526e-07 | D89: ='DF raw data'!C94 -> 4.114574e-06 | F89: 1.47879844e-06 | G89: 4.622910508e-07 | H89: 4.120038154e-06 | J89: -6.661814731e-05 | K89: -0.001505908439 | L89: 1.021084769e-05 | M89: 0.0002707863859 | N89: 8.541970619e-08
A90: 42.09392 | B90: ='DF raw data'!A95 -> -7.81751e-07 | C90: ='DF raw data'!B95 -> -6.5953583e-07 | D90: ='DF raw data'!C95 -> -7.1631234e-07 | F90: -7.827891653e-07 | G90: -6.6197844e-07 | H90: -7.172636028e-07 | J90: -6.700964365e-05 | K90: -0.001539421972 | L90: 9.879772418e-06 | M90: 0.0002757275565 | N90: 8.771425374e-08
A91: 42.59405 | B91: ='DF raw data'!A96 -> -3.8453513e-06 | C91: ='DF raw data'!B96 -> -2.0587865e-06 | D91: ='DF raw data'!C96 -> -3.0817116e-06 | F91: -3.850457927e-06 | G91: -2.066411275e-06 | H91: -3.085804113e-06 | J91: -6.893537318e-05 | K91: -0.00157389862 | L91: 8.846298147e-06 | M91: 0.0002801518556 | N91: 9.013005302e-08
A92: 43.09418 | B92: ='DF raw data'!A97 -> -1.480956e-06 | C92: ='DF raw data'!B97 -> -1.909396e-07 | D92: ='DF raw data'!C97 -> -6.0057009e-06 | F92: -1.48292271e-06 | G92: -1.916467503e-07 | H92: -6.013676471e-06 | J92: -6.967702731e-05 | K92: -0.001608746192 | L92: 8.750449858e-06 | M92: 0.0002845282181 | N92: 9.259642336e-08
A93: 43.59431 | B93: ='DF raw data'!A98 -> 2.9303117e-06 | C93: ='DF raw data'!B98 -> -9.0565081e-06 | D93: ='DF raw data'!C98 -> -2.7065487e-06 | F93: 2.934203154e-06 | G93: -9.090049139e-06 | H93: -2.710142997e-06 | J93: -6.820954429e-05 | K93: -0.001642859831 | L93: 4.204243582e-06 | M93: 0.0002866308864 | N93: 9.493213929e-08
A94: 44.09444 | B94: ='DF raw data'!A99 -> 2.1809899e-06 | C94: ='DF raw data'!B99 -> -1.3810251e-05 | D94: ='DF raw data'!C99 -> 2.2679071e-06 | F94: 2.183886255e-06 | G94: -1.386139766e-05 | H94: 2.270918881e-06 | J94: -6.711731726e-05 | K94: -0.001676427215 | L94: -2.728257231e-06 | M94: 0.0002852664031 | N94: 9.71888147e-08
A95: 44.59457 | B95: ='DF raw data'!A100 -> -5.9409581e-06 | C95: ='DF raw data'!B100 -> -8.5170623e-06 | D95: ='DF raw data'!C100 -> 6.4809046e-06 | F95: -5.948847692e-06 | G95: -8.548605486e-06 | H95: 6.489511241e-06 | J95: -7.009251445e-05 | K95: -0.001711482584 | L95: -7.003671293e-06 | M95: 0.000281763657 | N95: 9.967046576e-08
A96: 45.0947 | B96: ='DF raw data'!A101 -> -7.8801604e-06 | C96: ='DF raw data'!B101 -> -1.5077323e-06 | D96: ='DF raw data'!C101 -> 1.0927184e-05 | F96: -7.890625253e-06 | G96: -1.51331623e-06 | H96: 1.09416953e-05 | J96: -7.403885286e-05 | K96: -0.001748511636 | L96: -7.760526139e-06 | M96: 0.0002778823851 | N96: 1.02442175e-07
A97: 45.59483 | B97: ='DF raw data'!A102 -> -1.9831134e-06 | C97: ='DF raw data'!B102 -> 5.1348061e-06 | D97: ='DF raw data'!C102 -> 7.2066814e-06 | F97: -1.985746975e-06 | G97: 5.153823002e-06 | H97: 7.216251873e-06 | J97: -7.503198449e-05 | K97: -0.001786037382 | L97: -5.182944641e-06 | M97: 0.000275290239 | N97: 1.052712411e-07
A98: 46.09496 | B98: ='DF raw data'!A103 -> 1.8888164e-06 | C98: ='DF raw data'!B103 -> -2.4525302e-06 | D98: ='DF raw data'!C103 -> 2.6681505e-07 | F98: 1.891324748e-06 | G98: -2.461613216e-06 | H98: 2.671693804e-07 | J98: -7.408607625e-05 | K98: -0.001823090051 | L98: -6.414071259e-06 | M98: 0.0002720823695 | N98: 1.080369035e-07
A99: 46.59509 | B99: ='DF raw data'!A104 -> 4.9317237e-06 | C99: ='DF raw data'!B104 -> -4.1285089e-06 | D99: ='DF raw data'!C104 -> 6.6680354e-07 | F99: 4.938273029e-06 | G99: -4.143798952e-06 | H99: 6.676890551e-07 | J99: -7.161629776e-05 | K99: -0.00185890751 | L99: -8.486509429e-06 | M99: 0.0002678380115 | N99: 1.106380371e-07
A100: 47.09522 | B100: ='DF raw data'!A105 -> 5.8559449e-06 | C100: ='DF raw data'!B105 -> -4.4927651e-06 | D100: ='DF raw data'!C105 -> 3.8530179e-06 | F100: 5.863721595e-06 | G100: -4.509404185e-06 | H100: 3.858134708e-06 | J100: -6.868367468e-05 | K100: -0.001893258277 | L100: -1.074179774e-05 | M100: 0.0002624657162 | N100: 1.130550821e-07
A101: 47.59535 | B101: ='DF raw data'!A106 -> 6.1245441e-06 | C101: ='DF raw data'!B106 -> -6.8518907e-06 | D101: ='DF raw data'!C106 -> 6.0252696e-06 | F101: 6.132677495e-06 | G101: -6.877266875e-06 | H101: 6.033271158e-06 | J101: -6.561653868e-05 | K101: -0.001926075076 | L101: -1.418132523e-05 | M101: 0.0002553732101 | N101: 1.15308988e-07
A102: 48.09548 | B102: ='DF raw data'!A107 -> 6.9695302e-06 | C102: ='DF raw data'!B107 -> -5.0851818e-06 | D102: ='DF raw data'!C107 -> 4.6746336e-06 | F102: 6.978785736e-06 | G102: -5.104014917e-06 | H102: 4.680841513e-06 | J102: -6.212623857e-05 | K102: -0.001957146272 | L102: -1.673399621e-05 | M102: 0.0002470040365 | N102: 1.173793742e-07
A103: 48.59561 | B103: ='DF raw data'!A108 -> 2.904613e-06 | C103: ='DF raw data'!B108 -> 4.5111193e-07 | D103: ='DF raw data'!C108 -> 1.9544298e-06 | F103: 2.908470326e-06 | G103: 4.52782636e-07 | H103: 1.957025283e-06 | J103: -6.067162531e-05 | K103: -0.001987489972 | L103: -1.650754603e-05 | M103: 0.0002387481175 | N103: 1.193566608e-07
A104: 49.09574 | B104: ='DF raw data'!A109 -> 1.9358192e-06 | C104: ='DF raw data'!B109 -> 3.3129433e-07 | D104: ='DF raw data'!C109 -> 2.7660628e-06 | F104: 1.938389968e-06 | G104: 3.325212881e-07 | H104: 2.769736131e-06 | J104: -5.970217833e-05 | K104: -0.002017348822 | L104: -1.634124215e-05 | M104: 0.0002305753721 | N104: 1.21272852e-07
A105: 49.59587 | B105: ='DF raw data'!A110 -> 5.3047183e-06 | C105: ='DF raw data'!B110 -> -3.0546869e-06 | D105: ='DF raw data'!C110 -> 1.6900069e-06 | F105: 5.311762966e-06 | G105: -3.066000021e-06 | H105: 1.692251229e-06 | J105: -5.704560632e-05 | K105: -0.002045879041 | L105: -1.787464075e-05 | M105: 0.000221635728 | N105: 1.230601686e-07
A106: 50.096 | B106: ='DF raw data'!A111 -> 5.4075858e-06 | C106: ='DF raw data'!B111 -> 1.5445477e-06 | D106: ='DF raw data'!C111 -> -1.0017911e-05 | F106: 5.414767074e-06 | G106: 1.550267977e-06 | H106: -1.003121479e-05 | J106: -5.433751886e-05 | K106: -0.002073054865 | L106: -1.709930522e-05 | M106: 0.0002130838525 | N106: 1.246830665e-07
A107: 50.59613 | B107: ='DF raw data'!A112 -> 5.108282e-06 | C107: ='DF raw data'!B112 -> 1.0398908e-05 | D107: ='DF raw data'!C112 -> -1.5295716e-05 | F107: 5.115065798e-06 | G107: 1.043742066e-05 | H107: -1.531602871e-05 | J107: -5.177932101e-05 | K107: -0.002098951256 | L107: -1.187923803e-05 | M107: 0.0002071426892 | N107: 1.260945406e-07
A108: 51.09626 | B108: ='DF raw data'!A113 -> 8.1860999e-06 | C108: ='DF raw data'!B113 -> 7.45337e-06 | D108: ='DF raw data'!C113 -> -1.1110731e-05 | F108: 8.196971041e-06 | G108: 7.480973771e-06 | H108: -1.112548605e-05 | J108: -4.767976988e-05 | K108: -0.00212279734 | L108: -8.137778618e-06 | M108: 0.000203072742 | N108: 1.272646367e-07
A109: 51.59639 | B109: ='DF raw data'!A114 -> 7.6077772e-06 | C109: ='DF raw data'!B114 -> 8.8043198e-06 | D109: ='DF raw data'!C114 -> -4.1591647e-06 | F109: 7.617880328e-06 | G109: 8.836926852e-06 | H109: -4.164688071e-06 | J109: -4.386983939e-05 | K109: -0.002144737962 | L109: -3.718166391e-06 | M109: 0.0002012131754 | N109: 1.282340825e-07
A110: 52.09652 | B110: ='DF raw data'!A115 -> 1.3510941e-06 | C110: ='DF raw data'!B115 -> 8.8266015e-06 | D110: ='DF raw data'!C115 -> 3.0242866e-06 | F110: 1.352888353e-06 | G110: 8.859291073e-06 | H110: 3.028302853e-06 | J110: -4.319321934e-05 | K110: -0.002166340187 | L110: 7.126308535e-07 | M110: 0.0002015695835 | N110: 1.291674061e-07
A111: 52.59665 | B111: ='DF raw data'!A116 -> -1.5031914e-06 | C111: ='DF raw data'!B116 -> 3.3426122e-06 | D111: ='DF raw data'!C116 -> 2.0470673e-06 | F111: -1.505187638e-06 | G111: 3.354991661e-06 | H111: 2.049785805e-06 | J111: -4.394600883e-05 | K111: -0.002188318905 | L111: 2.390562833e-06 | M111: 0.0002027651757 | N111: 1.301361412e-07
A112: 53.09678 | B112: ='DF raw data'!A117 -> -1.5210418e-07 | C112: ='DF raw data'!B117 -> 1.1004667e-05 | D112: ='DF raw data'!C117 -> 1.3499869e-06 | F112: -1.523061744e-07 | G112: 1.10454231e-05 | H112: 1.351779683e-06 | J112: -4.402218172e-05 | K112: -0.002210335718 | L112: 7.914710289e-06 | M112: 0.0002067235597 | N112: 1.311366988e-07
A113: 53.59691 | B113: ='DF raw data'!A118 -> -2.4338008e-06 | C113: ='DF raw data'!B118 -> 9.4050083e-06 | D113: ='DF raw data'!C118 -> 1.4903546e-06 | F113: -2.437032887e-06 | G113: 9.439840019e-06 | H113: 1.492333791e-06 | J113: -4.524101498e-05 | K113: -0.002232962107 | L113: 1.263585748e-05 | M113: 0.0002130431311 | N113: 1.322401928e-07
A114: 54.09704 | B114: ='DF raw data'!A119 -> -2.4033e-06 | C114: ='DF raw data'!B119 -> -5.6130193e-06 | D114: ='DF raw data'!C119 -> 3.1164584e-06 | F114: -2.406491582e-06 | G114: -5.633807279e-06 | H114: 3.120597057e-06 | J114: -4.644457361e-05 | K114: -0.002256190432 | L114: 9.818221443e-06 | M114: 0.0002179535182 | N114: 1.333672337e-07
A115: 54.59717 | B115: ='DF raw data'!A120 -> 4.4957386e-07 | C115: ='DF raw data'!B120 -> 3.0178505e-06 | D115: ='DF raw data'!C120 -> 2.1548969e-06 | F115: 4.501708941e-07 | G115: 3.029027196e-06 | H115: 2.157758603e-06 | J115: -4.621942964e-05 | K115: -0.002279306155 | L115: 1.133312881e-05 | M115: 0.0002236215559 | N115: 1.344998658e-07
A116: 55.0973 | B116: ='DF raw data'!A121 -> -1.3293687e-06 | C116: ='DF raw data'!B121 -> 8.1129001e-06 | D116: ='DF raw data'!C121 -> 1.8004851e-06 | F116: -1.331134102e-06 | G116: 8.142946459e-06 | H116: 1.802876144e-06 | J116: -4.688516974e-05 | K116: -0.002302754835 | L116: 1.540566063e-05 | M116: 0.000231326389 | N116: 1.357179592e-07
A117: 55.59743 | B117: ='DF raw data'!A122 -> -1.9471411e-06 | C117: ='DF raw data'!B122 -> 1.1798911e-06 | D117: ='DF raw data'!C122 -> 1.2747098e-06 | F117: -1.949726903e-06 | G117: 1.184260861e-06 | H117: 1.276402615e-06 | J117: -4.786028666e-05 | K117: -0.0023266912 | L117: 1.599794501e-05 | M117: 0.0002393274412 | N117: 1.369915609e-07
A118: 56.09756 | B118: ='DF raw data'!A123 -> 1.2627057e-06 | C118: ='DF raw data'!B123 -> 6.6739739e-07 | D118: ='DF raw data'!C123 -> -5.6345252e-06 | F118: 1.264382573e-06 | G118: 6.698691155e-07 | H118: -5.642007849e-06 | J118: -4.7227931e-05 | K118: -0.002350311305 | L118: 1.633296665e-05 | M118: 0.0002474960478 | N118: 1.382405072e-07
A119: 56.59769 | B119: ='DF raw data'!A124 -> 3.6789786e-06 | C119: ='DF raw data'!B124 -> 2.1413673e-06 | D119: ='DF raw data'!C124 -> -6.7715391e-06 | F119: 3.683864284e-06 | G119: 2.149297916e-06 | H119: -6.780531704e-06 | J119: -4.538551996e-05 | K119: -0.002373009966 | L119: 1.740789502e-05 | M119: 0.0002562022584 | N119: 1.394222545e-07
A120: 57.09782 | B120: ='DF raw data'!A125 -> -1.6700582e-06 | C120: ='DF raw data'!B125 -> 4.272466e-06 | D120: ='DF raw data'!C125 -> -9.5751034e-07 | F120: -1.672276037e-06 | G120: 4.288289201e-06 | H120: -9.587819137e-07 | J120: -4.622187537e-05 | K120: -0.002396126912 | L120: 1.95525971e-05 | M120: 0.0002659810988 | N120: 1.406819648e-07
A121: 57.59795 | B121: ='DF raw data'!A126 -> -6.20736e-06 | C121: ='DF raw data'!B126 -> -1.2161892e-05 | D121: ='DF raw data'!C126 -> 2.664767e-06 | F121: -6.215603374e-06 | G121: -1.220693392e-05 | H121: 2.668305811e-06 | J121: -4.933048509e-05 | K121: -0.002420798568 | L121: 1.344754324e-05 | M121: 0.0002727066186 | N121: 1.419894713e-07
A122: 58.09808 | B122: ='DF raw data'!A127 -> -1.6784692e-06 | C122: ='DF raw data'!B127 -> -9.1986085e-06 | D122: ='DF raw data'!C127 -> -2.3985353e-07 | F122: -1.680698207e-06 | G122: -9.232675812e-06 | H122: -2.401720555e-07 | J122: -5.017105268e-05 | K122: -0.002445890616 | L122: 8.830005083e-06 | M122: 0.000277122769 | N122: 1.432873604e-07
A123: 58.59821 | B123: ='DF raw data'!A128 -> 2.6553678e-06 | C123: ='DF raw data'!B128 -> 7.2193388e-06 | D123: ='DF raw data'!C128 -> -4.0976684e-06 | F123: 2.658894128e-06 | G123: 7.246075829e-06 | H123: -4.103110104e-06 | J123: -4.884125996e-05 | K123: -0.002470317595 | L123: 1.245398499e-05 | M123: 0.0002833513805 | N123: 1.445579759e-07
A124: 59.09834 | B124: ='DF raw data'!A129 -> 5.8993242e-06 | C124: ='DF raw data'!B129 -> -7.390136e-06 | D124: ='DF raw data'!C129 -> -2.1223401e-07 | F124: 5.907158503e-06 | G124: -7.417505582e-06 | H124: -2.125158568e-07 | J124: -4.588691278e-05 | K124: -0.002493267017 | L124: 8.744267921e-06 | M124: 0.0002877246512 | N124: 1.456492951e-07
A125: 59.59847 | B125: ='DF raw data'!A130 -> 2.5159505e-07 | C125: ='DF raw data'!B130 -> -1.424874e-06 | D125: ='DF raw data'!C130 -> 2.6623659e-06 | F125: 2.519291682e-07 | G125: -1.430151062e-06 | H125: 2.665901522e-06 | J125: -4.576091544e-05 | K125: -0.002516153424 | L125: 8.02900647e-06 | M125: 0.0002917401982 | N125: 1.467288388e-07
A126: 60.0986 | B126: ='DF raw data'!A131 -> -3.6948406e-06 | C126: ='DF raw data'!B131 -> 8.8969182e-06 | D126: ='DF raw data'!C131 -> 1.0618735e-06 | F126: -3.699747348e-06 | G126: 8.929868193e-06 | H126: 1.063283668e-06 | J126: -4.761127009e-05 | K126: -0.002539965248 | L126: 1.249510145e-05 | M126: 0.0002979893733 | N126: 1.479406341e-07
A127: 60.59873 | B127: ='DF raw data'!A132 -> 5.8491132e-08 | C127: ='DF raw data'!B132 -> 8.2389888e-06 | D127: ='DF raw data'!C132 -> -2.113951e-06 | F127: 5.856880822e-08 | G127: 8.269502133e-06 | H127: -2.116758327e-06 | J127: -4.758197807e-05 | K127: -0.002563762423 | L127: 1.663092755e-05 | M127: 0.0003063069991 | N127: 1.492112806e-07
A128: 61.09886 | B128: ='DF raw data'!A133 -> 5.9964436e-06 | C128: ='DF raw data'!B133 -> 6.9072526e-06 | D128: ='DF raw data'!C133 -> -1.4341801e-07 | F128: 6.004406877e-06 | G128: 6.932833809e-06 | H128: -1.436084691e-07 | J128: -4.457899406e-05 | K128: -0.002586057715 | L128: 2.009824572e-05 | M128: 0.0003163587347 | N128: 1.504072045e-07
A129: 61.59899 | B129: ='DF raw data'!A134 -> 7.3509941e-06 | C129: ='DF raw data'!B134 -> -1.3733711e-06 | D129: ='DF raw data'!C134 -> 5.2867308e-06 | F129: 7.36075622e-06 | G129: -1.378457419e-06 | H129: 5.293751579e-06 | J129: -4.089765905e-05 | K129: -0.002606511862 | L129: 1.940883782e-05 | M129: 0.0003260656768 | N129: 1.514321317e-07
A130: 62.09912 | B130: ='DF raw data'!A135 -> 3.59807e-06 | C130: ='DF raw data'!B135 -> -1.4847828e-06 | D130: ='DF raw data'!C135 -> 1.1491158e-05 | F130: 3.602848237e-06 | G130: -1.490281736e-06 | H130: 1.150641826e-05 | J130: -3.909576656e-05 | K130: -0.002626064827 | L130: 1.866350321e-05 | M130: 0.0003353998547 | N130: 1.523707783e-07
A131: 62.59925 | B131: ='DF raw data'!A136 -> 1.1947628e-06 | C131: ='DF raw data'!B136 -> 7.4385116e-07 | D131: ='DF raw data'!C136 -> 1.0619906e-05 | F131: 1.196349445e-06 | G131: 7.466060342e-07 | H131: 1.063400924e-05 | J131: -3.849743631e-05 | K131: -0.00264531855 | L131: 1.903690329e-05 | M131: 0.0003449207811 | N131: 1.532932463e-07
A132: 63.09938 | B132: ='DF raw data'!A137 -> -1.1773158e-06 | C132: ='DF raw data'!B137 -> -5.3955332e-06 | D132: ='DF raw data'!C137 -> 3.0353315e-06 | F132: -1.178879275e-06 | G132: -5.415515713e-06 | H132: 3.03936242e-06 | J132: -3.90870292e-05 | K132: -0.002664867146 | L132: 1.632844141e-05 | M132: 0.0003530871245 | N132: 1.541906865e-07
A133: 63.59951 | B133: ='DF raw data'!A138 -> -4.8317092e-06 | C133: ='DF raw data'!B138 -> -1.8074097e-06 | D133: ='DF raw data'!C138 -> 3.7078628e-06 | F133: -4.83812571e-06 | G133: -1.814103494e-06 | H133: 3.712786842e-06 | J133: -4.150672101e-05 | K133: -0.002685625902 | L133: 1.542115383e-05 | M133: 0.0003607997062 | N133: 1.551712513e-07
A134: 64.09964 | B134: ='DF raw data'!A139 -> -5.7569928e-06 | C134: ='DF raw data'!B139 -> -2.7659985e-07 | D134: ='DF raw data'!C139 -> 5.4072498e-06 | F134: -5.764638086e-06 | G134: -2.776242455e-07 | H134: 5.414430628e-06 | J134: -4.438978946e-05 | K134: -0.002707826568 | L134: 1.528230562e-05 | M134: 0.0003684428457 | N134: 1.562735389e-07
A135: 64.59977 | B135: ='DF raw data'!A140 -> -6.2777767e-06 | C135: ='DF raw data'!B140 -> 2.9511368e-06 | D135: ='DF raw data'!C140 -> -2.2524562e-06 | F135: -6.286113587e-06 | G135: =(1-$G$1*($B$2-$G$2))*C135*$M$2/$M$1 -> 2.96206642e-06 | H135: -2.255447462e-06 | J135: -4.753366345e-05 | K135: -0.002731599579 | L135: 1.67637239e-05 | M135: 0.0003768268869 | N135: 1.57544105e-07
A136: =A135+$B$1 -> 65.0999 | B136: ='DF raw data'!A141 -> -3.0635931e-06 | C136: ='DF raw data'!B141 -> 9.625297e-06 | D136: ='DF raw data'!C141 -> -9.0153426e-06 | F136: -3.067661552e-06 | G136: 9.660944565e-06 | H136: -9.027314975e-06 | J136: =F136*$B$1+J135 -> -4.906789302e-05 | K136: =J136*$B$1+K135 -> -0.002756139904 | L136: =G136*$B$1+L135 -> 2.15954521e-05 | M136: =L136*$B$1+M135 -> 0.0003876274204 | N136: =(J136^2+L136^2)*$B$1+N135 -> 1.589814895e-07
A137: 65.60003 | B137: ='DF raw data'!A142 -> 4.344874e-06 | C137: ='DF raw data'!B142 -> 3.3619592e-06 | D137: ='DF raw data'!C142 -> -4.0132672e-06 | F137: 4.350643993e-06 | G137: 3.374410313e-06 | H137: -4.018596819e-06 | J137: -4.689200544e-05 | K137: -0.002779592003 | L137: 2.328309593e-05 | M137: 0.0003992719951 | N137: 1.603523272e-07
A138: 66.10016 | B138: ='DF raw data'!A143 -> 7.794275e-06 | C138: ='DF raw data'!B143 -> -1.4801128e-06 | D138: ='DF raw data'!C143 -> -2.3431e-06 | F138: 7.804625797e-06 | G138: -1.48559444e-06 | H138: -2.346211637e-06 | J138: -4.298867794e-05 | K138: -0.00280109193 | L138: 2.254010559e-05 | M138: 0.0004105449782 | N138: 1.615306748e-07
A139: 66.60029 | B139: ='DF raw data'!A144 -> 8.2944389e-06 | C139: ='DF raw data'!B144 -> -3.4636414e-06 | D139: ='DF raw data'!C144 -> -4.2121337e-06 | F139: =(1-$G$1*($B$2-$G$2))*B139 -> 8.305453915e-06 | G139: -3.476469096e-06 | H139: =(1-$G$1*($B$2-$G$2))*D139 -> -4.217727414e-06 | J139: -3.883487127e-05 | K139: -0.002820514415 | L139: 2.08014191e-05 | M139: 0.0004209483919 | N139: 1.625013503e-07
A140: 67.10042 | B140: ='DF raw data'!A145 -> 1.2085402e-05 | C140: ='DF raw data'!B145 -> 6.4262476e-06 | D140: ='DF raw data'!C145 -> -1.4377672e-06 | F140: 1.210145141e-05 | G140: 6.450047393e-06 | H140: -1.439676555e-06 | J140: -3.278257238e-05 | K140: -0.002836909962 | L140: 2.40272813e-05 | M140: 0.0004329651561 | N140: 1.633275687e-07
A141: 67.60055 | B141: ='DF raw data'!A146 -> 1.2099285e-05 | C141: ='DF raw data'!B146 -> 1.4408747e-06 | D141: ='DF raw data'!C146 -> -2.873008e-06 | F141: 1.211535285e-05 | G141: 1.446211021e-06 | H141: -2.876823355e-06 | J141: -2.672332096e-05 | K141: -0.002850275097 | L141: 2.475057482e-05 | M141: 0.0004453436611 | N141: 1.639911046e-07
A142: 68.10068 | B142: ='DF raw data'!A147 -> 5.7038192e-06 | C142: ='DF raw data'!B147 -> -7.4192235e-06 | D142: ='DF raw data'!C147 -> -6.0314578e-06 | F142: 5.711393872e-06 | G142: -7.446700808e-06 | H142: -6.039467576e-06 | J142: -2.386688154e-05 | K142: -0.00286221164 | L142: 2.102625634e-05 | M142: 0.0004558595226 | N142: 1.644971019e-07
A143: 68.60081 | B143: ='DF raw data'!A148 -> -2.4414114e-06 | C143: ='DF raw data'!B148 -> 2.944332e-06 | D143: ='DF raw data'!C148 -> -3.9496463e-06 | F143: -2.444653594e-06 | G143: 2.955236418e-06 | H143: -3.95489143e-06 | J143: -2.508952614e-05 | K143: -0.002874759665 | L143: 2.250425873e-05 | M143: 0.0004671145776 | N143: 1.650652125e-07
A144: 69.10094 | B144: ='DF raw data'!A149 -> -4.9784944e-06 | C144: ='DF raw data'!B149 -> 1.4986487e-06 | D144: ='DF raw data'!C149 -> -1.3485785e-06 | F144: -4.985105841e-06 | G144: 1.504198989e-06 | H144: -1.350369412e-06 | J144: -2.758272713e-05 | K144: -0.002888554614 | L144: 2.325655377e-05 | M144: 0.0004787458778 | N144: 1.657162188e-07
A145: 69.60107 | B145: ='DF raw data'!A150 -> -3.2060273e-06 | C145: ='DF raw data'!B150 -> -4.5353281e-06 | D145: ='DF raw data'!C150 -> -1.041635e-06 | F145: -3.210284904e-06 | G145: -4.552124818e-06 | H145: -1.043018291e-06 | J145: -2.918828692e-05 | K145: -0.002903152552 | L145: 2.097989959e-05 | M145: 0.000489238555 | N145: 1.663624429e-07
A146: 70.1012 | B146: ='DF raw data'!A151 -> -1.868037e-06 | C146: ='DF raw data'!B151 -> -4.2630036e-06 | D146: ='DF raw data'!C151 -> 3.0774959e-07 | F146: -1.870517753e-06 | G146: -4.278791757e-06 | H146: 3.081582815e-07 | J146: -3.012378896e-05 | K146: -0.002918218363 | L146: 1.883994747e-05 | M146: 0.0004986609779 | N146: 1.669938002e-07
A147: 70.60133 | B147: ='DF raw data'!A152 -> -4.485883e-06 | C147: ='DF raw data'!B152 -> 1.0714863e-05 | D147: ='DF raw data'!C152 -> -1.7918298e-06 | F147: -4.491840253e-06 | G147: 1.07545458e-05 | H147: -1.79420935e-06 | J147: -3.237029303e-05 | K147: -0.002934407718 | L147: 2.421861846e-05 | M147: 0.0005107734356 | N147: 1.678112013e-07
A148: 71.10146 | B148: ='DF raw data'!A153 -> -3.3080216e-06 | C148: ='DF raw data'!B153 -> 2.2366344e-06 | D148: ='DF raw data'!C153 -> -5.634729e-06 | F148: -3.312414653e-06 | G148: 2.24491784e-06 | H148: -5.64221192e-06 | J148: -3.402693097e-05 | K148: -0.002951425607 | L148: 2.534136922e-05 | M148: 0.0005234474145 | N148: 1.687114438e-07
A149: 71.60159 | B149: ='DF raw data'!A154 -> 2.0320656e-06 | C149: ='DF raw data'!B154 -> 5.649253e-07 | D149: ='DF raw data'!C154 -> -5.8146925e-06 | F149: 2.034764183e-06 | G149: 5.670175171e-07 | H149: -5.822414412e-06 | J149: -3.300928435e-05 | K149: -0.00296793454 | L149: 2.562495169e-05 | M149: 0.0005362632216 | N149: 1.695847963e-07
A150: 72.10172 | B150: ='DF raw data'!A155 -> 3.4709153e-06 | C150: ='DF raw data'!B155 -> 3.7979992e-06 | D150: ='DF raw data'!C155 -> -4.6416772e-06 | F150: 3.475524676e-06 | G150: 3.8120652e-06 | H150: -4.647841347e-06 | J150: -3.12710702e-05 | K150: -0.00298357414 | L150: 2.753147986e-05 | M150: 0.0005500325407 | N150: 1.704529531e-07
A151: 72.60185 | B151: ='DF raw data'!A156 -> 8.8984206e-07 | C151: ='DF raw data'!B156 -> -4.0507207e-06 | D151: ='DF raw data'!C156 -> -3.1248435e-06 | F151: 8.910237703e-07 | G151: -4.065722661e-06 | H151: -3.128993292e-06 | J151: -3.082544248e-05 | K151: -0.002998990869 | L151: 2.549808998e-05 | M151: 0.0005627849004 | N151: 1.712533414e-07
A152: 73.10198 | B152: ='DF raw data'!A157 -> -2.0467926e-06 | C152: ='DF raw data'!B157 -> -5.1204065e-06 | D152: ='DF raw data'!C157 -> 4.7074559e-07 | F152: -2.049510741e-06 | G152: -5.139370073e-06 | H152: 4.713707401e-07 | J152: -3.185046429e-05 | K152: -0.003014920242 | L152: 2.292773683e-05 | M152: 0.0005742517494 | N152: 1.720236082e-07
A153: 73.60211 | B153: ='DF raw data'!A158 -> -1.6693888e-06 | C153: ='DF raw data'!B158 -> -1.4942561e-06 | D153: ='DF raw data'!C158 -> -2.4622948e-06 | F153: -1.671605748e-06 | G153: -1.499790121e-06 | H153: -2.465564727e-06 | J153: -3.268648447e-05 | K153: -0.003031267733 | L153: 2.217764679e-05 | M153: 0.0005853434559 | N153: 1.728039382e-07
A154: 74.10224 | B154: ='DF raw data'!A159 -> 3.6188937e-06 | C154: ='DF raw data'!B159 -> 4.4531266e-06 | D154: ='DF raw data'!C159 -> -2.7969306e-06 | F154: 3.623699591e-06 | G154: 4.469618883e-06 | H154: -2.800644924e-06 | J154: -3.087416359e-05 | K154: -0.003046708829 | L154: 2.441303729e-05 | M154: 0.0005975531482 | N154: 1.735787448e-07
A155: 74.60237 | B155: ='DF raw data'!A160 -> 5.472793e-06 | C155: ='DF raw data'!B160 -> 6.531388e-06 | D155: ='DF raw data'!C160 -> 2.9133428e-06 | F155: 5.480060869e-06 | G155: 6.555577184e-06 | H155: 2.917211719e-06 | J155: -2.813342075e-05 | K155: -0.003060779196 | L155: 2.76916781e-05 | M155: 0.0006114025872 | N155: 1.743581066e-07
A156: 75.1025 | B156: ='DF raw data'!A161 -> 2.5075931e-06 | C156: ='DF raw data'!B161 -> 3.4944524e-06 | D156: ='DF raw data'!C161 -> 1.0153561e-05 | F156: 2.510923184e-06 | G156: 3.507394205e-06 | H156: 1.016704493e-05 | J156: -2.687763274e-05 | K156: -0.003074221507 | L156: 2.944583117e-05 | M156: 0.0006261293308 | N156: 1.751530452e-07
A157: 75.60263 | B157: ='DF raw data'!A162 -> 9.9250576e-07 | C157: ='DF raw data'!B162 -> -4.641136e-06 | D157: ='DF raw data'!C162 -> 1.1045913e-05 | F157: 9.938238076e-07 | G157: -4.658324581e-06 | H157: 1.106058197e-05 | J157: -2.638059164e-05 | K157: -0.003087415232 | L157: 2.711606329e-05 | M157: 0.0006396908875 | N157: 1.758688396e-07
A158: 76.10276 | B158: ='DF raw data'!A163 -> 3.6102208e-06 | C158: ='DF raw data'!B163 -> -3.8469775e-06 | D158: ='DF raw data'!C163 -> 4.4211247e-06 | F158: 3.615015173e-06 | G158: -3.861224892e-06 | H158: 4.426995954e-06 | J158: -2.45726141e-05 | K158: -0.003099704733 | L158: 2.518494889e-05 | M158: 0.000652286636 | N158: 1.76488048e-07
A159: 76.60289 | B159: ='DF raw data'!A164 -> 3.1126763e-06 | C159: ='DF raw data'!B164 -> 6.297757e-06 | D159: ='DF raw data'!C164 -> 2.6097259e-08 | F159: 3.116809934e-06 | G159: 6.321080925e-06 | H159: 2.613191616e-08 | J159: -2.301380395e-05 | K159: -0.003111214627 | L159: 2.834631109e-05 | M159: 0.0006664634766 | N159: 1.771547956e-07
A160: 77.10302 | B160: ='DF raw data'!A165 -> -5.7009339e-07 | C160: ='DF raw data'!B165 -> 8.7289336e-06 | D160: ='DF raw data'!C165 -> -1.7294749e-06 | F160: -5.70850474e-07 | G160: 8.761261457e-06 | H160: -1.731771643e-06 | J160: -2.32993034e-05 | K160: -0.003122867308 | L160: 3.272808078e-05 | M160: 0.0006828317716 | N160: 1.779619978e-07
A161: 77.60315 | B161: ='DF raw data'!A166 -> -1.8450158e-06 | C161: ='DF raw data'!B166 -> 2.3642761e-07 | D161: ='DF raw data'!C166 -> -4.2921401e-06 | F161: -1.847465981e-06 | G161: 2.373032265e-07 | H161: -4.297840062e-06 | J161: -2.422327656e-05 | K161: -0.003134982095 | L161: 3.284676325e-05 | M161: 0.0006992594233 | N161: 1.787950528e-07
A162: 78.10328 | B162: ='DF raw data'!A167 -> -4.5536367e-06 | C162: ='DF raw data'!B167 -> 7.7706591e-06 | D162: ='DF raw data'!C167 -> -5.6029767e-06 | F162: -4.55968393e-06 | G162: 7.79943796e-06 | H162: -5.610417453e-06 | J162: -2.650371128e-05 | K162: -0.003148237396 | L162: 3.674749615e-05 | M162: 0.0007176379485 | N162: 1.798217323e-07
A163: 78.60341 | B163: ='DF raw data'!A168 -> -2.0358495e-06 | C163: ='DF raw data'!B168 -> 1.1419492e-05 | D163: ='DF raw data'!C168 -> -3.9911774e-06 | F163: -2.038553108e-06 | G163: 1.146178442e-05 | H163: -3.996477684e-06 | J163: -2.752325285e-05 | K163: -0.003162002601 | L163: 4.24798784e-05 | M163: 0.0007388834101 | N163: 1.811031001e-07
A164: 79.10354 | B164: ='DF raw data'!A169 -> 5.9419758e-06 | C164: ='DF raw data'!B169 -> 8.8069883e-06 | D164: ='DF raw data'!C169 -> -6.9094331e-06 | F164: 5.949866744e-06 | G164: 8.839605235e-06 | H164: -6.918608827e-06 | J164: -2.454754599e-05 | K164: -0.003174279565 | L164: 4.690083016e-05 | M164: 0.0007623399223 | N164: 1.825045994e-07
A165: 79.60367 | B165: ='DF raw data'!A170 -> 1.1264718e-05 | C165: ='DF raw data'!B170 -> 1.7485625e-05 | D165: ='DF raw data'!C170 -> -7.2233761e-06 | F165: 1.127967755e-05 | G165: 1.755038352e-05 | H165: -7.232968743e-06 | J165: -1.890624086e-05 | K165: -0.003183735143 | L165: 5.567830347e-05 | M165: 0.0007901863122 | N165: 1.842338085e-07
A166: 80.1038 | B166: ='DF raw data'!A171 -> 9.3936032e-06 | C166: ='DF raw data'!B171 -> 2.1605989e-05 | D166: ='DF raw data'!C171 -> -3.4002385e-06 | F166: 9.406077905e-06 | G166: 2.16860074e-05 | H166: -3.404754017e-06 | J166: -1.420197912e-05 | K166: -0.003190837979 | L166: 6.652412635e-05 | M166: 0.0008234570235 | N166: 1.865479879e-07
A167: 80.60393 | B167: ='DF raw data'!A172 -> 3.7239004e-06 | C167: ='DF raw data'!B172 -> 9.9912877e-06 | D167: ='DF raw data'!C172 -> 1.5944445e-06 | F167: 3.72884574e-06 | G167: 1.002829072e-05 | H167: 1.596561922e-06 | J167: -1.23370715e-05 | K167: -0.003197008119 | L167: 7.153957539e-05 | M167: 0.0008592361114 | N167: 1.891837301e-07
A168: 81.10406 | B168: ='DF raw data'!A173 -> -8.8034022e-07 | C168: ='DF raw data'!B173 -> -6.7986534e-06 | D168: ='DF raw data'!C173 -> -1.087619e-06 | F168: -8.815093118e-07 | G168: -6.823832409e-06 | H168: -1.089063358e-06 | J168: -1.277794075e-05 | K168: -0.00320339875 | L168: 6.812677209e-05 | M168: 0.0008933083539 | N168: 1.915866211e-07
A169: 81.60419 | B169: ='DF raw data'!A174 -> 2.0203222e-06 | C169: ='DF raw data'!B174 -> -5.475834e-09 | D169: ='DF raw data'!C174 -> -7.7127424e-06 | F169: 2.023005188e-06 | G169: -5.496113909e-09 | H169: -7.722984922e-06 | J169: -1.176617517e-05 | K169: -0.003209283367 | L169: 6.812402332e-05 | M169: 0.0009273792217 | N169: 1.939769051e-07
A170: 82.10432 | B170: ='DF raw data'!A175 -> 6.5657582e-06 | C170: ='DF raw data'!B175 -> 9.4942716e-06 | D170: ='DF raw data'!C175 -> -6.1649716e-06 | F170: 6.574477527e-06 | G170: 9.529433909e-06 | H170: -6.173158682e-06 | J170: -8.47808172e-06 | K170: -0.00321352351 | L170: 7.28899791e-05 | M170: 0.0009638336869 | N170: 1.966700186e-07
A171: 82.60445 | B171: ='DF raw data'!A176 -> 1.7736089e-06 | C171: ='DF raw data'!B176 -> -1.0127655e-07 | D171: ='DF raw data'!C176 -> 4.4910689e-07 | F171: 1.775964253e-06 | G171: -1.016516306e-07 | H171: 4.497033039e-07 | J171: -7.589868718e-06 | K171: -0.003217319431 | L171: 7.283914007e-05 | M171: 0.001000262726 | N171: 1.99352289e-07
A172: 83.10458 | B172: ='DF raw data'!A177 -> -5.7801594e-06 | C172: ='DF raw data'!B177 -> -2.0254777e-07 | D172: ='DF raw data'!C177 -> 2.8926499e-06 | F172: -5.787835452e-06 | G172: -2.032979115e-07 | H172: 2.896491339e-06 | J172: -1.048453886e-05 | K172: -0.003222563064 | L172: 7.273746468e-05 | M172: 0.001036640914 | N172: 2.020533233e-07
A173: 83.60471 | B173: ='DF raw data'!A178 -> -5.346425e-06 | C173: ='DF raw data'!B178 -> 6.5409949e-06 | D173: ='DF raw data'!C178 -> 3.4103634e-06 | F173: -5.353525052e-06 | G173: 6.565219663e-06 | H173: 3.414892363e-06 | J173: -1.316199735e-05 | K173: -0.003229145773 | L173: 7.602092799e-05 | M173: 0.001074661261 | N173: 2.050303069e-07
A174: 84.10484 | B174: ='DF raw data'!A179 -> -2.0035443e-06 | C174: ='DF raw data'!B179 -> 2.7819513e-06 | D174: ='DF raw data'!C179 -> -4.4676722e-07 | F174: -2.006205007e-06 | G174: 2.792254337e-06 | H174: -4.473605269e-07 | J174: -1.416536066e-05 | K174: -0.003236230295 | L174: 7.741741815e-05 | M174: 0.001113380034 | N174: 2.081281692e-07
A175: 84.60497 | B175: ='DF raw data'!A180 -> -4.9754967e-06 | C175: ='DF raw data'!B180 -> 2.5883485e-06 | D175: ='DF raw data'!C180 -> -2.8663433e-06 | F175: -4.98210416e-06 | G175: 2.597934523e-06 | H175: -2.870149804e-06 | J175: -1.665706041e-05 | K175: -0.003244560991 | L175: 7.871672315e-05 | M175: 0.001152748629 | N175: 2.113659009e-07
A176: 85.1051 | B176: ='DF raw data'!A181 -> -8.1713297e-06 | C176: ='DF raw data'!B181 -> 7.9203646e-06 | D176: ='DF raw data'!C181 -> -2.7586952e-07 | F176: -8.182181226e-06 | G176: 7.949697899e-06 | H176: -2.762358747e-07 | J176: -2.074921471e-05 | K176: -0.003254938296 | L176: 8.269260556e-05 | M176: 0.001194105682 | N176: 2.150011443e-07
A177: 85.60523 | B177: ='DF raw data'!A182 -> -4.1730314e-06 | C177: ='DF raw data'!B182 -> 1.428466e-06 | D177: ='DF raw data'!C182 -> 2.5869508e-07 | F177: -4.178573186e-06 | G177: 1.433756365e-06 | H177: 2.590386271e-07 | J177: -2.283904451e-05 | K177: -0.003266360787 | L177: 8.340967013e-05 | M177: 0.00123582136 | N177: 2.18741514e-07
A178: 86.10536 | B178: ='DF raw data'!A183 -> 4.7713324e-06 | C178: ='DF raw data'!B183 -> 1.1254529e-06 | D178: ='DF raw data'!C183 -> 3.9833526e-07 | F178: 4.777668729e-06 | G178: 1.129621047e-06 | H178: 3.988642492e-07 | J178: -2.044958905e-05 | K178: -0.00327658824 | L178: 8.39746275e-05 | M178: 0.001277819591 | N178: 2.22477447e-07
A179: 86.60549 | B179: ='DF raw data'!A184 -> 5.2046012e-06 | C179: ='DF raw data'!B184 -> 1.0077349e-05 | D179: ='DF raw data'!C184 -> 1.3417359e-06 | F179: 5.21151291e-06 | G179: 1.011467075e-05 | H179: 1.343517725e-06 | J179: -1.78431551e-05 | K179: -0.003285512137 | L179: 8.903327779e-05 | M179: 0.001322347804 | N179: 2.266011702e-07
A180: 87.10562 | B180: ='DF raw data'!A185 -> -2.3822724e-06 | C180: ='DF raw data'!B185 -> 4.8343281e-06 | D180: ='DF raw data'!C185 -> 6.0394577e-06 | F180: -2.385436058e-06 | G180: 4.852232174e-06 | H180: 6.0474781e-06 | J180: -1.903618324e-05 | K180: -0.003295032703 | L180: 9.146002466e-05 | M180: 0.001368089706 | N180: 2.30965961e-07
A181: 87.60575 | B181: ='DF raw data'!A186 -> -4.579932e-06 | C181: ='DF raw data'!B186 -> 1.0627421e-06 | D181: ='DF raw data'!C186 -> 6.9869184e-06 | F181: -4.58601415e-06 | G181: 1.066677996e-06 | H181: 6.996197028e-06 | J181: -2.132978649e-05 | K181: -0.00330570037 | L181: 9.199350233e-05 | M181: 0.001414098416 | N181: 2.354260024e-07
A182: 88.10588 | B182: ='DF raw data'!A187 -> 4.9769704e-07 | C182: ='DF raw data'!B187 -> -1.0587499e-06 | D182: ='DF raw data'!C187 -> 1.5965691e-06 | F182: 4.983579817e-07 | G182: -1.062671011e-06 | H182: 1.598689344e-06 | J182: -2.108054272e-05 | K182: -0.003316243381 | L182: 9.146202868e-05 | M182: 0.001459841321 | N182: 2.398319937e-07
A183: 88.60601 | B183: ='DF raw data'!A188 -> 4.5444875e-07 | C183: ='DF raw data'!B188 -> 4.4375156e-06 | D183: ='DF raw data'!C188 -> -2.3850241e-06 | F183: 4.550522579e-07 | G183: 4.453950067e-06 | H183: -2.388191412e-06 | J183: -2.085295743e-05 | K183: -0.003326672571 | L183: 9.368958272e-05 | M183: 0.001506698292 | N183: 2.444394832e-07
A184: 89.10614 | B184: ='DF raw data'!A189 -> -5.4735069e-06 | C184: ='DF raw data'!B189 -> 7.4132086e-06 | D184: ='DF raw data'!C189 -> -1.8540538e-06 | F184: -5.480775717e-06 | G184: 7.440663632e-06 | H184: -1.856515983e-06 | J184: -2.359405779e-05 | K184: -0.003338472667 | L184: 9.741088183e-05 | M184: 0.001555416396 | N184: 2.494635688e-07
A185: 89.60627 | B185: ='DF raw data'!A190 -> -5.0502499e-06 | C185: ='DF raw data'!B190 -> 9.4771931e-06 | D185: ='DF raw data'!C190 -> -5.5279247e-07 | F185: -5.056956632e-06 | G185: 9.512292158e-06 | H185: -5.535265784e-07 | J185: -2.612319351e-05 | K185: -0.00335153766 | L185: 0.0001021682645 | M185: 0.00160651381 | N185: 2.550254023e-07
A186: 90.1064 | B186: ='DF raw data'!A191 -> -1.8365321e-06 | C186: ='DF raw data'!B191 -> 8.1578655e-06 | D186: ='DF raw data'!C191 -> -4.1852761e-09 | F186: -1.838971015e-06 | G186: 8.18807839e-06 | H186: -4.190834147e-09 | J186: -2.704291808e-05 | K186: -0.003365062634 | L186: 0.0001062633681 | M186: 0.001659659309 | N186: 2.610385767e-07
A187: 90.60653 | B187: ='DF raw data'!A192 -> -4.3052597e-07 | C187: ='DF raw data'!B192 -> 1.0312847e-05 | D187: ='DF raw data'!C192 -> -5.9491958e-06 | F187: -4.310977085e-07 | G187: 1.035104093e-05 | H187: -5.957096332e-06 | J187: -2.725852298e-05 | K187: -0.00337869544 | L187: 0.0001114402342 | M187: 0.001715393913 | N187: 2.676212642e-07
A188: 91.10666 | B188: ='DF raw data'!A193 -> 6.611005e-07 | C188: ='DF raw data'!B193 -> 1.1032954e-05 | D188: ='DF raw data'!C193 -> -1.1367965e-05 | F188: 6.619784415e-07 | G188: 1.107381486e-05 | H188: -1.138306166e-05 | J188: -2.69274477e-05 | K188: -0.003392162664 | L188: 0.0001169785813 | M188: 0.001773898411 | N188: 2.748276754e-07
A189: 91.60679 | B189: ='DF raw data'!A194 -> -2.5579577e-06 | C189: ='DF raw data'!B194 -> -1.4866509e-06 | D189: ='DF raw data'!C194 -> -5.9724207e-06 | F189: -2.561354668e-06 | G189: -1.492156754e-06 | H189: -5.980352075e-06 | J189: -2.820845801e-05 | K189: -0.00340627056 | L189: 0.0001162323089 | M189: 0.001832029675 | N189: 2.819823685e-07
A190: 92.10692 | B190: ='DF raw data'!A195 -> -6.6023135e-06 | C190: ='DF raw data'!B195 -> -4.6177861e-06 | D190: ='DF raw data'!C195 -> 7.1306408e-07 | F190: -6.611081372e-06 | G190: -4.634888204e-06 | H190: 7.140110291e-07 | J190: -3.151485814e-05 | K190: -0.003422032086 | L190: 0.0001139142623 | M190: 0.001889001615 | N190: 2.889690072e-07
A191: 92.60705 | B191: ='DF raw data'!A196 -> -4.7008875e-06 | C191: ='DF raw data'!B196 -> 2.6338471e-06 | D191: ='DF raw data'!C196 -> 3.0771246e-06 | F191: -4.707130279e-06 | G191: 2.643601629e-06 | H191: 3.081211021e-06 | J191: -3.386903521e-05 | K191: -0.003438971007 | L191: 0.0001152364068 | M191: 0.001946634799 | N191: 2.961841532e-07
A192: 93.10718 | B192: ='DF raw data'!A197 -> -4.3506617e-07 | C192: ='DF raw data'!B197 -> 6.3535299e-06 | D192: ='DF raw data'!C197 -> -1.4761697e-06 | F192: -4.356439379e-07 | G192: 6.377060381e-06 | H192: -1.478130053e-06 | J192: -3.408691381e-05 | K192: -0.003456018895 | L192: 0.000118425766 | M192: 0.002005863078 | N192: 3.037794173e-07
A193: 93.60731 | B193: ='DF raw data'!A198 -> 1.1232693e-06 | C193: ='DF raw data'!B198 -> 1.107952e-05 | D193: ='DF raw data'!C198 -> -5.4283391e-06 | F193: 1.124761002e-06 | G193: 1.112055332e-05 | H193: -5.435547934e-06 | J193: -3.352438709e-05 | K193: -0.003472785447 | L193: 0.0001239874883 | M193: 0.00206787294 | N193: 3.120299528e-07
A194: 94.10744 | B194: ='DF raw data'!A199 -> 2.3626123e-06 | C194: ='DF raw data'!B199 -> 5.0271301e-06 | D194: ='DF raw data'!C199 -> 2.6234977e-06 | F194: 2.365749849e-06 | G194: 5.045748221e-06 | H194: 2.626981705e-06 | J194: -3.234120462e-05 | K194: -0.003488960253 | L194: 0.0001265110184 | M194: 0.002131144896 | N194: 3.20557665e-07
A195: 94.60757 | B195: ='DF raw data'!A200 -> 7.1236495e-06 | C195: ='DF raw data'!B200 -> -6.6179928e-06 | D195: ='DF raw data'!C200 -> 4.6176629e-06 | F195: 7.133109707e-06 | G195: -6.642502727e-06 | H195: 4.623795156e-06 | J195: -2.877372246e-05 | K195: -0.003503350855 | L195: 0.0001231889035 | M195: 0.002192755362 | N195: 3.28561462e-07
A196: 95.1077 | B196: ='DF raw data'!A201 -> 6.1185342e-06 | C196: ='DF raw data'!B201 -> -1.0521539e-05 | D196: ='DF raw data'!C201 -> -5.7430825e-06 | F196: 6.126659613e-06 | G196: -1.056050582e-05 | H196: -5.750709314e-06 | J196: -2.570959619e-05 | K196: -0.003516208995 | L196: 0.0001179072777 | M196: 0.002251724329 | N196: 3.3584491e-07
A197: 95.60783 | B197: ='DF raw data'!A202 -> -7.1888672e-07 | C197: ='DF raw data'!B202 -> 4.8249881e-06 | D197: ='DF raw data'!C202 -> -8.8421748e-06 | F197: -7.198414016e-07 | G197: 4.842857583e-06 | H197: -8.853917208e-06 | J197: -2.606961047e-05 | K197: -0.00352924719 | L197: 0.0001203293361 | M197: 0.00231190464 | N197: 3.434262674e-07
A198: 96.10796 | B198: ='DF raw data'!A203 -> -7.4157316e-07 | C198: ='DF raw data'!B203 -> 4.5808165e-06 | D198: ='DF raw data'!C203 -> -1.0122874e-05 | F198: -7.425579692e-07 | G198: 4.597781686e-06 | H198: -1.013631718e-05 | J198: -2.644098598e-05 | K198: -0.00354247112 | L198: 0.0001226288246 | M198: 0.002373234994 | N198: 3.512967904e-07
A199: 96.60809 | B199: ='DF raw data'!A204 -> 2.2248348e-06 | C199: ='DF raw data'!B204 -> -8.1549406e-06 | D199: ='DF raw data'!C204 -> -8.952391e-06 | F199: 2.227789381e-06 | G199: =(1-$G$1*($B$2-$G$2))*C199*$M$2/$M$1 -> -8.185142658e-06 | H199: -8.964279775e-06 | J199: -2.532680168e-05 | K199: -0.003555137813 | L199: 0.0001185351892 | M199: 0.002432517998 | N199: 3.586447194e-07
A200: =A199+$B$1 -> 97.10822 | B200: ='DF raw data'!A205 -> 4.3359246e-06 | C200: ='DF raw data'!B205 -> 5.8293796e-07 | D200: ='DF raw data'!C205 -> -5.2539781e-06 | F200: 4.341682708e-06 | G200: 5.850968875e-07 | H200: -5.260955383e-06 | J200: =F200*$B$1+J199 -> -2.315539591e-05 | K200: =J200*$B$1+K199 -> -0.003566718522 | L200: =G200*$B$1+L199 -> 0.0001188278137 | M200: =L200*$B$1+M199 -> 0.002491947353 | N200: =(J200^2+L200^2)*$B$1+N199 -> 3.659747355e-07
A201: 97.60835 | B201: ='DF raw data'!A206 -> 5.00735e-06 | C201: ='DF raw data'!B206 -> 3.1666218e-06 | D201: ='DF raw data'!C206 -> -1.3465347e-05 | F201: 5.013999761e-06 | G201: 3.178349475e-06 | H201: -1.348322898e-05 | J201: -2.064774421e-05 | K201: -0.003577045078 | L201: 0.0001204174016 | M201: 0.002552171708 | N201: 3.73440016e-07
... 1002 more rows

Sheet 10 x=-1
A1: dz | B1: ='DF raw data'!E7 -> 0.50014 | C1: mm | F1: T_coeff | G1: -0.0008 | H1: /degC | L1: Hallref | M1: ='PI vs gap'!B44 -> 0.5054 | N1: T | P1: IBy total | Q1: =L1203*1000 -> -8.831998145 | R1: muTm | X1: DF ref | Y1: 19
A2: Tref | B2: ='DF raw data'!E8 -> 21.65 | C2: degC | F2: Tcorr | G2: 20 | H2: degC | L2: NMRref | M2: ='PI vs gap'!B45 -> 0.506599 | N2: T | P2: JBy total | Q2: =M1203 -> -5.99681686 | R2: muTm^2
A3: Encoder | B3: ='DF raw data'!E9 -> 12561948 | P3: PI total | Q3: =N1203 -> 709.0117692 | R3: T^2mm^3
A5: z [mm] | B5: Bx | C5: By | D5: Bz | F5: Bx_corr | G5: By_corr | H5: Bz_corr | J5: Ix | K5: Jx | L5: Iy | M5: Jy | N5: PI
A6: ='PI vs gap'!B53 -> 0.083 | B6: ='DF raw data'!D11 -> -2.2558459e-06 | C6: ='DF raw data'!E11 -> -8.0351565e-06 | D6: ='DF raw data'!F11 -> 2.8021466e-06 | F6: =(1-$G$1*($B$2-$G$2))*B6 -> -2.258823617e-06 | G6: =(1-$G$1*($B$2-$G$2))*C6*$M$2/$M$1 -> -8.0648505e-06 | H6: =(1-$G$1*($B$2-$G$2))*D6 -> 2.805845434e-06 | J6: =F6*$B$1 -> -1.129728044e-06 | K6: =J6*$B$1 -> -5.650221837e-07 | L6: =G6*$B$1 -> -4.033554329e-06 | M6: =L6*$B$1 -> -2.017341862e-06 | N6: =(J6^2+L6)^2*$B$1 -> 8.137052852e-12
A7: =A6+$B$1 -> 0.58314 | B7: ='DF raw data'!D12 -> -2.7174181e-06 | C7: ='DF raw data'!E12 -> 4.7262188e-06 | D7: ='DF raw data'!F12 -> 4.129427e-06 | F7: =(1-$G$1*($B$2-$G$2))*B7 -> -2.721005092e-06 | G7: =(1-$G$1*($B$2-$G$2))*C7*$M$2/$M$1 -> 4.743684588e-06 | H7: 4.134877844e-06 | J7: =F7*$B$1+J6 -> -2.49061153e-06 | K7: =J7*$B$1+K6 -> -1.810676634e-06 | L7: =G7*$B$1+L6 -> -1.661047919e-06 | M7: =L7*$B$1+M6 -> -2.848098368e-06 | N7: =(J7^2+L7^2)*$B$1+N6 -> 1.261942056e-11
A8: =A7+$B$1 -> 1.08328 | B8: ='DF raw data'!D13 -> -2.2741958e-06 | C8: ='DF raw data'!E13 -> -7.9605707e-06 | D8: ='DF raw data'!F13 -> 1.0215597e-06 | F8: -2.277197738e-06 | G8: -7.989989067e-06 | H8: 1.022908159e-06 | J8: =F8*$B$1+J7 -> -3.629529207e-06 | K8: =J8*$B$1+K7 -> -3.625949372e-06 | L8: =G8*$B$1+L7 -> -5.657161051e-06 | M8: =L8*$B$1+M7 -> -5.677470897e-06 | N8: =(J8^2+L8^2)*$B$1+N7 -> 3.521422204e-11
A9: 1.58342 | B9: ='DF raw data'!D14 -> -2.7243593e-06 | C9: ='DF raw data'!E14 -> 4.6208111e-06 | D9: ='DF raw data'!F14 -> 2.9121591e-06 | F9: -2.727955454e-06 | G9: 4.637887353e-06 | H9: 2.91600315e-06 | J9: -4.993888848e-06 | K9: -6.123592941e-06 | L9: -3.337568071e-06 | M9: -7.346722192e-06 | N9: 5.325841623e-11
A10: 2.08356 | B10: ='DF raw data'!D15 -> -2.4338594e-06 | C10: ='DF raw data'!E15 -> -2.7507733e-06 | D10: ='DF raw data'!F15 -> 6.1057517e-06 | F10: -2.437072094e-06 | G10: -2.76093881e-06 | H10: 6.113811292e-06 | J10: -6.212766085e-06 | K10: -9.230845771e-06 | L10: -4.718424007e-06 | M10: -9.706594774e-06 | N10: 8.369793068e-11
A11: 2.5837 | B11: ='DF raw data'!D16 -> -2.6143468e-06 | C11: ='DF raw data'!E16 -> 8.4588959e-07 | D11: ='DF raw data'!F16 -> -1.8251005e-06 | F11: -2.617797738e-06 | G11: 8.490155833e-07 | H11: -1.827509633e-06 | J11: -7.522031446e-06 | K11: -1.299291458e-05 | L11: -4.293797353e-06 | M11: -1.185409458e-05 | N11: 1.212172595e-10
A12: 3.08384 | B12: ='DF raw data'!D17 -> -2.9574373e-06 | C12: ='DF raw data'!E17 -> 9.4762263e-06 | D12: ='DF raw data'!F17 -> -5.8719152e-06 | F12: -2.961341117e-06 | G12: 9.511245788e-06 | H12: -5.879666128e-06 | J12: -9.003116592e-06 | K12: -1.749573331e-05 | L12: 4.631571151e-07 | M12: -1.162245118e-05 | N12: 1.618639489e-10
A13: 3.58398 | B13: ='DF raw data'!D18 -> -2.4973349e-06 | C13: ='DF raw data'!E18 -> -1.292948e-06 | D13: ='DF raw data'!F18 -> 4.9250821e-06 | F13: -2.500631382e-06 | G13: -1.297726102e-06 | H13: 4.931583208e-06 | J13: -1.025378237e-05 | K13: -2.262406003e-05 | L13: -1.858876176e-07 | M13: -1.171542102e-05 | N13: 2.144659769e-10
A14: 4.08412 | B14: ='DF raw data'!D19 -> -2.50074e-06 | C14: ='DF raw data'!E19 -> -3.9378227e-07 | D14: ='DF raw data'!F19 -> 9.4694706e-06 | F14: -2.504040977e-06 | G14: -3.952374963e-07 | H14: 9.481970301e-06 | J14: -1.150615343e-05 | K14: -2.83787476e-05 | L14: -3.83561699e-07 | M14: -1.190725556e-05 | N14: 2.807538754e-10
A15: 4.58426 | B15: ='DF raw data'!D20 -> -2.8231377e-06 | C15: ='DF raw data'!E20 -> 6.0941138e-06 | D15: ='DF raw data'!F20 -> -4.3715836e-06 | F15: -2.826864242e-06 | G15: 6.116634658e-06 | H15: -4.37735409e-06 | J15: -1.291998131e-05 | K15: -3.484054705e-05 | L15: 2.675611959e-06 | M15: -1.0569075e-05 | N15: 3.678206555e-10
A16: 5.0844 | B16: ='DF raw data'!D21 -> -2.7909052e-06 | C16: ='DF raw data'!E21 -> 4.4836479e-06 | D16: ='DF raw data'!F21 -> -8.3122568e-06 | F16: -2.794589195e-06 | G16: 4.500217265e-06 | H16: -8.323228979e-06 | J16: -1.431766715e-05 | K16: -4.20013851e-05 | L16: 4.926350622e-06 | M16: -8.105209999e-06 | N16: 4.82485014e-10
A17: 5.58454 | B17: ='DF raw data'!D22 -> -2.6664136e-06 | C17: ='DF raw data'!E22 -> 2.2866361e-06 | D17: ='DF raw data'!F22 -> -7.6662326e-07 | F17: -2.669933266e-06 | G17: 2.295086386e-06 | H17: -7.676352027e-07 | J17: -1.565300757e-05 | K17: -4.983008031e-05 | L17: 6.074215127e-06 | M17: -5.067252046e-06 | N17: 6.234808495e-10
A18: 6.08468 | B18: ='DF raw data'!D23 -> -2.4891276e-06 | C18: ='DF raw data'!E23 -> -3.4543348e-06 | D18: ='DF raw data'!F23 -> -6.1917663e-06 | F18: -2.492413248e-06 | G18: -3.467100328e-06 | H18: -6.199939432e-06 | J18: -1.689956313e-05 | K18: -5.828222781e-05 | L18: 4.340179569e-06 | M18: -2.896554636e-06 | N18: 7.757396664e-10
A19: 6.58482 | B19: ='DF raw data'!D24 -> -2.373047e-06 | C19: ='DF raw data'!E24 -> -6.2787212e-06 | D19: ='DF raw data'!F24 -> -4.4466569e-06 | F19: -2.376179422e-06 | G19: -6.301924276e-06 | H19: -4.452526487e-06 | J19: -1.808798551e-05 | K19: -6.732875288e-05 | L19: 1.188335161e-06 | M19: -2.302220689e-06 | N19: 9.400793488e-10
A20: 7.08496 | B20: ='DF raw data'!D25 -> -2.4426051e-06 | C20: ='DF raw data'!E25 -> -3.1015534e-06 | D20: ='DF raw data'!F25 -> 2.7717331e-06 | F20: -2.445829339e-06 | G20: -3.113015221e-06 | H20: 2.775391788e-06 | J20: -1.931124259e-05 | K20: -7.698707776e-05 | L20: -3.686082715e-07 | M20: -2.48657643e-06 | N20: 1.126661558e-09
A21: 7.5851 | B21: ='DF raw data'!D26 -> -2.2519023e-06 | C21: ='DF raw data'!E26 -> -9.6249414e-06 | D21: ='DF raw data'!F26 -> -5.5091941e-06 | F21: -2.254874811e-06 | G21: -9.660510466e-06 | H21: -5.516466236e-06 | J21: -2.043899568e-05 | K21: -8.720943706e-05 | L21: -5.200215976e-06 | M21: -5.087412448e-06 | N21: 1.349121225e-09
A22: 8.08524 | B22: ='DF raw data'!D27 -> -5.2164478e-06 | C22: ='DF raw data'!E27 -> 5.7884326e-06 | D22: ='DF raw data'!F27 -> 3.8430227e-07 | F22: -5.223333511e-06 | G22: 5.80982381e-06 | H22: 3.84809549e-07 | J22: -2.305139371e-05 | K22: -9.87383611e-05 | L22: -2.294490696e-06 | M22: -6.234979025e-06 | N22: 1.617512073e-09
A23: 8.58538 | B23: ='DF raw data'!D28 -> -1.0152705e-05 | C23: ='DF raw data'!E28 -> -7.5425035e-08 | D23: ='DF raw data'!F28 -> 1.8275321e-06 | F23: =(1-$G$1*($B$2-$G$2))*B23 -> -1.016610657e-05 | G23: -7.570376896e-08 | H23: 1.829944442e-06 | J23: -2.813587025e-05 | K23: -0.0001128102352 | L23: -2.332353179e-06 | M23: -7.401482143e-06 | N23: 2.016157195e-09
A24: 9.08552 | B24: ='DF raw data'!D29 -> -1.0694371e-05 | C24: ='DF raw data'!E29 -> 1.5406448e-06 | D24: ='DF raw data'!F29 -> -3.1031885e-07 | F24: -1.070848757e-05 | G24: 1.546338268e-06 | H24: -3.107284709e-07 | J24: -3.349161322e-05 | K24: -0.0001295607307 | L24: -1.558967557e-06 | M24: -8.181184178e-06 | N24: 2.57837384e-09
A25: 9.58566 | B25: ='DF raw data'!D30 -> -7.7646046e-06 | C25: ='DF raw data'!E30 -> -4.1664357e-06 | D25: ='DF raw data'!F30 -> -2.2618908e-06 | F25: -7.774853878e-06 | G25: -4.181832804e-06 | H25: -2.264876496e-06 | J25: -3.738012864e-05 | K25: -0.0001482560282 | L25: -3.650469416e-06 | M25: -1.000692995e-05 | N25: 3.283871296e-09
A26: 10.0858 | B26: ='DF raw data'!D31 -> -6.074778e-06 | C26: ='DF raw data'!E31 -> 8.736105e-06 | D26: ='DF raw data'!F31 -> 1.5481855e-07 | F26: -6.082796707e-06 | G26: 8.768389362e-06 | H26: 1.550229105e-07 | J26: -4.042237858e-05 | K26: -0.0001684728766 | L26: 7.349528395e-07 | M26: -9.639350638e-06 | N26: 4.10135455e-09
A27: 10.58594 | B27: ='DF raw data'!D32 -> -2.5337147e-06 | C27: ='DF raw data'!E32 -> 3.7020318e-06 | D27: ='DF raw data'!F32 -> -1.1025834e-06 | F27: -2.537059203e-06 | G27: 3.715712695e-06 | H27: -1.10403881e-06 | J27: -4.169126337e-05 | K27: -0.0001893243451 | L27: 2.593329387e-06 | M27: -8.342322879e-06 | N27: 4.974042234e-09
A28: 11.08608 | B28: ='DF raw data'!D33 -> 1.5824546e-06 | C28: ='DF raw data'!E33 -> -6.4969555e-07 | D28: ='DF raw data'!F33 -> -6.4262639e-07 | F28: 1.58454344e-06 | G28: -6.520965063e-07 | H28: -6.434746568e-07 | J28: -4.089876982e-05 | K28: -0.0002097794558 | L28: 2.26718984e-06 | M28: -7.208410552e-06 | N28: 5.813201894e-09
A29: 11.58622 | B29: ='DF raw data'!D34 -> 2.0346845e-06 | C29: ='DF raw data'!E34 -> 7.6113147e-06 | D29: ='DF raw data'!F34 -> 5.4161219e-06 | F29: 2.037370284e-06 | G29: 7.639442388e-06 | H29: 5.423271181e-06 | J29: -3.987979944e-05 | K29: -0.0002297249387 | L29: 6.087980556e-06 | M29: -4.163567957e-06 | N29: 6.627160694e-09
A30: 12.08636 | B30: ='DF raw data'!D35 -> 7.3313203e-07 | C30: ='DF raw data'!E35 -> 1.5040858e-06 | D30: ='DF raw data'!F35 -> 2.2429601e-06 | F30: 7.340997643e-07 | G30: 1.509644164e-06 | H30: 2.245920807e-06 | J30: -3.951264679e-05 | K30: -0.0002494867939 | L30: 6.843013988e-06 | M30: -7.411029404e-07 | N30: 7.431423873e-09
A31: 12.5865 | B31: ='DF raw data'!D36 -> -2.9200675e-07 | C31: ='DF raw data'!E36 -> -4.79341e-06 | D31: ='DF raw data'!F36 -> 9.8129453e-07 | F31: -2.923921989e-07 | G31: -4.811124094e-06 | H31: 9.825898388e-07 | J31: -3.965888382e-05 | K31: -0.0002693217881 | L31: 4.436778384e-06 | M31: 1.477907401e-06 | N31: 8.227902859e-09
A32: 13.08664 | B32: ='DF raw data'!D37 -> -2.6140849e-06 | C32: ='DF raw data'!E37 -> 3.2969627e-09 | D32: ='DF raw data'!F37 -> 1.6112324e-06 | F32: -2.617535492e-06 | G32: 3.309146658e-09 | H32: 1.613359227e-06 | J32: -4.096801802e-05 | K32: -0.0002898115326 | L32: 4.438433421e-06 | M32: 3.697745492e-06 | N32: 9.077179685e-09
A33: 13.58678 | B33: ='DF raw data'!D38 -> -1.5896155e-06 | C33: ='DF raw data'!E38 -> -8.9653582e-07 | D33: ='DF raw data'!F38 -> 8.1279295e-06 | F33: -1.591713792e-06 | G33: -8.99848977e-07 | H33: 8.138658367e-06 | J33: -4.176409776e-05 | K33: -0.0003106994284 | L33: 3.988382953e-06 | M33: 5.692495342e-06 | N33: 9.957499636e-09
A34: 14.08692 | B34: ='DF raw data'!D39 -> 1.0566066e-06 | C34: ='DF raw data'!E39 -> -4.9181644e-06 | D34: ='DF raw data'!F39 -> 5.671217e-06 | F34: 1.058001321e-06 | G34: -4.936339525e-06 | H34: 5.678703006e-06 | J34: -4.123494898e-05 | K34: -0.0003313226758 | L34: 1.519522103e-06 | M34: 6.452469127e-06 | N34: 1.080905299e-08
A35: 14.58706 | B35: ='DF raw data'!D40 -> -2.7542635e-06 | C35: ='DF raw data'!E40 -> -8.2018068e-06 | D35: ='DF raw data'!F40 -> 2.7844369e-06 | F35: -2.757899128e-06 | G35: -8.232116658e-06 | H35: 2.788112357e-06 | J35: -4.261428465e-05 | K35: -0.0003526357841 | L35: -2.597688722e-06 | M35: 5.153261089e-06 | N35: 1.172067079e-08
A36: 15.0872 | B36: ='DF raw data'!D41 -> -7.4717036e-06 | C36: ='DF raw data'!E41 -> 3.5259077e-06 | D36: ='DF raw data'!F41 -> -1.1859076e-06 | F36: -7.481566249e-06 | G36: 3.538937727e-06 | H36: -1.187472998e-06 | J36: -4.635611519e-05 | K36: -0.0003758203316 | L36: -8.277244073e-07 | M36: 4.739283004e-06 | N36: 1.2795759e-08
A37: 15.58734 | B37: ='DF raw data'!D42 -> -5.991672e-06 | C37: ='DF raw data'!E42 -> -3.5508839e-07 | D37: ='DF raw data'!F42 -> 5.0834215e-06 | F37: -5.999581007e-06 | G37: -3.564006226e-07 | H37: 5.090131616e-06 | J37: -4.935674564e-05 | K37: -0.0004005056144 | L37: -1.005974615e-06 | M37: 4.236154861e-06 | N37: 1.401465036e-08
A38: 16.08748 | B38: ='DF raw data'!D43 -> -7.2340126e-06 | C38: ='DF raw data'!E43 -> -2.4557658e-06 | D38: ='DF raw data'!F43 -> 4.5734787e-06 | F38: -7.243561497e-06 | G38: -2.464841107e-06 | H38: 4.579515692e-06 | J38: -5.297954048e-05 | K38: -0.0004270028017 | L38: -2.238740246e-06 | M38: 3.116471314e-06 | N38: 1.542096585e-08
A39: 16.58762 | B39: ='DF raw data'!D44 -> -1.1733334e-05 | C39: ='DF raw data'!E44 -> 5.6719505e-06 | D39: ='DF raw data'!F44 -> 1.527951e-11 | F39: -1.1748822e-05 | G39: 5.692911249e-06 | H39: 1.529967895e-11 | J39: -5.885559632e-05 | K39: -0.0004564388397 | L39: 6.085123863e-07 | M39: 3.420812699e-06 | N39: 1.715362661e-08
A40: 17.08776 | B40: ='DF raw data'!D45 -> -8.4243593e-06 | C40: ='DF raw data'!E45 -> -2.7591791e-06 | D40: ='DF raw data'!F45 -> 3.9205925e-06 | F40: -8.435479454e-06 | G40: -2.769375674e-06 | H40: 3.925767682e-06 | J40: -6.307451701e-05 | K40: -0.0004879849286 | L40: -7.765631631e-07 | M40: 3.032422399e-06 | N40: 1.914368254e-08
A41: 17.5879 | B41: ='DF raw data'!D46 -> 8.8252199e-07 | C41: ='DF raw data'!E46 -> -6.1207434e-06 | D41: ='DF raw data'!F46 -> -6.9527522e-07 | F41: 8.83686919e-07 | G41: -6.143362668e-06 | H41: -6.961929833e-07 | J41: -6.263254984e-05 | K41: -0.0005193099721 | L41: -3.849104568e-06 | M41: 1.10733124e-06 | N41: 2.111305977e-08
A42: 18.08804 | B42: ='DF raw data'!D47 -> 2.1684457e-06 | C42: ='DF raw data'!E47 -> -7.8150015e-06 | D42: ='DF raw data'!F47 -> -4.5434999e-06 | F42: 2.171308048e-06 | G42: -7.843881915e-06 | H42: -4.54949732e-06 | J42: -6.154659183e-05 | K42: -0.0005500918845 | L42: -7.772143669e-06 | M42: -2.779828694e-06 | N42: 2.303779313e-08
A43: 18.58818 | B43: ='DF raw data'!D48 -> -6.4946298e-06 | C43: ='DF raw data'!E48 -> 5.8812975e-06 | D43: ='DF raw data'!F48 -> 3.1200041e-06 | F43: -6.503202711e-06 | G43: 5.903031893e-06 | H43: 3.124122505e-06 | J43: -6.479910363e-05 | K43: -0.0005825005082 | L43: -4.819801298e-06 | M43: -5.190404115e-06 | N43: 2.514946139e-08
A44: 19.08832 | B44: ='DF raw data'!D49 -> -9.2478522e-06 | C44: ='DF raw data'!E49 -> 7.073736e-06 | D44: ='DF raw data'!F49 -> 4.9835226e-06 | F44: -9.260059365e-06 | G44: 7.099877061e-06 | H44: 4.99010085e-06 | J44: -6.943042972e-05 | K44: -0.0006172254433 | L44: -1.268868784e-06 | M44: -5.825016149e-06 | N44: 2.75612338e-08
A45: 19.58846 | B45: ='DF raw data'!D50 -> -1.8885846e-06 | C45: ='DF raw data'!E50 -> 2.6592984e-06 | D45: ='DF raw data'!F50 -> 4.1422763e-06 | F45: -1.891077532e-06 | G45: 2.669125863e-06 | H45: 4.147744105e-06 | J45: -7.037623324e-05 | K45: -0.0006524234126 | L45: 6.606782492e-08 | M45: -5.791972987e-06 | N45: 3.003833648e-08
A46: 20.0886 | B46: ='DF raw data'!D51 -> 3.6532213e-06 | C46: ='DF raw data'!E51 -> -4.4661128e-06 | D46: ='DF raw data'!F51 -> -3.2829047e-07 | F46: 3.658043552e-06 | G46: -4.482617364e-06 | H46: -3.287238134e-07 | J46: -6.854669934e-05 | K46: -0.0006867063588 | L46: -2.175868423e-06 | M46: -6.880211821e-06 | N46: 3.239068715e-08
A47: 20.58874 | B47: ='DF raw data'!D52 -> -2.1045787e-06 | C47: ='DF raw data'!E52 -> -4.2687743e-06 | D47: ='DF raw data'!F52 -> -2.7046116e-07 | F47: -2.107356744e-06 | G47: -4.284549597e-06 | H47: -2.708181687e-07 | J47: -6.960067274e-05 | K47: -0.0007215164393 | L47: -4.318743059e-06 | M47: -9.040187974e-06 | N47: 3.482282055e-08
A48: 21.08888 | B48: ='DF raw data'!D53 -> -7.4463396e-06 | C48: ='DF raw data'!E53 -> -1.5125692e-06 | D48: ='DF raw data'!F53 -> 5.3719277e-06 | F48: -7.456168768e-06 | G48: -1.518158914e-06 | H48: 5.379018645e-06 | J48: -7.332980099e-05 | K48: -0.000758191606 | L48: -5.078035059e-06 | M48: -1.157991643e-05 | N48: 3.752510006e-08
A49: 21.58902 | B49: ='DF raw data'!D54 -> -8.8681054e-06 | C49: ='DF raw data'!E54 -> 3.1908721e-06 | D49: ='DF raw data'!F54 -> 7.2772747e-07 | F49: -8.879811299e-06 | G49: 3.202663999e-06 | H49: 7.286880703e-07 | J49: -7.777094981e-05 | K49: -0.0007970879688 | L49: -3.476254686e-06 | M49: -1.331853045e-05 | N49: 4.0556151e-08
A50: 22.08916 | B50: ='DF raw data'!D55 -> -6.5690629e-06 | C50: ='DF raw data'!E55 -> 6.5362104e-07 | D50: ='DF raw data'!F55 -> 6.0112516e-06 | F50: -6.577734063e-06 | G50: 6.56036503e-07 | H50: 6.019186452e-06 | J50: -8.106073773e-05 | K50: -0.0008376296862 | L50: -3.148144589e-06 | M50: -1.489304348e-05 | N50: 4.384744932e-08
A51: 22.5893 | B51: ='DF raw data'!D56 -> -2.1153326e-06 | C51: ='DF raw data'!E56 -> -4.8704788e-07 | D51: ='DF raw data'!F56 -> 4.5087954e-06 | F51: -2.118124839e-06 | G51: -4.888477702e-07 | H51: 4.51474701e-06 | J51: -8.212009668e-05 | K51: -0.0008787012313 | L51: -3.392636913e-06 | M51: -1.658983691e-05 | N51: 4.722600518e-08
A52: 23.08944 | B52: ='DF raw data'!D57 -> 4.1941012e-06 | C52: ='DF raw data'!E57 -> 2.6941229e-06 | D52: ='DF raw data'!F57 -> 1.9248262e-06 | F52: 4.199637414e-06 | G52: 2.704079058e-06 | H52: 1.927366971e-06 | J52: -8.001969003e-05 | K52: -0.0009187222791 | L52: -2.040218813e-06 | M52: -1.761023195e-05 | N52: 5.043055884e-08
A53: 23.58958 | B53: ='DF raw data'!D58 -> 5.0973531e-06 | C53: ='DF raw data'!E58 -> 4.7581079e-06 | D53: ='DF raw data'!F58 -> 4.8291122e-06 | F53: 5.104081606e-06 | G53: 4.775691535e-06 | H53: 4.835486628e-06 | J53: -7.746693465e-05 | K53: -0.0009574665918 | L53: 3.482955509e-07 | M53: -1.743603541e-05 | N53: 5.343202266e-08
A54: 24.08972 | B54: ='DF raw data'!D59 -> 4.0959776e-06 | C54: ='DF raw data'!E59 -> -6.6570686e-07 | D54: ='DF raw data'!F59 -> 3.4108532e-06 | F54: 4.10138429e-06 | G54: -6.681669863e-07 | H54: 3.415355526e-06 | J54: -7.541566831e-05 | K54: -0.0009951849842 | L54: 1.411851438e-08 | M54: -1.742897417e-05 | N54: 5.627658052e-08
A55: 24.58986 | B55: ='DF raw data'!D60 -> 7.1613822e-06 | C55: ='DF raw data'!E60 -> 1.3980112e-06 | D55: ='DF raw data'!F60 -> -1.9680585e-06 | F55: 7.170835225e-06 | G55: 1.403177564e-06 | H55: -1.970656337e-06 | J55: -7.182924678e-05 | K55: -0.001031109664 | L55: 7.159037413e-07 | M55: -1.707092208e-05 | N55: 5.885727952e-08
A56: 25.09 | B56: ='DF raw data'!D61 -> 9.557617e-06 | C56: ='DF raw data'!E61 -> 8.2664419e-06 | D56: ='DF raw data'!F61 -> -6.7823121e-06 | F56: 9.570233054e-06 | G56: 8.296990617e-06 | H56: -6.791264752e-06 | J56: -6.704279042e-05 | K56: -0.001064640445 | L56: 4.865560629e-06 | M56: -1.463746058e-05 | N56: 6.111711681e-08
A57: 25.59014 | B57: ='DF raw data'!D62 -> 4.6880368e-06 | C57: ='DF raw data'!E62 -> 2.0570603e-07 | D57: ='DF raw data'!F62 -> -3.5308033e-06 | F57: 4.694225009e-06 | G57: 2.064662187e-07 | H57: -3.53546396e-06 | J57: -6.469502073e-05 | K57: -0.001096997013 | L57: 4.968822643e-06 | M57: -1.215235363e-05 | N57: 6.322277369e-08
A58: 26.09028 | B58: ='DF raw data'!D63 -> 3.2701421e-06 | C58: ='DF raw data'!E63 -> -6.1198093e-06 | D58: ='DF raw data'!F63 -> -3.8986464e-06 | F58: 3.274458688e-06 | G58: -6.142425116e-06 | H58: -3.903792613e-06 | J58: -6.305733296e-05 | K58: -0.001128534507 | L58: 1.896750146e-06 | M58: -1.120371301e-05 | N58: 6.521324331e-08
A59: 26.59042 | B59: ='DF raw data'!D64 -> 3.3455792e-06 | C59: ='DF raw data'!E64 -> 1.5233506e-07 | D59: ='DF raw data'!F64 -> 1.3405522e-06 | F59: 3.349995365e-06 | G59: 1.528980157e-07 | H59: 1.342321729e-06 | J59: -6.138186628e-05 | K59: -0.001159234034 | L59: 1.97322056e-06 | M59: -1.021682648e-05 | N59: 6.709958489e-08
A60: 27.09056 | B60: ='DF raw data'!D65 -> 5.2354079e-07 | C60: ='DF raw data'!E65 -> 9.1415905e-06 | D60: ='DF raw data'!F65 -> 5.7500883e-06 | F60: 5.242318638e-07 | G60: 9.175373338e-06 | H60: 5.757678417e-06 | J60: -6.111967695e-05 | K60: -0.001189802429 | L60: 6.562191781e-06 | M60: -6.934811882e-06 | N60: 6.898945254e-08
A61: 27.5907 | B61: ='DF raw data'!D66 -> 7.5990755e-07 | C61: ='DF raw data'!E66 -> -3.6007043e-06 | D61: ='DF raw data'!F66 -> -4.0416415e-07 | F61: 7.60910628e-07 | G61: -3.614010738e-06 | H61: -4.046976467e-07 | J61: -6.073911511e-05 | K61: -0.00122018049 | L61: 4.75468045e-06 | M61: -4.556806001e-06 | N61: 7.084589575e-08
A62: 28.09084 | B62: ='DF raw data'!D67 -> 6.0990633e-06 | C62: ='DF raw data'!E67 -> -3.2113637e-06 | D62: ='DF raw data'!F67 -> -2.2974266e-06 | F62: 6.107114064e-06 | G62: -3.223231326e-06 | H62: -2.300459203e-06 | J62: -5.768470309e-05 | K62: -0.001249030917 | L62: 3.142613535e-06 | M62: -2.985059268e-06 | N62: 7.251506348e-08
A63: 28.59098 | B63: ='DF raw data'!D68 -> 5.4038019e-06 | C63: ='DF raw data'!E68 -> -7.1133081e-06 | D63: ='DF raw data'!F68 -> -6.790694e-06 | F63: 5.410934919e-06 | G63: -7.1395954e-06 | H63: -6.799657716e-06 | J63: -5.49784781e-05 | K63: -0.001276527853 | L63: -4.281837088e-07 | M63: -3.199211068e-06 | N63: 7.402689487e-08
A64: 29.09112 | B64: ='DF raw data'!D69 -> 3.708912e-07 | C64: ='DF raw data'!E69 -> 8.8020188e-06 | D64: ='DF raw data'!F69 -> -8.2114266e-06 | F64: 3.713807764e-07 | G64: 8.834546747e-06 | H64: -8.222265683e-06 | J64: -5.479273571e-05 | K64: -0.001303931892 | L64: 3.990326501e-06 | M64: -1.203489172e-06 | N64: 7.553640071e-08
A65: 29.59126 | B65: ='DF raw data'!D70 -> -2.3661785e-06 | C65: ='DF raw data'!E70 -> 2.8903942e-06 | D65: ='DF raw data'!F70 -> 1.2695971e-06 | F65: -2.369301856e-06 | G65: 2.90107568e-06 | H65: 1.271272968e-06 | J65: -5.597771834e-05 | K65: -0.001331928588 | L65: 5.441270492e-06 | M65: 1.517907852e-06 | N65: 7.711839973e-08
A66: 30.0914 | B66: ='DF raw data'!D71 -> -4.9324518e-07 | C66: ='DF raw data'!E71 -> 1.7533276e-06 | D66: ='DF raw data'!F71 -> 3.563983e-06 | F66: -4.938962636e-07 | G66: 1.759807039e-06 | H66: 3.568687458e-06 | J66: -5.622473562e-05 | K66: -0.001360048827 | L66: 6.321420385e-06 | M66: 4.679503044e-06 | N66: 7.871943852e-08
A67: 30.59154 | B67: ='DF raw data'!D72 -> 2.8992865e-06 | C67: ='DF raw data'!E72 -> 9.5682908e-06 | D67: ='DF raw data'!F72 -> -8.0143144e-07 | F67: 2.903113558e-06 | G67: 9.603650513e-06 | H67: -8.024893295e-07 | J67: -5.477277241e-05 | K67: -0.001387442882 | L67: 1.112459015e-05 | M67: 1.024335556e-05 | N67: 8.028178241e-08
A68: 31.09168 | B68: ='DF raw data'!D73 -> 7.7393636e-08 | C68: ='DF raw data'!E73 -> 5.5239798e-06 | D68: ='DF raw data'!F73 -> 5.8117157e-06 | F68: 7.74957956e-08 | G68: 5.544393722e-06 | H68: 5.819387165e-06 | J68: -5.473401366e-05 | K68: -0.001414817551 | L68: 1.389756323e-05 | M68: 1.719408284e-05 | N68: 8.187670612e-08
A69: 31.59182 | B69: ='DF raw data'!D74 -> -4.4218251e-07 | C69: ='DF raw data'!E74 -> -2.2895156e-06 | D69: ='DF raw data'!F74 -> 7.784708e-06 | F69: -4.427661909e-07 | G69: -2.297976527e-06 | H69: 7.794983815e-06 | J69: -5.495545874e-05 | K69: -0.001442302975 | L69: 1.274825325e-05 | M69: 2.356999421e-05 | N69: 8.346846189e-08
A70: 32.09196 | B70: ='DF raw data'!D75 -> -1.2260716e-08 | C70: ='DF raw data'!E75 -> 7.553007e-06 | D70: ='DF raw data'!F75 -> 5.8474552e-06 | F70: -1.227690015e-08 | G70: 7.580919212e-06 | H70: 5.855173841e-06 | J70: -5.496159891e-05 | K70: -0.001469791469 | L70: 1.653977418e-05 | M70: 3.184219687e-05 | N70: 8.511609384e-08
A71: 32.5921 | B71: ='DF raw data'!D76 -> 3.9743527e-06 | C71: ='DF raw data'!E76 -> 7.5165808e-06 | D71: ='DF raw data'!F76 -> 5.105584e-06 | F71: 3.979598846e-06 | G71: =(1-$G$1*($B$2-$G$2))*C71*$M$2/$M$1 -> 7.544358398e-06 | H71: 5.112323371e-06 | J71: -5.297124234e-05 | K71: -0.001496284506 | L71: 2.031300959e-05 | M71: 4.200154549e-05 | N71: 8.672582988e-08
A72: =A71+$B$1 -> 33.09224 | B72: ='DF raw data'!D77 -> 7.4367772e-06 | C72: ='DF raw data'!E77 -> 4.6333535e-06 | D72: ='DF raw data'!F77 -> 4.9129749e-06 | F72: 7.446593746e-06 | G72: 4.650476104e-06 | H72: 4.919460027e-06 | J72: =F72*$B$1+J71 -> -4.924690295e-05 | K72: =J72*$B$1+K71 -> -0.001520914852 | L72: =G72*$B$1+L71 -> 2.263889871e-05 | M72: =L72*$B$1+M71 -> 5.332416429e-05 | N72: =(J72^2+L72^2)*$B$1+N71 -> 8.819512976e-08
A73: 33.59238 | B73: ='DF raw data'!D78 -> 4.2007659e-06 | C73: ='DF raw data'!E78 -> 8.0338777e-06 | D73: ='DF raw data'!F78 -> 6.2941699e-06 | F73: 4.206310911e-06 | G73: 8.063566974e-06 | H73: 6.302478204e-06 | J73: -4.714315861e-05 | K73: -0.001544493031 | L73: 2.66718111e-05 | M73: 6.666380389e-05 | N73: 8.966247196e-08
A74: 34.09252 | B74: ='DF raw data'!D79 -> -1.7593491e-06 | C74: ='DF raw data'!E79 -> -3.3680891e-07 | D74: ='DF raw data'!F79 -> 6.0642933e-06 | F74: -1.761671441e-06 | G74: -3.380535906e-07 | H74: 6.072298167e-06 | J74: -4.802424096e-05 | K74: -0.001568511875 | L74: 2.650273697e-05 | M74: 7.991888276e-05 | N74: 9.116725457e-08
A75: 34.59266 | B75: ='DF raw data'!D80 -> 1.2095327e-06 | C75: ='DF raw data'!E80 -> -6.0470916e-06 | D75: ='DF raw data'!F80 -> 4.1421454e-06 | F75: 1.211129283e-06 | G75: -6.069438687e-06 | H75: 4.147613032e-06 | J75: -4.741850676e-05 | K75: -0.001592227767 | L75: 2.346716791e-05 | M75: 9.165575212e-05 | N75: 9.256725784e-08
A76: 35.0928 | B76: ='DF raw data'!D81 -> 6.7759602e-06 | C76: ='DF raw data'!E81 -> 8.3978675e-06 | D76: ='DF raw data'!F81 -> 4.6252544e-06 | F76: 6.784904467e-06 | G76: 8.428901902e-06 | H76: 4.631359736e-06 | J76: -4.402510464e-05 | K76: -0.001614246483 | L76: 2.768279891e-05 | M76: 0.0001055010272 | N76: 9.391991007e-08
A77: 35.59294 | B77: ='DF raw data'!D82 -> 5.756162e-06 | C77: ='DF raw data'!E82 -> 1.1992129e-05 | D77: ='DF raw data'!F82 -> 4.726754e-06 | F77: 5.763760134e-06 | G77: 1.203644603e-05 | H77: 4.732993315e-06 | J77: -4.114241765e-05 | K77: -0.001634823452 | L77: 3.370270702e-05 | M77: 0.0001223570991 | N77: 9.533459157e-08
A78: 36.09308 | B78: ='DF raw data'!D83 -> -2.7978314e-07 | C78: ='DF raw data'!E83 -> -3.0988847e-06 | D78: ='DF raw data'!F83 -> 6.9712269e-06 | F78: -2.801524537e-07 | G78: -3.110336659e-06 | H78: 6.98042892e-06 | J78: -4.12825331e-05 | K78: -0.001655470498 | L78: 3.214710325e-05 | M78: 0.0001384351513 | N78: 9.670381674e-08
A79: 36.59322 | B79: ='DF raw data'!D84 -> -7.5530052e-06 | C79: ='DF raw data'!E84 -> 4.9900041e-06 | D79: ='DF raw data'!F84 -> 1.3795513e-06 | F79: -7.562975167e-06 | G79: 5.008444709e-06 | H79: 1.381372308e-06 | J79: -4.50650795e-05 | K79: -0.001678009347 | L79: 3.465202678e-05 | M79: 0.000155766016 | N79: 9.832008134e-08
A80: 37.09336 | B80: ='DF raw data'!D85 -> -3.2835749e-06 | C80: ='DF raw data'!E85 -> -4.0531559e-06 | D80: ='DF raw data'!F85 -> -3.9993456e-06 | F80: -3.287909219e-06 | G80: -4.068134378e-06 | H80: -4.004624736e-06 | J80: -4.670949441e-05 | K80: -0.001701370633 | L80: 3.261739006e-05 | M80: 0.0001720792774 | N80: 9.994337123e-08
A81: 37.5935 | B81: ='DF raw data'!D86 -> 5.4577895e-06 | C81: ='DF raw data'!E86 -> 6.0811717e-06 | D81: ='DF raw data'!F86 -> -2.8797512e-08 | F81: 5.464993782e-06 | G81: 6.10364473e-06 | H81: -2.883552472e-08 | J81: -4.397623242e-05 | K81: -0.001723364906 | L81: 3.567006693e-05 | M81: 0.0001899193047 | N81: 1.015469515e-07
A82: 38.09364 | B82: ='DF raw data'!D87 -> 4.5497354e-06 | C82: ='DF raw data'!E87 -> 2.4376759e-06 | D82: ='DF raw data'!F87 -> -2.3003515e-06 | F82: 4.555741051e-06 | G82: 2.446684355e-06 | H82: -2.303387964e-06 | J82: -4.16977241e-05 | K82: -0.001744219606 | L82: 3.689375165e-05 | M82: 0.0002083713456 | N82: 1.0309731e-07
A83: 38.59378 | B83: ='DF raw data'!D88 -> -4.1677495e-06 | C83: ='DF raw data'!E88 -> 4.0446726e-06 | D83: ='DF raw data'!F88 -> -1.4652454e-05 | F83: -4.173250929e-06 | G83: 4.059619727e-06 | H83: -1.467179524e-05 | J83: -4.378493381e-05 | K83: -0.001766118203 | L83: 3.892412986e-05 | M83: 0.0002278388599 | N83: 1.048138947e-07
A84: 39.09392 | B84: ='DF raw data'!D89 -> -4.8841694e-06 | C84: ='DF raw data'!E89 -> 1.3478426e-06 | D84: ='DF raw data'!F89 -> -1.4127086e-05 | F84: -4.890616504e-06 | G84: 1.352823566e-06 | H84: -1.414573375e-05 | J84: -4.623092675e-05 | K84: -0.001789240138 | L84: 3.960073103e-05 | M84: 0.0002476447696 | N84: 1.066671717e-07
A85: 39.59406 | B85: ='DF raw data'!D90 -> 1.5447361e-06 | C85: ='DF raw data'!E90 -> 1.074984e-06 | D85: ='DF raw data'!F90 -> -3.3044628e-06 | F85: 1.546775152e-06 | G85: 1.078956614e-06 | H85: -3.308824691e-06 | J85: -4.545732263e-05 | K85: -0.001811975164 | L85: 4.01403604e-05 | M85: 0.0002677205694 | N85: 1.085064949e-07
A86: 40.0942 | B86: ='DF raw data'!D91 -> 8.2789693e-06 | C86: ='DF raw data'!E91 -> -4.4248841e-06 | D86: ='DF raw data'!F91 -> -2.8561474e-06 | F86: 8.289897539e-06 | G86: -4.441236303e-06 | H86: -2.859917515e-06 | J86: -4.131121327e-05 | K86: -0.001832636554 | L86: 3.791912047e-05 | M86: 0.0002866854383 | N86: 1.100791731e-07
A87: 40.59434 | B87: ='DF raw data'!D92 -> 1.5053497e-05 | C87: ='DF raw data'!E92 -> -8.6832124e-06 | D87: ='DF raw data'!F92 -> -1.226463e-05 | F87: =(1-$G$1*($B$2-$G$2))*B87 -> 1.507336762e-05 | G87: -8.715301297e-06 | H87: -1.228081931e-05 | J87: -3.377241919e-05 | K87: -0.001849527492 | L87: 3.356024968e-05 | M87: 0.0003034702616 | N87: 1.112129238e-07
A88: 41.09448 | B88: ='DF raw data'!D93 -> 1.1017756e-05 | C88: ='DF raw data'!E93 -> -2.0131879e-06 | D88: ='DF raw data'!F93 -> -1.6357648e-05 | F88: 1.103229944e-05 | G88: -2.020627656e-06 | H88: -1.63792401e-05 | J88: -2.825472495e-05 | K88: -0.00186365881 | L88: 3.254965296e-05 | M88: 0.000319749645 | N88: 1.121420886e-07
A89: 41.59462 | B89: ='DF raw data'!D94 -> -1.2512544e-06 | C89: ='DF raw data'!E94 -> -7.7031376e-07 | D89: ='DF raw data'!F94 -> -8.3263576e-06 | F89: -1.252906056e-06 | G89: -7.731604621e-07 | H89: -8.337348392e-06 | J89: -2.888135339e-05 | K89: -0.00187810353 | L89: 3.216296449e-05 | M89: 0.0003358356301 | N89: 1.130766446e-07
A90: 42.09476 | B90: ='DF raw data'!D95 -> -5.8920205e-06 | C90: ='DF raw data'!E95 -> 5.0192248e-06 | D90: ='DF raw data'!F95 -> -3.8866701e-06 | F90: -5.899797967e-06 | G90: 5.037773395e-06 | H90: -3.891800505e-06 | J90: -3.183207834e-05 | K90: -0.001894024025 | L90: 3.468255648e-05 | M90: 0.0003531817639 | N90: 1.141850354e-07
A91: 42.5949 | B91: ='DF raw data'!D96 -> -3.5617202e-06 | C91: ='DF raw data'!E96 -> 2.0037705e-06 | D91: ='DF raw data'!F96 -> -6.0484153e-06 | F91: -3.566421671e-06 | G91: 2.011175454e-06 | H91: -6.056399208e-06 | J91: -3.361578848e-05 | K91: -0.001910836626 | L91: 3.568842577e-05 | M91: 0.0003710309732 | N91: 1.153872144e-07
A92: 43.09504 | B92: ='DF raw data'!D97 -> -1.5701887e-06 | C92: ='DF raw data'!E97 -> -1.2460535e-05 | D92: ='DF raw data'!F97 -> -1.2650852e-05 | F92: -1.572261349e-06 | G92: -1.250658303e-05 | H92: -1.266755112e-05 | J92: -3.440213927e-05 | K92: -0.001928042512 | L92: 2.943338333e-05 | M92: 0.0003857517855 | N92: 1.16412417e-07
A93: 43.59518 | B93: ='DF raw data'!D98 -> -1.795205e-06 | C93: ='DF raw data'!E98 -> -4.2376855e-06 | D93: ='DF raw data'!F98 -> -7.2648972e-06 | F93: -1.797574671e-06 | G93: -4.253345909e-06 | H93: -7.274486864e-06 | J93: -3.530117826e-05 | K93: -0.001945698043 | L93: 2.730611491e-05 | M93: 0.0003994086658 | N93: 1.174085944e-07
A94: 44.09532 | B94: ='DF raw data'!D99 -> -2.7202848e-06 | C94: ='DF raw data'!E99 -> -1.0007425e-06 | D94: ='DF raw data'!F99 -> 4.9023229e-06 | F94: -2.723875576e-06 | G94: -1.004440754e-06 | H94: 4.908793966e-06 | J94: -3.666349739e-05 | K94: -0.001964034925 | L94: 2.680375391e-05 | M94: 0.0004128142953 | N94: 1.184402098e-07
A95: 44.59546 | B95: ='DF raw data'!D100 -> -4.0373789e-06 | C95: ='DF raw data'!E100 -> -1.1276503e-05 | D95: ='DF raw data'!F100 -> 5.4689599e-06 | F95: -4.04270824e-06 | G95: -1.131817543e-05 | H95: 5.476178927e-06 | J95: -3.868541749e-05 | K95: -0.001983383049 | L95: 2.114308165e-05 | M95: 0.0004233887961 | N95: 1.194122776e-07
A96: 45.0956 | B96: ='DF raw data'!D101 -> -8.7681774e-06 | C96: ='DF raw data'!E101 -> -5.9878498e-06 | D96: ='DF raw data'!F101 -> 2.2693137e-06 | F96: -8.779751394e-06 | G96: -6.009977958e-06 | H96: 2.272309194e-06 | J96: -4.307652236e-05 | K96: -0.002004927341 | L96: 1.813725128e-05 | M96: 0.000432459961 | N96: 1.205048568e-07
A97: 45.59574 | B97: ='DF raw data'!D102 -> -1.0628291e-05 | C97: ='DF raw data'!E102 -> 1.1201039e-05 | D97: ='DF raw data'!F102 -> 3.1150128e-06 | F97: -1.064232034e-05 | G97: 1.124243255e-05 | H97: 3.119124617e-06 | J97: -4.839917245e-05 | K97: -0.002029133703 | L97: 2.376004149e-05 | M97: 0.0004443433081 | N97: 1.219587735e-07
A98: 46.09588 | B98: ='DF raw data'!D103 -> -5.8348751e-06 | C98: ='DF raw data'!E103 -> 4.7918647e-06 | D98: ='DF raw data'!F103 -> 4.7772055e-06 | F98: -5.842577135e-06 | G98: 4.809573083e-06 | H98: 4.783511411e-06 | J98: -5.132127898e-05 | K98: -0.002054801528 | L98: 2.616550137e-05 | M98: 0.000457429722 | N98: 1.236184916e-07
A99: 46.59602 | B99: ='DF raw data'!D104 -> -9.4173521e-07 | C99: ='DF raw data'!E104 -> 7.6834986e-06 | D99: ='DF raw data'!F104 -> 3.8734588e-06 | F99: -9.429783005e-07 | G99: 7.711893045e-06 | H99: 3.878571766e-06 | J99: -5.179290015e-05 | K99: -0.002080705229 | L99: 3.002252756e-05 | M99: 0.0004724451889 | N99: 1.254109217e-07
A100: 47.09616 | B100: ='DF raw data'!D105 -> -2.0578671e-06 | C100: ='DF raw data'!E105 -> -2.1873102e-06 | D100: ='DF raw data'!F105 -> 2.3377368e-06 | F100: -2.060583485e-06 | G100: -2.195393426e-06 | H100: 2.340822613e-06 | J100: -5.282348037e-05 | K100: -0.002107124364 | L100: 2.892452349e-05 | M100: 0.0004869115001 | N100: 1.272249036e-07
A101: 47.5963 | B101: ='DF raw data'!D106 -> -1.5309422e-06 | C101: ='DF raw data'!E106 -> -6.8042905e-06 | D101: ='DF raw data'!F106 -> -2.8582798e-07 | F101: -1.532963044e-06 | G101: -6.829435823e-06 | H101: -2.862052729e-07 | J101: -5.359017651e-05 | K101: -0.002133926955 | L101: 2.550884946e-05 | M101: 0.0004996694961 | N101: 1.289867009e-07
A102: 48.09644 | B102: ='DF raw data'!D107 -> -1.5266639e-06 | C102: ='DF raw data'!E107 -> -4.6703377e-07 | D102: ='DF raw data'!F107 -> -4.0040022e-06 | F102: -1.528679096e-06 | G102: -4.687596979e-07 | H102: -4.009287483e-06 | J102: -5.435473007e-05 | K102: -0.00216111193 | L102: 2.527440398e-05 | M102: 0.0005123102365 | N102: 1.307838201e-07
A103: 48.59658 | B103: ='DF raw data'!D108 -> 1.2657904e-06 | C103: ='DF raw data'!E108 -> -6.9377179e-06 | D103: ='DF raw data'!F108 -> -1.0301751e-05 | F103: 1.267461243e-06 | G103: -6.963356305e-06 | H103: -1.031534931e-05 | J103: -5.372082201e-05 | K103: -0.002187979862 | L103: 2.179175096e-05 | M103: 0.0005232091628 | N103: 1.324646942e-07
A104: 49.09672 | B104: ='DF raw data'!D109 -> 6.6273851e-06 | C104: ='DF raw data'!E109 -> -1.9037776e-06 | D104: ='DF raw data'!F109 -> -5.8409632e-06 | F104: 6.636133248e-06 | G104: -1.910813029e-06 | H104: -5.848673271e-06 | J104: -5.040182632e-05 | K104: -0.002213187831 | L104: 2.083607693e-05 | M104: 0.0005336301183 | N104: 1.339523537e-07
A105: 49.59686 | B105: ='DF raw data'!D110 -> 6.0457887e-06 | C105: ='DF raw data'!E110 -> -6.886215e-06 | D105: ='DF raw data'!F110 -> 3.0126546e-06 | F105: 6.053769141e-06 | G105: -6.911663075e-06 | H105: 3.016631304e-06 | J105: -4.737409423e-05 | K105: -0.002236881511 | L105: 1.737927776e-05 | M105: 0.0005423221903 | N105: 1.352258822e-07
A106: 50.097 | B106: ='DF raw data'!D111 -> 2.0496293e-06 | C106: ='DF raw data'!E111 -> 2.2545321e-07 | D106: ='DF raw data'!F111 -> 2.6014175e-06 | F106: 2.052334811e-06 | G106: 2.262863746e-07 | H106: 2.604851371e-06 | J106: -4.634763949e-05 | K106: -0.002260061819 | L106: 1.749245263e-05 | M106: 0.0005510708656 | N106: 1.364532706e-07
A107: 50.59714 | B107: ='DF raw data'!D112 -> 1.3551683e-06 | C107: ='DF raw data'!E112 -> 2.2153863e-06 | D107: ='DF raw data'!F112 -> 7.0677206e-06 | F107: 1.356957122e-06 | G107: 2.223573282e-06 | H107: 7.077049991e-06 | J107: -4.566897096e-05 | K107: -0.002282902698 | L107: 1.860455057e-05 | M107: 0.0005603757455 | N107: 1.376695031e-07
A108: 51.09728 | B108: ='DF raw data'!D113 -> -6.077251e-07 | C108: ='DF raw data'!E113 -> 1.8780821e-06 | D108: ='DF raw data'!F113 -> 5.3238045e-06 | F108: -6.085272971e-07 | G108: 1.885022571e-06 | H108: 5.330831922e-06 | J108: -4.59733198e-05 | K108: -0.002305895795 | L108: 1.954732576e-05 | M108: 0.000570152145 | N108: 1.389176746e-07
A109: 51.59742 | B109: ='DF raw data'!D114 -> -2.60921e-06 | C109: ='DF raw data'!E114 -> -5.3919644e-06 | D109: ='DF raw data'!F114 -> 4.0101013e-06 | F109: -2.612654157e-06 | G109: -5.411890458e-06 | H109: 4.015394634e-06 | J109: -4.728001265e-05 | K109: -0.00232954242 | L109: 1.684062287e-05 | M109: 0.0005785748141 | N109: 1.401775303e-07
A110: 52.09756 | B110: ='DF raw data'!D115 -> -3.9111984e-07 | C110: ='DF raw data'!E115 -> -8.1577764e-06 | D110: ='DF raw data'!F115 -> 1.3713004e-06 | F110: -3.916361182e-07 | G110: -8.187923543e-06 | H110: 1.373110517e-06 | J110: -4.747588554e-05 | K110: -0.002353287009 | L110: 1.274551479e-05 | M110: 0.0005849493559 | N110: 1.413860725e-07
A111: 52.5977 | B111: ='DF raw data'!D116 -> 5.2493333e-06 | C111: ='DF raw data'!E116 -> -2.8539125e-06 | D111: ='DF raw data'!F116 -> 1.0744704e-06 | F111: 5.25626242e-06 | G111: -2.864459162e-06 | H111: 1.075888701e-06 | J111: -4.484701845e-05 | K111: -0.002375716797 | L111: 1.131288418e-05 | M111: 0.0005906073818 | N111: 1.424559902e-07
A112: 53.09784 | B112: ='DF raw data'!D117 -> 1.0345065e-05 | C112: ='DF raw data'!E117 -> -4.445832e-06 | D112: ='DF raw data'!F117 -> -1.5043763e-06 | F112: 1.035872049e-05 | G112: -4.462261616e-06 | H112: -1.506362077e-06 | J112: -3.966620799e-05 | K112: -0.002395555455 | L112: 9.081128657e-06 | M112: 0.0005951492175 | N112: 1.432841595e-07
A113: 53.59798 | B113: ='DF raw data'!D118 -> 1.0964496e-05 | C113: ='DF raw data'!E118 -> -1.0321298e-05 | D113: ='DF raw data'!F118 -> -6.5409104e-06 | F113: 1.097896913e-05 | G113: -1.035944046e-05 | H113: -6.549544402e-06 | J113: -3.417518637e-05 | K113: -0.002412647832 | L113: 3.899958106e-06 | M113: 0.0005970997425 | N113: 1.438759017e-07
A114: 54.09812 | B114: ='DF raw data'!D119 -> 4.666078e-06 | C114: ='DF raw data'!E119 -> -1.2511853e-06 | D114: ='DF raw data'!F119 -> -2.9959767e-06 | F114: 4.672237223e-06 | G114: -1.255809068e-06 | H114: -2.999931389e-06 | J114: -3.183841364e-05 | K114: -0.002428571496 | L114: 3.271877759e-06 | M114: 0.0005987361395 | N114: 1.4438824e-07
A115: 54.59826 | B115: ='DF raw data'!D120 -> 2.294466e-07 | C115: ='DF raw data'!E120 -> -8.9613553e-07 | D115: ='DF raw data'!F120 -> 6.2242981e-07 | F115: 2.297494695e-07 | G115: -8.994472077e-07 | H115: 6.232514173e-07 | J115: -3.172350674e-05 | K115: -0.002444437691 | L115: 2.822028232e-06 | M115: 0.0006001475487 | N115: 1.448955544e-07
A116: 55.0984 | B116: ='DF raw data'!D121 -> 2.1923399e-06 | C116: ='DF raw data'!E121 -> -2.4216085e-06 | D116: ='DF raw data'!F121 -> -1.033229e-06 | F116: 2.195233789e-06 | G116: -2.430557578e-06 | H116: -1.034592862e-06 | J116: -3.062558251e-05 | K116: -0.00245975477 | L116: 1.606409165e-06 | M116: 0.0006009509781 | N116: 1.453659395e-07
A117: 55.59854 | B117: ='DF raw data'!D122 -> 4.3762475e-06 | C117: ='DF raw data'!E122 -> -3.2042922e-06 | D117: ='DF raw data'!F122 -> -2.3929308e-06 | F117: 4.382024147e-06 | G117: -3.216133693e-06 | H117: -2.396089469e-06 | J117: -2.843395696e-05 | K117: -0.002473975729 | L117: -2.107940268e-09 | M117: 0.0006009499239 | N117: 1.457702976e-07
A118: 56.09868 | B118: ='DF raw data'!D123 -> -7.8268278e-07 | C118: ='DF raw data'!E123 -> -2.4364188e-06 | D118: ='DF raw data'!F123 -> -7.8839794e-06 | F118: -7.837159213e-07 | G118: -2.44542261e-06 | H118: -7.894386253e-06 | J118: -2.882592464e-05 | K118: -0.002488392727 | L118: -1.225161604e-06 | M118: 0.0006003371716 | N118: 1.461866316e-07
A119: 56.59882 | B119: ='DF raw data'!D124 -> -4.9021846e-06 | C119: ='DF raw data'!E124 -> 9.1515976e-06 | D119: ='DF raw data'!F124 -> -1.182458e-05 | F119: -4.908655484e-06 | G119: 9.185417419e-06 | H119: -1.184018845e-05 | J119: -3.128093959e-05 | K119: -0.002504037576 | L119: 3.368833064e-06 | M119: 0.0006020220597 | N119: 1.466816933e-07
A120: 57.09896 | B120: ='DF raw data'!D125 -> -1.9762301e-07 | C120: ='DF raw data'!E125 -> -1.0958236e-07 | D120: ='DF raw data'!F125 -> -3.6997947e-06 | F120: -1.978838724e-07 | G120: -1.099873227e-07 | H120: -3.704678429e-06 | J120: -3.137990923e-05 | K120: -0.002519731924 | L120: 3.313824004e-06 | M120: 0.0006036794357 | N120: 1.471796728e-07
A121: 57.5991 | B121: ='DF raw data'!D126 -> -2.0694067e-06 | C121: ='DF raw data'!E126 -> -1.1240292e-06 | D121: ='DF raw data'!F126 -> -2.5704933e-06 | F121: -2.072138317e-06 | G121: -1.128183061e-06 | H121: -2.573886351e-06 | J121: -3.241626849e-05 | K121: -0.002535944597 | L121: 2.749574528e-06 | M121: 0.0006050546079 | N121: 1.477090083e-07
A122: 58.09924 | B122: ='DF raw data'!D127 -> -6.7044248e-06 | C122: ='DF raw data'!E127 -> -1.9986444e-06 | D122: ='DF raw data'!F127 -> -4.118875e-06 | F122: -6.713274641e-06 | G122: -2.00603041e-06 | H122: -4.124311915e-06 | J122: -3.577384567e-05 | K122: -0.002553836528 | L122: 1.746278479e-06 | M122: 0.0006059279916 | N122: 1.483505966e-07
A123: 58.59938 | B123: ='DF raw data'!D128 -> -6.9500611e-06 | C123: ='DF raw data'!E128 -> -6.8412501e-06 | D123: ='DF raw data'!F128 -> 4.6343785e-06 | F123: -6.959235181e-06 | G123: -6.866532007e-06 | H123: 4.64049588e-06 | J123: -3.925443755e-05 | K123: -0.002573469242 | L123: -1.687948839e-06 | M123: 0.0006050837809 | N123: 1.491226928e-07
A124: 59.09952 | B124: ='DF raw data'!D129 -> -1.3242905e-06 | C124: ='DF raw data'!E129 -> 2.324663e-06 | D124: ='DF raw data'!F129 -> 8.2491906e-06 | F124: -1.326038563e-06 | G124: 2.333253815e-06 | H124: 8.260079532e-06 | J124: -3.991764248e-05 | K124: -0.002593433652 | L124: -5.209952763e-07 | M124: 0.0006048232103 | N124: 1.499197607e-07
A125: 59.59966 | B125: ='DF raw data'!D130 -> 5.0669105e-06 | C125: ='DF raw data'!E130 -> -6.2341564e-06 | D125: ='DF raw data'!F130 -> -3.379929e-06 | F125: 5.073598822e-06 | G125: -6.257194786e-06 | H125: -3.384390506e-06 | J125: -3.738013276e-05 | K125: -0.002612128951 | L125: -3.650468677e-06 | M125: 0.0006029974649 | N125: 1.506252583e-07
A126: 60.0998 | B126: ='DF raw data'!D131 -> 4.1359517e-06 | C126: ='DF raw data'!E131 -> -3.0225644e-06 | D126: ='DF raw data'!F131 -> -7.3940746e-06 | F126: 4.141411156e-06 | G126: -3.033734317e-06 | H126: -7.403834778e-06 | J126: -3.530884739e-05 | K126: -0.002629788318 | L126: -5.167760558e-06 | M126: 0.0006004128611 | N126: 1.512621468e-07
A127: 60.59994 | B127: ='DF raw data'!D132 -> 3.0328586e-06 | C127: ='DF raw data'!E132 -> 7.5470025e-06 | D127: ='DF raw data'!F132 -> 1.7624413e-06 | F127: 3.036861973e-06 | G127: 7.574892522e-06 | H127: 1.764767723e-06 | J127: -3.378999124e-05 | K127: -0.002646688045 | L127: -1.379253812e-06 | M127: 0.0005997230411 | N127: 1.518341398e-07
A128: 61.10008 | B128: ='DF raw data'!D133 -> 6.6604907e-06 | C128: ='DF raw data'!E133 -> 5.0298991e-06 | D128: ='DF raw data'!F133 -> 9.6047015e-06 | F128: 6.669282548e-06 | G128: 5.048487142e-06 | H128: 9.617379706e-06 | J128: -3.045441627e-05 | K128: -0.002661919516 | L128: 1.145696547e-06 | M128: 0.0006002960498 | N128: 1.522986619e-07
A129: 61.60022 | B129: ='DF raw data'!D134 -> 1.0147552e-05 | C129: ='DF raw data'!E134 -> 4.5490274e-06 | D129: ='DF raw data'!F134 -> 9.9562467e-06 | F129: 1.016094677e-05 | G129: 4.565838376e-06 | H129: 9.969388946e-06 | J129: -2.537252035e-05 | K129: -0.002674609329 | L129: 3.429254952e-06 | M129: 0.0006020111573 | N129: 1.52626516e-07
A130: 62.10036 | B130: ='DF raw data'!D135 -> 9.0059248e-06 | C130: ='DF raw data'!E135 -> -6.545175e-06 | D130: ='DF raw data'!F135 -> 8.3036439e-06 | F130: 9.017812621e-06 | G130: -6.569362759e-06 | H130: 8.31460471e-06 | J130: -2.086235155e-05 | K130: -0.002685043425 | L130: 1.436538623e-07 | M130: 0.0006020830044 | N130: 1.528442061e-07
A131: 62.6005 | B131: ='DF raw data'!D136 -> 3.4415636e-06 | C131: ='DF raw data'!E136 -> -7.380429e-06 | D131: ='DF raw data'!F136 -> -1.8350104e-06 | F131: 3.446106464e-06 | G131: -7.407703448e-06 | H131: -1.837432614e-06 | J131: -1.913881586e-05 | K131: -0.002694615513 | L131: -3.56123494e-06 | M131: 0.0006003018883 | N131: 1.530337475e-07
A132: 63.10064 | B132: ='DF raw data'!D137 -> 1.1650766e-06 | C132: ='DF raw data'!E137 -> -4.1396165e-06 | D132: ='DF raw data'!F137 -> 8.5958027e-06 | F132: 1.166614501e-06 | G132: -4.154914494e-06 | H132: 8.60714916e-06 | J132: -1.855534528e-05 | K132: -0.002703895783 | L132: -5.639273875e-06 | M132: 0.0005974814619 | N132: 1.532218513e-07
A133: 63.60078 | B133: ='DF raw data'!D138 -> -1.6863276e-06 | C133: ='DF raw data'!E138 -> -1.2120911e-06 | D133: ='DF raw data'!F138 -> 1.0901103e-05 | F133: -1.688553552e-06 | G133: -1.216570395e-06 | H133: 1.091549246e-05 | J133: -1.939985846e-05 | K133: -0.002713598428 | L133: -6.247729392e-06 | M133: 0.0005943567225 | N133: 1.534296037e-07
A134: 64.10092 | B134: ='DF raw data'!D139 -> -4.1865651e-06 | C134: ='DF raw data'!E139 -> -3.0728663e-06 | D134: ='DF raw data'!F139 -> 1.8849685e-06 | F134: -4.192091366e-06 | G134: -3.084222108e-06 | H134: 1.887456658e-06 | J134: -2.149649103e-05 | K134: -0.002724349683 | L134: -7.790272237e-06 | M134: 0.0005904604958 | N134: 1.536910706e-07
A135: 64.60106 | B135: ='DF raw data'!D140 -> 7.990231e-07 | C135: ='DF raw data'!E140 -> -1.2318969e-05 | D135: ='DF raw data'!F140 -> 2.0385057e-06 | F135: 8.000778105e-07 | G135: =(1-$G$1*($B$2-$G$2))*C135*$M$2/$M$1 -> -1.236449387e-05 | H135: 2.041196528e-06 | J135: -2.109634012e-05 | K135: -0.002734900807 | L135: -1.39742502e-05 | M135: 0.0005834714143 | N135: 1.540113279e-07
A136: =A135+$B$1 -> 65.1012 | B136: ='DF raw data'!D141 -> 2.5015245e-06 | C136: ='DF raw data'!E141 -> -3.0352401e-06 | D136: ='DF raw data'!F141 -> -5.5742121e-06 | F136: 2.504826512e-06 | G136: -3.04645686e-06 | H136: -5.58157006e-06 | J136: =F136*$B$1+J135 -> -1.984357618e-05 | K136: =J136*$B$1+K135 -> -0.002744825373 | L136: =G136*$B$1+L135 -> -1.549790514e-05 | M136: =L136*$B$1+M135 -> 0.000575720292 | N136: =(J136^2+L136^2)*$B$1+N135 -> 1.54328393e-07
A137: 65.60134 | B137: ='DF raw data'!D142 -> -4.1788235e-06 | C137: ='DF raw data'!E142 -> -3.1483862e-06 | D137: ='DF raw data'!F142 -> -5.0946246e-06 | F137: -4.184339547e-06 | G137: -3.160021092e-06 | H137: -5.101349504e-06 | J137: -2.193633177e-05 | K137: -0.00275579661 | L137: -1.707835808e-05 | M137: 0.000567178722 | N137: 1.547149376e-07
A138: 66.10148 | B138: ='DF raw data'!D143 -> -1.0168581e-05 | C138: ='DF raw data'!E143 -> -1.0005876e-05 | D138: ='DF raw data'!F143 -> -2.303422e-06 | F138: -1.018200353e-05 | G138: -1.004285281e-05 | H138: -2.306462517e-06 | J138: -2.702875901e-05 | K138: -0.002769314773 | L138: -2.210119049e-05 | M138: 0.0005561250326 | N138: 1.553246165e-07
A139: 66.60162 | B139: ='DF raw data'!D144 -> -7.1431068e-06 | C139: ='DF raw data'!E144 -> -1.2876828e-05 | D139: ='DF raw data'!F144 -> 1.018562e-06 | F139: -7.152535701e-06 | G139: -1.292441444e-05 | H139: 1.019906502e-06 | J139: -3.060602821e-05 | K139: -0.002784622072 | L139: -2.856520713e-05 | M139: 0.0005418384299 | N139: 1.562012119e-07
A140: 67.10176 | B140: ='DF raw data'!D145 -> -3.0266608e-06 | C140: ='DF raw data'!E145 -> -7.4967775e-06 | D140: ='DF raw data'!F145 -> 1.3011741e-05 | F140: -3.030655992e-06 | G140: -7.524481915e-06 | H140: 1.30289165e-05 | J140: -3.21217805e-05 | K140: -0.00280068746 | L140: -3.232850152e-05 | M140: 0.0005256696531 | N140: 1.572399731e-07
A141: 67.6019 | B141: ='DF raw data'!D146 -> -1.1152014e-05 | C141: ='DF raw data'!E146 -> -1.2800056e-06 | D141: ='DF raw data'!F146 -> 1.3364203e-05 | F141: -1.116673466e-05 | G141: -1.284735873e-06 | H141: 1.338184375e-05 | J141: -3.770671117e-05 | K141: -0.002819546094 | L141: -3.297104932e-05 | M141: 0.0005091795125 | N141: 1.584947674e-07
A142: 68.10204 | B142: ='DF raw data'!D147 -> -1.6132784e-05 | C142: ='DF raw data'!E147 -> -2.7714545e-06 | D142: ='DF raw data'!F147 -> 3.3461554e-06 | F142: -1.615407927e-05 | G142: -2.781696437e-06 | H142: 3.350572325e-06 | J142: -4.578601238e-05 | K142: -0.00284244551 | L142: -3.436228697e-05 | M142: 0.0004919935583 | N142: 1.60133789e-07
A143: 68.60218 | B143: ='DF raw data'!D148 -> -8.4856956e-06 | C143: ='DF raw data'!E148 -> -1.5077576e-05 | D143: ='DF raw data'!F148 -> -3.9405057e-07 | F143: -8.496896718e-06 | G143: -1.513329533e-05 | H143: -3.945707168e-07 | J143: -5.003565031e-05 | K143: -0.002867470341 | L143: -4.19310533e-05 | M143: 0.0004710221613 | N143: 1.622652755e-07
A144: 69.10232 | B144: ='DF raw data'!D149 -> -5.2415345e-07 | C144: ='DF raw data'!E149 -> -5.9721056e-06 | D144: ='DF raw data'!F149 -> 2.3517066e-06 | F144: -5.248453326e-07 | G144: -5.994175575e-06 | H144: 2.354810853e-06 | J144: -5.029814645e-05 | K144: -0.002892626456 | L144: -4.492898027e-05 | M144: 0.0004485513811 | N144: 1.645401707e-07
A145: 69.60246 | B145: ='DF raw data'!D150 -> -9.4353965e-07 | C145: ='DF raw data'!E150 -> -7.1351901e-06 | D145: ='DF raw data'!F150 -> -2.8283241e-06 | F145: -9.447851223e-07 | G145: -7.161558265e-06 | H145: -2.832057488e-06 | J145: -5.077067128e-05 | K145: -0.002918018899 | L145: -4.851076202e-05 | M145: 0.0004242892086 | N145: 1.670063385e-07
A146: 70.1026 | B146: ='DF raw data'!D151 -> -9.0178883e-06 | C146: ='DF raw data'!E151 -> -8.350259e-07 | D146: ='DF raw data'!F151 -> -5.1109955e-06 | F146: -9.029791913e-06 | G146: -8.381117464e-07 | H146: -5.117742014e-06 | J146: -5.528683141e-05 | K146: -0.002945670055 | L146: -4.892993523e-05 | M146: 0.0003998173908 | N146: 1.697324878e-07
A147: 70.60274 | B147: ='DF raw data'!D152 -> -1.794297e-05 | C147: ='DF raw data'!E152 -> 2.9301555e-06 | D147: ='DF raw data'!F152 -> -4.9788205e-06 | F147: -1.796665472e-05 | G147: 2.940983919e-06 | H147: -4.985392543e-06 | J147: -6.42726741e-05 | K147: -0.00297781539 | L147: -4.745903153e-05 | M147: 0.0003760812308 | N147: 1.729250496e-07
A148: 71.10288 | B148: ='DF raw data'!D153 -> -2.2867338e-05 | C148: ='DF raw data'!E153 -> 7.2956254e-06 | D148: ='DF raw data'!F153 -> 1.2949611e-06 | F148: -2.289752289e-05 | G148: 7.322586456e-06 | H148: 1.296670449e-06 | J148: -7.57246412e-05 | K148: -0.003015688312 | L148: -4.379671314e-05 | M148: 0.0003541767427 | N148: 1.767523076e-07
A149: 71.60302 | B149: ='DF raw data'!D154 -> -1.8300743e-05 | C149: ='DF raw data'!E154 -> 1.1506587e-05 | D149: ='DF raw data'!F154 -> 1.9960432e-06 | F149: -1.832489998e-05 | G149: 1.154910971e-05 | H149: 1.998677977e-06 | J149: -8.488965668e-05 | K149: -0.003058145025 | L149: -3.802054142e-05 | M149: 0.0003351611491 | N149: 1.810794266e-07
A150: 72.10316 | B150: ='DF raw data'!D155 -> -1.0939818e-05 | C150: ='DF raw data'!E155 -> 5.056851e-06 | D150: ='DF raw data'!F155 -> 6.8632727e-07 | F150: -1.095425856e-05 | G150: 5.075538643e-06 | H150: 6.87233222e-07 | J150: -9.036831955e-05 | K150: -0.003103341836 | L150: -3.548206152e-05 | M150: 0.0003174151508 | N150: 1.857934511e-07
A151: 72.6033 | B151: ='DF raw data'!D156 -> -8.9655596e-06 | C151: ='DF raw data'!E156 -> 3.1330983e-06 | D151: ='DF raw data'!F156 -> 1.2548263e-05 | F151: =(1-$G$1*($B$2-$G$2))*B151 -> -8.977394139e-06 | G151: 3.144676696e-06 | H151: 1.256482671e-05 | J151: -9.485827346e-05 | K151: -0.003150784253 | L151: -3.390928292e-05 | M151: 0.0003004557621 | N151: 1.908688375e-07
A152: 73.10344 | B152: ='DF raw data'!D157 -> -2.6457935e-06 | C152: ='DF raw data'!E157 -> 5.1712499e-07 | D152: ='DF raw data'!F157 -> 1.6397942e-05 | F152: -2.649285947e-06 | G152: 5.190360305e-07 | H152: 1.641958728e-05 | J152: -9.618328733e-05 | K152: -0.003198889363 | L152: -3.364969224e-05 | M152: 0.000283626205 | N152: 1.960620545e-07
A153: 73.60358 | B153: ='DF raw data'!D158 -> 4.9121218e-06 | C153: ='DF raw data'!E158 -> 3.3806572e-07 | D153: ='DF raw data'!F158 -> -1.6603663e-07 | F153: 4.918605801e-06 | G153: 3.393150452e-07 | H153: -1.662557984e-07 | J153: -9.372329582e-05 | K153: -0.003245764132 | L153: -3.347998721e-05 | M153: 0.0002668815242 | N153: 2.010159241e-07
A154: 74.10372 | B154: ='DF raw data'!D159 -> 3.3380268e-06 | C154: ='DF raw data'!E159 -> 3.3738006e-06 | D154: ='DF raw data'!F159 -> -7.0194355e-06 | F154: 3.342432995e-06 | G154: 3.386268513e-06 | H154: -7.028701155e-06 | J154: -9.205161139e-05 | K154: -0.003291802825 | L154: -3.178637888e-05 | M154: 0.0002509838847 | N154: 2.057591883e-07
A155: 74.60386 | B155: ='DF raw data'!D160 -> -5.02864e-07 | C155: ='DF raw data'!E160 -> 2.1864837e-07 | D155: ='DF raw data'!F160 -> 6.3993576e-07 | F155: -5.035277805e-07 | G155: 2.194563872e-07 | H155: 6.407804752e-07 | J155: -9.230344577e-05 | K155: -0.00333796747 | L155: -3.167661996e-05 | M155: 0.00023514114 | N155: 2.105221888e-07
A156: 75.104 | B156: ='DF raw data'!D161 -> -1.3605975e-06 | C156: ='DF raw data'!E161 -> 3.1701911e-06 | D156: ='DF raw data'!F161 -> 4.7302174e-06 | F156: -1.362393489e-06 | G156: 3.181906572e-06 | H156: 4.736461287e-06 | J156: -9.298483325e-05 | K156: -0.003384472905 | L156: -3.00852212e-05 | M156: 0.0002200943174 | N156: 2.152991758e-07
A157: 75.60414 | B157: ='DF raw data'!D162 -> -1.5691264e-06 | C157: ='DF raw data'!E162 -> 9.5905734e-06 | D157: ='DF raw data'!F162 -> -6.3266043e-06 | F157: -1.571197647e-06 | G157: 9.626015459e-06 | H157: -6.334955418e-06 | J157: -9.377065204e-05 | K157: -0.003431371359 | L157: -2.527086583e-05 | M157: 0.0002074553466 | N157: 2.200162722e-07
A158: 76.10428 | B158: ='DF raw data'!D163 -> -4.2228721e-06 | C158: ='DF raw data'!E163 -> 5.8216556e-06 | D158: ='DF raw data'!F163 -> -1.3083379e-05 | F158: -4.228446291e-06 | G158: 5.843169586e-06 | H158: -1.310064906e-05 | J158: -9.588546717e-05 | K158: -0.003479327516 | L158: -2.2348463e-05 | M158: 0.0001962779863 | N158: 2.248643675e-07
A159: 76.60442 | B159: ='DF raw data'!D164 -> -2.5844427e-06 | C159: ='DF raw data'!E164 -> 8.640356e-07 | D159: ='DF raw data'!F164 -> -2.3454188e-06 | F159: -2.587854164e-06 | G159: 8.672286521e-07 | H159: -2.348514753e-06 | J159: -9.717975655e-05 | K159: -0.003527931 | L159: -2.191472726e-05 | M159: 0.0001853175546 | N159: 2.298278371e-07
A160: 77.10456 | B160: ='DF raw data'!D165 -> 3.0086878e-06 | C160: ='DF raw data'!E165 -> -1.2942874e-05 | D160: ='DF raw data'!F165 -> 1.7784776e-06 | F160: 3.012659268e-06 | G160: -1.299070452e-05 | H160: 1.78082519e-06 | J160: -9.567300514e-05 | K160: -0.003575780896 | L160: -2.841189822e-05 | M160: 0.0001711076278 | N160: 2.348095115e-07
A161: 77.6047 | B161: ='DF raw data'!D166 -> 1.7680788e-06 | C161: ='DF raw data'!E166 -> -3.3900228e-06 | D161: ='DF raw data'!F166 -> 1.8142171e-06 | F161: 1.770412664e-06 | G161: -3.402550663e-06 | H161: 1.816611867e-06 | J161: -9.478755095e-05 | K161: -0.003623187942 | L161: -3.01136499e-05 | M161: 0.000156046587 | N161: 2.397566522e-07
A162: 78.10484 | B162: ='DF raw data'!D167 -> -1.8100472e-07 | C162: ='DF raw data'!E167 -> 2.5316085e-06 | D162: ='DF raw data'!F167 -> 2.690722e-08 | F162: -1.812436462e-07 | G162: 2.540964084e-06 | H162: 2.694273753e-08 | J162: -9.487819815e-05 | K162: -0.003670640324 | L162: -2.884281213e-05 | M162: 0.0001416211429 | N162: 2.446749191e-07
A163: 78.60498 | B163: ='DF raw data'!D168 -> -4.8970907e-07 | C163: ='DF raw data'!E168 -> -1.066522e-06 | D163: ='DF raw data'!F168 -> -1.4175325e-05 | F163: -4.90355486e-07 | G163: -1.070463343e-06 | H163: -1.419403643e-05 | J163: -9.512344454e-05 | K163: -0.003718215364 | L163: -2.937819366e-05 | M163: 0.0001269279331 | N163: 2.496320807e-07
A164: 79.10512 | B164: ='DF raw data'!D169 -> -3.4916382e-06 | C164: ='DF raw data'!E169 -> 2.444614e-06 | D164: ='DF raw data'!F169 -> -1.5064957e-05 | F164: -3.496247162e-06 | G164: 2.453648095e-06 | H164: -1.508484274e-05 | J164: -9.68720576e-05 | K164: -0.003766664955 | L164: -2.815102611e-05 | M164: 0.0001128484789 | N164: 2.547218433e-07
A165: 79.60526 | B165: ='DF raw data'!D170 -> -5.2175101e-06 | C165: ='DF raw data'!E170 -> 4.3444834e-06 | D165: ='DF raw data'!F170 -> -2.6013142e-06 | F165: -5.224397213e-06 | G165: 4.360538481e-06 | H165: -2.604747935e-06 | J165: -9.948498762e-05 | K165: -0.003816421376 | L165: -2.597014639e-05 | M165: 9.985976993e-05 | N165: 2.60009179e-07
A166: 80.1054 | B166: ='DF raw data'!D171 -> -4.4332783e-06 | C166: ='DF raw data'!E171 -> 7.4423951e-06 | D166: ='DF raw data'!F171 -> 6.7577212e-06 | F166: -4.439130227e-06 | G166: 7.469898544e-06 | H166: 6.766641392e-06 | J166: -0.0001017051742 | K166: -0.003867288202 | L166: -2.223415133e-05 | M166: 8.873958149e-05 | N166: 2.654298463e-07
A167: 80.60554 | B167: ='DF raw data'!D172 -> -1.1025484e-06 | C167: ='DF raw data'!E172 -> 4.4427378e-07 | D167: ='DF raw data'!F172 -> 6.9941898e-06 | F167: -1.104003764e-06 | G167: 4.459155981e-07 | H167: 7.003422131e-06 | J167: -0.0001022573307 | K167: -0.003918431183 | L167: -2.20111311e-05 | M167: 7.773093438e-05 | N167: 2.709019039e-07
A168: 81.10568 | B168: ='DF raw data'!D173 -> 2.6756818e-06 | C168: ='DF raw data'!E173 -> -1.0848016e-06 | D168: ='DF raw data'!F173 -> 1.2785902e-06 | F168: 2.6792137e-06 | G168: -1.088810495e-06 | H168: 1.280277939e-06 | J168: -0.0001009173487 | K168: -0.003968903986 | L168: -2.255568879e-05 | M168: 6.644993219e-05 | N168: 2.762499361e-07
A169: 81.60582 | B169: ='DF raw data'!D174 -> 1.1798904e-06 | C169: ='DF raw data'!E174 -> 1.4986152e-06 | D169: ='DF raw data'!F174 -> 5.5314604e-06 | F169: 1.181447855e-06 | G169: 1.504153347e-06 | H169: 5.538761928e-06 | J169: -0.0001003264594 | K169: -0.004019081262 | L169: -2.180340153e-05 | M169: 5.554517895e-05 | N169: 2.815218052e-07
A170: 82.10596 | B170: ='DF raw data'!D175 -> -3.2094183e-06 | C170: ='DF raw data'!E175 -> -5.0919681e-07 | D170: ='DF raw data'!F175 -> 7.8357562e-06 | F170: -3.213654732e-06 | G170: -5.110785518e-07 | H170: 7.846099398e-06 | J170: -0.0001019337367 | K170: -0.004070062401 | L170: -2.205901236e-05 | M170: 4.451258451e-05 | N170: 2.869618713e-07
A171: 82.6061 | B171: ='DF raw data'!D176 -> -3.4539923e-06 | C171: ='DF raw data'!E176 -> -6.0393527e-06 | D171: ='DF raw data'!F176 -> 7.9315212e-09 | F171: -3.45855157e-06 | G171: -6.061671187e-06 | H171: 7.941990808e-09 | J171: -0.0001036634966 | K171: -0.004121908662 | L171: -2.509069658e-05 | M171: 3.196372352e-05 | N171: 2.926512957e-07
A172: 83.10624 | B172: ='DF raw data'!D177 -> -3.6956845e-07 | C172: ='DF raw data'!E177 -> -6.8372469e-06 | D172: ='DF raw data'!F177 -> 1.3585741e-07 | F172: -3.700562804e-07 | G172: -6.862514013e-06 | H172: 1.360367418e-07 | J172: -0.0001038485766 | K172: -0.004173847489 | L172: -2.852291434e-05 | M172: 1.769827314e-05 | N172: 2.984519612e-07
A173: 83.60638 | B173: ='DF raw data'!D178 -> -8.4775894e-07 | C173: ='DF raw data'!E178 -> 3.8629451e-06 | D173: ='DF raw data'!F178 -> 2.0081504e-06 | F173: -8.488779818e-07 | G173: 3.877220652e-06 | H173: 2.010801159e-06 | J173: -0.0001042731344 | K173: -0.004225998654 | L173: -2.658376121e-05 | M173: 4.402670807e-06 | N173: 3.042433738e-07
A174: 84.10652 | B174: ='DF raw data'!D179 -> -1.122499e-06 | C174: ='DF raw data'!E179 -> 3.8797566e-06 | D174: ='DF raw data'!F179 -> 4.483889e-07 | F174: -1.123980699e-06 | G174: 3.894094279e-06 | H174: 4.489807733e-07 | J174: -0.0001048352821 | K174: -0.004278430972 | L174: -2.463616889e-05 | M174: -7.918862704e-06 | N174: 3.10043686e-07
A175: 84.60666 | B175: ='DF raw data'!D180 -> -8.2750191e-08 | C175: ='DF raw data'!E180 -> 7.5768903e-06 | D175: ='DF raw data'!F180 -> -8.4518824e-06 | F175: -8.285942125e-08 | G175: 7.604890773e-06 | H175: -8.463038885e-06 | J175: -0.0001048767234 | K175: -0.004330884017 | L175: -2.083265882e-05 | M175: -1.833810869e-05 | N175: 3.1576185e-07
A176: 85.1068 | B176: ='DF raw data'!D181 -> -2.7361027e-06 | C176: ='DF raw data'!E181 -> 1.075099e-05 | D176: ='DF raw data'!F181 -> -1.0053306e-05 | F176: -2.739714356e-06 | G176: 1.079072039e-05 | H176: -1.006657636e-05 | J176: -0.0001062469642 | K176: -0.004384022374 | L176: -1.543578793e-05 | M176: -2.605816366e-05 | N176: 3.215268043e-07
A177: 85.60694 | B177: ='DF raw data'!D182 -> -3.5877536e-06 | C177: ='DF raw data'!E182 -> 3.9113788e-06 | D177: ='DF raw data'!F182 -> -4.4292237e-06 | F177: -3.592489435e-06 | G177: 3.925833339e-06 | H177: -4.435070275e-06 | J177: -0.0001080437118 | K177: -0.004438059356 | L177: -1.347232164e-05 | M177: -3.279621061e-05 | N177: 3.274559375e-07
A178: 86.10708 | B178: ='DF raw data'!D183 -> -1.0096919e-07 | C178: ='DF raw data'!E183 -> 9.0392523e-06 | D178: ='DF raw data'!F183 -> 4.4619156e-07 | F178: -1.011024693e-07 | G178: 9.072656946e-06 | H178: 4.467805329e-07 | J178: -0.0001080942772 | K178: -0.004492121627 | L178: -8.934722996e-06 | M178: -3.726482297e-05 | N178: 3.333396855e-07
A179: 86.60722 | B179: ='DF raw data'!D184 -> 1.1643642e-07 | C179: ='DF raw data'!E184 -> 5.8539454e-06 | D179: ='DF raw data'!F184 -> 1.1358359e-06 | F179: 1.165901161e-07 | G179: 5.875578713e-06 | H179: 1.137335203e-06 | J179: -0.0001080359659 | K179: -0.004546154735 | L179: -5.996111059e-06 | M179: -4.026371795e-05 | N179: 3.391951862e-07
A180: 87.10736 | B180: ='DF raw data'!D185 -> -6.5565911e-07 | C180: ='DF raw data'!E185 -> 4.9657723e-07 | D180: ='DF raw data'!F185 -> -3.1773372e-06 | F180: -6.5652458e-07 | G180: 4.98412336e-07 | H180: -3.181531285e-06 | J180: -0.0001083643201 | K180: -0.004600352066 | L180: -5.746835113e-06 | M180: -4.313794006e-05 | N180: 3.450847608e-07
A181: 87.6075 | B181: ='DF raw data'!D186 -> 8.1200333e-06 | C181: ='DF raw data'!E186 -> 7.2449229e-06 | D181: ='DF raw data'!F186 -> -3.3656827e-06 | F181: 8.130751744e-06 | G181: 7.271696584e-06 | H181: -3.370125401e-06 | J181: -0.0001042978059 | K181: -0.004652515571 | L181: -2.109968784e-06 | M181: -4.419321985e-05 | N181: 3.505275265e-07
A182: 88.10764 | B182: ='DF raw data'!D187 -> 1.0198076e-05 | C182: ='DF raw data'!E187 -> 1.0761847e-06 | D182: ='DF raw data'!F187 -> -8.3698242e-06 | F182: 1.021153746e-05 | G182: 1.080161751e-06 | H182: -8.380872368e-06 | J182: -9.919060754e-05 | K182: -0.004702124762 | L182: -1.569736685e-06 | M182: -4.497830796e-05 | N182: 3.554495247e-07
A183: 88.60778 | B183: ='DF raw data'!D188 -> -9.7651423e-07 | C183: ='DF raw data'!E188 -> -5.9192161e-07 | D183: ='DF raw data'!F188 -> -8.4295889e-06 | F183: -9.778032288e-07 | G183: -5.941090621e-07 | H183: -8.440715957e-06 | J183: -9.967964605e-05 | K183: -0.00475197854 | L183: -1.866874392e-06 | M183: -4.591200652e-05 | N183: 3.604206747e-07
A184: 89.10792 | B184: ='DF raw data'!D189 -> -2.9679875e-06 | C184: ='DF raw data'!E189 -> 3.3192291e-06 | D184: ='DF raw data'!F189 -> -1.04286e-05 | F184: -2.971905244e-06 | G184: 3.331495344e-06 | H184: -1.044236575e-05 | J184: -0.0001011660147 | K184: -0.00480257571 | L184: -2.006603104e-07 | M184: -4.601236476e-05 | N184: 3.65539409e-07
A185: 89.60806 | B185: ='DF raw data'!D190 -> 2.7039853e-06 | C185: ='DF raw data'!E190 -> -5.3830245e-06 | D185: ='DF raw data'!F190 -> -1.7743092e-05 | F185: 2.707554561e-06 | G185: -5.40291752e-06 | H185: -1.776651288e-05 | J185: -9.98118584e-05 | K185: -0.004852495613 | L185: -2.902875479e-06 | M185: -4.746420891e-05 | N185: 3.705262218e-07
A186: 90.1082 | B186: ='DF raw data'!D191 -> -1.7418722e-06 | C186: ='DF raw data'!E191 -> 2.3860393e-06 | D186: ='DF raw data'!F191 -> -8.8391671e-06 | F186: -1.744171471e-06 | G186: 2.394856932e-06 | H186: -8.850834801e-06 | J186: -0.0001006841883 | K186: -0.004902851803 | L186: -1.705111733e-06 | M186: -4.831700349e-05 | N186: 3.75597748e-07
A187: 90.60834 | B187: ='DF raw data'!D192 -> -6.5710565e-06 | C187: ='DF raw data'!E192 -> -7.7138117e-07 | D187: ='DF raw data'!F192 -> -7.68066e-06 | F187: -6.579730295e-06 | G187: -7.742318167e-07 | H187: -7.690798471e-06 | J187: -0.0001039749746 | K187: -0.004954853847 | L187: -2.092336034e-06 | M187: -4.936346443e-05 | N187: 3.810068487e-07
A188: 91.10848 | B188: ='DF raw data'!D193 -> -1.9417864e-06 | C188: ='DF raw data'!E193 -> -5.2480772e-07 | D188: ='DF raw data'!F193 -> -5.4031689e-06 | F188: -1.944349558e-06 | G188: -5.267471521e-07 | H188: -5.410301083e-06 | J188: -0.0001049474216 | K188: -0.00500734225 | L188: -2.355783354e-06 | M188: -5.054168592e-05 | N188: 3.86518147e-07
A189: 91.60862 | B189: ='DF raw data'!D194 -> 8.5902064e-07 | C189: ='DF raw data'!E194 -> -1.1157567e-06 | D189: ='DF raw data'!F194 -> -1.258318e-06 | F189: 8.601545472e-07 | G189: -1.11987999e-06 | H189: -1.25997898e-06 | J189: -0.0001045172239 | K189: -0.005059615495 | L189: -2.915880133e-06 | M189: -5.200003421e-05 | N189: 3.919858537e-07
A190: 92.10876 | B190: ='DF raw data'!D195 -> -8.0523824e-07 | C190: ='DF raw data'!E195 -> -3.4716802e-06 | D190: ='DF raw data'!F195 -> -2.2322777e-06 | F190: -8.063011545e-07 | G190: -3.484509828e-06 | H190: -2.235224307e-06 | J190: -0.0001049204874 | K190: -0.005112090427 | L190: -4.658622878e-06 | M190: -5.432999785e-05 | N190: 3.975024036e-07
A191: 92.6089 | B191: ='DF raw data'!D196 -> -7.3402117e-07 | C191: ='DF raw data'!E196 -> -8.8522647e-06 | D191: ='DF raw data'!F196 -> -6.3358011e-06 | F191: -7.349900779e-07 | G191: -8.884978331e-06 | H191: -6.344164357e-06 | J191: -0.0001052880853 | K191: -0.00516474921 | L191: -9.102355941e-06 | M191: -5.888245015e-05 | N191: 4.030881841e-07
A192: 93.10904 | B192: ='DF raw data'!D197 -> -8.2520347e-07 | C192: ='DF raw data'!E197 -> -4.2555648e-06 | D192: ='DF raw data'!F197 -> -1.5571932e-07 | F192: -8.262927386e-07 | G192: -4.271291282e-06 | H192: -1.559248695e-07 | J192: -0.0001057013474 | K192: -0.005217614682 | L192: -1.123859956e-05 | M192: -6.450332334e-05 | N192: 4.087393065e-07
A193: 93.60918 | B193: ='DF raw data'!D198 -> 9.6215012e-07 | C193: ='DF raw data'!E198 -> -8.9666929e-07 | D193: ='DF raw data'!F198 -> -1.4804093e-06 | F193: 9.634201582e-07 | G193: -8.999829402e-07 | H193: -1.48236344e-06 | J193: -0.0001052195024 | K193: -0.005270239164 | L193: -1.168871703e-05 | M193: -7.034931828e-05 | N193: 4.143447604e-07
A194: 94.10932 | B194: ='DF raw data'!D199 -> 3.7046914e-06 | C194: ='DF raw data'!E199 -> -6.2196127e-06 | D194: ='DF raw data'!F199 -> -7.5862181e-06 | F194: 3.709581593e-06 | G194: -6.24259734e-06 | H194: -7.596231908e-06 | J194: -0.0001033641923 | K194: -0.005321935731 | L194: -1.481088966e-05 | M194: -7.775683663e-05 | N194: 4.197980463e-07
A195: 94.60946 | B195: ='DF raw data'!D200 -> 5.9619551e-06 | C195: ='DF raw data'!E200 -> -1.6394583e-06 | D195: ='DF raw data'!F200 -> -5.6949493e-06 | F195: 5.969824881e-06 | G195: -1.645516934e-06 | H195: -5.702466633e-06 | J195: -0.0001003784441 | K195: -0.005372139006 | L195: -1.56338785e-05 | M195: -8.557596463e-05 | N195: 4.249596162e-07
A196: 95.1096 | B196: ='DF raw data'!D201 -> 9.3567714e-06 | C196: ='DF raw data'!E201 -> -5.4833617e-06 | D196: ='DF raw data'!F201 -> -8.3310142e-06 | F196: 9.369122338e-06 | G196: -5.503625517e-06 | H196: -8.342011139e-06 | J196: -9.569257121e-05 | K196: -0.005419998689 | L196: -1.838646177e-05 | M196: -9.477176962e-05 | N196: 4.297085106e-07
A197: 95.60974 | B197: ='DF raw data'!D202 -> 6.8944419e-06 | C197: ='DF raw data'!E202 -> -4.0574255e-06 | D197: ='DF raw data'!F202 -> -6.2845493e-06 | F197: 6.903542563e-06 | G197: -4.072419756e-06 | H197: -6.292844905e-06 | J197: -9.223983343e-05 | K197: -0.005466131519 | L197: -2.042324179e-05 | M197: -0.0001049862498 | N197: 4.34172408e-07
A198: 96.10988 | B198: ='DF raw data'!D203 -> 1.2330195e-06 | C198: ='DF raw data'!E203 -> -2.664179e-06 | D198: ='DF raw data'!F203 -> 1.7792779e-06 | F198: 1.234647086e-06 | G198: -2.6740245e-06 | H198: 1.781626547e-06 | J198: -9.162233704e-05 | K198: -0.005511955515 | L198: -2.17606284e-05 | M198: -0.0001158696105 | N198: 4.386077383e-07
A199: 96.61002 | B199: ='DF raw data'!D204 -> -2.2990214e-06 | C199: ='DF raw data'!E204 -> -1.2475828e-06 | D199: ='DF raw data'!F204 -> -2.976419e-06 | F199: -2.302056108e-06 | G199: =(1-$G$1*($B$2-$G$2))*C199*$M$2/$M$1 -> -1.252193255e-06 | H199: -2.980347873e-06 | J199: -9.277368738e-05 | K199: -0.005558355347 | L199: -2.238690033e-05 | M199: -0.0001270661948 | N199: 4.431630787e-07
A200: =A199+$B$1 -> 97.11016 | B200: ='DF raw data'!D205 -> -8.9195311e-07 | C200: ='DF raw data'!E205 -> 4.6033324e-06 | D200: ='DF raw data'!F205 -> -6.9098305e-06 | F200: -8.931304881e-07 | G200: 4.62034406e-06 | H200: -6.918951476e-06 | J200: =F200*$B$1+J199 -> -9.322037766e-05 | K200: =J200*$B$1+K199 -> -0.005604978586 | L200: =G200*$B$1+L199 -> -2.007608146e-05 | M200: =L200*$B$1+M199 -> -0.0001371070462 | N200: =(J200^2+L200^2)*$B$1+N199 -> 4.477108956e-07
A201: 97.6103 | B201: ='DF raw data'!D206 -> 3.6354679e-06 | C201: ='DF raw data'!E206 -> -6.2130748e-06 | D201: ='DF raw data'!F206 -> 1.0291412e-06 | F201: 3.640266718e-06 | G201: -6.236035279e-06 | H201: 1.030499666e-06 | J201: -9.139973466e-05 | K201: -0.00565069125 | L201: -2.319497214e-05 | M201: -0.0001487077795 | N201: 4.521580996e-07
... 1002 more rows

Sheet 10 x=0
A1: dz | B1: ='DF raw data'!H7 -> 0.50015 | C1: mm | F1: T_coeff | G1: -0.0008 | H1: /degC | L1: Hallref | M1: ='PI vs gap'!B44 -> 0.5054 | N1: T | P1: IBy total | Q1: =L1203*1000 -> -9.379134668 | R1: muTm | X1: DF ref | Y1: 19
A2: Tref | B2: ='DF raw data'!H8 -> 21.65 | C2: degC | F2: Tcorr | G2: 20 | H2: degC | L2: NMRref | M2: ='PI vs gap'!B45 -> 0.506599 | N2: T | P2: JBy total | Q2: =M1203 -> -6.127705319 | R2: muTm^2
A3: Encoder | B3: ='DF raw data'!H9 -> 12561949 | P3: PI total | Q3: =N1203 -> 709.1645333 | R3: T^2mm^3
A5: z [mm] | B5: Bx | C5: By | D5: Bz | F5: Bx_corr | G5: By_corr | H5: Bz_corr | J5: Ix | K5: Jx | L5: Iy | M5: Jy | N5: PI
A6: ='PI vs gap'!B53 -> 0.083 | B6: ='DF raw data'!G11 -> 1.4159436e-05 | C6: ='DF raw data'!H11 -> -1.3699233e-05 | D6: ='DF raw data'!I11 -> -4.9071336e-06 | F6: =(1-$G$1*($B$2-$G$2))*B6 -> 1.417812646e-05 | G6: =(1-$G$1*($B$2-$G$2))*C6*$M$2/$M$1 -> -1.374985865e-05 | H6: =(1-$G$1*($B$2-$G$2))*D6 -> -4.913611016e-06 | J6: =F6*$B$1 -> 7.091189947e-06 | K6: =J6*$B$1 -> 3.546658652e-06 | L6: =G6*$B$1 -> -6.876991804e-06 | M6: =L6*$B$1 -> -3.439527451e-06 | N6: =(J6^2+L6)^2*$B$1 -> 2.365325618e-11
A7: =A6+$B$1 -> 0.58315 | B7: ='DF raw data'!G12 -> 1.4160847e-05 | C7: ='DF raw data'!H12 -> -1.4392254e-05 | D7: ='DF raw data'!I12 -> -8.7741892e-06 | F7: =(1-$G$1*($B$2-$G$2))*B7 -> 1.417953932e-05 | G7: =(1-$G$1*($B$2-$G$2))*C7*$M$2/$M$1 -> -1.444544072e-05 | H7: -8.78577113e-06 | J7: =F7*$B$1+J6 -> 1.418308654e-05 | K7: =J7*$B$1+K6 -> 1.064032938e-05 | L7: =G7*$B$1+L6 -> -1.410187898e-05 | M7: =L7*$B$1+M6 -> -1.049258222e-05 | N7: =(J7^2+L7^2)*$B$1+N6 -> 2.237247268e-10
A8: =A7+$B$1 -> 1.0833 | B8: ='DF raw data'!G13 -> 1.3511308e-05 | C8: ='DF raw data'!H13 -> 3.7376967e-06 | D8: ='DF raw data'!I13 -> -5.8318933e-06 | F8: 1.352914293e-05 | G8: 3.751509395e-06 | H8: -5.839591399e-06 | J8: =F8*$B$1+J7 -> 2.094968737e-05 | K8: =J8*$B$1+K7 -> 2.111831552e-05 | L8: =G8*$B$1+L7 -> -1.222556155e-05 | M8: =L8*$B$1+M7 -> -1.660719683e-05 | N8: =(J8^2+L8^2)*$B$1+N7 -> 5.17989858e-10
A9: 1.58345 | B9: ='DF raw data'!G14 -> 1.3740661e-05 | C9: ='DF raw data'!H14 -> -2.3798057e-06 | D9: ='DF raw data'!I14 -> -4.3360874e-06 | F9: 1.375879867e-05 | G9: -2.388600295e-06 | H9: -4.341811035e-06 | J9: 2.783115053e-05 | K9: 3.503806546e-05 | L9: -1.342021999e-05 | M9: -2.331931986e-05 | N9: 9.954706815e-10
A10: 2.0836 | B10: ='DF raw data'!G15 -> 1.4054516e-05 | C10: ='DF raw data'!H15 -> -1.0806399e-05 | D10: ='DF raw data'!I15 -> -3.7568047e-06 | F10: 1.407306796e-05 | G10: -1.084633415e-05 | H10: -3.761763682e-06 | J10: 3.486979547e-05 | K10: 5.247819366e-05 | L10: -1.884501402e-05 | M10: -3.274465362e-05 | N10: 1.781224932e-09
A11: 2.58375 | B11: ='DF raw data'!G16 -> 1.3884361e-05 | C11: ='DF raw data'!H16 -> -5.8725286e-06 | D11: ='DF raw data'!I16 -> -2.7869196e-06 | F11: 1.390268836e-05 | G11: -5.894230587e-06 | H11: -2.790598334e-06 | J11: 4.182322505e-05 | K11: 7.339607967e-05 | L11: -2.179301345e-05 | M11: -4.36444293e-05 | N11: 2.893617344e-09
A12: 3.0839 | B12: ='DF raw data'!G17 -> 1.3428333e-05 | C12: ='DF raw data'!H17 -> 6.7985156e-06 | D12: ='DF raw data'!I17 -> -1.5057544e-06 | F12: 1.34460584e-05 | G12: 6.823639581e-06 | H12: -1.507741996e-06 | J12: 4.854827116e-05 | K12: 9.767749749e-05 | L12: -1.838017011e-05 | M12: -5.283727138e-05 | N12: 4.241404201e-09
A13: 3.58405 | B13: ='DF raw data'!G18 -> 1.3370998e-05 | C13: ='DF raw data'!H18 -> 6.589702e-06 | D13: ='DF raw data'!I18 -> -1.1537511e-05 | F13: 1.338864772e-05 | G13: 6.614054309e-06 | H13: -1.155274051e-05 | J13: 5.524460331e-05 | K13: 0.0001253080858 | L13: -1.507215085e-05 | M13: -6.037560763e-05 | N13: 5.881464035e-09
A14: 4.0842 | B14: ='DF raw data'!G19 -> 1.3332814e-05 | C14: ='DF raw data'!H19 -> 7.4801956e-06 | D14: ='DF raw data'!I19 -> -1.193245e-05 | F14: 1.335041331e-05 | G14: 7.507838737e-06 | H14: -1.194820083e-05 | J14: 6.192181253e-05 | K14: 0.0001562782804 | L14: -1.13171053e-05 | M14: -6.603585785e-05 | N14: 7.863252263e-09
A15: 4.58435 | B15: ='DF raw data'!G20 -> 1.3460507e-05 | C15: ='DF raw data'!H20 -> 4.9562868e-06 | D15: ='DF raw data'!I20 -> -6.013996e-06 | F15: 1.347827487e-05 | G15: 4.974602807e-06 | H15: -6.021934475e-06 | J15: 6.866297171e-05 | K15: 0.0001906200657 | L15: -8.829057711e-06 | M15: -7.045171106e-05 | N15: 1.026024912e-08
A16: 5.0845 | B16: ='DF raw data'!G21 -> 1.3594938e-05 | C16: ='DF raw data'!H21 -> 2.6241132e-06 | D16: ='DF raw data'!I21 -> 2.0160273e-06 | F16: 1.361288332e-05 | G16: 2.633810636e-06 | H16: 2.018688456e-06 | J16: 7.54714553e-05 | K16: 0.000228367114 | L16: -7.511757321e-06 | M16: -7.420871648e-05 | N16: 1.313729551e-08
A17: 5.58465 | B17: ='DF raw data'!G22 -> 1.3464378e-05 | C17: ='DF raw data'!H22 -> 5.4013999e-06 | D17: ='DF raw data'!I22 -> -2.5273571e-06 | F17: 1.348215098e-05 | G17: 5.421360827e-06 | H17: -2.530693211e-06 | J17: 8.221455311e-05 | K17: 0.0002694867228 | L17: -4.800263704e-06 | M17: -7.660956838e-05 | N17: 1.652945048e-08
A18: 6.0848 | B18: ='DF raw data'!G23 -> 1.3746321e-05 | C18: ='DF raw data'!H23 -> -2.9947716e-06 | D18: ='DF raw data'!I23 -> -6.654775e-06 | F18: 1.376446614e-05 | G18: -3.005838808e-06 | H18: -6.663559303e-06 | J18: 8.909885085e-05 | K18: 0.000314049513 | L18: -6.303633983e-06 | M18: -7.976233091e-05 | N18: 2.051981775e-08
A19: 6.58495 | B19: ='DF raw data'!G24 -> 1.3685116e-05 | C19: ='DF raw data'!H24 -> -1.266089e-06 | D19: ='DF raw data'!I24 -> -6.4804722e-06 | F19: 1.370318035e-05 | G19: -1.270767844e-06 | H19: -6.489026423e-06 | J19: 9.595249651e-05 | K19: 0.0003620401542 | L19: -6.939208521e-06 | M19: -8.323297605e-05 | N19: 2.51487231e-08
A20: 7.0851 | B20: ='DF raw data'!G25 -> 1.3994766e-05 | C20: ='DF raw data'!H25 -> -8.076212e-06 | D20: ='DF raw data'!I25 -> 2.9795242e-06 | F20: 1.401323909e-05 | G20: -8.106057721e-06 | H20: 2.983457172e-06 | J20: 0.000102961218 | K20: 0.0004135362074 | L20: -1.099345329e-05 | M20: -8.873135172e-05 | N20: 3.05112656e-08
A21: 7.58525 | B21: ='DF raw data'!G26 -> 1.3685451e-05 | C21: ='DF raw data'!H26 -> -3.4437414e-07 | D21: ='DF raw data'!I26 -> -1.3405029e-06 | F21: 1.37035158e-05 | G21: -3.45646778e-07 | H21: -1.342272364e-06 | J21: 0.0001098150315 | K21: 0.0004684601954 | L21: -1.116632853e-05 | M21: -9.431619093e-05 | N21: 3.660510722e-08
A22: 8.0854 | B22: ='DF raw data'!G27 -> 1.0341566e-05 | C22: ='DF raw data'!H27 -> -4.3154337e-06 | D22: ='DF raw data'!I27 -> -9.5112e-06 | F22: 1.035521687e-05 | G22: -4.331381428e-06 | H22: -9.523754784e-06 | J22: 0.0001149941932 | K22: 0.0005259745411 | L22: -1.333266895e-05 | M22: -0.0001009845253 | N22: 4.33078297e-08
A23: 8.58555 | B23: ='DF raw data'!G28 -> 4.924048e-06 | C23: ='DF raw data'!H28 -> -2.3026848e-06 | D23: ='DF raw data'!I28 -> -4.4238791e-06 | F23: =(1-$G$1*($B$2-$G$2))*B23 -> 4.930547743e-06 | G23: -2.311194394e-06 | H23: -4.42971862e-06 | J23: 0.0001174602066 | K23: 0.0005847222634 | L23: -1.448861282e-05 | M23: -0.000108231005 | N23: 5.031334074e-08
A24: 9.0857 | B24: ='DF raw data'!G29 -> 6.4712367e-06 | C24: ='DF raw data'!H29 -> -1.152824e-05 | D24: ='DF raw data'!I29 -> -3.1443146e-06 | F24: 6.479778732e-06 | G24: -1.157084272e-05 | H24: -3.148465095e-06 | J24: 0.000120701068 | K24: 0.0006450909026 | L24: -2.027576981e-05 | M24: -0.0001183719313 | N24: 5.780551505e-08
A25: 9.58585 | B25: ='DF raw data'!G30 -> 3.6913841e-06 | C25: ='DF raw data'!H30 -> -1.7522977e-06 | D25: ='DF raw data'!I30 -> -7.4407822e-06 | F25: 3.696256727e-06 | G25: -1.758773333e-06 | H25: -7.450604033e-06 | J25: 0.0001225497508 | K25: 0.0007063841604 | L25: -2.115542029e-05 | M25: -0.0001289528147 | N25: 6.554083155e-08
A26: 10.086 | B26: ='DF raw data'!G31 -> -1.2547536e-06 | C26: ='DF raw data'!H31 -> -1.1562785e-06 | D26: ='DF raw data'!I31 -> -9.3689114e-06 | F26: -1.256409875e-06 | G26: -1.160551539e-06 | H26: -9.381278363e-06 | J26: 0.0001219213574 | K26: 0.0007673631273 | L26: -2.173587015e-05 | M26: -0.0001398240102 | N26: 7.321176486e-08
A27: 10.58615 | B27: ='DF raw data'!G32 -> -9.7065652e-07 | C27: ='DF raw data'!H32 -> 7.473257e-06 | D27: ='DF raw data'!I32 -> 3.6986507e-06 | F27: -9.719377866e-07 | G27: 7.500874495e-06 | H27: 3.703532919e-06 | J27: 0.0001214352427 | K27: 0.0008280989639 | L27: -1.798430777e-05 | M27: -0.0001488188617 | N27: 8.07490021e-08
A28: 11.0863 | B28: ='DF raw data'!G33 -> -6.6040974e-07 | C28: ='DF raw data'!H33 -> 4.8668908e-06 | D28: ='DF raw data'!I33 -> 3.3221062e-07 | F28: -6.612814809e-07 | G28: 4.884876443e-06 | H28: 3.32649138e-07 | J28: 0.0001211045028 | K28: 0.000888669381 | L28: -1.554113682e-05 | M28: -0.0001565917613 | N28: 8.820515204e-08
A29: 11.58645 | B29: ='DF raw data'!G34 -> -1.0696532e-06 | C29: ='DF raw data'!H34 -> -4.0048153e-06 | D29: ='DF raw data'!I34 -> -2.693409e-06 | F29: -1.071065142e-06 | G29: -4.019615134e-06 | H29: -2.6969643e-06 | J29: 0.0001205688095 | K29: 0.0009489718711 | L29: -1.755154732e-05 | M29: -0.0001653701677 | N29: 9.562982609e-08
A30: 12.0866 | B30: ='DF raw data'!G35 -> -4.4488129e-07 | C30: ='DF raw data'!H35 -> 5.9763379e-06 | D30: ='DF raw data'!I35 -> -6.6270383e-07 | F30: -4.454685333e-07 | G30: 5.998423516e-06 | H30: -6.635785991e-07 | J30: 0.0001203460084 | K30: 0.001009162927 | L30: -1.45514358e-05 | M30: -0.0001726480683 | N30: 1.029794833e-07
A31: 12.58675 | B31: ='DF raw data'!G36 -> 7.3539542e-07 | C31: ='DF raw data'!H36 -> -4.889037e-06 | D31: ='DF raw data'!I36 -> 3.7063633e-06 | F31: 7.36366142e-07 | G31: -4.907104484e-06 | H31: 3.7112557e-06 | J31: 0.000120714302 | K31: 0.001069538185 | L31: -1.700572411e-05 | M31: -0.0001811534812 | N31: 1.104122812e-07
A32: 13.0869 | B32: ='DF raw data'!G37 -> 2.3765604e-06 | C32: ='DF raw data'!H37 -> -1.9889976e-06 | D32: ='DF raw data'!I37 -> 1.4983721e-06 | F32: 2.37969746e-06 | G32: -1.99634796e-06 | H32: 1.500349951e-06 | J32: 0.0001219045076 | K32: 0.001130508725 | L32: -1.800419754e-05 | M32: -0.0001901582806 | N32: 1.18006989e-07
A33: 13.58705 | B33: ='DF raw data'!G38 -> -7.4792496e-07 | C33: ='DF raw data'!H38 -> -4.4696753e-06 | D33: ='DF raw data'!I38 -> 3.9100173e-06 | F33: -7.489122209e-07 | G33: -4.486193029e-06 | H33: 3.915178523e-06 | J33: 0.0001215299392 | K33: 0.001191291924 | L33: -2.024796699e-05 | M33: -0.0002002853013 | N33: 1.25599019e-07
A34: 14.0872 | B34: ='DF raw data'!G39 -> 1.2025702e-06 | C34: ='DF raw data'!H39 -> 6.649344e-06 | D34: ='DF raw data'!I39 -> -6.0394319e-07 | F34: 1.204157593e-06 | G34: 6.673916716e-06 | H34: -6.04740395e-07 | J34: 0.0001221321986 | K34: 0.001252376343 | L34: -1.691000754e-05 | M34: -0.0002087428416 | N34: 1.332024105e-07
A35: 14.58735 | B35: ='DF raw data'!G40 -> 6.7703368e-06 | C35: ='DF raw data'!H40 -> 1.6291471e-06 | D35: ='DF raw data'!I40 -> 4.4573585e-06 | F35: 6.779273645e-06 | G35: 1.635167629e-06 | H35: 4.463242213e-06 | J35: 0.0001255228523 | K35: 0.001315156598 | L35: -1.609217845e-05 | M35: -0.0002167913446 | N35: 1.412122851e-07
A36: 15.0875 | B36: ='DF raw data'!G41 -> 6.4699707e-06 | C36: ='DF raw data'!H41 -> -2.7111055e-06 | D36: ='DF raw data'!I41 -> 4.4993561e-07 | F36: 6.478511061e-06 | G36: -2.721124417e-06 | H36: 4.50529525e-07 | J36: 0.0001287630796 | K36: 0.001379557452 | L36: -1.745314883e-05 | M36: -0.000225520537 | N36: 1.496570893e-07
A37: 15.58765 | B37: ='DF raw data'!G42 -> 2.0662408e-06 | C37: ='DF raw data'!H42 -> -5.266369e-06 | D37: ='DF raw data'!I42 -> -8.8127808e-06 | F37: 2.068968238e-06 | G37: -5.285830919e-06 | H37: -8.824413671e-06 | J37: 0.0001297978741 | K37: 0.001444475859 | L37: -2.009685716e-05 | M37: -0.0002355719801 | N37: 1.582853629e-07
A38: 16.0878 | B38: ='DF raw data'!G43 -> 4.467e-07 | C38: ='DF raw data'!H43 -> 2.2265003e-06 | D38: ='DF raw data'!I43 -> -3.6800725e-06 | F38: 4.47289644e-07 | G38: 2.234728354e-06 | H38: -3.684930196e-06 | J38: 0.000130021586 | K38: 0.001509506155 | L38: -1.897915778e-05 | M38: -0.0002450644059 | N38: 1.669208634e-07
A39: 16.58795 | B39: ='DF raw data'!G44 -> 2.7264612e-06 | C39: ='DF raw data'!H44 -> 4.5821571e-06 | D39: ='DF raw data'!I44 -> 5.8061464e-06 | F39: 2.730060129e-06 | G39: 4.599090507e-06 | H39: 5.813810513e-06 | J39: 0.0001313870256 | K39: 0.001575219376 | L39: -1.667892266e-05 | M39: -0.0002534063691 | N39: 1.75693863e-07
A40: 17.0881 | B40: ='DF raw data'!G45 -> 1.3540847e-06 | C40: ='DF raw data'!H45 -> -9.6386439e-06 | D40: ='DF raw data'!I45 -> 3.1554277e-06 | F40: 1.355872092e-06 | G40: -9.674263604e-06 | H40: 3.159592865e-06 | J40: 0.000132065165 | K40: 0.001641271768 | L40: -2.15175056e-05 | M40: -0.0002641683495 | N40: 1.846486541e-07
A41: 17.58825 | B41: ='DF raw data'!G46 -> -1.7300046e-06 | C41: ='DF raw data'!H46 -> -1.5154645e-06 | D41: ='DF raw data'!I46 -> -1.8717933e-06 | F41: -1.732288206e-06 | G41: -1.521064914e-06 | H41: -1.874264067e-06 | J41: 0.0001311987611 | K41: 0.001706890828 | L41: -2.227826622e-05 | M41: -0.0002753108243 | N41: 1.935060285e-07
A42: 18.0884 | B42: ='DF raw data'!G47 -> 7.6775888e-07 | C42: ='DF raw data'!H47 -> -2.33763e-07 | D42: ='DF raw data'!I47 -> 2.7570982e-06 | F42: 7.687723217e-07 | G42: -2.346268735e-07 | H42: 2.76073757e-06 | J42: 0.0001315832626 | K42: 0.001772702197 | L42: -2.239561485e-05 | M42: -0.0002865119911 | N42: 2.024165601e-07
A43: 18.58855 | B43: ='DF raw data'!G48 -> 4.230591e-06 | C43: ='DF raw data'!H48 -> -1.0803196e-05 | D43: ='DF raw data'!I48 -> 4.3520026e-06 | F43: 4.23617538e-06 | G43: -1.084311932e-05 | H43: 4.357747243e-06 | J43: 0.0001337019857 | K43: 0.001839573245 | L43: -2.781880098e-05 | M43: -0.0003004255644 | N43: 2.11744411e-07
A44: 19.0887 | B44: ='DF raw data'!G49 -> 3.2499809e-06 | C44: ='DF raw data'!H49 -> -5.0500839e-06 | D44: ='DF raw data'!I49 -> 5.0926806e-06 | F44: 3.254270875e-06 | G44: -5.068746535e-06 | H44: 5.099402938e-06 | J44: 0.0001353296092 | K44: 0.001907258349 | L44: -3.035393455e-05 | M44: -0.0003156070848 | N44: 2.213650286e-07
A45: 19.58885 | B45: ='DF raw data'!G50 -> 1.0057846e-06 | C45: ='DF raw data'!H50 -> -2.3064208e-06 | D45: ='DF raw data'!I50 -> 2.4058295e-06 | F45: 1.007112236e-06 | G45: -2.314944201e-06 | H45: 2.409005195e-06 | J45: 0.0001358333164 | K45: 0.001975195383 | L45: -3.15117539e-05 | M45: -0.0003313676885 | N45: 2.310897854e-07
A46: 20.089 | B46: ='DF raw data'!G51 -> -4.3925684e-06 | C46: ='DF raw data'!H51 -> -3.061085e-06 | D46: ='DF raw data'!I51 -> -6.7275782e-06 | F46: -4.39836659e-06 | G46: -3.07239727e-06 | H46: -6.736458603e-06 | J46: 0.0001336334734 | K46: 0.002042032164 | L46: -3.304841339e-05 | M46: -0.0003478968525 | N46: 2.405676793e-07
A47: 20.58915 | B47: ='DF raw data'!G52 -> -1.0085831e-05 | C47: ='DF raw data'!H52 -> -5.5982023e-06 | D47: ='DF raw data'!I52 -> -1.1332256e-05 | F47: -1.00991443e-05 | G47: -5.618890512e-06 | H47: -1.134721458e-05 | J47: 0.0001285823864 | K47: 0.002106342645 | L47: -3.585870148e-05 | M47: -0.000365831582 | N47: 2.494799905e-07
A48: 21.0893 | B48: ='DF raw data'!G53 -> -1.1840748e-05 | C48: ='DF raw data'!H53 -> -1.8064692e-06 | D48: ='DF raw data'!I53 -> -1.1226507e-05 | F48: -1.185637779e-05 | G48: -1.813145025e-06 | H48: -1.124132599e-05 | J48: 0.000122652419 | K48: 0.002167687252 | L48: -3.676554596e-05 | M48: -0.0003842198698 | N48: 2.576801104e-07
A49: 21.58945 | B49: ='DF raw data'!G54 -> -5.3885451e-06 | C49: ='DF raw data'!H54 -> -1.1211872e-06 | D49: ='DF raw data'!I54 -> -6.6975722e-06 | F49: -5.39565798e-06 | G49: -1.125330558e-06 | H49: -6.706412995e-06 | J49: 0.0001199537807 | K49: 0.002227682136 | L49: -3.732838004e-05 | M49: -0.0004028896591 | N49: 2.655736365e-07
A50: 22.0896 | B50: ='DF raw data'!G55 -> -3.1807288e-06 | C50: ='DF raw data'!H55 -> 1.8697161e-06 | D50: ='DF raw data'!I55 -> -4.5192523e-06 | F50: -3.184927362e-06 | G50: 1.876625654e-06 | H50: -4.525217713e-06 | J50: 0.0001183608393 | K50: 0.002286880309 | L50: -3.638978572e-05 | M50: -0.0004210900104 | N50: 2.732426889e-07
A51: 22.58975 | B51: ='DF raw data'!G56 -> -7.4396812e-06 | C51: ='DF raw data'!H56 -> 7.8708699e-06 | D51: ='DF raw data'!I56 -> 2.3869993e-06 | F51: -7.449501579e-06 | G51: 7.899956777e-06 | H51: 2.390150139e-06 | J51: 0.000114634971 | K51: 0.00234421499 | L51: -3.243862234e-05 | M51: -0.0004373141874 | N51: 2.803415383e-07
A52: 23.0899 | B52: ='DF raw data'!G57 -> -2.7454664e-06 | C52: ='DF raw data'!H57 -> -5.260365e-06 | D52: ='DF raw data'!I57 -> 1.8017213e-06 | F52: -2.749090416e-06 | G52: -5.279804731e-06 | H52: 1.804099572e-06 | J52: 0.0001132600135 | K52: 0.002400861986 | L52: -3.507931668e-05 | M52: -0.0004548591076 | N52: 2.873728416e-07
A53: 23.59005 | B53: ='DF raw data'!G58 -> 1.7179408e-06 | C53: ='DF raw data'!H58 -> -6.989314e-06 | D53: ='DF raw data'!I58 -> -1.2063924e-06 | F53: 1.720208482e-06 | G53: -7.015143079e-06 | H53: -1.207984838e-06 | J53: 0.0001141203757 | K53: 0.002457939292 | L53: -3.858794049e-05 | M53: -0.0004741588661 | N53: 2.946312631e-07
A54: 24.0902 | B54: ='DF raw data'!G59 -> 2.1318554e-06 | C54: ='DF raw data'!H59 -> 4.8512793e-06 | D54: ='DF raw data'!I59 -> 3.1347931e-06 | F54: 2.134669449e-06 | G54: 4.86920725e-06 | H54: 3.138931027e-06 | J54: 0.0001151880307 | K54: 0.002515550585 | L54: -3.615260648e-05 | M54: -0.0004922405922 | N54: 3.019210961e-07
A55: 24.59035 | B55: ='DF raw data'!G60 -> -2.6130888e-07 | C55: ='DF raw data'!H60 -> -3.0833671e-06 | D55: ='DF raw data'!I60 -> -5.4723438e-07 | F55: -2.616538077e-07 | G55: -3.094761714e-06 | H55: -5.479567294e-07 | J55: 0.0001150571645 | K55: 0.002573096426 | L55: -3.770045155e-05 | M55: -0.000511096473 | N55: 3.092530326e-07
A56: 25.0905 | B56: ='DF raw data'!G61 -> -6.6806097e-06 | C56: ='DF raw data'!H61 -> 1.7845897e-06 | D56: ='DF raw data'!I61 -> -1.9520617e-06 | F56: -6.689428105e-06 | G56: 1.791184669e-06 | H56: -1.954638421e-06 | J56: 0.000111711447 | K56: 0.002628968906 | L56: -3.680459054e-05 | M56: -0.000529504289 | N56: 3.161721203e-07
A57: 25.59065 | B57: ='DF raw data'!G62 -> -5.3294643e-06 | C57: ='DF raw data'!H62 -> -2.8633337e-07 | D57: ='DF raw data'!I62 -> -7.0363262e-06 | F57: -5.336499193e-06 | G57: -2.873915178e-07 | H57: -7.045614151e-06 | J57: 0.000109042397 | K57: 0.002683506461 | L57: -3.694832941e-05 | M57: -0.0005479839959 | N57: 3.228018203e-07
A58: 26.0908 | B58: ='DF raw data'!G63 -> -1.1178491e-06 | C58: ='DF raw data'!H63 -> 6.0562718e-07 | D58: ='DF raw data'!I63 -> -4.1155968e-06 | F58: -1.119324661e-06 | G58: 6.078652812e-07 | H58: -4.121029388e-06 | J58: 0.0001084825667 | K58: 0.002737764017 | L58: -3.664430559e-05 | M58: -0.0005663116454 | N58: 3.293594232e-07
A59: 26.59095 | B59: ='DF raw data'!G64 -> -2.4364856e-06 | C59: ='DF raw data'!H64 -> 4.7267922e-06 | D59: ='DF raw data'!I64 -> 2.6975372e-06 | F59: -2.439701761e-06 | G59: 4.744260107e-06 | H59: 2.701097949e-06 | J59: 0.0001072623499 | K59: 0.002791411281 | L59: -3.427146389e-05 | M59: -0.000583452518 | N59: 3.357011977e-07
A60: 27.0911 | B60: ='DF raw data'!G65 -> -7.0083479e-06 | C60: ='DF raw data'!H65 -> -5.5385487e-07 | D60: ='DF raw data'!I65 -> 3.1616269e-06 | F60: -7.017598919e-06 | G60: -5.559016461e-07 | H60: 3.165800248e-06 | J60: 0.0001037524978 | K60: 0.002843303093 | L60: -3.45494981e-05 | M60: -0.0006007324495 | N60: 3.416821157e-07
A61: 27.59125 | B61: ='DF raw data'!G66 -> -9.1601541e-06 | C61: ='DF raw data'!H66 -> -5.575253e-06 | D61: ='DF raw data'!I66 -> -5.1026677e-06 | F61: -9.172245503e-06 | G61: -5.595856402e-06 | H61: -5.109403221e-06 | J61: 9.916499922e-05 | K61: 0.002892900467 | L61: -3.734826568e-05 | M61: -0.0006194121846 | N61: 3.47298095e-07
A62: 28.0914 | B62: ='DF raw data'!G67 -> -4.6630448e-06 | C62: ='DF raw data'!H67 -> -3.0394697e-06 | D62: ='DF raw data'!I67 -> -8.876882e-06 | F62: -4.669200019e-06 | G62: -3.05070209e-06 | H62: -8.888599484e-06 | J62: 9.682969883e-05 | K62: 0.002941329841 | L62: -3.887407433e-05 | M62: -0.0006388550529 | N62: 3.527433202e-07
A63: 28.59155 | B63: ='DF raw data'!G68 -> 3.0503868e-06 | C63: ='DF raw data'!H68 -> 4.0046843e-06 | D63: ='DF raw data'!I68 -> 4.3173982e-06 | F63: 3.054413311e-06 | G63: 4.01948365e-06 | H63: 4.323097166e-06 | J63: 9.835736365e-05 | K63: 0.002990523277 | L63: -3.686372958e-05 | M63: -0.0006572924472 | N63: 3.58261528e-07
A64: 29.0917 | B64: ='DF raw data'!G69 -> 1.6122793e-06 | C64: ='DF raw data'!H69 -> 1.930292e-06 | D64: ='DF raw data'!I69 -> 9.9731014e-06 | F64: 1.614407509e-06 | G64: 1.937425413e-06 | H64: 9.986265894e-06 | J64: 9.916480956e-05 | K64: 0.003040120556 | L64: -3.589472626e-05 | M64: -0.0006752451946 | N64: 3.638242417e-07
A65: 29.59185 | B65: ='DF raw data'!G70 -> 3.3216187e-07 | C65: ='DF raw data'!H70 -> -3.7790564e-06 | D65: ='DF raw data'!I70 -> 6.5136896e-06 | F65: 3.326003237e-07 | G65: -3.79302194e-06 | H65: 6.52228767e-06 | J65: 9.933115961e-05 | K65: 0.003089801036 | L65: -3.779180619e-05 | M65: -0.0006941467664 | N65: 3.694733859e-07
A66: 30.092 | B66: ='DF raw data'!G71 -> 3.7811694e-06 | C66: ='DF raw data'!H71 -> -1.6096641e-06 | D66: ='DF raw data'!I71 -> -4.2376e-06 | F66: 3.786160544e-06 | G66: -1.61561263e-06 | H66: -4.243193632e-06 | J66: 0.0001012248078 | K66: 0.003140428623 | L66: -3.859985484e-05 | M66: -0.0007134524838 | N66: 3.753433516e-07
A67: 30.59215 | B67: ='DF raw data'!G72 -> 3.4314724e-06 | C67: ='DF raw data'!H72 -> -6.8123895e-06 | D67: ='DF raw data'!I72 -> 7.1163726e-07 | F67: 3.436001944e-06 | G67: -6.837564753e-06 | H67: 7.125766212e-07 | J67: 0.0001029433242 | K67: 0.003191915727 | L67: -4.201966286e-05 | M67: -0.0007344686182 | N67: 3.815266961e-07
A68: 31.0923 | B68: ='DF raw data'!G73 -> 3.1410452e-06 | C68: ='DF raw data'!H73 -> 1.3167943e-06 | D68: ='DF raw data'!I73 -> 1.8730693e-06 | F68: 3.14519138e-06 | G68: 1.321660526e-06 | H68: 1.875541751e-06 | J68: 0.0001045163916 | K68: 0.0032441896 | L68: -4.135863434e-05 | M68: -0.0007551541392 | N68: 3.878456976e-07
A69: 31.59245 | B69: ='DF raw data'!G74 -> 6.4051565e-06 | C69: ='DF raw data'!H74 -> 6.1297787e-06 | D69: ='DF raw data'!I74 -> 2.7006658e-06 | F69: 6.413611307e-06 | G69: 6.152431358e-06 | H69: 2.704230679e-06 | J69: 0.0001077241593 | K69: 0.003298067838 | L69: -3.82814958e-05 | M69: -0.0007743006293 | N69: 3.943826418e-07
A70: 32.0926 | B70: ='DF raw data'!G75 -> 7.2042749e-06 | C70: ='DF raw data'!H75 -> -1.7038509e-07 | D70: ='DF raw data'!I75 -> 3.995408e-06 | F70: 7.213784543e-06 | G70: -1.710147498e-07 | H70: 4.000681939e-06 | J70: 0.0001113321337 | K70: 0.003353750605 | L70: -3.836702883e-05 | M70: -0.0007934898988 | N70: 4.013181583e-07
A71: 32.59275 | B71: ='DF raw data'!G76 -> 2.4013277e-06 | C71: ='DF raw data'!H76 -> -3.5155379e-06 | D71: ='DF raw data'!I76 -> -2.6927396e-06 | F71: 2.404497453e-06 | G71: =(1-$G$1*($B$2-$G$2))*C71*$M$2/$M$1 -> -3.528529605e-06 | H71: -2.696294016e-06 | J71: 0.0001125347431 | K71: 0.003410034857 | L71: -4.013182291e-05 | M71: -0.00081356183 | N71: 4.084576153e-07
A72: =A71+$B$1 -> 33.0929 | B72: ='DF raw data'!G77 -> -1.090608e-06 | C72: ='DF raw data'!H77 -> -1.2434065e-06 | D72: ='DF raw data'!I77 -> 7.0304718e-06 | F72: -1.092047603e-06 | G72: -1.248001521e-06 | H72: 7.039752023e-06 | J72: =F72*$B$1+J71 -> 0.0001119885555 | K72: =J72*$B$1+K71 -> 0.003466045933 | L72: =G72*$B$1+L71 -> -4.075601087e-05 | M72: =L72*$B$1+M71 -> -0.0008339459488 | N72: =(J72^2+L72^2)*$B$1+N71 -> 4.155609901e-07
A73: 33.59305 | B73: ='DF raw data'!G78 -> -6.471966e-07 | C73: ='DF raw data'!H78 -> -2.2421088e-06 | D73: ='DF raw data'!I78 -> 1.5939475e-05 | F73: -6.480508995e-07 | G73: -2.250394535e-06 | H73: 1.596051511e-05 | J73: 0.0001116644328 | K73: 0.003521894899 | L73: -4.18815457e-05 | M73: -0.0008548930039 | N73: 4.226746283e-07
A74: 34.0932 | B74: ='DF raw data'!G79 -> -1.2481192e-07 | C74: ='DF raw data'!H79 -> -1.2628747e-05 | D74: ='DF raw data'!I79 -> 1.9058839e-06 | F74: -1.249766717e-07 | G74: -1.267541666e-05 | H74: 1.908399667e-06 | J74: 0.0001116019257 | K74: 0.003577712602 | L74: -4.822115534e-05 | M74: -0.0008790108148 | N74: 4.300669801e-07
A75: 34.59335 | B75: ='DF raw data'!G80 -> -3.9227161e-06 | C75: ='DF raw data'!H80 -> -8.2476654e-06 | D75: ='DF raw data'!I80 -> 8.9124269e-06 | F75: -3.927894085e-06 | G75: -8.278144729e-06 | H75: 8.924191304e-06 | J75: 0.0001096373895 | K75: 0.003632547743 | L75: -5.236146942e-05 | M75: -0.0009051994037 | N75: 4.374502348e-07
A76: 35.0935 | B76: ='DF raw data'!G81 -> -8.3237828e-06 | C76: ='DF raw data'!H81 -> 1.6255445e-06 | D76: ='DF raw data'!I81 -> 6.6632979e-06 | F76: -8.334770193e-06 | G76: 1.631551716e-06 | H76: 6.672093453e-06 | J76: 0.0001054687542 | K76: 0.00368529794 | L76: -5.154544883e-05 | M76: -0.0009309798599 | N76: 4.443425976e-07
A77: 35.59365 | B77: ='DF raw data'!G82 -> -8.0619939e-06 | C77: ='DF raw data'!H82 -> -2.3744687e-06 | D77: ='DF raw data'!I82 -> -3.2384801e-06 | F77: -8.072635732e-06 | G77: -2.383243572e-06 | H77: -3.242754894e-06 | J77: 0.0001014312254 | K77: 0.003736028767 | L77: -5.273742811e-05 | M77: -0.0009573564846 | N77: 4.508793229e-07
A78: 36.0938 | B78: ='DF raw data'!G83 -> -7.0803799e-06 | C78: ='DF raw data'!H83 -> 3.5049998e-06 | D78: ='DF raw data'!I83 -> -2.0820394e-06 | F78: -7.089726001e-06 | G78: 3.517952561e-06 | H78: -2.084787692e-06 | J78: 9.788529898e-05 | K78: 0.0037849861 | L78: -5.097792413e-05 | M78: -0.0009828530934 | N78: 4.569712902e-07
A79: 36.59395 | B79: ='DF raw data'!G84 -> -6.2205072e-06 | C79: ='DF raw data'!H84 -> 9.2007385e-06 | D79: ='DF raw data'!I84 -> 8.4774132e-07 | F79: -6.22871827e-06 | G79: 9.23473992e-06 | H79: 8.488603385e-07 | J79: 9.477000553e-05 | K79: 0.003832385318 | L79: -4.635916896e-05 | M79: -0.001006039632 | N79: 4.62538223e-07
A80: 37.0941 | B80: ='DF raw data'!G85 -> -1.3779646e-06 | C80: ='DF raw data'!H85 -> 5.5180153e-06 | D80: ='DF raw data'!I85 -> -2.8701711e-06 | F80: -1.379783513e-06 | G80: 5.53840718e-06 | H80: -2.873959726e-06 | J80: 9.407990681e-05 | K80: 0.003879439383 | L80: -4.358913461e-05 | M80: -0.001027840737 | N80: 4.679153565e-07
A81: 37.59425 | B81: ='DF raw data'!G86 -> -2.1415765e-06 | C81: ='DF raw data'!H86 -> 2.4435863e-06 | D81: ='DF raw data'!I86 -> -7.5769444e-06 | F81: -2.144403381e-06 | G81: 2.452616597e-06 | H81: -7.586945967e-06 | J81: 9.300738346e-05 | K81: 0.003925957026 | L81: -4.236245842e-05 | M81: -0.001049028321 | N81: 4.731393988e-07
A82: 38.0944 | B82: ='DF raw data'!G87 -> -9.542433e-06 | C82: ='DF raw data'!H87 -> 6.033044e-06 | D82: ='DF raw data'!I87 -> 1.0149865e-06 | F82: -9.555029012e-06 | G82: 6.055339174e-06 | H82: 1.016326282e-06 | J82: 8.82284357e-05 | K82: 0.003970084478 | L82: -3.933388053e-05 | M82: -0.001068701161 | N82: 4.778065041e-07
A83: 38.59455 | B83: ='DF raw data'!G88 -> -9.4227435e-06 | C83: ='DF raw data'!H88 -> 2.5632708e-06 | D83: ='DF raw data'!I88 -> 7.3099995e-06 | F83: -9.435181521e-06 | G83: 2.572743392e-06 | H83: 7.319648699e-06 | J83: 8.350942966e-05 | K83: 0.004011851719 | L83: -3.804712292e-05 | M83: -0.00108773043 | N83: 4.820184715e-07
A84: 39.0947 | B84: ='DF raw data'!G89 -> -6.1817991e-06 | C84: ='DF raw data'!H89 -> 1.0108457e-06 | D84: ='DF raw data'!I89 -> 4.8356501e-06 | F84: -6.189959075e-06 | G84: 1.01458129e-06 | H84: 4.842033158e-06 | J84: 8.041352163e-05 | K84: 0.004052070542 | L84: -3.753968009e-05 | M84: -0.001106505901 | N84: 4.859574338e-07
A85: 39.59485 | B85: ='DF raw data'!G90 -> -7.2424446e-06 | C85: ='DF raw data'!H90 -> 1.3322716e-06 | D85: ='DF raw data'!I90 -> 3.1142313e-06 | F85: -7.252004627e-06 | G85: 1.337195023e-06 | H85: 3.118342085e-06 | J85: 7.678643152e-05 | K85: 0.004090475276 | L85: -3.6870882e-05 | M85: -0.001124946872 | N85: 4.895863312e-07
A86: 40.095 | B86: ='DF raw data'!G91 -> -1.1469077e-05 | C86: ='DF raw data'!H91 -> -2.242776e-06 | D86: ='DF raw data'!I91 -> -1.5749051e-06 | F86: -1.148421618e-05 | G86: -2.251064201e-06 | H86: -1.576983975e-06 | J86: 7.104260079e-05 | K86: 0.004126007233 | L86: -3.799675176e-05 | M86: -0.001143950948 | N86: 4.928327069e-07
A87: 40.59515 | B87: ='DF raw data'!G92 -> -9.5601135e-06 | C87: ='DF raw data'!H92 -> -6.4690817e-06 | D87: ='DF raw data'!I92 -> -1.6032523e-06 | F87: =(1-$G$1*($B$2-$G$2))*B87 -> -9.57273285e-06 | G87: -6.492988255e-06 | H87: -1.605368593e-06 | J87: 6.625479846e-05 | K87: 0.00415914457 | L87: -4.124421984e-05 | M87: -0.001164579244 | N87: 4.958790125e-07
A88: 41.0953 | B88: ='DF raw data'!G93 -> 7.5436986e-08 | C88: ='DF raw data'!H93 -> 9.8786822e-06 | D88: ='DF raw data'!I93 -> -5.9826366e-06 | F88: 7.553656282e-08 | G88: 9.915188967e-06 | H88: -5.99053368e-06 | J88: 6.629257807e-05 | K88: 0.004192300803 | L88: -3.628513808e-05 | M88: -0.001182727256 | N88: 4.987355278e-07
A89: 41.59545 | B89: ='DF raw data'!G94 -> 9.7798038e-06 | C89: ='DF raw data'!H94 -> -1.6551627e-06 | D89: ='DF raw data'!I94 -> -8.3972218e-06 | F89: 9.792713141e-06 | G89: -1.66127937e-06 | H89: -8.408306133e-06 | J89: 7.119040355e-05 | K89: 0.004227906684 | L89: -3.711602695e-05 | M89: -0.001201290837 | N89: 5.019593312e-07
A90: 42.0956 | B90: ='DF raw data'!G95 -> 1.2104094e-05 | C90: ='DF raw data'!H95 -> -1.7800505e-06 | D90: ='DF raw data'!I95 -> -1.0385799e-05 | F90: 1.21200714e-05 | G90: -1.786628694e-06 | H90: -1.039950825e-05 | J90: 7.725225726e-05 | K90: 0.0042665444 | L90: -3.800960929e-05 | M90: -0.001220301343 | N90: 5.056667639e-07
A91: 42.59575 | B91: ='DF raw data'!G96 -> 6.4235792e-06 | C91: ='DF raw data'!H96 -> 5.7090829e-06 | D91: ='DF raw data'!I96 -> -5.420467e-06 | F91: 6.432058325e-06 | G91: 5.730180872e-06 | H91: -5.427622016e-06 | J91: 8.046925123e-05 | K91: 0.004306791096 | L91: -3.514365933e-05 | M91: -0.001237878444 | N91: 5.09523109e-07
A92: 43.0959 | B92: ='DF raw data'!G97 -> 3.2396927e-06 | C92: ='DF raw data'!H97 -> -3.7927994e-06 | D92: ='DF raw data'!I97 -> 2.7694236e-06 | F92: 3.243969094e-06 | G92: -3.806815728e-06 | H92: 2.773079239e-06 | J92: 8.209172237e-05 | K92: 0.004347849271 | L92: -3.704763822e-05 | M92: -0.001256407821 | N92: 5.13580115e-07
A93: 43.59605 | B93: ='DF raw data'!G98 -> 2.958084e-06 | C93: ='DF raw data'!H98 -> 3.3028573e-06 | D93: ='DF raw data'!I98 -> -3.8803643e-07 | F93: 2.961988671e-06 | G93: 3.315063042e-06 | H93: -3.885486381e-07 | J93: 8.357316101e-05 | K93: 0.004389648387 | L93: -3.538960944e-05 | M93: -0.001274107934 | N93: 5.176997994e-07
A94: 44.0962 | B94: ='DF raw data'!G99 -> 1.9557626e-06 | C94: ='DF raw data'!H99 -> 4.2511247e-06 | D94: ='DF raw data'!I99 -> 3.6125907e-06 | F94: 1.958344207e-06 | G94: 4.266834773e-06 | H94: 3.61735932e-06 | J94: 8.455262686e-05 | K94: 0.004431937384 | L94: -3.325555202e-05 | M94: -0.001290740698 | N94: 5.218285768e-07
A95: 44.59635 | B95: ='DF raw data'!G100 -> 2.6415507e-06 | C95: ='DF raw data'!H100 -> -1.4809069e-06 | D95: ='DF raw data'!I100 -> -1.9510713e-07 | F95: 2.645037547e-06 | G95: -1.486379606e-06 | H95: -1.953646714e-07 | J95: 8.587554239e-05 | K95: 0.004474888036 | L95: -3.399896478e-05 | M95: -0.00130774528 | N95: 5.260951256e-07
A96: 45.0965 | B96: ='DF raw data'!G101 -> 7.1378599e-06 | C96: ='DF raw data'!H101 -> 3.4731106e-06 | D96: ='DF raw data'!I101 -> 1.6007884e-06 | F96: 7.147281875e-06 | G96: 3.485945514e-06 | H96: 1.602901441e-06 | J96: 8.945025542e-05 | K96: 0.004519626582 | L96: -3.225546914e-05 | M96: -0.001323877853 | N96: 5.306173636e-07
A97: 45.59665 | B97: ='DF raw data'!G102 -> 9.4373827e-06 | C97: ='DF raw data'!H102 -> -5.011123e-06 | D97: ='DF raw data'!I102 -> 4.1936778e-06 | F97: 9.449840045e-06 | G97: -5.029641654e-06 | H97: 4.199213455e-06 | J97: 9.417659292e-05 | K97: 0.004566729004 | L97: -3.477104441e-05 | M97: -0.001341268591 | N97: 5.356580034e-07
A98: 46.0968 | B98: ='DF raw data'!G103 -> 3.550216e-06 | C98: ='DF raw data'!H103 -> 1.7633748e-06 | D98: ='DF raw data'!I103 -> 5.0233989e-06 | F98: 3.554902285e-06 | G98: 1.769891369e-06 | H98: 5.030029787e-06 | J98: 9.59545773e-05 | K98: 0.004614720686 | L98: -3.388583324e-05 | M98: -0.001358216591 | N98: 5.408373221e-07
A99: 46.59695 | B99: ='DF raw data'!G104 -> -5.6173594e-06 | C99: ='DF raw data'!H104 -> 8.6962509e-06 | D99: ='DF raw data'!I104 -> 2.4544765e-06 | F99: -5.624774314e-06 | G99: 8.728387981e-06 | H99: 2.457716409e-06 | J99: 9.314134642e-05 | K99: 0.004661305331 | L99: -2.952032999e-05 | M99: -0.001372981184 | N99: 5.456121342e-07
A100: 47.0971 | B100: ='DF raw data'!G105 -> -3.6610002e-06 | C100: ='DF raw data'!H105 -> 1.5664365e-06 | D100: ='DF raw data'!I105 -> -4.4988215e-06 | F100: -3.66583272e-06 | G100: 1.572225282e-06 | H100: -4.504759944e-06 | J100: 9.130788019e-05 | K100: 0.004706972967 | L100: -2.873398152e-05 | M100: -0.001387352485 | N100: 5.50194894e-07
A101: 47.59725 | B101: ='DF raw data'!G106 -> 3.2814858e-06 | C101: ='DF raw data'!H106 -> -3.7962686e-06 | D101: ='DF raw data'!I106 -> -4.8817697e-06 | F101: 3.285817361e-06 | G101: -3.810297748e-06 | H101: -4.888213636e-06 | J101: 9.295128174e-05 | K101: 0.004753462551 | L101: -3.063970194e-05 | M101: -0.001402676931 | N101: 5.549856969e-07
A102: 48.0974 | B102: ='DF raw data'!G107 -> 8.1649341e-06 | C102: ='DF raw data'!H107 -> -3.0665553e-06 | D102: ='DF raw data'!I107 -> 2.6305838e-06 | F102: 8.175711813e-06 | G102: -3.077887785e-06 | H102: 2.634056171e-06 | J102: 9.704036401e-05 | K102: 0.004801997289 | L102: -3.217910751e-05 | M102: -0.001418771312 | N102: 5.602134283e-07
A103: 48.59755 | B103: ='DF raw data'!G108 -> 1.1842494e-05 | C103: ='DF raw data'!H108 -> -5.1753718e-06 | D103: ='DF raw data'!I108 -> 5.9937643e-06 | F103: 1.185812609e-05 | G103: -5.194497437e-06 | H103: 6.001676069e-06 | J103: 0.0001029712058 | K103: 0.004853498337 | L103: -3.477713541e-05 | M103: -0.001436165096 | N103: 5.661214594e-07
A104: 49.0977 | B104: ='DF raw data'!G109 -> 1.081363e-05 | C104: ='DF raw data'!H109 -> 8.1577502e-07 | D104: ='DF raw data'!I109 -> -3.578049e-06 | F104: 1.082790399e-05 | G104: 8.187897246e-07 | H104: -3.582772025e-06 | J104: 0.000108386782 | K104: 0.004907707986 | L104: -3.436761772e-05 | M104: -0.00145335406 | N104: 5.725878125e-07
A105: 49.59785 | B105: ='DF raw data'!G110 -> 4.2536267e-06 | C105: ='DF raw data'!H110 -> 2.4802789e-06 | D105: ='DF raw data'!I110 -> -8.9541527e-06 | F105: 4.259241487e-06 | G105: 2.489444795e-06 | H105: -8.965972182e-06 | J105: 0.0001105170416 | K105: 0.004962983085 | L105: -3.312252191e-05 | M105: -0.00146992029 | N105: 5.792453682e-07
A106: 50.098 | B106: ='DF raw data'!G111 -> -4.1224412e-06 | C106: ='DF raw data'!H111 -> -9.4759855e-07 | D106: ='DF raw data'!I111 -> -6.6640155e-06 | F106: -4.127882822e-06 | G106: -9.511004098e-07 | H106: -6.672812e-06 | J106: 0.000108452481 | K106: 0.005017225593 | L106: -3.359821478e-05 | M106: -0.001486724437 | N106: 5.856926921e-07
A107: 50.59815 | B107: ='DF raw data'!G112 -> -5.2596442e-06 | C107: ='DF raw data'!H112 -> 1.26541e-05 | D107: ='DF raw data'!I112 -> -3.7980012e-06 | F107: -5.26658693e-06 | G107: 1.270086335e-05 | H107: -3.803014562e-06 | J107: 0.0001058183975 | K107: 0.005070150664 | L107: -2.724587798e-05 | M107: -0.001500351463 | N107: 5.916644187e-07
A108: 51.0983 | B108: ='DF raw data'!G113 -> -3.3490799e-06 | C108: ='DF raw data'!H113 -> 7.7056875e-06 | D108: ='DF raw data'!I113 -> -1.5435457e-06 | F108: -3.353500685e-06 | G108: 7.734163944e-06 | H108: -1.54558318e-06 | J108: 0.0001041411442 | K108: 0.005122236858 | L108: -2.337763588e-05 | M108: -0.001512043787 | N108: 5.973620733e-07
A109: 51.59845 | B109: ='DF raw data'!G114 -> -2.5397472e-07 | C109: ='DF raw data'!H114 -> -1.9026574e-07 | D109: ='DF raw data'!I114 -> -6.5055597e-06 | F109: -2.543099666e-07 | G109: -1.909688689e-07 | H109: -6.514147039e-06 | J109: 0.000104013951 | K109: 0.005174259435 | L109: -2.347314896e-05 | M109: -0.001523783883 | N109: 6.030487242e-07
A110: 52.0986 | B110: ='DF raw data'!G115 -> 4.4296016e-07 | C110: ='DF raw data'!H115 -> -4.8752941e-06 | D110: ='DF raw data'!I115 -> 3.5667376e-06 | F110: 4.435448674e-07 | G110: -4.893310797e-06 | H110: 3.571445694e-06 | J110: 0.00010423579 | K110: 0.005226392966 | L110: -2.592053835e-05 | M110: -0.00153674804 | N110: 6.088189418e-07
A111: 52.59875 | B111: ='DF raw data'!G116 -> 1.1228244e-07 | C111: ='DF raw data'!H116 -> -8.7287924e-07 | D111: ='DF raw data'!I116 -> 6.4607789e-06 | F111: 1.124306528e-07 | G111: -8.761049738e-07 | H111: 6.469307128e-06 | J111: 0.0001042920222 | K111: 0.005278554621 | L111: -2.635872226e-05 | M111: -0.001549931355 | N111: 6.146064816e-07
A112: 53.0989 | B112: ='DF raw data'!G117 -> 4.3066248e-06 | C112: ='DF raw data'!H117 -> -3.4824479e-06 | D112: ='DF raw data'!I117 -> 7.0995643e-06 | F112: 4.312309545e-06 | G112: -3.495317321e-06 | H112: 7.108935725e-06 | J112: 0.0001064488238 | K112: 0.005331795 | L112: -2.810690521e-05 | M112: -0.001563989024 | N112: 6.206689749e-07
A113: 53.59905 | B113: ='DF raw data'!G118 -> 3.012741e-06 | C113: ='DF raw data'!H118 -> 5.6741255e-06 | D113: ='DF raw data'!I118 -> 3.122555e-06 | F113: 3.016717818e-06 | G113: 5.695094287e-06 | H113: 3.126676773e-06 | J113: 0.0001079576352 | K113: 0.005385790011 | L113: -2.525850381e-05 | M113: -0.001576622064 | N113: 6.268172404e-07
A114: 54.0992 | B114: ='DF raw data'!G119 -> -1.9357251e-06 | C114: ='DF raw data'!H119 -> 4.0700634e-06 | D114: ='DF raw data'!I119 -> -1.3284539e-06 | F114: -1.938280257e-06 | G114: 4.085104359e-06 | H114: -1.330207459e-06 | J114: 0.0001069882044 | K114: 0.005439300161 | L114: -2.321533886e-05 | M114: -0.001588233216 | N114: 6.328117521e-07
A115: 54.59935 | B115: ='DF raw data'!G120 -> -1.5547849e-06 | C115: ='DF raw data'!H120 -> 2.7993167e-07 | D115: ='DF raw data'!I120 -> -1.7520601e-06 | F115: -1.556837216e-06 | G115: 2.809661602e-07 | H115: -1.754372819e-06 | J115: 0.0001062095522 | K115: 0.005492420869 | L115: -2.307481364e-05 | M115: -0.001599774084 | N115: 6.387199821e-07
A116: 55.0995 | B116: ='DF raw data'!G121 -> 3.3955582e-06 | C116: ='DF raw data'!H121 -> -2.8255859e-06 | D116: ='DF raw data'!I121 -> 2.1418723e-06 | F116: 3.400040337e-06 | G116: -2.836027881e-06 | H116: 2.144699571e-06 | J116: 0.0001079100824 | K116: 0.005546392097 | L116: -2.449325298e-05 | M116: -0.001612024385 | N116: 6.448440714e-07
A117: 55.59965 | B117: ='DF raw data'!G122 -> 5.2625983e-06 | C117: ='DF raw data'!H122 -> -2.5005572e-06 | D117: ='DF raw data'!I122 -> 7.0517031e-06 | F117: 5.26954493e-06 | G117: -2.509798034e-06 | H117: 7.061011348e-06 | J117: 0.0001105456453 | K117: 0.005601681501 | L117: -2.574852847e-05 | M117: -0.001624902511 | N117: 6.512876671e-07
A118: 56.0998 | B118: ='DF raw data'!G123 -> 3.0384253e-08 | C118: ='DF raw data'!H123 -> 1.0443213e-05 | D118: ='DF raw data'!I123 -> -2.4791029e-06 | F118: 3.042436021e-08 | G118: 1.0481806e-05 | H118: -2.482375316e-06 | J118: 0.000110560862 | K118: 0.005656978516 | L118: -2.05060532e-05 | M118: -0.001635158614 | N118: 6.576116649e-07
A119: 56.59995 | B119: ='DF raw data'!G124 -> -5.4991397e-06 | C119: ='DF raw data'!H124 -> -1.8143413e-06 | D119: ='DF raw data'!I124 -> -1.0590181e-05 | F119: -5.506398564e-06 | G119: -1.821046216e-06 | H119: -1.060416004e-05 | J119: 0.0001078068368 | K119: 0.005710898106 | L119: -2.141684946e-05 | M119: -0.001645870251 | N119: 6.636539748e-07
A120: 57.1001 | B120: ='DF raw data'!G125 -> -2.9658697e-06 | C120: ='DF raw data'!H125 -> -3.7561069e-06 | D120: ='DF raw data'!I125 -> -3.1852346e-06 | F120: -2.969784648e-06 | G120: -3.76998763e-06 | H120: -3.18943911e-06 | J120: 0.000106321499 | K120: 0.005764074803 | L120: -2.330240878e-05 | M120: -0.001657524951 | N120: 6.695793836e-07
A121: 57.60025 | B121: ='DF raw data'!G126 -> 2.2781749e-06 | C121: ='DF raw data'!H126 -> 6.9702503e-07 | D121: ='DF raw data'!I126 -> 7.2773167e-07 | F121: 2.281182091e-06 | G121: 6.996008929e-07 | H121: 7.286922758e-07 | J121: 0.0001074624322 | K121: 0.005817822139 | L121: -2.295250339e-05 | M121: -0.001669004645 | N121: 6.756186908e-07
A122: 58.1004 | B122: ='DF raw data'!G127 -> 5.4419652e-06 | C122: ='DF raw data'!H127 -> -4.0564514e-06 | D122: ='DF raw data'!I127 -> 3.16867e-06 | F122: 5.449148594e-06 | G122: -4.071442056e-06 | H122: 3.172852644e-06 | J122: 0.0001101878239 | K122: 0.005872932579 | L122: -2.498883513e-05 | M122: -0.001681502811 | N122: 6.820035048e-07
A123: 58.60055 | B123: ='DF raw data'!G128 -> 5.5422861e-06 | C123: ='DF raw data'!H128 -> 5.4927978e-06 | D123: ='DF raw data'!I128 -> 8.5003167e-06 | F123: 5.549601918e-06 | G123: 5.513096488e-06 | H123: 8.511537118e-06 | J123: 0.0001129634573 | K123: 0.005929431252 | L123: -2.223145993e-05 | M123: -0.001692621876 | N123: 6.886329833e-07
A124: 59.1007 | B124: ='DF raw data'!G129 -> 7.60892e-06 | C124: ='DF raw data'!H129 -> 2.3357775e-06 | D124: ='DF raw data'!I129 -> 3.1327995e-06 | F124: 7.618963774e-06 | G124: 2.344409389e-06 | H124: 3.136934795e-06 | J124: 0.000116774082 | K124: 0.005987835809 | L124: -2.105890357e-05 | M124: -0.001703154486 | N124: 6.956749271e-07
A125: 59.60085 | B125: ='DF raw data'!G130 -> 1.1532655e-05 | C125: ='DF raw data'!H130 -> -1.9226731e-07 | D125: ='DF raw data'!I130 -> -2.2770496e-06 | F125: 1.15478781e-05 | G125: -1.929778357e-07 | H125: -2.280055305e-06 | J125: 0.0001225497533 | K125: 0.006049129068 | L125: -2.115542143e-05 | M125: -0.00171373537 | N125: 7.034102439e-07
A126: 60.101 | B126: ='DF raw data'!G131 -> 1.1292344e-05 | C126: ='DF raw data'!H131 -> -2.6485156e-07 | D126: ='DF raw data'!I131 -> -3.2850753e-06 | F126: 1.130724989e-05 | G126: -2.658303215e-07 | H126: -3.289411599e-06 | J126: 0.0001282050743 | K126: 0.006113250836 | L126: -2.128837647e-05 | M126: -0.001724382752 | N126: 7.118576454e-07
A127: 60.60115 | B127: ='DF raw data'!G132 -> 4.3184991e-06 | C127: ='DF raw data'!H132 -> 8.3845782e-07 | D127: ='DF raw data'!I132 -> -2.8715099e-06 | F127: 4.324199519e-06 | G127: 8.415563491e-07 | H127: -2.875300293e-06 | J127: 0.0001303678227 | K127: 0.006178454303 | L127: -2.086747206e-05 | M127: -0.001734819618 | N127: 7.205758704e-07
A128: 61.1013 | B128: ='DF raw data'!G133 -> -2.4966141e-06 | C128: ='DF raw data'!H133 -> -4.0149557e-06 | D128: ='DF raw data'!I133 -> -5.4420184e-06 | F128: -2.499909631e-06 | G128: -4.029793008e-06 | H128: -5.449201864e-06 | J128: 0.0001291174929 | K128: 0.006243032417 | L128: -2.288297303e-05 | M128: -0.001746264537 | N128: 7.291759284e-07
A129: 61.60145 | B129: ='DF raw data'!G134 -> -2.2308234e-06 | C129: ='DF raw data'!H134 -> -8.8165989e-06 | D129: ='DF raw data'!I134 -> -8.573722e-06 | F129: -2.233768087e-06 | G129: -8.849180728e-06 | H129: -8.585039313e-06 | J129: 0.0001280002738 | K129: 0.006307051754 | L129: -2.730889078e-05 | M129: -0.001759923079 | N129: 7.377434206e-07
A130: 62.1016 | B130: ='DF raw data'!G135 -> 9.4111584e-07 | C130: ='DF raw data'!H135 -> -1.3418503e-05 | D130: ='DF raw data'!I135 -> 2.1205101e-06 | F130: 9.423581129e-07 | G130: -1.346809121e-05 | H130: 2.123309173e-06 | J130: 0.0001284715942 | K130: 0.006371306822 | L130: -3.404495659e-05 | M130: -0.001776950664 | N130: 7.46578075e-07
A131: 62.60175 | B131: ='DF raw data'!G136 -> 1.5473341e-06 | C131: ='DF raw data'!H136 -> -2.3124251e-06 | D131: ='DF raw data'!I136 -> 5.4309835e-06 | F131: 1.549376581e-06 | G131: -2.32097069e-06 | H131: 5.438152398e-06 | J131: 0.0001292465149 | K131: 0.006435949466 | L131: -3.520579009e-05 | M131: -0.00179455884 | N131: 7.555528213e-07
A132: 63.1019 | B132: ='DF raw data'!G137 -> 5.6590926e-07 | C132: ='DF raw data'!H137 -> 3.8970088e-06 | D132: ='DF raw data'!I137 -> -1.3440244e-06 | F132: 5.666562602e-07 | G132: 3.911410234e-06 | H132: -1.345798512e-06 | J132: 0.000129529928 | K132: 0.00650073386 | L132: -3.324949826e-05 | M132: -0.001811188576 | N132: 7.644972695e-07
A133: 63.60205 | B133: ='DF raw data'!G138 -> 4.2292522e-06 | C133: ='DF raw data'!H138 -> 3.5605053e-06 | D133: ='DF raw data'!I138 -> -5.18346e-06 | F133: 4.234834813e-06 | G133: 3.573663182e-06 | H133: -5.190302167e-06 | J133: 0.0001316479806 | K133: 0.006566577597 | L133: -3.146213062e-05 | M133: -0.001826924361 | N133: 7.736605459e-07
A134: 64.1022 | B134: ='DF raw data'!G139 -> 1.1067677e-05 | C134: ='DF raw data'!H139 -> -2.1801986e-06 | D134: ='DF raw data'!I139 -> 5.6673794e-06 | F134: 1.108228633e-05 | G134: -2.188255545e-06 | H134: 5.674860341e-06 | J134: 0.0001371907862 | K134: 0.006635193569 | L134: -3.255658663e-05 | M134: -0.001843207538 | N134: 7.836041497e-07
A135: 64.60235 | B135: ='DF raw data'!G140 -> 1.0023912e-05 | C135: ='DF raw data'!H140 -> -2.2139557e-06 | D135: ='DF raw data'!I140 -> 1.0745051e-05 | F135: 1.003714356e-05 | G135: =(1-$G$1*($B$2-$G$2))*C135*$M$2/$M$1 -> -2.222137395e-06 | H135: 1.075923447e-05 | J135: 0.0001422108635 | K135: 0.006706320332 | L135: -3.366798864e-05 | M135: -0.001860046582 | N135: 7.942860849e-07
A136: =A135+$B$1 -> 65.1025 | B136: ='DF raw data'!G141 -> 4.2219181e-06 | C136: ='DF raw data'!H141 -> 5.4626435e-06 | D136: ='DF raw data'!I141 -> 6.9542052e-06 | F136: 4.227491032e-06 | G136: 5.482830753e-06 | H136: 6.963384751e-06 | J136: =F136*$B$1+J135 -> 0.0001443252431 | K136: =J136*$B$1+K135 -> 0.006778504603 | L136: =G136*$B$1+L135 -> -3.092575084e-05 | M136: =L136*$B$1+M135 -> -0.001875514096 | N136: =(J136^2+L136^2)*$B$1+N135 -> 8.051824417e-07
A137: 65.60265 | B137: ='DF raw data'!G142 -> 3.0841618e-06 | C137: ='DF raw data'!H142 -> -8.4428693e-06 | D137: ='DF raw data'!I142 -> 2.9178386e-06 | F137: 3.088232894e-06 | G137: -8.474070007e-06 | H137: 2.921690147e-06 | J137: 0.0001458698228 | K137: 0.006851461395 | L137: -3.516405696e-05 | M137: -0.001893101399 | N137: 8.16443077e-07
A138: 66.1028 | B138: ='DF raw data'!G143 -> 1.8712598e-06 | C138: ='DF raw data'!H143 -> -1.0539544e-05 | D138: ='DF raw data'!I143 -> 2.9436537e-06 | F138: 1.873729863e-06 | G138: -1.057849299e-05 | H138: 2.947539323e-06 | J138: 0.0001468069688 | K138: 0.0069248869 | L138: -4.045489023e-05 | M138: -0.001913334913 | N138: 8.280409974e-07
A139: 66.60295 | B139: ='DF raw data'!G144 -> 4.4102475e-07 | C139: ='DF raw data'!H144 -> -1.1032958e-05 | D139: ='DF raw data'!I144 -> 6.0271755e-06 | F139: 4.416069027e-07 | G139: -1.107373041e-05 | H139: 6.035131372e-06 | J139: 0.0001470278385 | K139: 0.006998422873 | L139: -4.599341649e-05 | M139: -0.00193633852 | N139: 8.399108471e-07
A140: 67.1031 | B140: ='DF raw data'!G145 -> -4.1167659e-06 | C140: ='DF raw data'!H145 -> 3.0295987e-06 | D140: ='DF raw data'!I145 -> 6.0076031e-06 | F140: -4.122200031e-06 | G140: 3.040794612e-06 | H140: 6.015533136e-06 | J140: 0.0001449661202 | K140: 0.007070927678 | L140: -4.447256306e-05 | M140: -0.001958581472 | N140: 8.514107885e-07
A141: 67.60325 | B141: ='DF raw data'!G146 -> -7.8931771e-06 | C141: ='DF raw data'!H146 -> -1.4079222e-06 | D141: ='DF raw data'!I146 -> 7.8369821e-06 | F141: -7.903596094e-06 | G141: -1.41312519e-06 | H141: 7.847326916e-06 | J141: 0.0001410131366 | K141: 0.007141455399 | L141: -4.517933763e-05 | M141: -0.001981177918 | N141: 8.62377016e-07
A142: 68.1034 | B142: ='DF raw data'!G147 -> -7.7722943e-06 | C142: ='DF raw data'!H147 -> -1.1512362e-05 | D142: ='DF raw data'!I147 -> 1.131853e-06 | F142: -7.782553728e-06 | G142: -1.155490605e-05 | H142: 1.133347046e-06 | J142: 0.0001371206923 | K142: 0.007210036313 | L142: -5.095852389e-05 | M142: -0.002006664824 | N142: 8.730796535e-07
A143: 68.60355 | B143: ='DF raw data'!G148 -> -1.138178e-05 | C143: ='DF raw data'!H148 -> -1.2003774e-05 | D143: ='DF raw data'!I148 -> -2.7605661e-06 | F143: -1.139680395e-05 | G143: -1.204813407e-05 | H143: -2.764210047e-06 | J143: 0.0001314205808 | K143: 0.007275766316 | L143: -5.698439814e-05 | M143: -0.002035165571 | N143: 8.833420267e-07
A144: 69.1037 | B144: ='DF raw data'!G149 -> -1.3249024e-05 | C144: ='DF raw data'!H149 -> -1.1145838e-05 | D144: ='DF raw data'!I149 -> 8.3962135e-07 | F144: -1.326651271e-05 | G144: -1.118702755e-05 | H144: 8.407296502e-07 | J144: 0.0001247853345 | K144: 0.007338177701 | L144: -6.257958997e-05 | M144: -0.002066464753 | N144: 8.930887422e-07
A145: 69.60385 | B145: ='DF raw data'!G150 -> -9.8872551e-06 | C145: ='DF raw data'!H150 -> 1.226209e-07 | D145: ='DF raw data'!I150 -> -6.9026515e-07 | F145: -9.900306277e-06 | G145: 1.230740467e-07 | H145: -6.911763e-07 | J145: 0.0001198336963 | K145: 0.007398112525 | L145: -6.251803449e-05 | M145: -0.002097733148 | N145: 9.022257922e-07
A146: 70.104 | B146: ='DF raw data'!G151 -> -5.2145188e-06 | C146: ='DF raw data'!H151 -> -7.1443565e-06 | D146: ='DF raw data'!I151 -> 1.8369224e-06 | F146: -5.221401965e-06 | G146: -7.17075854e-06 | H146: 1.839347138e-06 | J146: 0.0001172222121 | K146: 0.007456741214 | L146: -6.610448937e-05 | M146: -0.002130795308 | N146: 9.112839341e-07
A147: 70.60415 | B147: ='DF raw data'!G152 -> -1.5277475e-06 | C147: ='DF raw data'!H152 -> -1.1233632e-05 | D147: ='DF raw data'!I152 -> 6.3882958e-06 | F147: -1.529764127e-06 | G147: -1.1275146e-05 | H147: 6.39672835e-06 | J147: 0.0001164571006 | K147: 0.007514987233 | L147: -7.174375364e-05 | M147: -0.002166677946 | N147: 9.206414517e-07
A148: 71.1043 | B148: ='DF raw data'!G153 -> -2.5171178e-06 | C148: ='DF raw data'!H153 -> -2.045037e-06 | D148: ='DF raw data'!I153 -> -4.4432477e-06 | F148: -2.520440395e-06 | G148: -2.052594454e-06 | H148: -4.449112787e-06 | J148: 0.0001151965023 | K148: 0.007572602764 | L148: -7.277035876e-05 | M148: -0.002203074041 | N148: 9.299271162e-07
A149: 71.60445 | B149: ='DF raw data'!G154 -> -8.9451496e-06 | C149: ='DF raw data'!H154 -> 4.3990949e-06 | D149: ='DF raw data'!I154 -> -5.6915401e-06 | F149: -8.956957197e-06 | G149: 4.415351799e-06 | H149: -5.699052933e-06 | J149: 0.0001107166802 | K149: 0.007627977711 | L149: -7.056202055e-05 | M149: -0.002238365636 | N149: 9.385482928e-07
A150: 72.1046 | B150: ='DF raw data'!G155 -> -1.3265715e-05 | C150: ='DF raw data'!H155 -> -6.4702826e-06 | D150: ='DF raw data'!I155 -> 1.8183541e-06 | F150: -1.328322574e-05 | G150: -6.494193593e-06 | H150: 1.820754327e-06 | J150: 0.0001040730748 | K150: 0.00768002986 | L150: -7.381009148e-05 | M150: -0.002275281753 | N150: 9.46690302e-07
A151: 72.60475 | B151: ='DF raw data'!G156 -> -1.3757992e-05 | C151: ='DF raw data'!H156 -> 1.8167458e-06 | D151: ='DF raw data'!I156 -> 9.220725e-07 | F151: =(1-$G$1*($B$2-$G$2))*B151 -> -1.377615255e-05 | G151: 1.823459602e-06 | H151: 9.232896357e-07 | J151: 9.718293214e-05 | K151: 0.007728635903 | L151: -7.289808816e-05 | M151: -0.002311741732 | N151: 9.540718425e-07
A152: 73.1049 | B152: ='DF raw data'!G157 -> -1.0841439e-05 | C152: ='DF raw data'!H157 -> -1.872649e-06 | D152: ='DF raw data'!I157 -> 1.8323967e-06 | F152: -1.08557497e-05 | G152: -1.879569393e-06 | H152: 1.834815464e-06 | J152: 9.175342893e-05 | K152: 0.007774526381 | L152: -7.383815479e-05 | M152: -0.002348671885 | N152: 9.610093056e-07
A153: 73.60505 | B153: ='DF raw data'!G158 -> -6.6629873e-06 | C153: ='DF raw data'!H158 -> 3.9499791e-06 | D153: ='DF raw data'!I158 -> -1.7115331e-06 | F153: -6.671782443e-06 | G153: 3.964576287e-06 | H153: -1.713792324e-06 | J153: 8.841653694e-05 | K153: 0.007818747912 | L153: -7.185527196e-05 | M153: -0.002384610299 | N153: 9.675015847e-07
A154: 74.1052 | B154: ='DF raw data'!G159 -> -4.6609057e-06 | C154: ='DF raw data'!H159 -> 9.1707179e-06 | D154: ='DF raw data'!I159 -> -4.2264824e-06 | F154: -4.667058096e-06 | G154: 9.204608378e-06 | H154: -4.232061357e-06 | J154: 8.608230783e-05 | K154: 0.007861801978 | L154: -6.725158708e-05 | M154: -0.002418246181 | N154: 9.734698445e-07
A155: 74.60535 | B155: ='DF raw data'!G160 -> -3.873196e-06 | C155: ='DF raw data'!H160 -> -1.4275639e-05 | D155: ='DF raw data'!I160 -> -6.8689355e-06 | F155: -3.878308619e-06 | G155: -1.432839476e-05 | H155: -6.878002495e-06 | J155: 8.414257178e-05 | K155: 0.007903885885 | L155: -7.441793372e-05 | M155: -0.00245546631 | N155: 9.797807378e-07
A156: 75.1055 | B156: ='DF raw data'!G161 -> -2.16387e-06 | C156: ='DF raw data'!H161 -> -7.3395604e-06 | D156: ='DF raw data'!I161 -> -6.3468274e-06 | F156: -2.166726308e-06 | G156: -7.366683818e-06 | H156: -6.355205212e-06 | J156: 8.305888361e-05 | K156: 0.007945427786 | L156: -7.810238063e-05 | M156: -0.002494529216 | N156: 9.862820676e-07
A157: 75.60565 | B157: ='DF raw data'!G162 -> -1.2728998e-06 | C157: ='DF raw data'!H162 -> 1.3426645e-05 | D157: ='DF raw data'!I162 -> -4.5423462e-06 | F157: -1.274580028e-06 | G157: 1.34762633e-05 | H157: -4.548342097e-06 | J157: 8.242140241e-05 | K157: 0.00798665085 | L157: -7.136222755e-05 | M157: -0.002530221034 | N157: 9.922267781e-07
A158: 76.1058 | B158: ='DF raw data'!G163 -> -1.4917752e-06 | C158: ='DF raw data'!H163 -> -2.80784e-06 | D158: ='DF raw data'!I163 -> -9.8196133e-06 | F158: -1.493744343e-06 | G158: -2.8182164e-06 | H158: -9.83257519e-06 | J158: 8.167430618e-05 | K158: 0.008027500254 | L158: -7.277175848e-05 | M158: -0.002566617829 | N158: 9.982117836e-07
A159: 76.60595 | B159: ='DF raw data'!G164 -> -5.004069e-06 | C159: ='DF raw data'!H164 -> -2.0775933e-06 | D159: ='DF raw data'!I164 -> -1.2256433e-05 | F159: -5.010674371e-06 | G159: -2.085271067e-06 | H159: -1.227261149e-05 | J159: 7.916821739e-05 | K159: 0.008067096238 | L159: -7.38147068e-05 | M159: -0.002603536254 | N159: 1.00407165e-06
A160: 77.1061 | B160: ='DF raw data'!G165 -> -6.4344349e-06 | C160: ='DF raw data'!H165 -> 9.440374e-06 | D160: ='DF raw data'!I165 -> -1.1855979e-05 | F160: -6.442928354e-06 | G160: 9.475260995e-06 | H160: -1.187162889e-05 | J160: 7.594578678e-05 | K160: 0.008105080524 | L160: -6.907565502e-05 | M160: -0.002638084443 | N160: 1.009342835e-06
A161: 77.60625 | B161: ='DF raw data'!G166 -> -3.3680992e-06 | C161: ='DF raw data'!H166 -> 7.1015293e-06 | D161: ='DF raw data'!I166 -> -4.0554974e-06 | F161: -3.372545091e-06 | G161: 7.127773072e-06 | H161: -4.060850657e-06 | J161: 7.425900835e-05 | K161: 0.008142221167 | L161: -6.551069931e-05 | M161: -0.00267084962 | N161: 1.014247332e-06
A162: 78.1064 | B162: ='DF raw data'!G167 -> -2.0279697e-06 | C162: ='DF raw data'!H167 -> -3.2633604e-06 | D162: ='DF raw data'!I167 -> 2.0567581e-06 | F162: -2.03064662e-06 | G162: -3.275420181e-06 | H162: 2.059473021e-06 | J162: 7.324338044e-05 | K162: 0.008178853843 | L162: -6.714890072e-05 | M162: -0.002704434142 | N162: 1.019185597e-06
A163: 78.60655 | B163: ='DF raw data'!G168 -> -9.302168e-07 | C163: ='DF raw data'!H168 -> -1.0196904e-05 | D163: ='DF raw data'!I168 -> 2.9827838e-06 | F163: -9.314446862e-07 | G163: -1.023458676e-05 | H163: 2.986721075e-06 | J163: 7.277751838e-05 | K163: 0.008215253519 | L163: -7.226772928e-05 | M163: -0.002740578847 | N163: 1.024446771e-06
A164: 79.1067 | B164: ='DF raw data'!G169 -> 2.0311998e-06 | C164: ='DF raw data'!H169 -> -3.8743233e-06 | D164: ='DF raw data'!I169 -> 4.6741966e-06 | F164: 2.033880984e-06 | G164: -3.8886409e-06 | H164: 4.68036654e-06 | J164: 7.379476396e-05 | K164: 0.00825216197 | L164: -7.421263303e-05 | M164: -0.002777696295 | N164: 1.029925005e-06
A165: 79.60685 | B165: ='DF raw data'!G170 -> 4.3170294e-06 | C165: ='DF raw data'!H170 -> -3.9916058e-06 | D165: ='DF raw data'!I170 -> 6.8224231e-06 | F165: 4.322727879e-06 | G165: -4.006356819e-06 | H165: 6.831428698e-06 | J165: 7.595677631e-05 | K165: 0.008290151752 | L165: -7.621641239e-05 | M165: -0.002815815934 | N165: 1.035715928e-06
A166: 80.107 | B166: ='DF raw data'!G171 -> 2.5707993e-06 | C166: ='DF raw data'!H171 -> -3.6932627e-06 | D166: ='DF raw data'!I171 -> 7.775282e-06 | F166: 2.574192755e-06 | G166: -3.706911189e-06 | H166: 7.785545372e-06 | J166: 7.724425881e-05 | K166: 0.008328785468 | L166: -7.807042402e-05 | M166: -0.002854862857 | N166: 1.041748571e-06
A167: 80.60715 | B167: ='DF raw data'!G172 -> -1.7965505e-06 | C167: ='DF raw data'!H172 -> 5.9308525e-07 | D167: ='DF raw data'!I172 -> -4.7338931e-06 | F167: -1.798921947e-06 | G167: 5.952770024e-07 | H167: -4.740141839e-06 | J167: 7.6344528e-05 | K167: 0.008366969184 | L167: -7.777269623e-05 | M167: -0.002893760871 | N167: 1.047688892e-06
A168: 81.1073 | B168: ='DF raw data'!G173 -> -3.0025114e-06 | C168: ='DF raw data'!H173 -> -9.7094824e-07 | D168: ='DF raw data'!I173 -> -5.1736811e-06 | F168: -3.006474715e-06 | G168: -9.745363888e-07 | H168: -5.180510359e-06 | J168: 7.484083967e-05 | K168: 0.00840440083 | L168: -7.826011061e-05 | M168: -0.002932902665 | N168: 1.053553549e-06
A169: 81.60745 | B169: ='DF raw data'!G174 -> -2.9625955e-06 | C169: ='DF raw data'!H174 -> -3.2821736e-06 | D169: ='DF raw data'!I174 -> 1.154423e-06 | F169: -2.966506126e-06 | G169: -3.294302905e-06 | H169: 1.155946838e-06 | J169: 7.335714163e-05 | K169: 0.008441090404 | L169: -7.99077562e-05 | M169: -0.002972868529 | N169: 1.059438574e-06
A170: 82.1076 | B170: ='DF raw data'!G175 -> -3.7190769e-06 | C170: ='DF raw data'!H175 -> 6.8514976e-07 | D170: ='DF raw data'!I175 -> -3.0445023e-07 | F170: -3.723986082e-06 | G170: 6.876817377e-07 | H170: -3.048521043e-07 | J170: 7.149458999e-05 | K170: 0.008476848423 | L170: -7.956381218e-05 | M170: -0.00301266237 | N170: 1.065161228e-06
A171: 82.60775 | B171: ='DF raw data'!G176 -> -3.3570834e-06 | C171: ='DF raw data'!H176 -> 2.9790294e-06 | D171: ='DF raw data'!I176 -> -4.9847972e-06 | F171: -3.36151475e-06 | G171: 2.990038433e-06 | H171: -4.991377132e-06 | J171: 6.981332839e-05 | K171: 0.008511765559 | L171: -7.806834446e-05 | M171: -0.003051708252 | N171: 1.070647157e-06
A172: 83.1079 | B172: ='DF raw data'!G177 -> -1.6418199e-06 | C172: ='DF raw data'!H177 -> -2.6343848e-06 | D172: ='DF raw data'!I177 -> 5.8518111e-07 | F172: -1.643987102e-06 | G172: -2.644120195e-06 | H172: 5.859535491e-07 | J172: 6.899108824e-05 | K172: 0.008546271452 | L172: -7.939080118e-05 | M172: -0.003091415562 | N172: 1.076180151e-06
A173: 83.60805 | B173: ='DF raw data'!G178 -> -2.5397472e-07 | C173: ='DF raw data'!H178 -> -4.346522e-06 | D173: ='DF raw data'!I178 -> 3.3479059e-06 | F173: -2.543099666e-07 | G173: -4.362584615e-06 | H173: 3.352325136e-06 | J173: 6.886389511e-05 | K173: 0.008580713729 | L173: -8.157274787e-05 | M173: -0.003132214172 | N173: 1.081880035e-06
A174: 84.1082 | B174: ='DF raw data'!G179 -> -2.8103389e-06 | C174: ='DF raw data'!H179 -> -1.2586171e-06 | D174: ='DF raw data'!I179 -> -1.1486213e-06 | F174: -2.814048547e-06 | G174: -1.263268332e-06 | H174: -1.15013748e-06 | J174: 6.745644873e-05 | K174: 0.008614452072 | L174: -8.220457153e-05 | M174: -0.003173328788 | N174: 1.087535714e-06
A175: 84.60835 | B175: ='DF raw data'!G180 -> -5.6994613e-06 | C175: ='DF raw data'!H180 -> -4.9301218e-07 | D175: ='DF raw data'!I180 -> 5.4258766e-07 | F175: -5.706984589e-06 | G175: -4.948341114e-07 | H175: 5.433038757e-07 | J175: 6.460210039e-05 | K175: 0.008646762813 | L175: -8.245206281e-05 | M175: -0.003214567187 | N175: 1.093023246e-06
A176: 85.1085 | B176: ='DF raw data'!G181 -> 1.5766271e-06 | C176: ='DF raw data'!H181 -> 5.9513868e-06 | D176: ='DF raw data'!I181 -> 3.2874718e-06 | F176: 1.578708248e-06 | G176: 5.973380209e-06 | H176: 3.291811263e-06 | J176: 6.539169132e-05 | K176: 0.008679468467 | L176: -7.94644767e-05 | M176: -0.003254311345 | N176: 1.098320173e-06
A177: 85.60865 | B177: ='DF raw data'!G182 -> 6.2718609e-06 | C177: ='DF raw data'!H182 -> 2.2043505e-05 | D177: ='DF raw data'!I182 -> -1.8397791e-06 | F177: 6.280139756e-06 | G177: 2.212496699e-05 | H177: -1.842207608e-06 | J177: 6.853270322e-05 | K177: 0.008713745099 | L177: -6.839867446e-05 | M177: -0.003288520942 | N177: 1.103009134e-06
A178: 86.1088 | B178: ='DF raw data'!G183 -> -1.9909933e-06 | C178: ='DF raw data'!H183 -> 1.9569497e-05 | D178: ='DF raw data'!I183 -> 5.0678696e-06 | F178: -1.993621411e-06 | G178: 1.964181627e-05 | H178: 5.074559188e-06 | J178: 6.753559347e-05 | K178: 0.008747523026 | L178: -5.857482005e-05 | M178: -0.003317817138 | N178: 1.107006366e-06
A179: 86.60895 | B179: ='DF raw data'!G184 -> -8.9824025e-06 | C179: ='DF raw data'!H184 -> -2.8785564e-06 | D179: ='DF raw data'!I184 -> 1.4207403e-05 | F179: -8.994259271e-06 | G179: -2.889194134e-06 | H179: 1.422615677e-05 | J179: 6.30371147e-05 | K179: 0.008779051039 | L179: -6.00198505e-05 | M179: -0.003347836067 | N179: 1.110795533e-06
A180: 87.1091 | B180: ='DF raw data'!G185 -> -4.1098829e-06 | C180: ='DF raw data'!H185 -> -9.4844017e-06 | D180: ='DF raw data'!I185 -> 3.4569143e-06 | F180: -4.115307945e-06 | G180: -9.5194514e-06 | H180: 3.461477427e-06 | J180: 6.097884343e-05 | K180: 0.008809549607 | L180: -6.478100411e-05 | M180: -0.003380236286 | N180: 1.114754219e-06
A181: 87.60925 | B181: ='DF raw data'!G186 -> 1.1769297e-06 | C181: ='DF raw data'!H186 -> 1.3428122e-06 | D181: ='DF raw data'!I186 -> -9.171049e-06 | F181: 1.178483247e-06 | G181: 1.347774576e-06 | H181: -9.183154785e-06 | J181: 6.156826182e-05 | K181: 0.008840342973 | L181: -6.410691466e-05 | M181: -0.003412299359 | N181: 1.118705578e-06
A182: 88.1094 | B182: ='DF raw data'!G187 -> 3.2077949e-06 | C182: ='DF raw data'!H187 -> 8.0910388e-07 | D182: ='DF raw data'!I187 -> -6.5880108e-06 | F182: 3.212029189e-06 | G182: 8.120939314e-07 | H182: -6.596706974e-06 | J182: 6.317475822e-05 | K182: 0.008871939829 | L182: -6.370074588e-05 | M182: -0.003444159287 | N182: 1.122731203e-06
A183: 88.60955 | B183: ='DF raw data'!G188 -> 4.8198563e-06 | C183: ='DF raw data'!H188 -> 4.5359911e-06 | D183: ='DF raw data'!I188 -> -1.006129e-06 | F183: 4.82621851e-06 | G183: 4.5527539e-06 | H183: -1.00745709e-06 | J183: 6.558859141e-05 | K183: 0.008904743963 | L183: -6.142368602e-05 | M183: -0.003474880344 | N183: 1.12676978e-06
A184: 89.1097 | B184: ='DF raw data'!G189 -> 1.5897821e-06 | C184: ='DF raw data'!H189 -> -3.5223425e-06 | D184: ='DF raw data'!I189 -> -4.5655711e-06 | F184: 1.591880612e-06 | G184: -3.535359351e-06 | H184: -4.571597654e-06 | J184: 6.63847705e-05 | K184: 0.008937946306 | L184: -6.3191896e-05 | M184: -0.003506485771 | N184: 1.130971117e-06
A185: 89.60985 | B185: ='DF raw data'!G190 -> -2.1519229e-06 | C185: ='DF raw data'!H190 -> -2.552594e-06 | D185: ='DF raw data'!I190 -> -4.2469715e-06 | F185: -2.154763438e-06 | G185: -2.562027136e-06 | H185: -4.252577502e-06 | J185: 6.530706556e-05 | K185: 0.008970609634 | L185: -6.447329387e-05 | M185: -0.003538732089 | N185: 1.135183289e-06
A186: 90.11 | B186: ='DF raw data'!G191 -> -3.9892766e-06 | C186: ='DF raw data'!H191 -> 5.0382114e-06 | D186: ='DF raw data'!I191 -> -4.5462025e-06 | F186: -3.994542445e-06 | G186: 5.05683016e-06 | H186: -4.552203487e-06 | J186: 6.330919516e-05 | K186: 0.009002273728 | L186: -6.194412027e-05 | M186: -0.00356971344 | N186: 1.13910703e-06
A187: 90.61015 | B187: ='DF raw data'!G192 -> -5.8360311e-06 | C187: ='DF raw data'!H192 -> 3.911819e-06 | D187: ='DF raw data'!I192 -> -1.0708182e-05 | F187: -5.843734661e-06 | G187: 3.926275166e-06 | H187: -1.07223168e-05 | J187: 6.038645127e-05 | K187: 0.009032476012 | L187: -5.998039374e-05 | M187: -0.003599712634 | N187: 1.142730202e-06
A188: 91.1103 | B188: ='DF raw data'!G193 -> -4.2582687e-06 | C188: ='DF raw data'!H193 -> -3.1921104e-06 | D188: ='DF raw data'!I193 -> -1.8845016e-05 | F188: -4.263889615e-06 | G188: -3.203906875e-06 | H188: -1.886989142e-05 | J188: 5.825386688e-05 | K188: 0.009061611684 | L188: -6.158282776e-05 | M188: -0.003630513286 | N188: 1.146324259e-06
A189: 91.61045 | B189: ='DF raw data'!G194 -> -3.0247468e-06 | C189: ='DF raw data'!H194 -> 3.3743856e-07 | D189: ='DF raw data'!I194 -> -1.2622807e-05 | F189: -3.028739466e-06 | G189: 3.386855675e-07 | H189: -1.263946911e-05 | J189: 5.673904283e-05 | K189: 0.009089989716 | L189: -6.141343418e-05 | M189: -0.003661229215 | N189: 1.149820772e-06
A190: 92.1106 | B190: ='DF raw data'!G195 -> -1.0841324e-06 | C190: ='DF raw data'!H195 -> 8.7861929e-07 | D190: ='DF raw data'!I195 -> -6.5596637e-06 | F190: -1.085563455e-06 | G190: 8.818662362e-07 | H190: -6.568322456e-06 | J190: 5.619609827e-05 | K190: 0.009118096194 | L190: -6.097236878e-05 | M190: -0.003691724545 | N190: 1.153259619e-06
A191: 92.61075 | B191: ='DF raw data'!G196 -> 2.7474887e-06 | C191: ='DF raw data'!H196 -> 4.4437929e-06 | D191: ='DF raw data'!I196 -> -1.5337224e-07 | F191: 2.751115385e-06 | G191: 4.46021498e-06 | H191: -1.535746914e-07 | J191: 5.757206863e-05 | K191: 0.009146890864 | L191: -5.874159226e-05 | M191: -0.003721104152 | N191: 1.156643193e-06
A192: 93.1109 | B192: ='DF raw data'!G197 -> 3.8102733e-06 | C192: ='DF raw data'!H197 -> 7.8481871e-06 | D192: ='DF raw data'!I197 -> 8.3749374e-06 | F192: 3.815302861e-06 | G192: 7.877190153e-06 | H192: 8.385992317e-06 | J192: 5.948029236e-05 | K192: 0.009176639933 | L192: -5.48018156e-05 | M192: -0.00374851328 | N192: 1.159914746e-06
A193: 93.61105 | B193: ='DF raw data'!G198 -> 3.5270493e-06 | C193: ='DF raw data'!H198 -> 2.7405954e-06 | D193: ='DF raw data'!I198 -> 1.1683201e-06 | F193: 3.531705005e-06 | G193: 2.750723297e-06 | H193: 1.169862283e-06 | J193: 6.124667462e-05 | K193: 0.009207272457 | L193: -5.342604135e-05 | M193: -0.003775234315 | N193: 1.163218485e-06
A194: 94.1112 | B194: ='DF raw data'!G199 -> 4.8970105e-06 | C194: ='DF raw data'!H199 -> -3.2309376e-06 | D194: ='DF raw data'!I199 -> -1.49496e-05 | F194: 4.903474554e-06 | G194: -3.242877562e-06 | H194: -1.496933347e-05 | J194: 6.369914741e-05 | K194: 0.009239131586 | L194: -5.504796656e-05 | M194: -0.003802766555 | N194: 1.166763479e-06
A195: 94.61135 | B195: ='DF raw data'!G200 -> 5.6512217e-06 | C195: ='DF raw data'!H200 -> -3.1101752e-07 | D195: ='DF raw data'!I200 -> -1.7404187e-05 | F195: 5.658681313e-06 | G195: -3.121668883e-07 | H195: -1.742716053e-05 | J195: 6.652933687e-05 | K195: 0.009272406233 | L195: -5.520409683e-05 | M195: -0.003830376884 | N195: 1.170501422e-06
A196: 95.1115 | B196: ='DF raw data'!G201 -> 3.4099064e-06 | C196: ='DF raw data'!H201 -> 1.4743715e-06 | D196: ='DF raw data'!I201 -> -1.630105e-05 | F196: 3.414407476e-06 | G196: 1.479820054e-06 | H196: -1.632256739e-05 | J196: 6.823705277e-05 | K196: 0.009306534995 | L196: -5.446396483e-05 | M196: -0.003857617036 | N196: 1.174313875e-06
A197: 95.61165 | B197: ='DF raw data'!G202 -> -5.8845052e-07 | C197: ='DF raw data'!H202 -> 2.1863389e-06 | D197: ='DF raw data'!I202 -> -1.1668696e-05 | F197: -5.892272747e-07 | G197: 2.194418537e-06 | H197: -1.168409868e-05 | J197: 6.794235075e-05 | K197: 0.009340516362 | L197: -5.33664264e-05 | M197: -0.003884308255 | N197: 1.178047064e-06
A198: 96.1118 | B198: ='DF raw data'!G203 -> -3.3379331e-06 | C198: ='DF raw data'!H203 -> 1.27495e-05 | D198: ='DF raw data'!I203 -> -3.8862586e-06 | F198: -3.342339172e-06 | G198: 1.27966159e-05 | H198: -3.891388461e-06 | J198: 6.627067981e-05 | K198: 0.009373661643 | L198: -4.696619895e-05 | M198: -0.003907798399 | N198: 1.181346867e-06
A199: 96.61195 | B199: ='DF raw data'!G204 -> -5.2645919e-06 | C199: ='DF raw data'!H204 -> 6.1836836e-06 | D199: ='DF raw data'!I204 -> 5.3616291e-06 | F199: -5.271541161e-06 | G199: =(1-$G$1*($B$2-$G$2))*C199*$M$2/$M$1 -> 6.206535464e-06 | H199: 5.36870645e-06 | J199: 6.36341185e-05 | K199: 0.009405488247 | L199: -4.386200024e-05 | M199: -0.003929735978 | N199: 1.184334351e-06
A200: =A199+$B$1 -> 97.1121 | B200: ='DF raw data'!G205 -> -5.3157855e-06 | C200: ='DF raw data'!H205 -> -2.0139485e-06 | D200: ='DF raw data'!I205 -> 3.6074684e-06 | F200: -5.322802337e-06 | G200: -2.021391067e-06 | H200: 3.612230258e-06 | J200: =F200*$B$1+J199 -> 6.097191891e-05 | K200: =J200*$B$1+K199 -> 0.009435983352 | L200: =G200*$B$1+L199 -> -4.487299898e-05 | M200: =L200*$B$1+M199 -> -0.003952179209 | N200: =(J200^2+L200^2)*$B$1+N199 -> 1.187200791e-06
A201: 97.61225 | B201: ='DF raw data'!G206 -> -3.0837548e-06 | C201: ='DF raw data'!H206 -> 3.1438121e-06 | D201: ='DF raw data'!I206 -> 3.3984884e-06 | F201: -3.087825356e-06 | G201: 3.155430089e-06 | H201: 3.402974405e-06 | J201: 5.942754306e-05 | K201: 0.009465706038 | L201: -4.329481062e-05 | M201: -0.003973833108 | N201: 1.189904639e-06
... 1002 more rows

Sheet 10 x=1
A1: dz | B1: ='DF raw data'!K7 -> 0.50016 | C1: mm | F1: T_coeff | G1: -0.0008 | H1: /degC | L1: Hallref | M1: ='PI vs gap'!B44 -> 0.5054 | N1: T | P1: IBy total | Q1: =L1203*1000 -> -5.676868671 | R1: muTm | X1: DF ref | Y1: 20
A2: Tref | B2: ='DF raw data'!K8 -> 21.68 | C2: degC | F2: Tcorr | G2: 20 | H2: degC | L2: NMRref | M2: ='PI vs gap'!B45 -> 0.506599 | N2: T | P2: JBy total | Q2: =M1203 -> -5.019336792 | R2: muTm^2
A3: Encoder | B3: ='DF raw data'!K9 -> 12561948 | P3: PI total | Q3: =N1203 -> 708.8349327 | R3: T^2mm^3
A5: z [mm] | B5: Bx | C5: By | D5: Bz | F5: Bx_corr | G5: By_corr | H5: Bz_corr | J5: Ix | K5: Jx | L5: Iy | M5: Jy | N5: PI
A6: ='PI vs gap'!B53 -> 0.083 | B6: ='DF raw data'!J11 -> 2.5193401e-06 | C6: ='DF raw data'!K11 -> -9.9797517e-06 | D6: ='DF raw data'!L11 -> 9.0739331e-06 | F6: =(1-$G$1*($B$2-$G$2))*B6 -> 2.522726093e-06 | G6: =(1-$G$1*($B$2-$G$2))*C6*$M$2/$M$1 -> -1.001687205e-05 | H6: =(1-$G$1*($B$2-$G$2))*D6 -> 9.086128466e-06 | J6: =F6*$B$1 -> 1.261766683e-06 | K6: =J6*$B$1 -> 6.31085224e-07 | L6: =G6*$B$1 -> -5.010038726e-06 | M6: =L6*$B$1 -> -2.505820969e-06 | N6: =(J6^2+L6)^2*$B$1 -> 1.255425212e-11
A7: =A6+$B$1 -> 0.58316 | B7: ='DF raw data'!J12 -> 2.2551501e-06 | C7: ='DF raw data'!K12 -> -2.7137085e-06 | D7: ='DF raw data'!L12 -> 9.8090231e-06 | F7: =(1-$G$1*($B$2-$G$2))*B7 -> 2.258181022e-06 | G7: =(1-$G$1*($B$2-$G$2))*C7*$M$2/$M$1 -> -2.72380232e-06 | H7: 9.822206427e-06 | J7: =F7*$B$1+J6 -> 2.391218503e-06 | K7: =J7*$B$1+K6 -> 1.82707707e-06 | L7: =G7*$B$1+L6 -> -6.372375694e-06 | M7: =L7*$B$1+M6 -> -5.693028397e-06 | N7: =(J7^2+L7^2)*$B$1+N6 -> 3.572421309e-11
A8: =A7+$B$1 -> 1.08332 | B8: ='DF raw data'!J13 -> 2.2848506e-06 | C8: ='DF raw data'!K13 -> -2.7612086e-06 | D8: ='DF raw data'!L13 -> 1.4964767e-05 | F8: 2.287921439e-06 | G8: -2.7714791e-06 | H8: 1.498487965e-05 | J8: =F8*$B$1+J7 -> 3.53554529e-06 | K8: =J8*$B$1+K7 -> 3.595415402e-06 | L8: =G8*$B$1+L7 -> -7.758558681e-06 | M8: =L8*$B$1+M7 -> -9.573549106e-06 | N8: =(J8^2+L8^2)*$B$1+N7 -> 7.208350099e-11
A9: 1.58348 | B9: ='DF raw data'!J14 -> 2.4824947e-06 | C9: ='DF raw data'!K14 -> -1.0379899e-05 | D9: ='DF raw data'!L14 -> 1.6849657e-06 | F9: 2.485831173e-06 | G9: -1.041850773e-05 | H9: 1.687230294e-06 | J9: 4.778858609e-06 | K9: 5.985609324e-06 | L9: -1.296947951e-05 | M9: -1.606036398e-05 | N9: 1.676365123e-10
A10: 2.08364 | B10: ='DF raw data'!J15 -> 2.2776474e-06 | C10: ='DF raw data'!K15 -> -7.4683862e-06 | D10: ='DF raw data'!L15 -> -1.4868493e-05 | F10: 2.280708558e-06 | G10: -7.496165361e-06 | H10: -1.488847625e-05 | J10: 5.919577801e-06 | K10: 8.946345357e-06 | L10: -1.671876157e-05 | M10: -2.442241976e-05 | N10: 3.249660366e-10
A11: 2.5838 | B11: ='DF raw data'!J16 -> 2.1736448e-06 | C11: ='DF raw data'!K16 -> -4.9375394e-06 | D11: ='DF raw data'!L16 -> -1.7183251e-05 | F11: 2.176566179e-06 | G11: -4.955904908e-06 | H11: -1.720634529e-05 | J11: 7.008209141e-06 | K11: 1.245157124e-05 | L11: -1.919750697e-05 | M11: -3.402424485e-05 | N11: 5.338624967e-10
A12: 3.08396 | B12: ='DF raw data'!J17 -> 1.9325487e-06 | C12: ='DF raw data'!K17 -> 3.0456752e-06 | D12: ='DF raw data'!L17 -> -8.7066592e-06 | F12: 1.935146045e-06 | G12: 3.057003792e-06 | H12: -8.71836095e-06 | J12: 7.976091787e-06 | K12: 1.644089331e-05 | L12: -1.766851595e-05 | M12: -4.286132979e-05 | N12: 7.21819872e-10
A13: 3.58412 | B13: ='DF raw data'!J18 -> 1.7923118e-06 | C13: ='DF raw data'!K18 -> 8.9139357e-06 | D13: ='DF raw data'!L18 -> 3.9610454e-06 | F13: 1.794720667e-06 | G13: 8.947091679e-06 | H13: 3.966369045e-06 | J13: 8.873739276e-06 | K13: 2.087918275e-05 | L13: -1.319353858e-05 | M13: -4.946021005e-05 | N13: 8.482666765e-10
A14: 4.08428 | B14: ='DF raw data'!J19 -> 2.048964e-06 | C14: ='DF raw data'!K19 -> 2.1454421e-06 | D14: ='DF raw data'!L19 -> 5.7140855e-06 | F14: 2.051717808e-06 | G14: 2.153422215e-06 | H14: 5.721765231e-06 | J14: 9.899926455e-06 | K14: 2.583072996e-05 | L14: -1.211648293e-05 | M14: -5.552039015e-05 | N14: 9.707146985e-10
A15: 4.58444 | B15: ='DF raw data'!J20 -> 1.8256793e-06 | C15: ='DF raw data'!K20 -> 6.986847e-06 | D15: ='DF raw data'!L20 -> -1.3807736e-06 | F15: 1.828133013e-06 | G15: 7.012835044e-06 | H15: -1.38262936e-06 | J15: 1.081428546e-05 | K15: 3.123960298e-05 | L15: -8.60894335e-06 | M15: -5.982623925e-05 | N15: 1.066276606e-09
A16: 5.0846 | B16: ='DF raw data'!J21 -> 1.8569223e-06 | C16: ='DF raw data'!K21 -> 6.8131249e-06 | D16: ='DF raw data'!L21 -> 3.183158e-06 | F16: 1.859418004e-06 | G16: 6.838466773e-06 | H16: 3.187436164e-06 | J16: 1.174429197e-05 | K16: 3.711362805e-05 | L16: -5.188615809e-06 | M16: -6.242137734e-05 | N16: 1.148728046e-09
A17: 5.58476 | B17: ='DF raw data'!J22 -> 2.3674909e-06 | C17: ='DF raw data'!K22 -> -6.6547468e-06 | D17: ='DF raw data'!L22 -> 5.9094159e-06 | F17: 2.370672808e-06 | G17: -6.679499575e-06 | H17: 5.917358155e-06 | J17: 1.293000768e-05 | K17: 4.358070069e-05 | L17: -8.529434316e-06 | M17: -6.66874592e-05 | N17: 1.26873461e-09
A18: 6.08492 | B18: ='DF raw data'!J23 -> 2.4015278e-06 | C18: ='DF raw data'!K23 -> -8.5137872e-06 | D18: ='DF raw data'!L23 -> -4.6074331e-07 | F18: 2.404755453e-06 | G18: -8.5454548e-06 | H18: -4.61362549e-07 | J18: 1.413277017e-05 | K18: 5.064934702e-05 | L18: -1.280352899e-05 | M18: -7.309127226e-05 | N18: 1.45062557e-09
A19: 6.58508 | B19: ='DF raw data'!J24 -> 2.2844431e-06 | C19: ='DF raw data'!K24 -> -4.836802e-06 | D19: ='DF raw data'!L24 -> 1.5571853e-06 | F19: 2.287513392e-06 | G19: -4.854792808e-06 | H19: 1.559278157e-06 | J19: 1.527689287e-05 | K19: 5.829023776e-05 | L19: -1.523170216e-05 | M19: -8.070956042e-05 | N19: 1.683394136e-09
A20: 7.08524 | B20: ='DF raw data'!J25 -> 2.0059776e-06 | C20: ='DF raw data'!K25 -> 3.380444e-06 | D20: ='DF raw data'!L25 -> 5.0648518e-06 | F20: 2.008673634e-06 | G20: 3.393017787e-06 | H20: 5.071658961e-06 | J20: 1.628155107e-05 | K20: 6.643361834e-05 | L20: -1.353465038e-05 | M20: -8.747905115e-05 | N20: 1.907603693e-09
A21: 7.5854 | B21: ='DF raw data'!J26 -> 1.827411e-06 | C21: ='DF raw data'!K26 -> 7.972073e-06 | D21: ='DF raw data'!L26 -> 4.0198206e-06 | F21: 1.82986704e-06 | G21: 8.001725658e-06 | H21: 4.025223239e-06 | J21: 1.719677737e-05 | K21: 7.503475851e-05 | L21: -9.532507278e-06 | M21: -9.224682999e-05 | N21: 2.100964472e-09
A22: 8.08556 | B22: ='DF raw data'!J27 -> 2.643759e-06 | C22: ='DF raw data'!K27 -> 1.1859207e-05 | D22: ='DF raw data'!L27 -> -3.1254319e-06 | F22: 2.647312212e-06 | G22: 1.190331811e-05 | H22: -3.12963248e-06 | J22: 1.852085705e-05 | K22: 8.429815038e-05 | L22: -3.578943691e-06 | M22: -9.403687447e-05 | N22: 2.278936897e-09
A23: 8.58572 | B23: ='DF raw data'!J28 -> 3.8740941e-06 | C23: ='DF raw data'!K28 -> 2.6438593e-07 | D23: ='DF raw data'!L28 -> -1.0371107e-05 | F23: =(1-$G$1*($B$2-$G$2))*B23 -> 3.879300882e-06 | G23: 2.653693311e-07 | H23: -1.038504577e-05 | J23: 2.046112818e-05 | K23: 9.453198824e-05 | L23: -3.446216566e-06 | M23: -9.576053415e-05 | N23: 2.49427287e-09
A24: 9.08588 | B24: ='DF raw data'!J29 -> 9.9851934e-07 | C24: ='DF raw data'!K29 -> -1.1106677e-05 | D24: ='DF raw data'!L29 -> -1.2211459e-05 | F24: 9.9986135e-07 | G24: -1.114798903e-05 | H24: -1.22278712e-05 | J24: 2.096121883e-05 | K24: 0.0001050159515 | L24: -9.021994758e-06 | M24: -0.000100272975 | N24: 2.754740735e-09
A25: 9.58604 | B25: ='DF raw data'!J30 -> -1.9138863e-06 | C25: ='DF raw data'!K30 -> -2.4423846e-07 | D25: ='DF raw data'!L30 -> -1.6044656e-06 | F25: -1.916458563e-06 | G25: -2.451469213e-07 | H25: -1.606622002e-06 | J25: 2.000268292e-05 | K25: 0.0001150204933 | L25: -9.144607442e-06 | M25: -0.0001048467419 | N25: 2.996683717e-09
A26: 10.0862 | B26: ='DF raw data'!J31 -> -6.2401915e-07 | C26: ='DF raw data'!K31 -> 5.7422385e-06 | D26: ='DF raw data'!L31 -> 5.3235412e-06 | F26: -6.248578317e-07 | G26: 5.76359714e-06 | H26: 5.330696039e-06 | J26: 1.969015402e-05 | K26: 0.0001248687208 | L26: -6.261886697e-06 | M26: -0.0001079786872 | N26: 3.210208718e-09
A27: 10.58636 | B27: ='DF raw data'!J32 -> 1.8524196e-07 | C27: ='DF raw data'!K32 -> -8.1948965e-06 | D27: ='DF raw data'!L32 -> -6.9766304e-07 | F27: 1.854909252e-07 | G27: -8.225377965e-06 | H27: -6.986006991e-07 | J27: 1.978292916e-05 | K27: 0.0001347633506 | L27: -1.037589174e-05 | M27: -0.0001131682932 | N27: 3.45980027e-09
A28: 11.08652 | B28: ='DF raw data'!J33 -> -1.5757436e-06 | C28: ='DF raw data'!K33 -> -2.9410685e-06 | D28: ='DF raw data'!L33 -> -5.1091831e-07 | F28: -1.577861399e-06 | G28: -2.952008001e-06 | H28: -5.116049842e-07 | J28: 1.899374601e-05 | K28: 0.0001442632626 | L28: -1.185236806e-05 | M28: -0.0001190963736 | N28: 3.710500976e-09
A29: 11.58668 | B29: ='DF raw data'!J34 -> -5.195655e-07 | C29: ='DF raw data'!K34 -> 4.2638653e-06 | D29: ='DF raw data'!L34 -> 1.8369022e-06 | F29: -5.20263796e-07 | G29: 4.279725032e-06 | H29: 1.839370997e-06 | J29: 1.873353087e-05 | K29: 0.0001536330254 | L29: -9.71182079e-06 | M29: -0.0001239538379 | N29: 3.933204539e-09
A30: 12.08684 | B30: ='DF raw data'!J35 -> 3.2472415e-06 | C30: ='DF raw data'!K35 -> 1.9102101e-06 | D30: ='DF raw data'!L35 -> 4.1823603e-07 | F30: 3.251605793e-06 | G30: 1.917315254e-06 | H30: 4.187981392e-07 | J30: 2.035985402e-05 | K30: 0.00016381621 | L30: -8.752856392e-06 | M30: -0.0001283316665 | N30: 4.178851197e-09
A31: 12.587 | B31: ='DF raw data'!J36 -> 6.265323e-06 | C31: ='DF raw data'!K36 -> 3.83423e-06 | D31: ='DF raw data'!L36 -> 1.9011344e-06 | F31: 6.273743594e-06 | G31: 3.848491675e-06 | H31: 1.903689525e-06 | J31: 2.349772961e-05 | K31: 0.0001755688345 | L31: -6.827994796e-06 | M31: -0.0001317467564 | N31: 4.478329404e-09
A32: 13.08716 | B32: ='DF raw data'!J37 -> 7.2980724e-06 | C32: ='DF raw data'!K37 -> 1.6664386e-06 | D32: ='DF raw data'!L37 -> -1.4163821e-06 | F32: 7.307881009e-06 | G32: 1.67263703e-06 | H32: -1.418285718e-06 | J32: 2.715283938e-05 | K32: 0.0001891495986 | L32: -5.991408659e-06 | M32: -0.0001347434193 | N32: 4.865039944e-09
A33: 13.58732 | B33: ='DF raw data'!J38 -> 3.0034096e-06 | C33: ='DF raw data'!K38 -> -3.92416e-06 | D33: ='DF raw data'!L38 -> -6.2483455e-06 | F33: 3.007446183e-06 | G33: -3.938756175e-06 | H33: -6.256743276e-06 | J33: 2.865704366e-05 | K33: 0.0002034827056 | L33: -7.961416948e-06 | M33: -0.0001387254016 | N33: 5.307486637e-09
A34: 14.08748 | B34: ='DF raw data'!J39 -> -6.6681864e-06 | C34: ='DF raw data'!K39 -> 5.4382913e-06 | D34: ='DF raw data'!L39 -> -6.5776553e-06 | F34: -6.677148443e-06 | G34: 5.458519388e-06 | H34: -6.586495669e-06 | J34: 2.53174011e-05 | K34: 0.0002161454569 | L34: -5.231283891e-06 | M34: -0.0001413418806 | N34: 5.641762136e-09
A35: 14.58764 | B35: ='DF raw data'!J40 -> -1.1442713e-05 | C35: ='DF raw data'!K40 -> 6.5977733e-06 | D35: ='DF raw data'!L40 -> -2.3976615e-06 | F35: -1.145809201e-05 | G35: 6.622314158e-06 | H35: -2.400883957e-06 | J35: 1.95865218e-05 | K35: 0.0002259418516 | L35: -1.919067242e-06 | M35: -0.0001423017213 | N35: 5.835481434e-09
A36: 15.0878 | B36: ='DF raw data'!J41 -> -9.5557079e-06 | C36: ='DF raw data'!K41 -> 6.3872253e-06 | D36: ='DF raw data'!L41 -> -3.0726426e-07 | F36: -9.568550771e-06 | G36: 6.410983011e-06 | H36: -3.076772232e-07 | J36: 1.480071545e-05 | K36: 0.0002333445775 | L36: 1.287450021e-06 | M36: -0.0001416577903 | N36: 5.945876101e-09
A37: 15.58796 | B37: ='DF raw data'!J42 -> -6.9465937e-06 | C37: ='DF raw data'!K42 -> 1.0044064e-05 | D37: ='DF raw data'!L42 -> 5.2128594e-06 | F37: -6.955929922e-06 | G37: 1.008142357e-05 | H37: 5.219865483e-06 | J37: 1.132163754e-05 | K37: 0.0002390072077 | L37: 6.329774832e-06 | M37: -0.0001384918901 | N37: 6.030025784e-09
A38: 16.08812 | B38: ='DF raw data'!J43 -> -1.304263e-06 | C38: ='DF raw data'!K43 -> 2.0180194e-06 | D38: ='DF raw data'!L43 -> 1.0373928e-05 | F38: -1.306015929e-06 | G38: 2.025525558e-06 | H38: 1.038787056e-05 | J38: 1.066842061e-05 | K38: 0.000244343125 | L38: 7.342861696e-06 | M38: -0.0001348192844 | N38: 6.113919029e-09
A39: 16.58828 | B39: ='DF raw data'!J44 -> 7.8358761e-07 | C39: ='DF raw data'!K44 -> 1.1787623e-06 | D39: ='DF raw data'!L44 -> 8.7357757e-06 | F39: 7.846407517e-07 | G39: 1.183146785e-06 | H39: 8.747516583e-06 | J39: 1.106086653e-05 | K39: 0.000249875328 | L39: 7.934624392e-06 | M39: -0.0001308507026 | N39: 6.206599193e-09
A40: 17.08844 | B40: ='DF raw data'!J45 -> -5.0864223e-06 | C40: ='DF raw data'!K45 -> 7.8952198e-06 | D40: ='DF raw data'!L45 -> 8.6420032e-06 | F40: -5.093258452e-06 | G40: 7.924586597e-06 | H40: 8.653618052e-06 | J40: 8.513422381e-06 | K40: 0.0002541334013 | L40: 1.189818562e-05 | M40: -0.0001248997061 | N40: 6.313656032e-09
A41: 17.5886 | B41: ='DF raw data'!J46 -> -7.1215513e-06 | C41: ='DF raw data'!K46 -> 1.4085306e-05 | D41: ='DF raw data'!L46 -> 5.2232494e-06 | F41: -7.131122665e-06 | G41: 1.413769724e-05 | H41: 5.230269447e-06 | J41: 4.946720068e-06 | K41: 0.0002566075528 | L41: 1.896929627e-05 | M41: -0.0001154120229 | N41: 6.505869641e-09
A42: 18.08876 | B42: ='DF raw data'!J47 -> -4.5942184e-06 | C42: ='DF raw data'!K47 -> 5.8104197e-06 | D42: ='DF raw data'!L47 -> -1.1798751e-07 | F42: -4.60039303e-06 | G42: 5.832031944e-06 | H42: -1.181460852e-07 | J42: 2.645787491e-06 | K42: 0.0002579308699 | L42: 2.188624537e-05 | M42: -0.0001044653984 | N42: 6.748951366e-09
A43: 18.58892 | B43: ='DF raw data'!J48 -> -2.3970972e-06 | C43: ='DF raw data'!K48 -> 3.9571164e-06 | D43: ='DF raw data'!L48 -> 3.3852841e-06 | F43: -2.400318899e-06 | G43: 3.971835159e-06 | H43: 3.389833922e-06 | J43: 1.44524399e-06 | K43: 0.0002586537231 | L43: 2.387279844e-05 | M43: -9.252517955e-05 | N43: 7.035042503e-09
A44: 19.08908 | B44: ='DF raw data'!J49 -> 2.5137376e-06 | C44: ='DF raw data'!K49 -> -7.0578303e-06 | D44: ='DF raw data'!L49 -> 9.0795211e-06 | F44: 2.517116063e-06 | G44: -7.084082371e-06 | H44: 9.091723976e-06 | J44: 2.704204761e-06 | K44: 0.0002600062582 | L44: 2.032962381e-05 | M44: -8.23571149e-05 | N44: 7.245412964e-09
A45: 19.58924 | B45: ='DF raw data'!J50 -> 6.1588612e-06 | C45: ='DF raw data'!K50 -> 7.4777254e-06 | D45: ='DF raw data'!L50 -> 5.7944121e-06 | F45: 6.167138709e-06 | G45: 7.505539299e-06 | H45: 5.80219979e-06 | J45: 5.788760858e-06 | K45: 0.0002629015648 | L45: 2.408359434e-05 | M45: -7.031146436e-05 | N45: 7.552275763e-09
A46: 20.0894 | B46: ='DF raw data'!J51 -> 5.7468092e-06 | C46: ='DF raw data'!K51 -> 9.9960307e-06 | D46: ='DF raw data'!L51 -> -8.3936959e-07 | F46: 5.754532912e-06 | G46: 1.00332116e-05 | H46: -8.404977027e-07 | J46: 8.666948039e-06 | K46: 0.0002672364255 | L46: 2.910180546e-05 | M46: -5.575590534e-05 | N46: 8.013438823e-09
A47: 20.58956 | B47: ='DF raw data'!J52 -> 5.2182254e-06 | C47: ='DF raw data'!K52 -> 5.8914097e-06 | D47: ='DF raw data'!L52 -> -9.0304877e-07 | F47: 5.225238695e-06 | G47: 5.913323192e-06 | H47: -9.042624675e-07 | J47: 1.128040342e-05 | K47: 0.0002728784321 | L47: 3.205941318e-05 | M47: -3.972106924e-05 | N47: 8.591150369e-09
A48: 21.08972 | B48: ='DF raw data'!J53 -> 3.8178218e-06 | C48: ='DF raw data'!K53 -> 8.3632822e-06 | D48: ='DF raw data'!L53 -> 8.724013e-07 | F48: 3.822952952e-06 | G48: 8.394389987e-06 | H48: 8.735738073e-07 | J48: 1.319249157e-05 | K48: 0.0002794767887 | L48: 3.625795128e-05 | M48: -2.158629233e-05 | N48: 9.33572899e-09
A49: 21.58988 | B49: ='DF raw data'!J54 -> 3.230777e-07 | C49: ='DF raw data'!K54 -> 1.7919937e-06 | D49: ='DF raw data'!L54 -> -1.3322575e-06 | F49: 3.235119164e-07 | G49: 1.79865914e-06 | H49: -1.334048054e-06 | J49: 1.335429929e-05 | K49: 0.000286156075 | L49: 3.715756864e-05 | M49: -3.001562801e-06 | N49: 1.011548954e-08
A50: 22.09004 | B50: ='DF raw data'!J55 -> -1.9602196e-06 | C50: ='DF raw data'!K55 -> 1.5782433e-06 | D50: ='DF raw data'!L55 -> 1.452819e-06 | F50: -1.962854135e-06 | G50: 1.584113681e-06 | H50: 1.454771589e-06 | J50: 1.237255817e-05 | K50: 0.0002923443337 | L50: 3.794987893e-05 | M50: 1.597944865e-05 | N50: 1.091238122e-08
A51: 22.5902 | B51: ='DF raw data'!J56 -> -2.0286282e-06 | C51: ='DF raw data'!K56 -> -3.0414722e-07 | D51: ='DF raw data'!L56 -> 5.7769789e-06 | F51: -2.031354676e-06 | G51: -3.052785159e-07 | H51: 5.78474316e-06 | J51: 1.135655581e-05 | K51: 0.0002980244287 | L51: 3.779719083e-05 | M51: 3.488409161e-05 | N51: 1.169142993e-08
A52: 23.09036 | B52: ='DF raw data'!J57 -> -1.6503658e-06 | C52: ='DF raw data'!K57 -> 1.6384189e-06 | D52: ='DF raw data'!L57 -> -5.2402959e-07 | F52: -1.652583892e-06 | G52: 1.644513109e-06 | H52: -5.247338858e-07 | J52: 1.052999945e-05 | K52: 0.0003032911132 | L52: 3.861971051e-05 | M52: 5.420012602e-05 | N52: 1.249286777e-08
A53: 23.59052 | B53: ='DF raw data'!J58 -> -1.7352762e-06 | C53: ='DF raw data'!K58 -> 9.3537119e-06 | D53: ='DF raw data'!L58 -> -4.9223895e-06 | F53: -1.737608411e-06 | G53: 9.388503656e-06 | H53: -4.929005191e-06 | J53: 9.660917232e-06 | K53: 0.0003081231176 | L53: 4.33154645e-05 | M53: 7.586478874e-05 | N53: 1.34779643e-08
A54: 24.09068 | B54: ='DF raw data'!J59 -> -1.8753821e-06 | C54: ='DF raw data'!K59 -> 1.123717e-05 | D54: ='DF raw data'!L59 -> -2.2992324e-06 | F54: -1.877902614e-06 | G54: 1.12789674e-05 | H54: -2.302322568e-06 | J54: 8.721665461e-06 | K54: 0.0003124853458 | L54: 4.895675283e-05 | M54: 0.0001003509982 | N54: 1.47147755e-08
A55: 24.59084 | B55: ='DF raw data'!J60 -> -2.6732343e-06 | C55: ='DF raw data'!K60 -> -2.9107805e-06 | D55: ='DF raw data'!L60 -> -4.6260252e-06 | F55: -2.676827127e-06 | G55: -2.921607342e-06 | H55: -4.632242578e-06 | J55: 7.382823605e-06 | K55: 0.0003161779388 | L55: 4.749548171e-05 | M55: 0.0001241063384 | N55: 1.587030858e-08
A56: 25.091 | B56: ='DF raw data'!J61 -> -2.9020487e-06 | C56: ='DF raw data'!K61 -> 6.9365451e-06 | D56: ='DF raw data'!L61 -> -1.6921264e-06 | F56: -2.905949053e-06 | G56: 6.962346043e-06 | H56: -1.694400618e-06 | J56: 5.929384126e-06 | K56: 0.0003191435796 | L56: 5.09777687e-05 | M56: 0.0001496033792 | N56: 1.718767526e-08
A57: 25.59116 | B57: ='DF raw data'!J62 -> 1.8987736e-06 | C57: ='DF raw data'!K62 -> -4.5610077e-06 | D57: ='DF raw data'!L62 -> -1.5853735e-06 | F57: 1.901325552e-06 | G57: -4.577972673e-06 | H57: -1.587504242e-06 | J57: 6.880351114e-06 | K57: 0.000322584856 | L57: 4.868804989e-05 | M57: 0.0001739551942 | N57: 1.839699483e-08
A58: 26.09132 | B58: ='DF raw data'!J63 -> 6.8587938e-06 | C58: ='DF raw data'!K63 -> -1.035188e-05 | D58: ='DF raw data'!L63 -> -2.5570632e-06 | F58: 6.868012019e-06 | G58: -1.039038451e-05 | H58: -2.560499893e-06 | J58: 1.031545601e-05 | K58: 0.0003277442345 | L58: 4.349119517e-05 | M58: 0.0001957077504 | N58: 1.939626084e-08
A59: 26.59148 | B59: ='DF raw data'!J64 -> 5.8487308e-06 | C59: ='DF raw data'!K64 -> 2.0701228e-07 | D59: ='DF raw data'!L64 -> -1.0422083e-05 | F59: 5.856591494e-06 | G59: 2.07782276e-07 | H59: -1.043609028e-05 | J59: 1.324468881e-05 | K59: 0.000334368698 | L59: 4.359511956e-05 | M59: 0.0002175122854 | N59: 2.043457111e-08
A60: 27.09164 | B60: ='DF raw data'!J65 -> -4.757414e-08 | C60: ='DF raw data'!K65 -> 1.1219958e-05 | D60: ='DF raw data'!L65 -> -8.8846145e-06 | F60: -4.763807964e-08 | G60: 1.126169138e-05 | H60: -8.896555422e-06 | J60: 1.322086215e-05 | K60: 0.0003409812444 | L60: 4.922776712e-05 | M60: 0.0002421340454 | N60: 2.173406894e-08
A61: 27.5918 | B61: ='DF raw data'!J66 -> -2.0793561e-06 | C61: ='DF raw data'!K66 -> 5.4074694e-06 | D61: ='DF raw data'!L66 -> 8.3979046e-07 | F61: -2.082150755e-06 | G61: 5.427582844e-06 | H61: 8.409191384e-07 | J61: 1.217945362e-05 | K61: 0.00034707292 | L61: 5.194242695e-05 | M61: 0.0002681135696 | N61: 2.315770176e-08
A62: 28.09196 | B62: ='DF raw data'!J67 -> -6.8583569e-07 | C62: ='DF raw data'!K67 -> -5.5046048e-06 | D62: ='DF raw data'!L67 -> 2.5233451e-06 | F62: -6.867574532e-07 | G62: -5.525079545e-06 | H62: 2.526736476e-06 | J62: 1.183596502e-05 | K62: 0.0003529927962 | L62: 4.917900317e-05 | M62: 0.0002927109399 | N62: 2.443744336e-08
A63: 28.59212 | B63: ='DF raw data'!J68 -> 5.3995944e-07 | C63: ='DF raw data'!K68 -> -2.7790879e-06 | D63: ='DF raw data'!L68 -> 1.3417442e-06 | F63: 5.406851455e-07 | G63: -2.789424903e-06 | H63: 1.343547504e-06 | J63: 1.21063941e-05 | K63: 0.0003590479303 | L63: 4.778384441e-05 | M63: 0.0003166105075 | N63: 2.565276242e-08
A64: 29.09228 | B64: ='DF raw data'!J69 -> -1.1121632e-06 | C64: ='DF raw data'!K69 -> -6.906524e-06 | D64: ='DF raw data'!L69 -> 6.4079302e-07 | F64: -1.113657947e-06 | G64: -6.932213277e-06 | H64: 6.416542458e-07 | J64: 1.154938694e-05 | K64: 0.0003648244717 | L64: 4.431662862e-05 | M64: 0.0003387759125 | N64: 2.670177395e-08
A65: 29.59244 | B65: ='DF raw data'!J70 -> -3.1121056e-06 | C65: ='DF raw data'!K70 -> -1.5107625e-05 | D65: ='DF raw data'!L70 -> -2.42694e-06 | F65: -3.11628827e-06 | G65: -1.516381882e-05 | H65: -2.430201807e-06 | J65: 9.990744199e-06 | K65: 0.0003698214423 | L65: 3.6732293e-05 | M65: 0.0003571479361 | N65: 2.742654396e-08
A66: 30.0926 | B66: ='DF raw data'!J71 -> -3.1811981e-06 | C66: ='DF raw data'!K71 -> -1.2705402e-05 | D66: ='DF raw data'!L71 -> -4.9263767e-06 | F66: -3.18547363e-06 | G66: -1.275266059e-05 | H66: -4.93299775e-06 | J66: 8.397497708e-06 | K66: 0.0003740215347 | L66: 3.035392227e-05 | M66: 0.0003723297539 | N66: 2.792264194e-08
A67: 30.59276 | B67: ='DF raw data'!J72 -> 7.1136645e-07 | C67: ='DF raw data'!K72 -> -8.772503e-06 | D67: ='DF raw data'!L72 -> -5.0788517e-06 | F67: 7.123225265e-07 | G67: -8.805132911e-06 | H67: -5.085677677e-06 | J67: 8.753772942e-06 | K67: 0.0003783998218 | L67: 2.5949947e-05 | M67: 0.0003853088794 | N67: 2.829777609e-08
A68: 31.09292 | B68: ='DF raw data'!J73 -> 3.0100161e-06 | C68: ='DF raw data'!K73 -> -1.7102895e-05 | D68: ='DF raw data'!L73 -> -3.7081779e-06 | F68: 3.014061562e-06 | G68: -1.716651036e-05 | H68: -3.713161691e-06 | J68: 1.026128597e-05 | K68: 0.0003835321066 | L68: 1.736394518e-05 | M68: 0.0003939936302 | N68: 2.850124147e-08
A69: 31.59308 | B69: ='DF raw data'!J74 -> 7.0816503e-07 | C69: ='DF raw data'!K74 -> -9.3259587e-06 | D69: ='DF raw data'!L74 -> -6.5652134e-06 | F69: 7.091168038e-07 | G69: -9.360647226e-06 | H69: -6.574037047e-06 | J69: 1.061595783e-05 | K69: 0.0003888417841 | L69: 1.268212386e-05 | M69: 0.0004003367213 | N69: 2.863805265e-08
A70: 32.09324 | B70: ='DF raw data'!J75 -> -2.2228671e-06 | C70: ='DF raw data'!K75 -> -7.3683154e-06 | D70: ='DF raw data'!L75 -> -5.8607407e-06 | F70: -2.225854633e-06 | G70: -7.395722341e-06 | H70: -5.868617536e-06 | J70: 9.50267438e-06 | K70: 0.0003935946417 | L70: 8.983079373e-06 | M70: 0.0004048296982 | N70: 2.872357828e-08
A71: 32.5934 | B71: ='DF raw data'!J76 -> -1.3449211e-06 | C71: ='DF raw data'!K76 -> -1.1329501e-05 | D71: ='DF raw data'!L76 -> -9.9376541e-07 | F71: -1.346728674e-06 | G71: =(1-$G$1*($B$2-$G$2))*C71*$M$2/$M$1 -> -1.137164184e-05 | H71: -9.951010307e-07 | J71: 8.829094567e-06 | K71: 0.0003980106016 | L71: 3.295438993e-06 | M71: 0.000406477945 | N71: 2.87679989e-08
A72: =A71+$B$1 -> 33.09356 | B72: ='DF raw data'!J77 -> 1.8157488e-07 | C72: ='DF raw data'!K77 -> -5.3055314e-06 | D72: ='DF raw data'!L77 -> -5.0010572e-06 | F72: 1.818189166e-07 | G72: -5.325265678e-06 | H72: -5.007778621e-06 | J72: =F72*$B$1+J71 -> 8.920033116e-06 | K72: =J72*$B$1+K71 -> 0.0004024720454 | L72: =G72*$B$1+L71 -> 6.319541112e-07 | M72: =L72*$B$1+M71 -> 0.0004067940232 | N72: =(J72^2+L72^2)*$B$1+N71 -> 2.880799488e-08
A73: 33.59372 | B73: ='DF raw data'!J78 -> 2.2979327e-06 | C73: ='DF raw data'!K78 -> 7.7407776e-07 | D73: ='DF raw data'!L78 -> -5.9077142e-06 | F73: 2.301021122e-06 | G73: 7.769569939e-07 | H73: -5.915654168e-06 | J73: 1.007091184e-05 | K73: 0.0004075091127 | L73: 1.020556921e-06 | M73: 0.0004073044649 | N73: 2.885924367e-08
A74: 34.09388 | B74: ='DF raw data'!J79 -> 3.3770009e-06 | C74: ='DF raw data'!K79 -> -6.8979848e-06 | D74: ='DF raw data'!L79 -> -2.1414657e-07 | F74: 3.381539589e-06 | G74: -6.923642315e-06 | H74: -2.14434383e-07 | J74: 1.176222268e-05 | K74: 0.000413392106 | L74: -2.442372019e-06 | M74: 0.0004060828881 | N74: 2.893142429e-08
A75: 34.59404 | B75: ='DF raw data'!J80 -> 3.8162005e-07 | C75: ='DF raw data'!K80 -> -1.3986504e-06 | D75: ='DF raw data'!L80 -> 7.3733386e-06 | F75: 3.821329473e-07 | G75: -1.403852774e-06 | H75: 7.383248367e-06 | J75: 1.19533503e-05 | K75: 0.0004193706936 | L75: -3.144523022e-06 | M75: 0.0004045101235 | N75: 2.900783404e-08
A76: 35.0942 | B76: ='DF raw data'!J81 -> -1.7186434e-06 | C76: ='DF raw data'!K81 -> 6.1914875e-06 | D76: ='DF raw data'!L81 -> 1.040408e-05 | F76: -1.720953257e-06 | G76: 6.214517151e-06 | H76: 1.041806308e-05 | J76: 1.109259832e-05 | K76: 0.0004249187676 | L76: -3.627012393e-08 | M76: 0.0004044919826 | N76: 2.906937725e-08
A77: 35.59436 | B77: ='DF raw data'!J82 -> 1.1320186e-06 | C77: ='DF raw data'!K82 -> -3.9329661e-06 | D77: ='DF raw data'!L82 -> 8.8613588e-06 | F77: 1.133540033e-06 | G77: -3.94759503e-06 | H77: 8.873268466e-06 | J77: 1.16595497e-05 | K77: 0.000430750408 | L77: -2.010699254e-06 | M77: 0.0004034863113 | N77: 2.913939366e-08
A78: 36.09452 | B78: ='DF raw data'!J83 -> 4.4892472e-06 | C78: ='DF raw data'!K83 -> -1.1969952e-05 | D78: ='DF raw data'!L83 -> 8.2975157e-06 | F78: 4.495280748e-06 | G78: -1.201447504e-05 | H78: 8.308667561e-06 | J78: 1.390790932e-05 | K78: 0.0004377065879 | L78: -8.019859088e-06 | M78: 0.0003994750986 | N78: 2.926830894e-08
A79: 36.59468 | B79: ='DF raw data'!J84 -> 2.8265893e-06 | C79: ='DF raw data'!K84 -> -5.2727082e-06 | D79: ='DF raw data'!L84 -> 5.1500626e-07 | F79: 2.830388236e-06 | G79: -5.29232039e-06 | H79: 5.156984284e-07 | J79: 1.53235563e-05 | K79: 0.0004453708178 | L79: -1.066686605e-05 | M79: 0.0003941399589 | N79: 2.944266142e-08
A80: 37.09484 | B80: ='DF raw data'!J85 -> -2.150646e-06 | C80: ='DF raw data'!K85 -> -2.3072894e-06 | D80: ='DF raw data'!L85 -> -2.6080968e-06 | F80: -2.153536468e-06 | G80: -2.315871517e-06 | H80: -2.611602082e-06 | J80: 1.42464435e-05 | K80: 0.000452496319 | L80: -1.182517235e-05 | M80: 0.0003882254807 | N80: 2.961411419e-08
A81: 37.595 | B81: ='DF raw data'!J86 -> -3.8844632e-06 | C81: ='DF raw data'!K86 -> -3.81982e-06 | D81: ='DF raw data'!L86 -> -2.6713249e-06 | F81: -3.889683919e-06 | G81: -3.834028076e-06 | H81: -2.674915161e-06 | J81: 1.230097919e-05 | K81: 0.0004586487768 | L81: -1.374279983e-05 | M81: 0.0003813518819 | N81: 2.978425794e-08
A82: 38.09516 | B82: ='DF raw data'!J87 -> -7.3842631e-07 | C82: ='DF raw data'!K87 -> -4.2914849e-06 | D82: ='DF raw data'!L87 -> -8.4796347e-06 | F82: -7.39418755e-07 | G82: -4.307447365e-06 | H82: -8.491031329e-06 | J82: 1.19311515e-05 | K82: 0.0004646162615 | L82: -1.589721271e-05 | M82: 0.000373400732 | N82: 2.998185802e-08
A83: 38.59532 | B83: ='DF raw data'!J88 -> 2.6901505e-06 | C83: ='DF raw data'!K88 -> -1.45042e-06 | D83: ='DF raw data'!L88 -> -4.9610539e-06 | F83: 2.693766062e-06 | G83: -1.455814934e-06 | H83: -4.967721556e-06 | J83: 1.327846554e-05 | K83: 0.0004712576188 | L83: -1.662535311e-05 | M83: 0.0003650853954 | N83: 3.020829047e-08
A84: 39.09548 | B84: ='DF raw data'!J89 -> 2.4323633e-06 | C84: ='DF raw data'!K89 -> 1.0142667e-05 | D84: ='DF raw data'!L89 -> 5.312462e-07 | F84: 2.435632396e-06 | G84: 1.018039333e-05 | H84: 5.319601949e-07 | J84: 1.449667144e-05 | K84: 0.000478508274 | L84: -1.153352758e-05 | M84: 0.0003593167862 | N84: 3.037993325e-08
A85: 39.59564 | B85: ='DF raw data'!J90 -> -1.7705064e-06 | C85: ='DF raw data'!K90 -> 1.7284823e-06 | D85: ='DF raw data'!L90 -> -1.5265401e-06 | F85: -1.772885961e-06 | G85: 1.734911505e-06 | H85: -1.52859177e-06 | J85: 1.36099448e-05 | K85: 0.000485315424 | L85: -1.066579424e-05 | M85: 0.0003539821826 | N85: 3.052947597e-08
A86: 40.0958 | B86: ='DF raw data'!J91 -> -6.1460782e-06 | C86: ='DF raw data'!K91 -> 8.3795603e-06 | D86: ='DF raw data'!L91 -> 7.7011589e-07 | F86: -6.154338529e-06 | G86: 8.410728634e-06 | H86: 7.711509258e-07 | J86: 1.053179084e-05 | K86: 0.0004905830045 | L86: -6.459084207e-06 | M86: 0.000350751607 | N86: 3.060581958e-08
A87: 40.59596 | B87: ='DF raw data'!J92 -> -7.1187428e-06 | C87: ='DF raw data'!K92 -> 1.5002218e-05 | D87: ='DF raw data'!L92 -> 4.3042087e-06 | F87: =(1-$G$1*($B$2-$G$2))*B87 -> -7.12831039e-06 | G87: 1.505801975e-05 | H87: 4.309993556e-06 | J87: 6.966495112e-06 | K87: 0.0004940673667 | L87: 1.072334952e-06 | M87: 0.0003512879461 | N87: 3.063066851e-08
A88: 41.09612 | B88: ='DF raw data'!J93 -> -5.843573e-06 | C88: ='DF raw data'!K93 -> 9.6160302e-06 | D88: ='DF raw data'!L93 -> 6.4308692e-06 | F88: -5.851426762e-06 | G88: 9.651797667e-06 | H88: 6.439512288e-06 | J88: 4.039845502e-06 | K88: 0.0004960879358 | L88: 5.899778073e-06 | M88: 0.0003542387791 | N88: 3.065624056e-08
A89: 41.59628 | B89: ='DF raw data'!J94 -> -2.0679474e-06 | C89: ='DF raw data'!K94 -> 1.6687069e-06 | D89: ='DF raw data'!L94 -> 4.0578157e-06 | F89: -2.070726721e-06 | G89: 1.674913767e-06 | H89: 4.063269404e-06 | J89: 3.004150825e-06 | K89: 0.0004975904919 | L89: 6.737502942e-06 | M89: 0.0003576086085 | N89: 3.06834587e-08
A90: 42.09644 | B90: ='DF raw data'!J95 -> 7.6523764e-07 | C90: ='DF raw data'!K95 -> -2.2733989e-06 | D90: ='DF raw data'!L95 -> -2.2520602e-07 | F90: 7.662661194e-07 | G90: -2.281854959e-06 | H90: -2.255086969e-07 | J90: 3.387406488e-06 | K90: 0.0004992847371 | L90: 5.596210366e-06 | M90: 0.0003604076091 | N90: 3.070486159e-08
A91: 42.5966 | B91: ='DF raw data'!J96 -> 2.0358818e-06 | C91: ='DF raw data'!K96 -> -2.1215587e-06 | D91: ='DF raw data'!L96 -> 4.0233078e-07 | F91: 2.038618025e-06 | G91: -2.129449979e-06 | H91: 4.028715126e-07 | J91: 4.407041679e-06 | K91: 0.0005014889631 | L91: 4.531144664e-06 | M91: 0.0003626739064 | N91: 3.072484463e-08
A92: 43.09676 | B92: ='DF raw data'!J97 -> 2.1998819e-06 | C92: ='DF raw data'!K97 -> -8.9159366e-06 | D92: ='DF raw data'!L97 -> 8.4625151e-07 | F92: 2.202838541e-06 | G92: -8.949100022e-06 | H92: 8.47388872e-07 | J92: 5.508813404e-06 | K92: 0.0005042442512 | L92: 5.51627974e-08 | M92: 0.0003627014966 | N92: 3.074002452e-08
A93: 43.59692 | B93: ='DF raw data'!J98 -> -2.0642804e-06 | C93: ='DF raw data'!K98 -> -9.1132752e-06 | D93: ='DF raw data'!L98 -> -6.3510436e-07 | F93: -2.067054793e-06 | G93: -9.147172636e-06 | H93: -6.359579403e-07 | J93: 4.474955279e-06 | K93: 0.0005064824448 | L93: -4.519887068e-06 | M93: 0.0003604408299 | N93: 3.076025829e-08
A94: 44.09708 | B94: ='DF raw data'!J99 -> -5.7873008e-06 | C94: ='DF raw data'!K99 -> -7.4531749e-06 | D94: ='DF raw data'!L99 -> 2.3105815e-06 | F94: -5.795078932e-06 | G94: -7.480897482e-06 | H94: 2.313686922e-06 | J94: 1.5764886e-06 | K94: 0.0005072709414 | L94: -8.261532753e-06 | M94: 0.0003563087417 | N94: 3.079563873e-08
A95: 44.59724 | B95: ='DF raw data'!J100 -> -3.0060512e-06 | C95: ='DF raw data'!K100 -> -1.7216309e-05 | D95: ='DF raw data'!L100 -> 7.2589314e-06 | F95: -3.010091333e-06 | G95: -1.728034621e-05 | H95: 7.268687404e-06 | J95: 7.096131889e-08 | K95: 0.0005073064334 | L95: -1.690447071e-05 | M95: 0.0003478538016 | N95: 3.093856753e-08
A96: 45.0974 | B96: ='DF raw data'!J101 -> -1.9314505e-06 | C96: ='DF raw data'!K101 -> -7.0310111e-06 | D96: ='DF raw data'!L101 -> 2.4836766e-06 | F96: -1.934046369e-06 | G96: -7.057163415e-06 | H96: 2.487014661e-06 | J96: -8.963713133e-07 | K96: 0.0005068581043 | L96: -2.043418157e-05 | M96: 0.0003376334414 | N96: 3.11478141e-08
A97: 45.59756 | B97: ='DF raw data'!J102 -> -3.7842731e-06 | C97: ='DF raw data'!K102 -> 3.6885274e-06 | D97: ='DF raw data'!L102 -> -9.6963058e-06 | F97: -3.789359163e-06 | G97: 3.702247124e-06 | H97: -9.709337635e-06 | J97: -2.791657192e-06 | K97: 0.0005054618291 | L97: -1.858246565e-05 | M97: 0.0003283392354 | N97: 3.132442129e-08
A98: 46.09772 | B98: ='DF raw data'!J103 -> -2.4493531e-06 | C98: ='DF raw data'!K103 -> 1.5234048e-06 | D98: ='DF raw data'!L103 -> -1.1329744e-05 | F98: -2.452645031e-06 | G98: 1.529071206e-06 | H98: -1.134497118e-05 | J98: -4.018372131e-06 | K98: 0.000503452 | L98: -1.781768539e-05 | M98: 0.0003194275418 | N98: 3.149128328e-08
A99: 46.59788 | B99: ='DF raw data'!J104 -> -1.8984032e-06 | C99: ='DF raw data'!K104 -> 1.1910377e-06 | D99: ='DF raw data'!L104 -> -5.0233268e-07 | F99: -1.900954654e-06 | G99: 1.195467844e-06 | H99: -5.030078151e-07 | J99: -4.96915361e-06 | K99: 0.0005009666282 | L99: -1.721976019e-05 | M99: 0.0003108149066 | N99: 3.165194099e-08
A100: 47.09804 | B100: ='DF raw data'!J105 -> -3.0424892e-06 | C100: ='DF raw data'!K105 -> -1.1635517e-06 | D100: ='DF raw data'!L105 -> 2.3653549e-06 | F100: -3.046578305e-06 | G100: -1.167879608e-06 | H100: 2.368533937e-06 | J100: -6.492930216e-06 | K100: 0.0004977191242 | L100: -1.780388686e-05 | M100: 0.0003019101145 | N100: 3.183156671e-08
A101: 47.5982 | B101: ='DF raw data'!J106 -> -3.2954015e-06 | C101: ='DF raw data'!K106 -> 1.3322103e-05 | D101: ='DF raw data'!L106 -> 3.3053163e-07 | F101: -3.29983052e-06 | G101: 1.337165545e-05 | H101: 3.309758645e-07 | J101: -8.143373448e-06 | K101: 0.0004936461345 | L101: -1.111591967e-05 | M101: 0.0002963503762 | N101: 3.19265362e-08
A102: 48.09836 | B102: ='DF raw data'!J107 -> 2.8730909e-07 | C102: ='DF raw data'!K107 -> 3.1935795e-07 | D102: ='DF raw data'!L107 -> 2.3117748e-06 | F102: 2.876952334e-07 | G102: 3.205458232e-07 | H102: 2.314881825e-06 | J102: -7.9994798e-06 | K102: 0.0004896451147 | L102: -1.095559547e-05 | M102: 0.0002908708255 | N102: 3.201857401e-08
A103: 48.59852 | B103: ='DF raw data'!J108 -> 5.2969222e-06 | C103: ='DF raw data'!K108 -> -4.6524056e-06 | D103: ='DF raw data'!L108 -> 4.6191994e-06 | F103: 5.304041263e-06 | G103: -4.669710533e-06 | H103: 4.625407604e-06 | J103: -5.346610522e-06 | K103: 0.000486970954 | L103: -1.329119789e-05 | M103: 0.0002842231 | N103: 3.212122794e-08
A104: 49.09868 | B104: ='DF raw data'!J109 -> 1.2113112e-05 | C104: ='DF raw data'!K109 -> -7.0109977e-06 | D104: ='DF raw data'!L109 -> 3.7364218e-06 | F104: 1.212939202e-05 | G104: -7.037075574e-06 | H104: 3.741443551e-06 | J104: 7.200261919e-07 | K104: 0.0004873310823 | L104: -1.681086161e-05 | M104: 0.0002758149794 | N104: 3.2262835e-08
A105: 49.59884 | B105: ='DF raw data'!J110 -> 1.637953e-05 | C105: ='DF raw data'!K110 -> 6.6746946e-07 | D105: ='DF raw data'!L110 -> 1.6272674e-06 | F105: 1.640154409e-05 | G105: 6.699521572e-07 | H105: 1.629454447e-06 | J105: 8.923422483e-06 | K105: 0.0004917942213 | L105: -1.647577834e-05 | M105: 0.0002675744541 | N105: 3.243843054e-08
A106: 50.099 | B106: ='DF raw data'!J111 -> 1.6203117e-05 | C106: ='DF raw data'!K111 -> -8.6253988e-07 | D106: ='DF raw data'!L111 -> 3.5286496e-06 | F106: 1.622489399e-05 | G106: -8.657481547e-07 | H106: 3.533392105e-06 | J106: 1.703846546e-05 | K106: 0.0005003161802 | L106: -1.690879094e-05 | M106: 0.0002591173533 | N106: 3.272663099e-08
A107: 50.59916 | B107: ='DF raw data'!J112 -> 9.9817953e-06 | C107: ='DF raw data'!K112 -> -5.6436356e-06 | D107: ='DF raw data'!L112 -> 3.203065e-06 | F107: 9.995210833e-06 | G107: -5.66462748e-06 | H107: 3.207369919e-06 | J107: 2.203767011e-05 | K107: 0.0005113385413 | L107: -1.974201102e-05 | M107: 0.000249243189 | N107: 3.316447401e-08
A108: 51.09932 | B108: ='DF raw data'!J113 -> 2.2870479e-06 | C108: ='DF raw data'!K113 -> -8.3852308e-07 | D108: ='DF raw data'!L113 -> -8.9732987e-07 | F108: 2.290121692e-06 | G108: -8.416420226e-07 | H108: -8.985358813e-07 | J108: 2.318309738e-05 | K108: 0.0005229337992 | L108: -2.016296669e-05 | M108: 0.0002391584796 | N108: 3.363662566e-08
A109: 51.59948 | B109: ='DF raw data'!J114 -> 9.9758802e-07 | C109: ='DF raw data'!K114 -> -7.2782518e-06 | D109: ='DF raw data'!L114 -> -2.9908558e-06 | F109: 9.989287783e-07 | G109: -7.305323744e-06 | H109: -2.99487551e-06 | J109: 2.368272159e-05 | K109: 0.0005347789493 | L109: -2.381679741e-05 | M109: 0.0002272462702 | N109: 3.420086173e-08
A110: 52.09964 | B110: ='DF raw data'!J115 -> 3.35852e-06 | C110: ='DF raw data'!K115 -> 1.3048444e-05 | D110: ='DF raw data'!L115 -> -2.6429777e-06 | F110: 3.363033851e-06 | G110: 1.309697856e-05 | H110: -2.646529862e-06 | J110: 2.536477661e-05 | K110: 0.0005474653959 | L110: -1.726621262e-05 | M110: 0.0002186104013 | N110: 3.467175937e-08
A111: 52.5998 | B111: ='DF raw data'!J116 -> 7.5949752e-06 | C111: ='DF raw data'!K116 -> 2.0008072e-06 | D111: ='DF raw data'!L116 -> -2.3709733e-06 | F111: 7.605182847e-06 | G111: 2.008249336e-06 | H111: -2.374159888e-06 | J111: 2.916858486e-05 | K111: 0.0005620543553 | L111: -1.626176663e-05 | M111: 0.0002104769161 | N111: 3.522956351e-08
A112: 53.09996 | B112: ='DF raw data'!J117 -> 8.1196158e-06 | C112: ='DF raw data'!K117 -> -5.2545624e-06 | D112: ='DF raw data'!L117 -> 2.0000291e-06 | F112: 8.130528564e-06 | G112: -5.274107096e-06 | H112: 2.002717139e-06 | J112: 3.323515002e-05 | K112: 0.000578677248 | L112: -1.889966403e-05 | M112: 0.0002010240602 | N112: 3.596068364e-08
A113: 53.60012 | B113: ='DF raw data'!J118 -> 5.3532526e-06 | C113: ='DF raw data'!K118 -> 6.0235698e-07 | D113: ='DF raw data'!L118 -> 1.1196529e-06 | F113: 5.360447371e-06 | G113: 6.04597487e-07 | H113: 1.121157713e-06 | J113: 3.591623138e-05 | K113: 0.0005966411103 | L113: -1.859726856e-05 | M113: 0.0001917224503 | N113: 3.677886241e-08
A114: 54.10028 | B114: ='DF raw data'!J119 -> 2.4764265e-06 | C114: ='DF raw data'!K119 -> 2.3171629e-06 | D114: ='DF raw data'!L119 -> -1.0882801e-06 | F114: 2.479754817e-06 | G114: 2.325781742e-06 | H114: -1.089742748e-06 | J114: 3.715650555e-05 | K114: 0.0006152253081 | L114: -1.743400556e-05 | M114: 0.0001830026581 | N114: 3.762140716e-08
A115: 54.60044 | B115: ='DF raw data'!J120 -> -1.3921129e-06 | C115: ='DF raw data'!K120 -> -1.1975092e-07 | D115: ='DF raw data'!L120 -> -4.1293247e-06 | F115: -1.3939839e-06 | G115: -1.201963415e-07 | H115: -4.134874512e-06 | J115: 3.645929056e-05 | K115: 0.0006334607869 | L115: -1.749412296e-05 | M115: 0.0001742527976 | N115: 3.843933092e-08
A116: 55.1006 | B116: ='DF raw data'!J121 -> -5.6600734e-06 | C116: ='DF raw data'!K121 -> -9.3192875e-06 | D116: ='DF raw data'!L121 -> -8.2351771e-06 | F116: -5.667680539e-06 | G116: -9.353951212e-06 | H116: -8.246245178e-06 | J116: 3.362454347e-05 | K116: 0.0006502784385 | L116: -2.21725952e-05 | M116: 0.0001631629524 | N116: 3.925070743e-08
A117: 55.60076 | B117: ='DF raw data'!J122 -> -7.7343175e-06 | C117: ='DF raw data'!K122 -> -8.3125788e-06 | D117: ='DF raw data'!L122 -> -8.7152448e-06 | F117: -7.744712423e-06 | G117: -8.343497992e-06 | H117: -8.726958089e-06 | J117: 2.97509481e-05 | K117: 0.0006651586727 | L117: -2.634567916e-05 | M117: 0.0001499858975 | N117: 4.004056696e-08
A118: 56.10092 | B118: ='DF raw data'!J123 -> -7.357045e-06 | C118: ='DF raw data'!K123 -> 1.8512353e-06 | D118: ='DF raw data'!L123 -> -9.6873273e-06 | F118: -7.366932868e-06 | G118: 1.858121093e-06 | H118: -9.700347068e-06 | J118: 2.606630296e-05 | K118: 0.0006781959948 | L118: -2.541632131e-05 | M118: 0.0001372736702 | N118: 4.07034998e-08
A119: 56.60108 | B119: ='DF raw data'!J124 -> -3.9938063e-06 | C119: ='DF raw data'!K124 -> 4.0944128e-06 | D119: ='DF raw data'!L124 -> -6.2533368e-06 | F119: -3.999173976e-06 | G119: 4.109642242e-06 | H119: -6.261741285e-06 | J119: 2.40660761e-05 | K119: 0.0006902328834 | L119: -2.336084265e-05 | M119: 0.0001255895111 | N119: 4.126613228e-08
A120: 57.10124 | B120: ='DF raw data'!J125 -> 6.50554e-07 | C120: ='DF raw data'!K125 -> 4.7049757e-06 | D120: ='DF raw data'!L125 -> -3.3462186e-07 | F120: 6.514283446e-07 | G120: 4.722476171e-06 | H120: -3.350715918e-07 | J120: 2.43918945e-05 | K120: 0.0007024327334 | L120: -2.099884896e-05 | M120: 0.0001150867268 | N120: 4.178425612e-08
A121: 57.6014 | B121: ='DF raw data'!J126 -> 1.956181e-06 | C121: ='DF raw data'!K126 -> 3.034067e-06 | D121: ='DF raw data'!L126 -> 1.5220425e-06 | F121: 1.958810107e-06 | G121: 3.045352415e-06 | H121: 1.524088125e-06 | J121: 2.537161296e-05 | K121: 0.0007151225993 | L121: -1.94756855e-05 | M121: 0.000105345768 | N121: 4.229593033e-08
A122: 58.10156 | B122: ='DF raw data'!J127 -> 7.702435e-07 | C122: ='DF raw data'!K127 -> 1.2255353e-05 | D122: ='DF raw data'!L127 -> 3.0362855e-06 | F122: 7.712787073e-07 | G122: 1.23009376e-05 | H122: 3.040366268e-06 | J122: 2.575737572e-05 | K122: 0.0007280054084 | L122: -1.332324855e-05 | M122: 9.868201199e-05 | N122: 4.271654056e-08
A123: 58.60172 | B123: ='DF raw data'!J128 -> -3.0453559e-06 | C123: ='DF raw data'!K128 -> 5.9585236e-06 | D123: ='DF raw data'!L128 -> 5.2226528e-06 | F123: -3.049448858e-06 | G123: 5.980686727e-06 | H123: 5.229672045e-06 | J123: 2.423216338e-05 | K123: 0.0007401253672 | L123: -1.033194827e-05 | M123: 9.351438474e-05 | N123: 4.306362504e-08
A124: 59.10188 | B124: ='DF raw data'!J129 -> -5.8967603e-06 | C124: ='DF raw data'!K129 -> 4.3760779e-06 | D124: ='DF raw data'!L129 -> 5.8171713e-06 | F124: -5.904685546e-06 | G124: 4.392355014e-06 | H124: 5.824989578e-06 | J124: 2.127887586e-05 | K124: 0.0007507682097 | L124: -8.135067991e-06 | M124: 8.944554914e-05 | N124: 4.332319302e-08
A125: 59.60204 | B125: ='DF raw data'!J130 -> -2.5481461e-06 | C125: ='DF raw data'!K130 -> -2.0109476e-06 | D125: ='DF raw data'!L130 -> 4.8631186e-06 | F125: -2.551570808e-06 | G125: -2.018427454e-06 | H125: 4.869654631e-06 | J125: 2.00026822e-05 | K125: 0.0007607727513 | L125: -9.144604666e-06 | M125: 8.487178367e-05 | N125: 4.356513597e-08
A126: 60.1022 | B126: ='DF raw data'!J131 -> 2.3245045e-06 | C126: ='DF raw data'!K131 -> 2.7225146e-06 | D126: ='DF raw data'!L131 -> 2.9438372e-06 | F126: 2.327628634e-06 | G126: 2.732641175e-06 | H126: 2.947793717e-06 | J126: 2.116686894e-05 | K126: 0.0007713595724 | L126: -7.777846856e-06 | M126: 8.098161578e-05 | N126: 4.381948295e-08
A127: 60.60236 | B127: ='DF raw data'!J132 -> 3.8551329e-06 | C127: ='DF raw data'!K132 -> -8.5680256e-07 | D127: ='DF raw data'!L132 -> -4.6630307e-06 | F127: 3.860314199e-06 | G127: -8.599894943e-07 | H127: -4.669297813e-06 | J127: 2.309764369e-05 | K127: 0.0007829120899 | L127: -8.207979202e-06 | M127: 7.687631291e-05 | N127: 4.412001513e-08
A128: 61.10252 | B128: ='DF raw data'!J133 -> 2.0149853e-06 | C128: ='DF raw data'!K133 -> 6.0710031e-06 | D128: ='DF raw data'!L133 -> -5.036331e-06 | F128: 2.01769344e-06 | G128: 6.093584602e-06 | H128: -5.043099829e-06 | J128: 2.410681324e-05 | K128: 0.0007949693536 | L128: -5.160211927e-06 | M128: 7.429538131e-05 | N128: 4.442399548e-08
A129: 61.60268 | B129: ='DF raw data'!J134 -> -3.8385434e-07 | C129: ='DF raw data'!K134 -> 1.468813e-05 | D129: ='DF raw data'!L134 -> 2.1395238e-06 | F129: -3.843702402e-07 | G129: 1.474276348e-05 | H129: 2.14239932e-06 | J129: 2.391456662e-05 | K129: 0.0008069304633 | L129: 2.213528655e-06 | M129: 7.54024998e-05 | N129: 4.471249088e-08
A130: 62.10284 | B130: ='DF raw data'!J135 -> -8.2601429e-07 | C130: ='DF raw data'!K135 -> 9.8397868e-06 | D130: ='DF raw data'!L135 -> 2.8387433e-06 | F130: -8.271244532e-07 | G130: 9.876386544e-06 | H130: 2.842558571e-06 | J130: 2.350087206e-05 | K130: 0.0008186846594 | L130: 7.153302149e-06 | M130: 7.89802954e-05 | N130: 4.501431779e-08
A131: 62.603 | B131: ='DF raw data'!J136 -> -7.8529803e-07 | C131: ='DF raw data'!K136 -> 1.8536369e-06 | D131: ='DF raw data'!L136 -> 3.0363437e-06 | F131: -7.863534706e-07 | G131: 1.860531626e-06 | H131: 3.040424546e-06 | J131: 2.31075695e-05 | K131: 0.0008302421414 | L131: 8.083865647e-06 | M131: 8.302352165e-05 | N131: 4.5314068e-08
A132: 63.10316 | B132: ='DF raw data'!J137 -> -2.6307137e-06 | C132: ='DF raw data'!K137 -> -4.8105167e-06 | D132: ='DF raw data'!L137 -> 3.8084393e-06 | F132: -2.634249379e-06 | G132: -4.828409738e-06 | H132: 3.813557842e-06 | J132: 2.179002334e-05 | K132: 0.0008411406395 | L132: 5.668888233e-06 | M132: 8.585887278e-05 | N132: 4.556761982e-08
A133: 63.60332 | B133: ='DF raw data'!J138 -> -3.7154571e-06 | C133: ='DF raw data'!K138 -> -1.9487041e-07 | D133: ='DF raw data'!L138 -> 4.5165066e-06 | F133: -3.720450674e-06 | G133: -1.955952435e-07 | H133: 4.522576785e-06 | J133: 1.992920273e-05 | K133: 0.0008511084295 | L133: 5.571059316e-06 | M133: 8.864529381e-05 | N133: 4.578179325e-08
A134: 64.10348 | B134: ='DF raw data'!J139 -> -1.5512381e-06 | C134: ='DF raw data'!K139 -> 3.7373618e-06 | D134: ='DF raw data'!L139 -> 5.7320572e-06 | F134: -1.553322964e-06 | G134: 3.751263167e-06 | H134: 5.739761085e-06 | J134: 1.915229271e-05 | K134: 0.0008606876402 | L134: 7.447291101e-06 | M134: 9.237013093e-05 | N134: 4.599299704e-08
A135: 64.60364 | B135: ='DF raw data'!J140 -> 2.7037711e-06 | C135: ='DF raw data'!K140 -> -3.1481477e-06 | D135: ='DF raw data'!L140 -> 3.715729e-06 | F135: 2.707404968e-06 | G135: =(1-$G$1*($B$2-$G$2))*C135*$M$2/$M$1 -> -3.159857446e-06 | H135: 3.72072294e-06 | J135: 2.050642838e-05 | K135: 0.0008709441354 | L135: 5.866856801e-06 | M135: 9.530449803e-05 | N135: 4.622053664e-08
A136: =A135+$B$1 -> 65.1038 | B136: ='DF raw data'!J141 -> 5.8197725e-06 | C136: ='DF raw data'!K141 -> 4.4471944e-06 | D136: ='DF raw data'!L141 -> -4.3278908e-07 | F136: 5.827594274e-06 | G136: 4.463736037e-06 | H136: -4.333707485e-07 | J136: =F136*$B$1+J135 -> 2.342115793e-05 | K136: =J136*$B$1+K135 -> 0.0008826584618 | L136: =G136*$B$1+L135 -> 8.099439017e-06 | M136: =L136*$B$1+M135 -> 9.935551344e-05 | N136: =(J136^2+L136^2)*$B$1+N135 -> 4.652771068e-08
A137: 65.60396 | B137: ='DF raw data'!J142 -> 8.2160805e-06 | C137: ='DF raw data'!K142 -> 1.175033e-05 | D137: ='DF raw data'!L142 -> -1.1139642e-06 | F137: 8.227122912e-06 | G137: 1.179403614e-05 | H137: -1.115461368e-06 | J137: 2.753603573e-05 | K137: 0.0008964308854 | L137: 1.399834413e-05 | M137: 0.0001063569252 | N137: 4.70049568e-08
A138: 66.10412 | B138: ='DF raw data'!J143 -> 1.0644082e-05 | C138: ='DF raw data'!K143 -> 9.3926728e-06 | D138: ='DF raw data'!L143 -> 1.6203406e-06 | F138: 1.065838765e-05 | G138: 9.427609474e-06 | H138: 1.622518338e-06 | J138: 3.286693489e-05 | K138: 0.0009128696116 | L138: 1.871365729e-05 | M138: 0.0001157167481 | N138: 4.772040386e-08
A139: 66.60428 | B139: ='DF raw data'!J144 -> 7.3859806e-06 | C139: ='DF raw data'!K144 -> 2.5852182e-06 | D139: ='DF raw data'!L144 -> 3.4924444e-06 | F139: 7.395907358e-06 | G139: 2.594834092e-06 | H139: 3.497138245e-06 | J139: 3.656607192e-05 | K139: 0.0009311584981 | L139: 2.001148951e-05 | M139: 0.0001257256947 | N139: 4.858945053e-08
A140: 67.10444 | B140: ='DF raw data'!J145 -> -1.9917245e-06 | C140: ='DF raw data'!K145 -> 8.5283309e-06 | D140: ='DF raw data'!L145 -> 2.6229093e-06 | F140: -1.994401378e-06 | G140: 8.560052596e-06 | H140: 2.62643449e-06 | J140: 3.556855213e-05 | K140: 0.0009489484651 | L140: 2.429288541e-05 | M140: 0.0001378760242 | N140: 4.951738046e-08
A141: 67.6046 | B141: ='DF raw data'!J146 -> -7.8888297e-06 | C141: ='DF raw data'!K146 -> 6.4705506e-07 | D141: ='DF raw data'!L146 -> 2.300943e-07 | F141: -7.899432287e-06 | G141: 6.494618245e-07 | H141: 2.304035467e-07 | J141: 3.161757207e-05 | K141: 0.00096476231 | L141: 2.461772024e-05 | M141: 0.0001501888232 | N141: 5.032048888e-08
A142: 68.10476 | B142: ='DF raw data'!J147 -> -5.7928305e-06 | C142: ='DF raw data'!K147 -> -8.5263291e-06 | D142: ='DF raw data'!L147 -> -3.2741088e-06 | F142: -5.800616064e-06 | G142: -8.558043351e-06 | H142: -3.278509202e-06 | J142: 2.871633594e-05 | K142: 0.0009791250726 | L142: 2.033732928e-05 | M142: 0.0001603607418 | N142: 5.093980445e-08
A143: 68.60492 | B143: ='DF raw data'!J148 -> -9.0510395e-07 | C143: ='DF raw data'!K148 -> -1.1795629e-06 | D143: ='DF raw data'!L148 -> -5.2209512e-06 | F143: -9.063204097e-07 | G143: -1.183950363e-06 | H143: -5.227968158e-06 | J143: 2.826303073e-05 | K143: 0.00099326111 | L143: 1.974516466e-05 | M143: 0.0001702364834 | N143: 5.153432986e-08
A144: 69.10508 | B144: ='DF raw data'!J149 -> 1.117001e-06 | C144: ='DF raw data'!K149 -> 3.5857884e-06 | D144: ='DF raw data'!L149 -> -2.6943605e-06 | F144: 1.118502249e-06 | G144: 3.599125979e-06 | H144: -2.697981721e-06 | J144: 2.882246081e-05 | K144: 0.001007676952 | L144: 2.154530351e-05 | M144: 0.0001810125824 | N144: 5.218200422e-08
A145: 69.60524 | B145: ='DF raw data'!J150 -> 2.6273444e-06 | C145: ='DF raw data'!K150 -> 3.8605149e-06 | D145: ='DF raw data'!L150 -> 5.4929255e-06 | F145: 2.630875551e-06 | G145: 3.874874343e-06 | H145: 5.500307992e-06 | J145: 3.013831953e-05 | K145: 0.001022750934 | L145: 2.348336066e-05 | M145: 0.00019275802 | N145: 5.291213105e-08
A146: 70.1054 | B146: ='DF raw data'!J151 -> 6.232945e-06 | C146: ='DF raw data'!K151 -> 7.1500285e-06 | D146: ='DF raw data'!L151 -> 7.1506506e-06 | F146: 6.241322078e-06 | G146: 7.176623509e-06 | H146: 7.160261074e-06 | J146: 3.325997918e-05 | K146: 0.001039386245 | L146: 2.707282068e-05 | M146: 0.000206298762 | N146: 5.383200724e-08
A147: 70.60556 | B147: ='DF raw data'!J152 -> 7.4994564e-06 | C147: ='DF raw data'!K152 -> -1.3152584e-06 | D147: ='DF raw data'!L152 -> 2.6492628e-06 | F147: 7.509535669e-06 | G147: -1.320150591e-06 | H147: 2.652823409e-06 | J147: 3.701594854e-05 | K147: 0.001057900142 | L147: 2.641253416e-05 | M147: 0.0002195092551 | N147: 5.486623929e-08
A148: 71.10572 | B148: ='DF raw data'!J153 -> 4.5555312e-06 | C148: ='DF raw data'!K153 -> 9.1684484e-07 | D148: ='DF raw data'!L153 -> -1.7666613e-06 | F148: 4.561653834e-06 | G148: 9.202551056e-07 | H148: -1.769035693e-06 | J148: 3.929750532e-05 | K148: 0.001077555182 | L148: 2.687280895e-05 | M148: 0.0002329499592 | N148: 5.599982281e-08
A149: 71.60588 | B149: ='DF raw data'!J154 -> -4.0967571e-08 | C149: ='DF raw data'!K154 -> 1.9694851e-05 | D149: ='DF raw data'!L154 -> -5.5306305e-06 | F149: -4.102263142e-08 | G149: 1.976810731e-05 | H149: -5.538063667e-06 | J149: 3.927698744e-05 | K149: 0.00109719996 | L149: 3.676002551e-05 | M149: 0.0002513358536 | N149: 5.744727646e-08
A150: 72.10604 | B150: ='DF raw data'!J155 -> -2.2940987e-06 | C150: ='DF raw data'!K155 -> 1.6549171e-05 | D150: ='DF raw data'!L155 -> -6.188639e-06 | F150: -2.297181969e-06 | G150: 1.661072675e-05 | H150: -6.196956531e-06 | J150: 3.812802891e-05 | K150: 0.001116270075 | L150: 4.50680466e-05 | M150: 0.0002738770878 | N150: 5.919027174e-08
A151: 72.6062 | B151: ='DF raw data'!J156 -> 1.8249517e-06 | C151: ='DF raw data'!K156 -> 7.5016092e-06 | D151: ='DF raw data'!L156 -> 3.9573201e-06 | F151: =(1-$G$1*($B$2-$G$2))*B151 -> 1.827404435e-06 | G151: 7.529511936e-06 | H151: 3.962638738e-06 | J151: 3.904202351e-05 | K151: 0.001135797334 | L151: 4.883400729e-05 | M151: 0.0002983019049 | N151: 6.114541712e-08
A152: 73.10636 | B152: ='DF raw data'!J157 -> 6.9011835e-06 | C152: ='DF raw data'!K157 -> -1.1846331e-06 | D152: ='DF raw data'!L157 -> 5.4444095e-06 | F152: 6.910458691e-06 | G152: -1.189039422e-06 | H152: 5.451726786e-06 | J152: 4.249835853e-05 | K152: 0.001157053313 | L152: 4.823929733e-05 | M152: 0.0003224292718 | N152: 6.321264857e-08
A153: 73.60652 | B153: ='DF raw data'!J158 -> 4.9525656e-06 | C153: ='DF raw data'!K158 -> -3.5517646e-06 | D153: ='DF raw data'!L158 -> -1.8983707e-06 | F153: 4.959221848e-06 | G153: -3.564975626e-06 | H153: -1.90092211e-06 | J153: 4.497876293e-05 | K153: 0.001179549891 | L153: 4.645623912e-05 | M153: 0.0003456648244 | N153: 6.53039532e-08
A154: 74.10668 | B154: ='DF raw data'!J159 -> -5.4098592e-07 | C154: ='DF raw data'!K159 -> -1.1249912e-06 | D154: ='DF raw data'!L159 -> -2.2737956e-06 | F154: -5.417130051e-07 | G154: -1.12917568e-06 | H154: -2.276851581e-06 | J154: 4.470781975e-05 | K154: 0.001201910954 | L154: 4.589147061e-05 | M154: 0.0003686179023 | N154: 6.735701809e-08
A155: 74.60684 | B155: ='DF raw data'!J160 -> -4.4409576e-06 | C155: ='DF raw data'!K160 -> -2.8882314e-06 | D155: ='DF raw data'!L160 -> 2.7683266e-06 | F155: -4.446926247e-06 | G155: -2.89897437e-06 | H155: 2.772047231e-06 | J155: 4.248364512e-05 | K155: 0.001223159574 | L155: 4.444151959e-05 | M155: 0.0003908457727 | N155: 6.924757725e-08
A156: 75.107 | B156: ='DF raw data'!J161 -> -4.2010547e-06 | C156: ='DF raw data'!K161 -> 2.6317841e-06 | D156: ='DF raw data'!L161 -> 5.6950516e-06 | F156: -4.206700918e-06 | G156: 2.641573197e-06 | H156: 5.702705749e-06 | J156: 4.037962159e-05 | K156: 0.001243355845 | L156: 4.576272884e-05 | M156: 0.0004137344592 | N156: 7.111054381e-08
A157: 75.60716 | B157: ='DF raw data'!J162 -> 1.2096615e-07 | C157: ='DF raw data'!K162 -> 2.5303796e-06 | D157: ='DF raw data'!L162 -> 2.8640345e-06 | F157: 1.211287285e-07 | G157: 2.539791516e-06 | H157: 2.867883762e-06 | J157: 4.044020533e-05 | K157: 0.001263582418 | L157: 4.703303097e-05 | M157: 0.0004372585 | N157: 7.303491752e-08
A158: 76.10732 | B158: ='DF raw data'!J163 -> 2.5348961e-06 | C158: ='DF raw data'!K163 -> 2.6121704e-06 | D158: ='DF raw data'!L163 -> -2.4903718e-06 | F158: 2.538303e-06 | G158: 2.621886542e-06 | H158: -2.49371886e-06 | J158: 4.170976296e-05 | K158: 0.001284443973 | L158: 4.834439374e-05 | M158: 0.0004614384319 | N158: 7.507401218e-08
A159: 76.60748 | B159: ='DF raw data'!J164 -> 2.7330059e-06 | C159: ='DF raw data'!K164 -> 4.7141821e-06 | D159: ='DF raw data'!L164 -> -8.4717185e-06 | F159: 2.73667906e-06 | G159: 4.731716815e-06 | H159: -8.48310449e-06 | J159: 4.307854036e-05 | K159: 0.001305990136 | L159: 5.071100922e-05 | M159: 0.0004868020503 | N159: 7.728840411e-08
A160: 77.10764 | B160: ='DF raw data'!J165 -> 4.4329167e-06 | C160: ='DF raw data'!K165 -> 1.0304248e-05 | D160: ='DF raw data'!L165 -> -8.5539077e-06 | F160: 4.43887454e-06 | G160: 1.034257534e-05 | H160: -8.565404152e-06 | J160: 4.529868785e-05 | K160: 0.001328646728 | L160: 5.58839517e-05 | M160: 0.0005147529676 | N160: 7.98767257e-08
A161: 77.6078 | B161: ='DF raw data'!J166 -> 6.3817383e-06 | C161: ='DF raw data'!K166 -> 5.5685164e-06 | D161: ='DF raw data'!L166 -> 5.8842068e-07 | F161: 6.390315356e-06 | G161: 5.589228869e-06 | H161: 5.892115174e-07 | J161: 4.849486798e-05 | K161: 0.001352901921 | L161: 5.867946041e-05 | M161: 0.0005441020865 | N161: 8.277516855e-08
A162: 78.10796 | B162: ='DF raw data'!J167 -> 3.2789501e-06 | C162: ='DF raw data'!K167 -> 1.428538e-06 | D162: ='DF raw data'!L167 -> -1.7753919e-08 | F162: 3.283357009e-06 | G162: 1.433851543e-06 | H162: -1.777778027e-08 | J162: 5.013707182e-05 | K162: 0.001377978479 | L162: 5.93966156e-05 | M162: 0.0005738098978 | N162: 8.579697718e-08
A163: 78.60812 | B163: ='DF raw data'!J168 -> -2.6110831e-06 | C163: ='DF raw data'!K168 -> 8.5164565e-06 | D163: ='DF raw data'!L168 -> -9.0936674e-06 | F163: -2.614592396e-06 | G163: 8.548134029e-06 | H163: -9.105889289e-06 | J163: 4.882935729e-05 | K163: 0.00140240097 | L163: 6.367205032e-05 | M163: 0.0006056561105 | N163: 8.901722539e-08
A164: 79.10828 | B164: ='DF raw data'!J169 -> -3.0828708e-06 | C164: ='DF raw data'!K169 -> -1.4971196e-06 | D164: ='DF raw data'!L169 -> -9.3688586e-06 | F164: -3.087014178e-06 | G164: -1.502688236e-06 | H164: -9.381450346e-06 | J164: 4.728535628e-05 | K164: 0.001426051214 | L164: 6.292046577e-05 | M164: 0.0006371264106 | N164: 9.211566154e-08
A165: 79.60844 | B165: ='DF raw data'!J170 -> 3.4222574e-06 | C165: ='DF raw data'!K170 -> -8.9677069e-06 | D165: ='DF raw data'!L170 -> -2.8651418e-06 | F165: 3.426856914e-06 | G165: -9.001062885e-06 | H165: -2.868992551e-06 | J165: 4.899933303e-05 | K165: 0.00145055872 | L165: 5.841849416e-05 | M165: 0.0006663450047 | N165: 9.502341927e-08
A166: 80.1086 | B166: ='DF raw data'!J171 -> 5.2406499e-06 | C166: ='DF raw data'!K171 -> 5.8796682e-06 | D166: ='DF raw data'!L171 -> 3.7537386e-06 | F166: 5.247693333e-06 | G166: 5.901538019e-06 | H166: 3.758783625e-06 | J166: 5.162401933e-05 | K166: 0.00147637899 | L166: 6.137020741e-05 | M166: 0.0006970399276 | N166: 9.824011915e-08
A167: 80.60876 | B167: ='DF raw data'!J172 -> 1.142365e-06 | C167: ='DF raw data'!K172 -> 6.6758284e-06 | D167: ='DF raw data'!L172 -> -3.9784993e-07 | F167: 1.143900339e-06 | G167: 6.70065959e-06 | H167: -3.983846403e-07 | J167: 5.219615252e-05 | K167: 0.001502485418 | L167: 6.472160931e-05 | M167: 0.0007294110877 | N167: 1.016978878e-07
A168: 81.10892 | B168: ='DF raw data'!J173 -> 1.5890506e-06 | C168: ='DF raw data'!K173 -> -4.164996e-06 | D168: ='DF raw data'!L173 -> -7.3552078e-06 | F168: 1.591186284e-06 | G168: -4.180487981e-06 | H168: -7.365093199e-06 | J168: 5.299200025e-05 | K168: 0.001528989896 | L168: 6.263069644e-05 | M168: 0.0007607364568 | N168: 1.050643428e-07
A169: 81.60908 | B169: ='DF raw data'!J174 -> 3.9411057e-06 | C169: ='DF raw data'!K174 -> 5.5599767e-06 | D169: ='DF raw data'!L174 -> -5.3255067e-06 | F169: 3.946402546e-06 | G169: 5.580657405e-06 | H169: -5.332664181e-06 | J169: 5.496583295e-05 | K169: 0.001556481607 | L169: 6.542191805e-05 | M169: 0.0007934578834 | N169: 1.087161461e-07
A170: 82.10924 | B170: ='DF raw data'!J175 -> 1.3056375e-06 | C170: ='DF raw data'!K175 -> 1.8491472e-05 | D170: ='DF raw data'!L175 -> -3.250884e-06 | F170: 1.307392277e-06 | G170: 1.856025227e-05 | H170: -3.255253188e-06 | J170: 5.561973827e-05 | K170: 0.001584300376 | L170: 7.470501382e-05 | M170: 0.0008308223431 | N170: 1.130547312e-07
A171: 82.6094 | B171: ='DF raw data'!J176 -> -2.4353978e-06 | C171: ='DF raw data'!K176 -> 5.8509813e-06 | D171: ='DF raw data'!L176 -> -7.6415172e-06 | F171: -2.438670975e-06 | G171: 5.872744416e-06 | H171: -7.651787399e-06 | J171: 5.44000126e-05 | K171: 0.001611509086 | L171: 7.764232567e-05 | M171: 0.0008696559287 | N171: 1.175500153e-07
A172: 83.10956 | B172: ='DF raw data'!J177 -> -2.4958756e-06 | C172: ='DF raw data'!K177 -> 6.8009831e-06 | D172: ='DF raw data'!L177 -> -1.1602825e-05 | F172: -2.499230057e-06 | G172: 6.826279811e-06 | H172: -1.16184192e-05 | J172: 5.314999769e-05 | K172: 0.001638092589 | L172: 8.105655778e-05 | M172: 0.0009101971766 | N172: 1.222490624e-07
A173: 83.60972 | B173: ='DF raw data'!J178 -> -1.7212482e-06 | C173: ='DF raw data'!K178 -> 3.4494258e-06 | D173: ='DF raw data'!L178 -> -1.1158977e-05 | F173: -1.723561558e-06 | G173: 3.46225617e-06 | H173: -1.117397467e-05 | J173: 5.228794114e-05 | K173: 0.001664244926 | L173: 8.278823983e-05 | M173: 0.0009516045427 | N173: 1.270445572e-07
A174: 84.10988 | B174: ='DF raw data'!J179 -> -4.4612575e-06 | C174: ='DF raw data'!K179 -> 1.7973307e-06 | D174: ='DF raw data'!L179 -> -8.2022461e-06 | F174: -4.46725343e-06 | G174: 1.804015992e-06 | H174: -8.213269919e-06 | J174: 5.005359967e-05 | K174: 0.001689279734 | L174: 8.369053646e-05 | M174: 0.0009934632014 | N174: 1.318008131e-07
A175: 84.61004 | B175: ='DF raw data'!J180 -> -8.3965315e-06 | C175: ='DF raw data'!K180 -> 7.3942001e-06 | D175: ='DF raw data'!L180 -> -6.4263736e-06 | F175: -8.407816438e-06 | G175: 7.421703321e-06 | H175: -6.435010646e-06 | J175: 4.58483462e-05 | K175: 0.001712211243 | L175: 8.74025756e-05 | M175: 0.001037178474 | N175: 1.366730122e-07
A176: 85.1102 | B176: ='DF raw data'!J181 -> -6.1059586e-06 | C176: ='DF raw data'!K181 -> 4.411836e-06 | D176: ='DF raw data'!L181 -> -8.3408095e-06 | F176: -6.114165008e-06 | G176: 4.428246119e-06 | H176: -8.352019548e-06 | J176: 4.279028543e-05 | K176: 0.001733613232 | L176: 8.961740718e-05 | M176: 0.001082001516 | N176: 1.416057343e-07
A177: 85.61036 | B177: ='DF raw data'!J182 -> 1.9958932e-06 | C177: ='DF raw data'!K182 -> 2.9794953e-06 | D177: ='DF raw data'!L182 -> -4.162343e-06 | F177: 1.99857568e-06 | G177: 2.990577732e-06 | H177: -4.167937189e-06 | J177: 4.378989304e-05 | K177: 0.001755515185 | L177: 9.111317453e-05 | M177: 0.001127572681 | N177: 1.46716952e-07
A178: 86.11052 | B178: ='DF raw data'!J183 -> 3.6855888e-06 | C178: ='DF raw data'!K183 -> -1.2776319e-06 | D178: ='DF raw data'!L183 -> 2.5918991e-06 | F178: 3.690542231e-06 | G178: -1.282384137e-06 | H178: 2.595382612e-06 | J178: 4.563575464e-05 | K178: 0.001778340364 | L178: 9.047177728e-05 | M178: 0.001172823045 | N178: 1.518524771e-07
A179: 86.61068 | B179: ='DF raw data'!J184 -> -1.3373104e-06 | C179: ='DF raw data'!K184 -> 3.105584e-06 | D179: ='DF raw data'!L184 -> 5.2230457e-06 | F179: -1.339107745e-06 | G179: 3.117135427e-06 | H179: 5.230065473e-06 | J179: 4.496598651e-05 | K179: 0.001800830552 | L179: 9.203084374e-05 | M179: 0.001218853192 | N179: 1.570999639e-07
A180: 87.11084 | B180: ='DF raw data'!J185 -> -3.0031117e-06 | C180: ='DF raw data'!K185 -> 1.8102731e-06 | D180: ='DF raw data'!L185 -> 1.3731618e-06 | F180: -3.007147882e-06 | G180: 1.817006532e-06 | H180: 1.375007329e-06 | J180: 4.346193143e-05 | K180: 0.001822568471 | L180: 9.293963773e-05 | M180: 0.001265337881 | N180: 1.62365006e-07
A181: 87.611 | B181: ='DF raw data'!J186 -> -2.1184717e-06 | C181: ='DF raw data'!K186 -> -8.8046581e-06 | D181: ='DF raw data'!L186 -> -1.6128475e-06 | F181: -2.121318926e-06 | G181: -8.837407614e-06 | H181: -1.615015167e-06 | J181: 4.240093255e-05 | K181: 0.001843775722 | L181: 8.851951993e-05 | M181: 0.001309611805 | N181: 1.671833196e-07
A182: 88.11116 | B182: ='DF raw data'!J187 -> -2.1294875e-06 | C182: ='DF raw data'!K187 -> -4.3924892e-06 | D182: ='DF raw data'!L187 -> 3.3924823e-07 | F182: -2.132349531e-06 | G182: -4.408827357e-06 | H182: 3.397041796e-07 | J182: 4.133441661e-05 | K182: 0.001864449544 | L182: 8.631440084e-05 | M182: 0.001352782815 | N182: 1.717641399e-07
A183: 88.61132 | B183: ='DF raw data'!J188 -> -1.2082786e-06 | C183: ='DF raw data'!K188 -> 7.7701316e-07 | D183: ='DF raw data'!L188 -> 1.3211096e-06 | F183: -1.209902526e-06 | G183: 7.799033123e-07 | H183: 1.322885171e-06 | J183: 4.072927176e-05 | K183: 0.001884820696 | L183: 8.670447728e-05 | M183: 0.001396148927 | N183: 1.763538781e-07
A184: 89.11148 | B184: ='DF raw data'!J189 -> 1.1826778e-08 | C184: ='DF raw data'!K189 -> 7.9488573e-06 | D184: ='DF raw data'!L189 -> 1.422551e-06 | F184: 1.184267319e-08 | G184: 7.978423606e-06 | H184: 1.424462909e-06 | J184: 4.0735195e-05 | K184: 0.001905194811 | L184: 9.069496563e-05 | M184: 0.001441510921 | N184: 1.812979262e-07
A185: 89.61164 | B185: ='DF raw data'!J190 -> -5.2911156e-07 | C185: ='DF raw data'!K190 -> 5.8225614e-06 | D185: ='DF raw data'!L190 -> 5.2797545e-06 | F185: -5.298226859e-07 | G185: 5.844218806e-06 | H185: 5.28685049e-06 | J185: 4.047019888e-05 | K185: 0.001925436386 | L185: 9.361801011e-05 | M185: 0.001488334905 | N185: 1.865006749e-07
A186: 90.1118 | B186: ='DF raw data'!J191 -> -4.9114064e-06 | C186: ='DF raw data'!K191 -> 3.2271362e-06 | D186: ='DF raw data'!L191 -> 5.6625718e-06 | F186: -4.91800733e-06 | G186: 3.239139749e-06 | H186: 5.670182296e-06 | J186: 3.801040833e-05 | K186: 0.001944447672 | L186: 9.523809825e-05 | M186: 0.001535969192 | N186: 1.917599006e-07
A187: 90.61196 | B187: ='DF raw data'!J192 -> -5.4712332e-06 | C187: ='DF raw data'!K192 -> 9.5407097e-07 | D187: ='DF raw data'!L192 -> -3.7638099e-06 | F187: -5.478586537e-06 | G187: 9.576197007e-07 | H187: -3.768868461e-06 | J187: 3.527023849e-05 | K187: 0.001962088434 | L187: 9.571706132e-05 | M187: 0.001583843037 | N187: 1.969644383e-07
A188: 91.11212 | B188: ='DF raw data'!J193 -> -6.4265187e-08 | C188: ='DF raw data'!K193 -> -7.3847273e-06 | D188: ='DF raw data'!L193 -> -1.0997844e-05 | F188: -6.435155941e-08 | G188: -7.412195286e-06 | H188: -1.10126251e-05 | J188: 3.523805242e-05 | K188: 0.001979713099 | L188: 9.200977772e-05 | M188: 0.001629862648 | N188: 2.018197513e-07
A189: 91.61228 | B189: ='DF raw data'!J194 -> 2.1894627e-06 | C189: ='DF raw data'!K194 -> 2.9733578e-06 | D189: ='DF raw data'!L194 -> -8.36856e-06 | F189: 2.192405338e-06 | G189: 2.984417403e-06 | H189: -8.379807345e-06 | J189: 3.633460587e-05 | K189: 0.001997886215 | L189: 9.350246393e-05 | M189: 0.00167662884 | N189: 2.068528185e-07
A190: 92.11244 | B190: ='DF raw data'!J195 -> 2.9988694e-06 | C190: ='DF raw data'!K195 -> 1.1935728e-06 | D190: ='DF raw data'!L195 -> -2.359521e-06 | F190: 3.00289988e-06 | G190: 1.198012374e-06 | H190: -2.362692196e-06 | J190: 3.783653627e-05 | K190: 0.002016810537 | L190: 9.41016618e-05 | M190: 0.001723694727 | N190: 2.119978275e-07
A191: 92.6126 | B191: ='DF raw data'!J196 -> 3.0101471e-06 | C191: ='DF raw data'!K196 -> -5.6928707e-06 | D191: ='DF raw data'!L196 -> -1.0047521e-06 | F191: 3.014192738e-06 | G191: -5.714045713e-06 | H191: -1.006102487e-06 | J191: 3.934411491e-05 | K191: 0.00203648889 | L191: 9.12437247e-05 | M191: 0.001769331189 | N191: 2.169360956e-07
A192: 93.11276 | B192: ='DF raw data'!J197 -> 5.5583558e-07 | C192: ='DF raw data'!K197 -> 4.7774265e-06 | D192: ='DF raw data'!L197 -> -7.5052817e-06 | F192: 5.56582623e-07 | G192: 4.795196457e-06 | H192: -7.515368799e-06 | J192: 3.962249528e-05 | K192: 0.002056306477 | L192: 9.364209016e-05 | M192: 0.001816167216 | N192: 2.221071414e-07
A193: 93.61292 | B193: ='DF raw data'!J198 -> 1.2890192e-06 | C193: ='DF raw data'!K198 -> 6.8997192e-06 | D193: ='DF raw data'!L198 -> -1.1277109e-05 | F193: 1.290751642e-06 | G193: 6.925383166e-06 | H193: -1.129226543e-05 | J193: 4.026807762e-05 | K193: 0.002076446958 | L193: 9.71058898e-05 | M193: 0.001864735698 | N193: 2.276344455e-07
A194: 94.11308 | B194: ='DF raw data'!J199 -> 1.3829955e-06 | C194: ='DF raw data'!K199 -> 3.0564829e-06 | D194: ='DF raw data'!L199 -> -1.5903648e-06 | F194: 1.384854246e-06 | G194: 3.067851692e-06 | H194: -1.59250225e-06 | J194: 4.096072632e-05 | K194: 0.002096933875 | L194: 9.86403065e-05 | M194: 0.001914071634 | N194: 2.333401163e-07
A195: 94.61324 | B195: ='DF raw data'!J200 -> -2.0948539e-06 | C195: ='DF raw data'!K200 -> 1.2285307e-06 | D195: ='DF raw data'!L200 -> 3.0202348e-06 | F195: -2.097669384e-06 | G195: 1.233100302e-06 | H195: 3.024293996e-06 | J195: 3.9911556e-05 | K195: 0.002116896039 | L195: 9.925705395e-05 | M195: 0.001963716042 | N195: 2.39064395e-07
A196: 95.1134 | B196: ='DF raw data'!J201 -> -5.5790338e-06 | C196: ='DF raw data'!K201 -> 1.0856302e-06 | D196: ='DF raw data'!L201 -> 2.709173e-06 | F196: -5.586532021e-06 | G196: 1.089668274e-06 | H196: 2.712814129e-06 | J196: 3.711739614e-05 | K196: 0.002135460676 | L196: 9.980206244e-05 | M196: 0.002013633042 | N196: 2.447352855e-07
A197: 95.61356 | B197: ='DF raw data'!J202 -> -8.4168896e-06 | C197: ='DF raw data'!K202 -> 1.0544082e-06 | D197: ='DF raw data'!L202 -> 1.418622e-06 | F197: -8.4282019e-06 | G197: 1.058330142e-06 | H197: 1.420528628e-06 | J197: 3.290194668e-05 | K197: 0.002151916914 | L197: 0.0001003313968 | M197: 0.002063814793 | N197: 2.50311533e-07
A198: 96.11372 | B198: ='DF raw data'!J203 -> -8.8540291e-06 | C198: ='DF raw data'!K203 -> 4.374343e-06 | D198: ='DF raw data'!L203 -> -3.8347264e-07 | F198: -8.865928915e-06 | G198: 4.390613661e-06 | H198: -3.839880272e-07 | J198: 2.846756368e-05 | K198: 0.00216615525 | L198: 0.0001025274062 | M198: 0.0021150949 | N198: 2.559744802e-07
A199: 96.61388 | B199: ='DF raw data'!J204 -> -5.9625786e-06 | C199: ='DF raw data'!K204 -> -5.4031329e-07 | D199: ='DF raw data'!L204 -> -6.7657732e-07 | F199: -5.970592306e-06 | G199: =(1-$G$1*($B$2-$G$2))*C199*$M$2/$M$1 -> -5.423230214e-07 | H199: -6.774866399e-07 | J199: 2.548131223e-05 | K199: 0.002178899983 | L199: 0.0001022561579 | M199: 0.00216623934 | N199: 2.615290666e-07
A200: =A199+$B$1 -> 97.11404 | B200: ='DF raw data'!J205 -> -3.1979473e-06 | C200: ='DF raw data'!K205 -> -4.0297009e-06 | D200: ='DF raw data'!L205 -> -3.2067626e-06 | F200: -3.202245341e-06 | G200: -4.044689642e-06 | H200: -3.211072489e-06 | J200: =F200*$B$1+J199 -> 2.38796772e-05 | K200: =J200*$B$1+K199 -> 0.002190843643 | L200: =G200*$B$1+L199 -> 0.0001002331659 | M200: =L200*$B$1+M199 -> 0.002216371961 | N200: =(J200^2+L200^2)*$B$1+N199 -> 2.668392286e-07
A201: 97.6142 | B201: ='DF raw data'!J206 -> -1.6198129e-07 | C201: ='DF raw data'!K206 -> -2.1952105e-06 | D201: ='DF raw data'!L206 -> -6.1329342e-06 | F201: -1.621989929e-07 | G201: -2.203375732e-06 | H201: -6.141176864e-06 | J201: 2.379855175e-05 | K201: 0.002202746726 | L201: 9.913112551e-05 | M201: 0.002265953384 | N201: 2.720375671e-07
... 1002 more rows

Sheet 10 x=2
A1: dz | B1: ='DF raw data'!N7 -> 0.50015 | C1: mm | F1: T_coeff | G1: -0.0008 | H1: /degC | L1: Hallref | M1: ='PI vs gap'!B44 -> 0.5054 | N1: T | P1: IBy total | Q1: =L1203*1000 -> -6.326916563 | R1: muTm | X1: DF ref | Y1: 21
A2: Tref | B2: ='DF raw data'!N8 -> 21.68 | C2: degC | F2: Tcorr | G2: 20 | H2: degC | L2: NMRref | M2: ='PI vs gap'!B45 -> 0.506599 | N2: T | P2: JBy total | Q2: =M1203 -> -5.223134271 | R2: muTm^2
A3: Encoder | B3: ='DF raw data'!N9 -> 12561949 | P3: PI total | Q3: =N1203 -> 708.6003557 | R3: T^2mm^3
A5: z [mm] | B5: Bx | C5: By | D5: Bz | F5: Bx_corr | G5: By_corr | H5: Bz_corr | J5: Ix | K5: Jx | L5: Iy | M5: Jy | N5: PI
A6: ='PI vs gap'!B53 -> 0.083 | B6: ='DF raw data'!M11 -> -1.0634844e-06 | C6: ='DF raw data'!N11 -> 7.5553767e-06 | D6: ='DF raw data'!O11 -> 6.2175791e-06 | F6: =(1-$G$1*($B$2-$G$2))*B6 -> -1.064913723e-06 | G6: =(1-$G$1*($B$2-$G$2))*C6*$M$2/$M$1 -> 7.583479428e-06 | H6: =(1-$G$1*($B$2-$G$2))*D6 -> 6.225935526e-06 | J6: =F6*$B$1 -> -5.326165986e-07 | K6: =J6*$B$1 -> -2.663881918e-07 | L6: =G6*$B$1 -> 3.792877236e-06 | M6: =L6*$B$1 -> 1.89700755e-06 | N6: =(J6^2+L6)^2*$B$1 -> 7.195117828e-12
A7: =A6+$B$1 -> 0.58315 | B7: ='DF raw data'!M12 -> -8.9535155e-07 | C7: ='DF raw data'!N12 -> 3.6813185e-06 | D7: ='DF raw data'!O12 -> 9.9903236e-06 | F7: =(1-$G$1*($B$2-$G$2))*B7 -> -8.965549025e-07 | G7: =(1-$G$1*($B$2-$G$2))*C7*$M$2/$M$1 -> 3.69501141e-06 | H7: 1.000375059e-05 | J7: =F7*$B$1+J6 -> -9.810285331e-07 | K7: =J7*$B$1+K6 -> -7.570496126e-07 | L7: =G7*$B$1+L6 -> 5.640937193e-06 | M7: =L7*$B$1+M6 -> 4.718322287e-06 | N7: =(J7^2+L7^2)*$B$1+N6 -> 2.359132991e-11
A8: =A7+$B$1 -> 1.0833 | B8: ='DF raw data'!M13 -> -2.9326605e-07 | C8: ='DF raw data'!N13 -> -1.4076104e-05 | D8: ='DF raw data'!O13 -> 7.4796537e-07 | F8: -2.936601996e-07 | G8: -1.412846101e-05 | H8: 7.489706355e-07 | J8: =F8*$B$1+J7 -> -1.127902682e-06 | K8: =J8*$B$1+K7 -> -1.321170139e-06 | L8: =G8*$B$1+L7 -> -1.425412581e-06 | M8: =L8*$B$1+M7 -> 4.005402184e-06 | N8: =(J8^2+L8^2)*$B$1+N7 -> 2.524380825e-11
A9: 1.58345 | B9: ='DF raw data'!M14 -> -1.0345843e-06 | C9: ='DF raw data'!N14 -> 5.6104086e-06 | D9: ='DF raw data'!O14 -> -3.372875e-06 | F9: -1.035974781e-06 | G9: 5.63127689e-06 | H9: -3.377408144e-06 | J9: -1.646045469e-06 | K9: -2.14443978e-06 | L9: 1.391070555e-06 | M9: 4.701146123e-06 | N9: 2.756677642e-11
A10: 2.0836 | B10: ='DF raw data'!M15 -> -1.3729455e-06 | C10: ='DF raw data'!N15 -> 1.4950844e-05 | D10: ='DF raw data'!O15 -> -2.1210465e-06 | F10: -1.374790739e-06 | G10: 1.500645466e-05 | H10: -2.123897186e-06 | J10: -2.333647057e-06 | K10: -3.311613356e-06 | L10: 8.896548855e-06 | M10: 9.150755032e-06 | N10: 6.987671065e-11
A11: 2.58375 | B11: ='DF raw data'!M16 -> -1.3214171e-06 | C11: ='DF raw data'!N16 -> 1.3043636e-05 | D11: ='DF raw data'!O16 -> -3.9942856e-06 | F11: -1.323193085e-06 | G11: 1.309215268e-05 | H11: -3.99965392e-06 | J11: -2.995442078e-06 | K11: -4.809783711e-06 | L11: 1.544458902e-05 | M11: 1.687536623e-05 | N11: 1.936678384e-10
A12: 3.0839 | B12: ='DF raw data'!M17 -> -7.8494617e-07 | C12: ='DF raw data'!N17 -> -9.7195414e-07 | D12: ='DF raw data'!O17 -> -1.2795805e-07 | F12: -7.860011377e-07 | G12: -9.755693883e-07 | H12: -1.281300256e-07 | J12: -3.388560547e-06 | K12: -6.504572268e-06 | L12: 1.495665799e-05 | M12: 2.435593872e-05 | N12: 3.112950963e-10
A13: 3.58405 | B13: ='DF raw data'!M18 -> -8.6944914e-07 | C13: ='DF raw data'!N18 -> 2.0656489e-06 | D13: ='DF raw data'!O18 -> 3.708087e-06 | F13: -8.706176796e-07 | G13: 2.073332219e-06 | H13: 3.713070669e-06 | J13: -3.823999979e-06 | K13: -8.417145858e-06 | L13: 1.59936351e-05 | M13: 3.235515531e-05 | N13: 4.465453289e-10
A14: 4.0842 | B14: ='DF raw data'!M19 -> -9.6757276e-07 | C14: ='DF raw data'!N19 -> 4.3695359e-06 | D14: ='DF raw data'!O19 -> 1.0338086e-06 | F14: -9.688731778e-07 | G14: 4.385788681e-06 | H14: 1.035198039e-06 | J14: -4.308581899e-06 | K14: -1.05720831e-05 | L14: 1.81871873e-05 | M14: 4.145147704e-05 | N14: 6.212665596e-10
A15: 4.58435 | B15: ='DF raw data'!M20 -> -9.1183887e-07 | C15: ='DF raw data'!N20 -> 3.3066549e-06 | D15: ='DF raw data'!O20 -> 3.468286e-06 | F15: -9.130643814e-07 | G15: 3.318954224e-06 | H15: 3.472947376e-06 | J15: -4.76525105e-06 | K15: -1.295542341e-05 | L15: 1.984716226e-05 | M15: 5.137803525e-05 | N15: 8.296377859e-10
A16: 5.0845 | B16: ='DF raw data'!M21 -> -1.0737726e-06 | C16: ='DF raw data'!N21 -> 7.2679745e-06 | D16: ='DF raw data'!O21 -> 7.1874513e-07 | F16: -1.07521575e-06 | G16: 7.295008217e-06 | H16: 7.197111235e-07 | J16: -5.303020207e-06 | K16: -1.560772896e-05 | L16: 2.349576062e-05 | M16: 6.312943992e-05 | N16: 1.119811207e-09
A17: 5.58465 | B17: ='DF raw data'!M22 -> -1.4652628e-06 | C17: ='DF raw data'!N22 -> 1.740884e-05 | D17: ='DF raw data'!O22 -> -1.7833548e-06 | F17: -1.467232113e-06 | G17: 1.747359334e-05 | H17: -1.785751629e-06 | J17: -6.036856349e-06 | K17: -1.862706267e-05 | L17: 3.223517833e-05 | M17: 7.925186436e-05 | N17: 1.657747718e-09
A18: 6.0848 | B18: ='DF raw data'!M23 -> -1.238704e-06 | C18: ='DF raw data'!N23 -> 1.0860634e-05 | D18: ='DF raw data'!O23 -> -3.1411212e-06 | F18: -1.240368818e-06 | G18: 1.090103085e-05 | H18: -3.145342867e-06 | J18: -6.657226813e-06 | K18: -2.195667466e-05 | L18: 3.768732891e-05 | M18: 9.810118192e-05 | N18: 2.39029413e-09
A19: 6.58495 | B19: ='DF raw data'!M24 -> -7.4996336e-07 | C19: ='DF raw data'!N24 -> -2.7676172e-06 | D19: ='DF raw data'!O24 -> -5.1379498e-06 | F19: -7.509713108e-07 | G19: -2.777911537e-06 | H19: -5.144855205e-06 | J19: -7.032825114e-06 | K19: -2.547414214e-05 | L19: 3.629795646e-05 | M19: 0.0001162556048 | N19: 3.074000317e-09
A20: 7.0851 | B20: ='DF raw data'!M25 -> -7.0070513e-07 | C20: ='DF raw data'!N25 -> -2.9107844e-06 | D20: ='DF raw data'!O25 -> 1.106088e-06 | F20: -7.016468777e-07 | G20: -2.921611257e-06 | H20: 1.107574582e-06 | J20: -7.3837538e-06 | K20: -2.91671266e-05 | L20: 3.483671259e-05 | M20: 0.0001336791866 | N20: 3.708248716e-09
A21: 7.58525 | B21: ='DF raw data'!M26 -> -1.157548e-06 | C21: ='DF raw data'!N26 -> 9.0605681e-06 | D21: ='DF raw data'!O26 -> -2.1639164e-06 | F21: -1.159103745e-06 | G21: 9.094269488e-06 | H21: -2.166824704e-06 | J21: -7.963479538e-06 | K21: -3.315006089e-05 | L21: 3.938521147e-05 | M21: 0.0001533777002 | N21: 4.515796852e-09
A22: 8.0854 | B22: ='DF raw data'!M27 -> -2.6788925e-06 | C22: ='DF raw data'!N27 -> 7.0794417e-06 | D22: ='DF raw data'!O27 -> -5.1516577e-06 | F22: -2.682492932e-06 | G22: 7.105774156e-06 | H22: -5.158581528e-06 | J22: -9.305128378e-06 | K22: -3.780402085e-05 | L22: 4.293916441e-05 | M22: 0.0001748537232 | N22: 5.481265033e-09
A23: 8.58555 | B23: ='DF raw data'!M28 -> -4.6620275e-06 | C23: ='DF raw data'!N28 -> 7.2364851e-06 | D23: ='DF raw data'!O28 -> -8.8514671e-06 | F23: =(1-$G$1*($B$2-$G$2))*B23 -> -4.668293265e-06 | G23: 7.26340169e-06 | H23: -8.863363472e-06 | J23: -1.163997525e-05 | K23: -4.362575447e-05 | L23: 4.657195477e-05 | M23: 0.0001981466864 | N23: 6.633828696e-09
A24: 9.0857 | B24: ='DF raw data'!M29 -> -9.9727322e-07 | C24: ='DF raw data'!N29 -> 2.4220326e-06 | D24: ='DF raw data'!O29 -> -4.1099588e-06 | F24: -9.986135552e-07 | G24: 2.431041512e-06 | H24: -4.115482585e-06 | J24: -1.213943182e-05 | K24: -4.96972913e-05 | L24: 4.778784018e-05 | M24: 0.0002220477747 | N24: 7.84971509e-09
A25: 9.58585 | B25: ='DF raw data'!M30 -> 5.7832644e-06 | C25: ='DF raw data'!N30 -> 3.4179334e-06 | D25: ='DF raw data'!O30 -> -4.6373348e-06 | F25: 5.791037107e-06 | G25: 3.430646632e-06 | H25: -4.643567378e-06 | J25: -9.243044614e-06 | K25: -5.432020006e-05 | L25: 4.950367809e-05 | M25: 0.0002468070393 | N25: 9.118119506e-09
A26: 10.086 | B26: ='DF raw data'!M31 -> 1.1871481e-05 | C26: ='DF raw data'!N31 -> -2.1874757e-06 | D26: ='DF raw data'!O31 -> -7.1134741e-06 | F26: 1.188743627e-05 | G26: -2.195612162e-06 | H26: -7.123034609e-06 | J26: -3.297543364e-06 | K26: -5.596946638e-05 | L26: 4.840554267e-05 | M26: 0.0002710170714 | N26: 1.029545778e-08
A27: 10.58615 | B27: ='DF raw data'!M32 -> 8.7259241e-06 | C27: ='DF raw data'!N32 -> -6.3315902e-06 | D27: ='DF raw data'!O32 -> -3.3871795e-06 | F27: 8.737651742e-06 | G27: -6.355140973e-06 | H27: -3.391731869e-06 | J27: 1.072593155e-06 | K27: -5.543300891e-05 | L27: 4.522701891e-05 | M27: 0.000293637365 | N27: 1.131908162e-08
A28: 11.0863 | B28: ='DF raw data'!M33 -> -1.5586425e-06 | C28: ='DF raw data'!N33 -> -4.8508155e-06 | D28: ='DF raw data'!O33 -> 8.7481442e-07 | F28: -1.560737316e-06 | G28: -4.868858432e-06 | H28: 8.759901706e-07 | J28: 2.919903867e-07 | K28: -5.528696992e-05 | L28: 4.279185937e-05 | M28: 0.0003150397134 | N28: 1.223497055e-08
A29: 11.58645 | B29: ='DF raw data'!M34 -> -6.9794346e-06 | C29: ='DF raw data'!N34 -> -1.971724e-06 | D29: ='DF raw data'!O34 -> -2.1475455e-06 | F29: -6.98881496e-06 | G29: -1.979057959e-06 | H29: -2.150431801e-06 | J29: -3.203465416e-06 | K29: -5.688918315e-05 | L29: 4.180203353e-05 | M29: 0.0003359470005 | N29: 1.31140703e-08
A30: 12.0866 | B30: ='DF raw data'!M35 -> -5.0851536e-06 | C30: ='DF raw data'!N35 -> 2.1606488e-06 | D30: ='DF raw data'!O35 -> -6.5375093e-06 | F30: -5.091988046e-06 | G30: 2.168685478e-06 | H30: -6.546295712e-06 | J30: -5.750223237e-06 | K30: -5.97651573e-05 | L30: 4.288670157e-05 | M30: 0.0003573967843 | N30: 1.405051827e-08
A31: 12.58675 | B31: ='DF raw data'!M36 -> -6.1726445e-07 | C31: ='DF raw data'!N36 -> -3.5009327e-06 | D31: ='DF raw data'!O36 -> -5.243844e-06 | F31: -6.180940534e-07 | G31: -3.513954653e-06 | H31: -5.250891726e-06 | J31: -6.059362978e-06 | K31: -6.279574769e-05 | L31: 4.112919715e-05 | M31: 0.0003779675522 | N31: 1.491494089e-08
A32: 13.0869 | B32: ='DF raw data'!M37 -> 2.1028842e-07 | C32: ='DF raw data'!N37 -> 4.1704625e-06 | D32: ='DF raw data'!O37 -> 2.6454188e-06 | F32: 2.105710476e-07 | G32: 4.185974814e-06 | H32: 2.648974243e-06 | J32: -5.954045868e-06 | K32: -6.577366373e-05 | L32: 4.322281246e-05 | M32: 0.0003995854419 | N32: 1.586705753e-08
A33: 13.58705 | B33: ='DF raw data'!M38 -> 5.9389146e-07 | C33: ='DF raw data'!N38 -> 1.254742e-05 | D33: ='DF raw data'!O38 -> 1.0479035e-05 | F33: 5.946896501e-07 | G33: 1.259409097e-05 | H33: 1.049311882e-05 | J33: -5.65661184e-06 | K33: -6.860281814e-05 | L33: 4.952174705e-05 | M33: 0.0004243537437 | N33: 1.710963053e-08
A34: 14.0872 | B34: ='DF raw data'!M39 -> 2.9483476e-06 | C34: ='DF raw data'!N39 -> 1.1039827e-05 | D34: ='DF raw data'!O39 -> 7.1090003e-06 | F34: 2.952310179e-06 | G34: 1.108089037e-05 | H34: 7.118554796e-06 | J34: -4.180013904e-06 | K34: -7.06934521e-05 | L34: 5.506385437e-05 | M34: 0.0004518939304 | N34: 1.863483824e-08
A35: 14.58735 | B35: ='DF raw data'!M40 -> 7.8633157e-06 | C35: ='DF raw data'!N40 -> -1.2495848e-07 | D35: ='DF raw data'!O40 -> 6.4046585e-06 | F35: 7.873883996e-06 | G35: -1.254232714e-07 | H35: 6.413266361e-06 | J35: -2.41890823e-07 | K35: -7.081443379e-05 | L35: 5.500112392e-05 | M35: 0.0004794027426 | N35: 2.014788309e-08
A36: 15.0875 | B36: ='DF raw data'!M41 -> 8.5926868e-06 | C36: ='DF raw data'!N41 -> -4.7240295e-07 | D36: ='DF raw data'!O41 -> 8.7470225e-06 | F36: 8.604235371e-06 | G36: -4.741600843e-07 | H36: 8.758778498e-06 | J36: 4.061517498e-06 | K36: -6.878306582e-05 | L36: 5.476397276e-05 | M36: 0.0005067929435 | N36: 2.165612975e-08
A37: 15.58765 | B37: ='DF raw data'!M42 -> 4.1407607e-06 | C37: ='DF raw data'!N42 -> -9.4099909e-07 | D37: ='DF raw data'!O42 -> 8.441607e-06 | F37: 4.146325882e-06 | G37: -9.44499199e-07 | H37: 8.45295252e-06 | J37: 6.135302388e-06 | K37: -6.571449433e-05 | L37: 5.429158148e-05 | M37: 0.000533946878 | N37: 2.314918641e-08
A38: 16.0878 | B38: ='DF raw data'!M43 -> -2.0335588e-06 | C38: ='DF raw data'!N43 -> -1.6465619e-06 | D38: ='DF raw data'!O43 -> -1.6010162e-08 | F38: -2.036291903e-06 | G38: -1.652686397e-06 | H38: -1.603167966e-08 | J38: 5.116850993e-06 | K38: -6.31553013e-05 | L38: 5.346499038e-05 | M38: 0.000560687393 | N38: 2.459196279e-08
A39: 16.58795 | B39: ='DF raw data'!M44 -> -3.6594442e-06 | C39: ='DF raw data'!N44 -> -8.0270493e-06 | D39: ='DF raw data'!O44 -> -7.9786141e-06 | F39: -3.664362493e-06 | G39: -8.056906446e-06 | H39: -7.989337357e-06 | J39: 3.284120092e-06 | K39: -6.151274864e-05 | L39: 4.943532862e-05 | M39: 0.0005854124726 | N39: 2.581964957e-08
A40: 17.0881 | B40: ='DF raw data'!M45 -> -8.5056075e-07 | C40: ='DF raw data'!N45 -> -7.7508548e-06 | D40: ='DF raw data'!O45 -> -1.0252234e-05 | F40: -8.517039036e-07 | G40: -7.779684622e-06 | H40: -1.0266013e-05 | J40: 2.858140384e-06 | K40: -6.008324973e-05 | L40: 4.554431936e-05 | M40: 0.0006081914639 | N40: 2.686118893e-08
A41: 17.58825 | B41: ='DF raw data'!M46 -> -3.0588257e-07 | C41: ='DF raw data'!N46 -> 9.8025566e-06 | D41: ='DF raw data'!O46 -> -7.6301394e-06 | F41: -3.062936762e-07 | G41: 9.839017864e-06 | H41: -7.640394307e-06 | J41: 2.704947602e-06 | K41: -5.873037018e-05 | L41: 5.046530414e-05 | M41: 0.0006334316858 | N41: 2.813860387e-08
A42: 18.0884 | B42: ='DF raw data'!M47 -> -1.3060475e-07 | C42: ='DF raw data'!N47 -> -4.8629577e-06 | D42: ='DF raw data'!O47 -> -7.0857948e-07 | F42: -1.307802828e-07 | G42: -4.881045796e-06 | H42: -7.095318108e-07 | J42: 2.639537844e-06 | K42: -5.741020533e-05 | L42: 4.802404909e-05 | M42: 0.0006574509139 | N42: 2.929558909e-08
A43: 18.58855 | B43: ='DF raw data'!M48 -> 6.6058288e-07 | C43: ='DF raw data'!N48 -> 2.1367655e-06 | D43: ='DF raw data'!O48 -> 2.9685295e-06 | F43: 6.614707034e-07 | G43: 2.144713342e-06 | H43: 2.972519204e-06 | J43: 2.970372416e-06 | K43: -5.592457357e-05 | L43: 4.909672747e-05 | M43: 0.0006820066422 | N43: 3.050560787e-08
A44: 19.0887 | B44: ='DF raw data'!M49 -> 5.7827725e-07 | C44: ='DF raw data'!N49 -> 5.122999e-06 | D44: ='DF raw data'!O49 -> 3.6442623e-06 | F44: 5.790544546e-07 | G44: 5.142054337e-06 | H44: 3.649160189e-06 | J44: 3.259986502e-06 | K44: -5.429409132e-05 | L44: 5.166852594e-05 | M44: 0.0007078486554 | N44: 3.184614195e-08
A45: 19.58885 | B45: ='DF raw data'!M50 -> 9.179044e-07 | C45: ='DF raw data'!N50 -> 7.3274828e-06 | D45: ='DF raw data'!O50 -> -5.0591495e-07 | F45: 9.191380635e-07 | G45: 7.354737862e-06 | H45: -5.065948997e-07 | J45: 3.719693404e-06 | K45: -5.243368666e-05 | L45: 5.534699809e-05 | M45: 0.0007355304565 | N45: 3.338516668e-08
A46: 20.089 | B46: ='DF raw data'!M51 -> 2.9428179e-06 | C46: ='DF raw data'!N51 -> 8.2184073e-07 | D46: ='DF raw data'!O51 -> 5.6662103e-08 | F46: 2.946773047e-06 | G46: 8.248976215e-07 | H46: 5.673825687e-08 | J46: 5.193521944e-06 | K46: -4.983614666e-05 | L46: 5.575957063e-05 | M46: 0.0007634186058 | N46: 3.495368829e-08
A47: 20.58915 | B47: ='DF raw data'!M52 -> 2.8264608e-06 | C47: ='DF raw data'!N52 -> 2.5766749e-06 | D47: ='DF raw data'!O52 -> -6.1447224e-07 | F47: 2.830259563e-06 | G47: 2.586259014e-06 | H47: -6.152980907e-07 | J47: 6.609076264e-06 | K47: -4.653061717e-05 | L47: 5.705308808e-05 | M47: 0.0007919537078 | N47: 3.660355047e-08
A48: 21.0893 | B48: ='DF raw data'!M53 -> 5.0177173e-06 | C48: ='DF raw data'!N53 -> -3.1656302e-06 | D48: ='DF raw data'!O53 -> -7.2728758e-06 | F48: 5.024461112e-06 | G48: -3.177404973e-06 | H48: -7.282650545e-06 | J48: 9.122060489e-06 | K48: -4.196821862e-05 | L48: 5.546390898e-05 | M48: 0.0008196939818 | N48: 3.818375298e-08
A49: 21.58945 | B49: ='DF raw data'!M54 -> 6.1526648e-06 | C49: ='DF raw data'!N54 -> -3.2268733e-06 | D49: ='DF raw data'!O54 -> -1.1481144e-05 | F49: 6.160933981e-06 | G49: -3.238875871e-06 | H49: -1.149657466e-05 | J49: 1.220345162e-05 | K49: -3.586466229e-05 | L49: 5.384398521e-05 | M49: 0.000846624051 | N49: 3.970825968e-08
A50: 22.0896 | B50: ='DF raw data'!M55 -> 3.2654775e-06 | C50: ='DF raw data'!N55 -> 1.6775093e-06 | D50: ='DF raw data'!O55 -> -8.2042998e-06 | F50: 3.269866302e-06 | G50: 1.683748908e-06 | H50: -8.215326379e-06 | J50: 1.383887525e-05 | K50: -2.894314883e-05 | L50: 5.468611223e-05 | M50: 0.0008739753101 | N50: 4.129977967e-08
A51: 22.58975 | B51: ='DF raw data'!M56 -> 3.4730751e-06 | C51: ='DF raw data'!N56 -> -1.7125767e-07 | D51: ='DF raw data'!O56 -> -6.540376e-06 | F51: 3.477742913e-06 | G51: -1.718946743e-07 | H51: -6.549166265e-06 | J51: 1.557826837e-05 | K51: -2.115167791e-05 | L51: 5.460013911e-05 | M51: 0.0009012835696 | N51: 4.291219206e-08
A52: 23.0899 | B52: ='DF raw data'!M57 -> 3.0399374e-06 | C52: ='DF raw data'!N57 -> -1.8809935e-06 | D52: ='DF raw data'!O57 -> -4.7055541e-06 | F52: 3.044023076e-06 | G52: -1.887989981e-06 | H52: -4.711878365e-06 | J52: 1.710073651e-05 | K52: -1.259874454e-05 | L52: 5.365586092e-05 | M52: 0.0009281195485 | N52: 4.449836107e-08
A53: 23.59005 | B53: ='DF raw data'!M58 -> 6.1305605e-06 | C53: ='DF raw data'!N58 -> -6.482363e-06 | D53: ='DF raw data'!O58 -> 1.2580246e-06 | F53: 6.138799973e-06 | G53: -6.506474582e-06 | H53: 1.259715385e-06 | J53: 2.017105732e-05 | K53: -2.510190224e-06 | L53: 5.040164766e-05 | M53: 0.0009533279326 | N53: 4.597240197e-08
A54: 24.0902 | B54: ='DF raw data'!M59 -> 5.5323603e-06 | C54: ='DF raw data'!N59 -> -7.1048007e-06 | D54: ='DF raw data'!O59 -> 4.2389843e-06 | F54: 5.539795792e-06 | G54: -7.131227481e-06 | H54: 4.244681495e-06 | J54: 2.294178618e-05 | K54: 8.964144136e-06 | L54: 4.683496423e-05 | M54: 0.0009767524399 | N54: 4.733272966e-08
A55: 24.59035 | B55: ='DF raw data'!M60 -> -1.8917794e-06 | C55: ='DF raw data'!N60 -> 2.3084863e-06 | D55: ='DF raw data'!O60 -> 1.7358803e-06 | F55: -1.894321952e-06 | G55: 2.317072869e-06 | H55: 1.738213323e-06 | J55: 2.199434106e-05 | K55: 1.996461382e-05 | L55: 4.799384823e-05 | M55: 0.001000756563 | N55: 4.872672799e-08
A56: 25.0905 | B56: ='DF raw data'!M61 -> -5.0179965e-06 | C56: ='DF raw data'!N61 -> -5.4226844e-06 | D56: ='DF raw data'!O61 -> 3.7625985e-06 | F56: -5.024740687e-06 | G56: -5.442854437e-06 | H56: 3.767655432e-06 | J56: 1.9481217e-05 | K56: 2.97081445e-05 | L56: 4.527160458e-05 | M56: 0.001023399156 | N56: 4.994161034e-08
A57: 25.59065 | B57: ='DF raw data'!M62 -> -5.071533e-06 | C57: ='DF raw data'!N62 -> -1.3896833e-07 | D57: ='DF raw data'!O62 -> -3.3037243e-06 | F57: -5.07834914e-06 | G57: -1.39485232e-07 | H57: -3.308164505e-06 | J57: 1.694128068e-05 | K57: 3.818132603e-05 | L57: 4.520184104e-05 | M57: 0.001046006857 | N57: 5.110706659e-08
A58: 26.0908 | B58: ='DF raw data'!M63 -> -6.9457178e-06 | C58: ='DF raw data'!N63 -> -1.9950737e-06 | D58: ='DF raw data'!O63 -> -5.0788544e-06 | F58: -6.955052845e-06 | G58: -2.00249451e-06 | H58: -5.08568038e-06 | J58: 1.3462711e-05 | K58: 4.491470094e-05 | L58: 4.420029341e-05 | M58: 0.001068113634 | N58: 5.217484209e-08
A59: 26.59095 | B59: ='DF raw data'!M64 -> -5.9141034e-06 | C59: ='DF raw data'!N64 -> 1.7965262e-06 | D59: ='DF raw data'!O64 -> 3.9682459e-06 | F59: -5.922051955e-06 | G59: 1.803208499e-06 | H59: 3.973579222e-06 | J59: 1.050079672e-05 | K59: 5.016667442e-05 | L59: 4.510216814e-05 | M59: 0.001090671483 | N59: 5.324739991e-08
A60: 27.0911 | B60: ='DF raw data'!M65 -> -1.6458084e-06 | C60: ='DF raw data'!N65 -> -5.0772414e-06 | D60: ='DF raw data'!O65 -> 4.3470759e-06 | F60: -1.648020366e-06 | G60: -5.096126538e-06 | H60: 4.35291837e-06 | J60: 9.676539329e-06 | K60: 5.500639556e-05 | L60: 4.255334046e-05 | M60: 0.001111954536 | N60: 5.419989667e-08
A61: 27.59125 | B61: ='DF raw data'!M66 -> 3.8865096e-06 | C61: ='DF raw data'!N66 -> -4.1375138e-06 | D61: ='DF raw data'!O66 -> 6.7754866e-07 | F61: 3.891733069e-06 | G61: -4.152903559e-06 | H61: 6.784592854e-07 | J61: 1.162298962e-05 | K61: 6.081963382e-05 | L61: 4.047626574e-05 | M61: 0.001132198741 | N61: 5.508687367e-08
A62: 28.0914 | B62: ='DF raw data'!M67 -> 7.6441784e-06 | C62: ='DF raw data'!N67 -> -1.0577643e-05 | D62: ='DF raw data'!O67 -> 1.6602104e-06 | F62: 7.654452176e-06 | G62: -1.061698725e-05 | H62: 1.662441723e-06 | J62: 1.545136388e-05 | K62: 6.854763347e-05 | L62: 3.516617957e-05 | M62: 0.001149787105 | N62: 5.58247974e-08
A63: 28.59155 | B63: ='DF raw data'!M68 -> 8.4320918e-06 | C63: ='DF raw data'!N68 -> -5.3271506e-06 | D63: ='DF raw data'!O68 -> 2.8083421e-06 | F63: 8.443424531e-06 | G63: -5.346965292e-06 | H63: 2.812116512e-06 | J63: 1.967434266e-05 | K63: 7.838775595e-05 | L63: 3.249189488e-05 | M63: 0.001166037927 | N63: 5.654641531e-08
A64: 29.0917 | B64: ='DF raw data'!M69 -> 7.8575094e-06 | C64: ='DF raw data'!N69 -> 4.8200167e-07 | D64: ='DF raw data'!O69 -> 3.0923954e-06 | F64: 7.868069893e-06 | G64: 4.837945074e-07 | H64: 3.096551579e-06 | J64: 2.360955782e-05 | K64: 9.019607629e-05 | L64: 3.27338647e-05 | M64: 0.001182409769 | N64: 5.736111821e-08
A65: 29.59185 | B65: ='DF raw data'!M70 -> 3.8320418e-06 | C65: ='DF raw data'!N70 -> 1.3372699e-06 | D65: ='DF raw data'!O70 -> 5.0772328e-06 | F65: 3.837192064e-06 | G65: 1.342243965e-06 | H65: 5.084056601e-06 | J65: 2.552872943e-05 | K65: 0.0001029642703 | L65: 3.340518802e-05 | M65: 0.001199117374 | N65: 5.824519466e-08
A66: 30.092 | B66: ='DF raw data'!M71 -> -1.531605e-06 | C66: ='DF raw data'!N71 -> 3.2532839e-06 | D66: ='DF raw data'!O71 -> -2.8791721e-06 | F66: -1.533663477e-06 | G66: 3.265384707e-06 | H66: -2.883041707e-06 | J66: 2.476166764e-05 | K66: 0.0001153488184 | L66: 3.503837018e-05 | M66: 0.001216641815 | N66: 5.916588457e-08
A67: 30.59215 | B67: ='DF raw data'!M72 -> -3.5023127e-06 | C67: ='DF raw data'!N72 -> 1.5027431e-05 | D67: ='DF raw data'!O72 -> -2.967284e-06 | F67: -3.507019808e-06 | G67: 1.508332653e-05 | H67: -2.97127203e-06 | J67: 2.300763168e-05 | K67: 0.0001268560854 | L67: 4.258229594e-05 | M67: 0.00123793935 | N67: 6.033753748e-08
A68: 31.0923 | B68: ='DF raw data'!M73 -> -1.1494717e-06 | C68: ='DF raw data'!N73 -> 1.5860283e-05 | D68: ='DF raw data'!O73 -> -2.6895607e-06 | F68: -1.15101659e-06 | G68: 1.591927638e-05 | H68: -2.69317547e-06 | J68: 2.243195073e-05 | K68: 0.0001380754255 | L68: 5.054432203e-05 | M68: 0.001263219093 | N68: 6.186695662e-08
A69: 31.59245 | B69: ='DF raw data'!M74 -> -1.2412506e-06 | C69: ='DF raw data'!N74 -> 1.5378109e-06 | D69: ='DF raw data'!O74 -> -3.8710891e-06 | F69: -1.242918841e-06 | G69: 1.54353089e-06 | H69: -3.876291844e-06 | J69: 2.181030488e-05 | K69: 0.0001489838495 | L69: 5.1316319e-05 | M69: 0.00128888495 | N69: 6.342194998e-08
A70: 32.0926 | B70: ='DF raw data'!M75 -> -4.3027699e-06 | C70: ='DF raw data'!N75 -> 2.4065553e-06 | D70: ='DF raw data'!O75 -> 4.738537e-06 | F70: -4.308552823e-06 | G70: 2.415506643e-06 | H70: 4.744905594e-06 | J70: 1.965538218e-05 | K70: 0.0001588144889 | L70: 5.252443465e-05 | M70: 0.001315155046 | N70: 6.499499689e-08
A71: 32.59275 | B71: ='DF raw data'!M76 -> -5.9456083e-06 | C71: ='DF raw data'!N76 -> 1.5129236e-05 | D71: ='DF raw data'!O76 -> 1.9005353e-06 | F71: -5.953599198e-06 | G71: =(1-$G$1*($B$2-$G$2))*C71*$M$2/$M$1 -> 1.51855102e-05 | H71: 1.903089619e-06 | J71: 1.667768954e-05 | K71: 0.0001671558353 | L71: 6.011946758e-05 | M71: 0.001345223797 | N71: 6.694182862e-08
A72: =A71+$B$1 -> 33.0929 | B72: ='DF raw data'!M77 -> -6.265474e-06 | C72: ='DF raw data'!N77 -> 7.5244211e-06 | D72: ='DF raw data'!O77 -> -5.5537853e-06 | F72: -6.273894797e-06 | G72: 7.552408687e-06 | H72: -5.561249587e-06 | J72: =F72*$B$1+J71 -> 1.353980106e-05 | K72: =J72*$B$1+K71 -> 0.0001739277668 | L72: =G72*$B$1+L71 -> 6.389680478e-05 | M72: =L72*$B$1+M71 -> 0.001377181784 | N72: =(J72^2+L72^2)*$B$1+N71 -> 6.907553248e-08
A73: 33.59305 | B73: ='DF raw data'!M78 -> -4.1945036e-06 | C73: ='DF raw data'!N78 -> -4.0648982e-07 | D73: ='DF raw data'!O78 -> -3.4939906e-06 | F73: -4.200141013e-06 | G73: -4.08001786e-07 | H73: -3.498686523e-06 | J73: 1.143910053e-05 | K73: 0.000179649033 | L73: 6.369274269e-05 | M73: 0.001409037709 | N73: 7.116996987e-08
A74: 34.0932 | B74: ='DF raw data'!M79 -> -1.6130375e-06 | C74: ='DF raw data'!N79 -> -1.3783733e-06 | D74: ='DF raw data'!O79 -> -4.3441573e-06 | F74: -1.615205422e-06 | G74: -1.383500252e-06 | H74: -4.349995847e-06 | J74: 1.063125554e-05 | K74: 0.0001849662554 | L74: 6.300078504e-05 | M74: 0.001440547552 | N74: 7.321164344e-08
A75: 34.59335 | B75: ='DF raw data'!M80 -> 4.7821828e-07 | C75: ='DF raw data'!N80 -> -1.878325e-06 | D75: ='DF raw data'!O80 -> -1.0573293e-05 | F75: 4.788610054e-07 | G75: -1.885311555e-06 | H75: -1.058750351e-05 | J75: 1.087075787e-05 | K75: 0.000190403265 | L75: 6.205784646e-05 | M75: 0.001471585784 | N75: 7.519691368e-08
A76: 35.0935 | B76: ='DF raw data'!M81 -> 3.2303055e-06 | C76: ='DF raw data'!N81 -> 6.2780778e-06 | D76: ='DF raw data'!O81 -> -6.12748e-06 | F76: 3.234647031e-06 | G76: 6.30142953e-06 | H76: -6.135715333e-06 | J76: 1.248856658e-05 | K76: 0.0001966494215 | L76: 6.520950644e-05 | M76: 0.001504200319 | N76: 7.740169693e-08
A77: 35.59365 | B77: ='DF raw data'!M82 -> 6.7582137e-06 | C77: ='DF raw data'!N82 -> -1.5041952e-06 | D77: ='DF raw data'!O82 -> -3.785902e-06 | F77: 6.767296739e-06 | G77: -1.509790155e-06 | H77: -3.790990252e-06 | J77: 1.587323005e-05 | K77: 0.0002045884176 | L77: 6.44543849e-05 | M77: 0.001536437179 | N77: 7.960552146e-08
A78: 36.0938 | B78: ='DF raw data'!M83 -> 4.193424e-06 | C78: ='DF raw data'!N83 -> 7.7053483e-06 | D78: ='DF raw data'!O83 -> -2.1540648e-06 | F78: 4.199059962e-06 | G78: 7.734008858e-06 | H78: -2.156959863e-06 | J78: 1.797338989e-05 | K78: 0.0002135778085 | L78: 6.832254943e-05 | M78: 0.001570608702 | N78: 8.210177687e-08
A79: 36.59395 | B79: ='DF raw data'!M84 -> -1.4844859e-06 | C79: ='DF raw data'!N84 -> 8.0074269e-06 | D79: ='DF raw data'!O84 -> 6.0908465e-06 | F79: -1.486481049e-06 | G79: 8.037211059e-06 | H79: 6.099032598e-06 | J79: 1.722992639e-05 | K79: 0.0002221953562 | L79: 7.234236054e-05 | M79: 0.001606790734 | N79: 8.486775016e-08
A80: 37.0941 | B80: ='DF raw data'!M85 -> -3.2860421e-06 | C80: ='DF raw data'!N85 -> 8.6590853e-06 | D80: ='DF raw data'!O85 -> 1.3209469e-05 | F80: -3.290458541e-06 | G80: 8.691293346e-06 | H80: 1.322722253e-05 | J80: 1.558420355e-05 | K80: 0.0002299897956 | L80: 7.668931091e-05 | M80: 0.001645146893 | N80: 8.793072768e-08
A81: 37.59425 | B81: ='DF raw data'!M86 -> 4.6941437e-07 | C81: ='DF raw data'!N86 -> -2.5051352e-07 | D81: ='DF raw data'!O86 -> 7.3912493e-06 | F81: 4.700452629e-07 | G81: -2.514453218e-07 | H81: 7.401183139e-06 | J81: 1.581929669e-05 | K81: 0.0002379018168 | L81: 7.656355053e-05 | M81: 0.001683440153 | N81: 9.098775822e-08
A82: 38.0944 | B82: ='DF raw data'!M87 -> -2.2718581e-07 | C82: ='DF raw data'!N87 -> 2.3671942e-06 | D82: ='DF raw data'!O87 -> -1.4685939e-08 | F82: -2.274911477e-07 | G82: 2.375999137e-06 | H82: -1.47056769e-08 | J82: 1.570551699e-05 | K82: 0.0002457569312 | L82: 7.77519065e-05 | M82: 0.001722327769 | N82: 9.413471314e-08
A83: 38.59455 | B83: ='DF raw data'!M88 -> -3.6534343e-06 | C83: ='DF raw data'!N88 -> 9.0456541e-07 | D83: ='DF raw data'!O88 -> 2.7126341e-06 | F83: -3.658344516e-06 | G83: 9.079300015e-07 | H83: 2.71627988e-06 | J83: 1.387579598e-05 | K83: 0.0002526969105 | L83: 7.820600769e-05 | M83: 0.001761442503 | N83: 9.729001812e-08
